Workbook

Sheet Title
B9: Tractor Guidance Analysis
B13: Written and developed by Karen Lindsay and Dr. Michael Popp
B23: © Copyright Reserved.
B25: Acknowledgement: This work was an interdisciplinary effort with experimental data provided by the Dale Bumpers Small Farms Research Center and expert opinion provided by Dr. Phillip Owens and Dr. Amanda Ashworth
B26: Disclaimer: The information provided within represents estimates that are a result of a set of complex calculations that are described in more detail in the user manual. Changes in parameter values and its implications on returns are estimates and the user should use their own reasonable judgment to reflect whether the direction of change in returns is appropriate before acting on the results. As such, this software is provided ‘as is’ and without warranties as to performance of merchantability. Further, statements may have been made to you about this software. Any such statements do not constitute warranties and shall not be relied on by the user in deciding whether to use the program or act on its results. This program is provided without any expressed or implied warranties whatsoever. Because the diversity of conditions and hardware under which this program may be used, no warranty of merchantability or warranty of fitness for a particular purpose is offered. The user is advised to test the program thoroughly before relying on it. The user assumes the entire risk of using the program. The University of Arkansas will not be liable for any claim or damage brought against the user by any third party, nor will the University of Arkansas be liable for any consequential, indirect or special damages suffered by the user as a result of the software.

Sheet Inputs
A1: =CONCATENATE("Operation Parameters and Expenses for ",J5) -> Operation Parameters and Expenses for Circle C Farms | AE1: TRUE
AE2: TRUE
AE3: TRUE
B4: =IF($AE$1=TRUE,"Enter operation parameters and expenses using the green cells provided","") -> Enter operation parameters and expenses using the green cells provided | T4: =" Estimated Profitability of Guidance Equipment:" -> Estimated Profitability of Guidance Equipment: | AA4: ='Output Comparison'!Q6 -> 29895.33
I5: Operation Name: | J5: Circle C Farms
B8: =IF(Z4=FALSE,"","Modify Green Cells Below") -> 
B9: Operation Parameters | P9: Field Characteristics by Crop | T9: Operating Expenses
B11: Field Crop Planted | D11: Acres | F11: Exp. Yield units/acre | I11: unit | K11: Expected Price ($/unit) | N11: $/acre | P11: Slope (%) | R11: Irregularity | T11: Fuel | V11: $/gal | Y11: Labor | AA11: $/hour | AG11: =SUM(AG13:AG17) -> 3 | AI11: =SUM(AI13:AI17) -> 1 | AK11: =SUM(AK13:AK17) -> 1
G12: Default | L12: Default | W12: Default | AB12: Default | AF12: Count IF Blank | AH12: Count IF Pasture | AJ12: Count IF Cotton
B13: Cotton | D13: 300 | F13: 1200 | G13: =IF($B$13=Defaults!$M$12,"",IF($B$13="","",VLOOKUP($B$13,Defaults!$M$5:$N$12,2,FALSE))) -> 1200 | I13: =IF($B$13=Defaults!$M$12,"",IF($B$13="","",VLOOKUP($B$13,Defaults!$M$5:$O$12,3,FALSE))) -> lb | K13: 0.68 | L13: =IF($B$13=Defaults!$M$12,"",IF($B$13="","",VLOOKUP($B$13,Defaults!$M$5:$P$12,4,FALSE))) -> 0.68 | N13: =IF($B$13=Defaults!$M$12,"",IF($B$13="","",$F$13*$K$13)) -> 816 | P13: 0-1% | R13: low | T13: =Defaults!$M$15 -> Diesel | V13: 1.75 | W13: =Defaults!$N$15 -> 1.75 | Y13: =Defaults!$M$22 -> Operator Labor | AA13: 13.14 | AB13: =Defaults!$N$22 -> 13.14 | AE13: Cotton | AF13: =IF(AND(B13<>"",OR(D13="",D13=0)),TRUE,FALSE) -> FALSE | AG13: =IF(B13="",0,1) -> 1 | AH13: =IF(B13=Defaults!M12,TRUE,FALSE) -> FALSE | AI13: =IF(AH13=TRUE,1,0) -> 0 | AJ13: =IF(B13=Defaults!M5,TRUE,FALSE) -> TRUE | AK13: =IF(AJ13=TRUE,1,0) -> 1
B15: Soybean | D15: 200 | F15: 60 | G15: =IF($B$15=Defaults!$M$12,"",IF($B$15="","",VLOOKUP($B$15,Defaults!$M$5:$N$12,2,FALSE))) -> 60 | I15: =IF($B$15=Defaults!$M$12,"",IF($B$15="","",VLOOKUP($B$15,Defaults!$M$5:$O$12,3,FALSE))) -> bu | K15: 10 | L15: =IF($B$15=Defaults!$M$12,"",IF($B$15="","",VLOOKUP($B$15,Defaults!$M$5:$P$12,4,FALSE))) -> 10 | N15: =IF($B$15=Defaults!$M$12,"",IF($B$15="","",$F$15*$K$15)) -> 600 | P15: 0-1% | R15: low | T15: Interest Rates | V15: (percent) | Y15: =Defaults!$M$23 -> Hired Labor | AA15: 9.06 | AB15: =Defaults!$N$23 -> 9.06 | AE15: Soybean | AF15: =IF(AND(B15<>"",OR(D15="",D15=0)),TRUE,FALSE) -> FALSE | AG15: =IF(B15="",0,1) -> 1 | AH15: =IF(B15=Defaults!M12,TRUE,FALSE) -> FALSE | AI15: =IF(AH15=TRUE,1,0) -> 0 | AJ15: =IF(B15=Defaults!M5,TRUE,FALSE) -> FALSE | AK15: =IF(AJ15=TRUE,1,0) -> 0
B17: Est. Pasture or Hay | D17: 100 | G17: =IF($B$17=Defaults!$M$12,"",IF($B$17="","",VLOOKUP($B$17,Defaults!$M$5:$N$12,2,FALSE))) ->  | I17: =IF($B$17=Defaults!$M$12,"",IF(B17="","",VLOOKUP($B$17,Defaults!$M$5:$O$12,3,FALSE))) ->  | L17: =IF($B$17=Defaults!$M$12,"",IF($B$17="","",VLOOKUP($B$17,Defaults!$M$5:$P$12,4,FALSE))) ->  | N17: =IF($B$17=Defaults!$M$12,"",IF($B$17="","",$F$17*$K$17)) ->  | P17: 0-1% | R17: low | T17: =Defaults!$M$18 -> Operating Interest | V17: 0.0475 | W17: =Defaults!$N$18 -> 0.0475 | Y17: Custom Applications | AA17: $/acre | AE17: Est. Pasture or Hay | AF17: =IF(AND(B17<>"",OR(D17="",D17=0)),TRUE,FALSE) -> FALSE | AG17: =IF(B17="",0,1) -> 1 | AH17: =IF(B17=Defaults!M12,TRUE,FALSE) -> TRUE | AI17: =IF(AH17=TRUE,1,0) -> 1 | AJ17: =IF(B17=Defaults!M5,TRUE,FALSE) -> FALSE | AK17: =IF(AJ17=TRUE,1,0) -> 0
B19: Total Acres Planted | D19: =IF(D13+D15+D17=0,1,D13+D15+D17) -> 600 | T19: =Defaults!$M$19 -> Discount Factor | V19: 0.06 | W19: =Defaults!$N$19 -> 0.06 | Y19: =Defaults!$M$32 -> Ground Fertilizer | AA19: 7 | AB19: =Defaults!$N$32 -> 7
Y21: =Defaults!$M$33 -> Air Herbicide | AA21: 7 | AB21: =Defaults!$N$33 -> 7
Y23: =Defaults!$M$34 -> Ground Herbicide | AA23: 7 | AB23: =Defaults!$N$34 -> 7
Y25: =Defaults!$M$35 -> Ground Insecticide | AA25: 7 | AB25: =Defaults!$N$35 -> 7
Y27: =Defaults!$M$36 -> Ground Seeding | AA27: 7 | AB27: =Defaults!$N$36 -> 7
Y29: =Defaults!$M$37 -> Air Seeding | AA29: 7 | AB29: =Defaults!$N$37 -> 7
B39: Disclaimer: The information provided within represents estimates that are a result of a set of complex calculations that are described in more detail in the user manual. Changes in parameter values and its implications on returns are estimates and the user should use their own reasonable judgment to reflect whether the direction of change in returns is appropriate before acting on the results. As such, this software is provided ‘as is’ and without warranties as to performance of merchantability. Further, statements may have been made to you about this software. Any such statements do not constitute warranties and shall not be relied on by the user in deciding whether to use the program or act on its results. This program is provided without any expressed or implied warranties whatsoever. Because the diversity of conditions and hardware under which this program may be used, no warranty of merchantability or warranty of fitness for a particular purpose is offered. The user is advised to test the program thoroughly before relying on it. The user assumes the entire risk of using the program. The University of Arkansas will not be liable for any claim or damage brought against the user by any third party, nor will the University of Arkansas be liable for any consequential, indirect or special damages suffered by the user as a result of the software.

Sheet Machinery
A1: =CONCATENATE("Machinery Selection for ",Inputs!$J$5) -> Machinery Selection for Circle C Farms | T1: TRUE | AM1: TRUE
T2: FALSE
B4: =IF(T1=TRUE,"Click green buttons to select technology and machine options","") -> Click green buttons to select technology and machine options | G4: =IF(Inputs!$B$13=Defaults!$M$12,"Pasture",Inputs!$B$13) -> Cotton | H4: =IF(Inputs!$B$15=Defaults!$M$12,"Pasture",Inputs!$B$15) -> Soybean | I4: =IF(Inputs!$B$17=Defaults!$M$12,"Pasture",Inputs!$B$17) -> Pasture
E5: Tractor Guidance (TG) Technology | G5: Annual Use by Crop | J5: Annual Use for Specified Field Operations | L5: =" Estimated Profitability of Guidance Equipment:" -> Estimated Profitability of Guidance Equipment: | P5: ='Output Comparison'!Q6 -> 29895.33
E6: =IF((Implements!AA215+Implements!AB215+Implements!AC215)=0,$U$11,Defaults!F9) -> Sub-meter Receiver 1 | G6: =IF($E$6=$U$11,"",Implements!P221) -> 133.1465507 | H6: =IF($E$6=$U$11,"",Implements!Q221) -> 40.36650429 | I6: =IF($E$6=$U$11,"",Implements!R221) -> 44.45730557 | J6: =IF($E$6=$U$11,"",Implements!S221) -> 217.9703606
E7: =IF(Implements!E142>=2,IF((Implements!AA216+Implements!AB216+Implements!AC216)=0,$U$11,Defaults!F10),"") ->  | G7: =IF(OR($E$7="",$E$7=$U$11),"",Implements!P222) ->  | H7: =IF(OR($E$7="",$E$7=$U$11),"",Implements!Q222) ->  | I7: =IF(OR($E$7="",$E$7=$U$11),"",Implements!R222) ->  | J7: =IF(OR($E$7="",$E$7=$U$11),"",Implements!S222) -> 
D9: Tractor Name | E9: Tractor Size | F9: Specified Use Hours | G9: Annual Use by Crop with Guidance | J9: Annual Use for Specified Field Operations with Guidance | L9: Weighted Avg. Operating Cost $/hr | M9: Capital Recovery $/hr | T9: Show/Hide Tractor Columns in Output Comparsion
B11: =IF($T$1=FALSE,Implements!$B$4,"") ->  | D11: =Implements!C130 -> Tractor 1 | E11: =Implements!D130 -> MFWD 190 | F11: =IF(J11=0,0,Implements!G216) -> 217.9703606 | G11: =Implements!C216 -> 133.1465507 | H11: =Implements!D216 -> 40.36650429 | I11: =Implements!E216 -> 44.45730557 | J11: =Implements!F216 -> 217.9703606 | L11: =Implements!H216 -> 25.29727892 | M11: =Implements!I216 -> 60.90248426 | T11: TRUE | U11: Not in use
D12: =IF(Implements!E130>=2,Implements!C131,"No Tractor") -> No Tractor | E12: =IF(D12="No Tractor"," ",Implements!D131) ->  | F12: =IF(J12=0,0,IF(D12="No Tractor","",Implements!G217)) ->  | G12: =IF(D12="No Tractor","",Implements!C217) ->  | H12: =IF(D12="No Tractor","",Implements!D217) ->  | I12: =IF(D12="No Tractor","",Implements!E217) ->  | J12: =IF(D12="No Tractor","",Implements!F217) ->  | L12: =IF(J12=0,0,IF(D12="No Tractor","",Implements!H217)) ->  | M12: =IF(J12=0,0,IF(D12="No Tractor","",Implements!I217)) -> 
D13: =IF(Implements!E130>=3,Implements!C132,"No Tractor") -> No Tractor | E13: =IF(D13="No Tractor"," ",Implements!D132) ->  | F13: =IF(J13=0,0,IF(D13="No Tractor","",Implements!G218)) ->  | G13: =IF(D13="No Tractor","",Implements!C218) ->  | H13: =IF(D13="No Tractor","",Implements!D218) ->  | I13: =IF(D13="No Tractor","",Implements!E218) ->  | J13: =IF(D13="No Tractor","",Implements!F218) ->  | L13: =IF(J13=0,0,IF(D13="No Tractor","",Implements!H218)) ->  | M13: =IF(J13=0,0,IF(D13="No Tractor","",Implements!I218)) -> 
D14: =IF(Implements!E130>=4,Implements!C133,"No Tractor") -> No Tractor | E14: =IF(D14="No Tractor"," ",Implements!D133) ->  | F14: =IF(J14=0,0,IF(D14="No Tractor","",Implements!G219)) ->  | G14: =IF(D14="No Tractor","",Implements!C219) ->  | H14: =IF(D14="No Tractor","",Implements!D219) ->  | I14: =IF(D14="No Tractor","",Implements!E219) ->  | J14: =IF(D14="No Tractor","",Implements!F219) ->  | L14: =IF(J14=0,0,IF(D14="No Tractor","",Implements!H219)) ->  | M14: =IF(J14=0,0,IF(D14="No Tractor","",Implements!I219)) -> 
D16: Implement— Size — TG Selection | E16: Tractor Selection | F16: Benchmark Estimated Annual Use | G16: Annual Use by Crop with Guidance | J16: Annual Use Hours with Guidance | L16: Fuel Cost $/hr | M16: Repair & Maintenance $/hr | N16: Capital Recovery $/hr | O16: Total Cost $/hr | P16: Acres per hour | Q16: Total Cost $/acre | T16: Tractor Match Error Checking: If ≥ Req'd HP, True | U16: Tractor Match Error Checking: If ≤ Req'd HP, True
B18: =IF($T$1=FALSE,CONCATENATE(Implements!$B$29,"s"),"") ->  | D18: =IF((Implements!M207+Implements!N207+Implements!O207)=0,$U$11,CONCATENATE(Implements!B134," 1 — ",Implements!F134," — ",Implements!Z134)) -> Row Planter 1 — 8R-30 — Sub-meter Receiver 1 | E18: =IF(D18=$U$11,"",Implements!D134) -> Tractor 1 | F18: =IF(D18=$U$11,"",IF(E18="No Tractor"," ",Implements!S226)) -> 57.69230769 | G18: =IF($D$18=$U$11,"",IF($E$18="No Tractor"," ",Implements!P207)) -> 33.86692556 | H18: =IF($D$18=$U$11,"",IF($E$18="No Tractor"," ",Implements!Q207)) -> 22.57795037 | I18: =IF($D$18=$U$11,"",IF($E$18="No Tractor"," ",Implements!R207)) -> 0 | J18: =IF($D$18=$U$11,"",IF($E$18="No Tractor"," ",Implements!S207)) -> 56.44487593 | L18: =IF(D18=$U$11,"",IF(E18="No Tractor"," ",Implements!AP170)) -> 14.63 | M18: =IF(D18=$U$11,"",IF(E18="No Tractor"," ",Implements!AQ170)) -> 43.46666667 | N18: =IF(D18=$U$11,"",IF(E18="No Tractor"," ",Implements!AR170)) -> 119.3106573 | O18: =IF(D18=$U$11,"",IF(E18="No Tractor"," ",SUM(Implements!AO170:AR170))) -> 195.0773239 | P18: =IF(D18=$U$11,"",IF(E18="No Tractor"," ",Implements!W170)) -> 8.8582 | Q18: =IF(D18=$U$11,"",IF(E18="No Tractor"," ",O18/P18)) -> 22.02223069 | T18: =Implements!X134 -> FALSE | U18: =Implements!Y134 -> FALSE
D19: =IF((Implements!M208+Implements!N208+Implements!O208)=0,$U$11,CONCATENATE(Implements!B135," 2 — ",Implements!F135," — ",Implements!Z135)) -> Not in use | E19: =IF(D19=$U$11,"",Implements!D135) ->  | F19: =IF(D19=$U$11,"",IF(E19="No Tractor"," ",Implements!S227)) ->  | G19: =IF($D$19=$U$11,"",IF($E$19="No Tractor"," ",Implements!P208)) ->  | H19: =IF($D$19=$U$11,"",IF($E$19="No Tractor"," ",Implements!Q208)) ->  | I19: =IF($D$19=$U$11,"",IF($E$19="No Tractor"," ",Implements!R208)) ->  | J19: =IF($D$19=$U$11,"",IF($E$19="No Tractor"," ",Implements!S208)) ->  | L19: =IF(D19=$U$11,"",IF(E19="No Tractor"," ",Implements!AP171)) ->  | M19: =IF(D19=$U$11,"",IF(E19="No Tractor"," ",Implements!AQ171)) ->  | N19: =IF(D19=$U$11,"",IF(E19="No Tractor"," ",Implements!AR171)) ->  | O19: =IF(D19=$U$11,"",IF(E19="No Tractor"," ",SUM(Implements!AO171:AR171))) ->  | P19: =IF(D19=$U$11,"",IF(E19="No Tractor"," ",Implements!W171)) ->  | Q19: =IF(D19=$U$11,"",IF(E19="No Tractor"," ",O19/P19)) ->  | T19: =Implements!X135 -> FALSE | U19: =Implements!Y135 -> FALSE
B21: =IF($T$1=FALSE,"Grain Drills","") ->  | D21: =IF((Implements!M209+Implements!N209+Implements!O209)=0,$U$11,CONCATENATE(Implements!B136," — ",Implements!F136," ft"," — ",Implements!Z136)) -> No-Till Grain Drill — 12 ft — Sub-meter Receiver 1 | E21: =IF(D21=$U$11,"",Implements!D136) -> Tractor 1 | F21: =IF(D21=$U$11,"",IF(E21="No Tractor"," ",Implements!S228)) -> 19.64285714 | G21: =IF($D$21=$U$11,"",IF($E$21="No Tractor"," ",Implements!P209)) -> 0 | H21: =IF($D$21=$U$11,"",IF($E$21="No Tractor"," ",Implements!Q209)) -> 0 | I21: =IF($D$21=$U$11,"",IF($E$21="No Tractor"," ",Implements!R209)) -> 19.21813633 | J21: =IF($D$21=$U$11,"",IF($E$21="No Tractor"," ",Implements!S209)) -> 19.21813633 | L21: =IF(D21=$U$11,"",IF(E21="No Tractor"," ",Implements!AP172)) -> 14.63 | M21: =IF(D21=$U$11,"",IF(E21="No Tractor"," ",Implements!AQ172)) -> 30.2 | N21: =IF(D21=$U$11,"",IF(E21="No Tractor"," ",Implements!AR172)) -> 207.775584 | O21: =IF(D21=$U$11,"",IF(E21="No Tractor"," ",SUM(Implements!AO172:AR172))) -> 270.275584 | P21: =IF(D21=$U$11,"",IF(E21="No Tractor"," ",Implements!W172)) -> 5.203418182 | Q21: =IF(D21=$U$11,"",IF(E21="No Tractor"," ",O21/P21)) -> 51.9419302 | T21: =Implements!X136 -> TRUE | U21: =Implements!Y136 -> FALSE
D22: =IF((Implements!M210+Implements!N210+Implements!O210)=0,$U$11,CONCATENATE(Implements!B137," — ",Implements!F137," ft"," — ",Implements!Z137)) -> Not in use | E22: =IF(D22=$U$11,"",Implements!D137) ->  | F22: =IF(D22=$U$11,"",IF(E22="No Tractor"," ",Implements!S229)) ->  | G22: =IF($D$22=$U$11,"",IF($E$22="No Tractor"," ",Implements!P210)) ->  | H22: =IF($D$22=$U$11,"",IF($E$22="No Tractor"," ",Implements!Q210)) ->  | I22: =IF($D$22=$U$11,"",IF($E$22="No Tractor"," ",Implements!R210)) ->  | J22: =IF($D$22=$U$11,"",IF($E$22="No Tractor"," ",Implements!S210)) ->  | L22: =IF(D22=$U$11,"",IF(E22="No Tractor"," ",Implements!AP173)) ->  | M22: =IF(D22=$U$11,"",IF(E22="No Tractor"," ",Implements!AQ173)) ->  | N22: =IF(D22=$U$11,"",IF(E22="No Tractor"," ",Implements!AR173)) ->  | O22: =IF(D22=$U$11,"",IF(E22="No Tractor"," ",SUM(Implements!AO173:AR173))) ->  | P22: =IF(D22=$U$11,"",IF(E22="No Tractor"," ",Implements!W173)) ->  | Q22: =IF(D22=$U$11,"",IF(E22="No Tractor"," ",O22/P22)) ->  | T22: =Implements!X137 -> TRUE | U22: =Implements!Y137 -> FALSE
B24: =IF($T$1=FALSE,CONCATENATE(Implements!$B$36,"s"),"") ->  | D24: =IF((Implements!M211+Implements!N211+Implements!O211)=0,$U$11,CONCATENATE(Implements!B138," 1 — ",Implements!F138," ft"," — ",Implements!Z138)) -> Over-the-Top Sprayer 1 — 120 ft — Sub-meter Receiver 1 | E24: =IF(D24=$U$11,"",Implements!D138) -> Tractor 1 | F24: =IF(D24=$U$11,"",IF(E24="No Tractor"," ",Implements!S230)) -> 76.47928994 | G24: =IF($D$24=$U$11,"",IF($E$24="No Tractor"," ",Implements!P211)) -> 62.08936353 | H24: =IF($D$24=$U$11,"",IF($E$24="No Tractor"," ",Implements!Q211)) -> 9.552209773 | I24: =IF($D$24=$U$11,"",IF($E$24="No Tractor"," ",Implements!R211)) -> 3.184069924 | J24: =IF($D$24=$U$11,"",IF($E$24="No Tractor"," ",Implements!S211)) -> 74.82564323 | L24: =IF(D24=$U$11,"",IF(E24="No Tractor"," ",Implements!AP174)) -> 14.63 | M24: =IF(D24=$U$11,"",IF(E24="No Tractor"," ",Implements!AQ174)) -> 45.04666667 | N24: =IF(D24=$U$11,"",IF(E24="No Tractor"," ",Implements!AR174)) -> 138.7259237 | O24: =IF(D24=$U$11,"",IF(E24="No Tractor"," ",SUM(Implements!AO174:AR174))) -> 216.0725904 | P24: =IF(D24=$U$11,"",IF(E24="No Tractor"," ",Implements!W174)) -> 62.81269091 | Q24: =IF(D24=$U$11,"",IF(E24="No Tractor"," ",O24/P24)) -> 3.439951182 | T24: =Implements!X138 -> FALSE | U24: =Implements!Y138 -> TRUE
D25: =IF((Implements!M212+Implements!N212+Implements!O212)=0,$U$11,CONCATENATE(Implements!B139," 2 — ",Implements!F139," ft"," — ",Implements!Z139)) -> Post-Directed Sprayer 2 — 8R-30 ft — Sub-meter Receiver 1 | E25: =IF(D25=$U$11,"",Implements!D139) -> Tractor 1 | F25: =IF(D25=$U$11,"",IF(E25="No Tractor"," ",Implements!S231)) -> 25.38461538 | G25: =IF($D$25=$U$11,"",IF($E$25="No Tractor"," ",Implements!P212)) -> 24.83574541 | H25: =IF($D$25=$U$11,"",IF($E$25="No Tractor"," ",Implements!Q212)) -> 0 | I25: =IF($D$25=$U$11,"",IF($E$25="No Tractor"," ",Implements!R212)) -> 0 | J25: =IF($D$25=$U$11,"",IF($E$25="No Tractor"," ",Implements!S212)) -> 24.83574541 | L25: =IF(D25=$U$11,"",IF(E25="No Tractor"," ",Implements!AP175)) -> 14.63 | M25: =IF(D25=$U$11,"",IF(E25="No Tractor"," ",Implements!AQ175)) -> 15.253125 | N25: =IF(D25=$U$11,"",IF(E25="No Tractor"," ",Implements!AR175)) -> 95.49278765 | O25: =IF(D25=$U$11,"",IF(E25="No Tractor"," ",SUM(Implements!AO175:AR175))) -> 143.0459126 | P25: =IF(D25=$U$11,"",IF(E25="No Tractor"," ",Implements!W175)) -> 12.07936364 | Q25: =IF(D25=$U$11,"",IF(E25="No Tractor"," ",O25/P25)) -> 11.8421729 | T25: =Implements!X139 -> TRUE | U25: =Implements!Y139 -> FALSE
B27: =IF($T$1=FALSE,Implements!$B$41,"") ->  | D27: =IF((Implements!M213+Implements!N213+Implements!O213)=0,$U$11,CONCATENATE(Implements!B140," — ",Implements!F140," ft"," — ",Implements!Z140)) -> Fertilizer Spreader — 40 ft — Sub-meter Receiver 1 | E27: =IF(D27=$U$11,"",Implements!D140) -> Tractor 1 | F27: =IF(D27=$U$11,"",IF(E27="No Tractor"," ",Implements!S232)) -> 25.25510204 | G27: =IF($D$27=$U$11,"",IF($E$27="No Tractor"," ",Implements!P213)) -> 12.35451621 | H27: =IF($D$27=$U$11,"",IF($E$27="No Tractor"," ",Implements!Q213)) -> 8.236344141 | I27: =IF($D$27=$U$11,"",IF($E$27="No Tractor"," ",Implements!R213)) -> 4.118172071 | J27: =IF($D$27=$U$11,"",IF($E$27="No Tractor"," ",Implements!S213)) -> 24.70903242 | L27: =IF(D27=$U$11,"",IF(E27="No Tractor"," ",Implements!AP176)) -> 14.63 | M27: =IF(D27=$U$11,"",IF(E27="No Tractor"," ",Implements!AQ176)) -> 17.16666667 | N27: =IF(D27=$U$11,"",IF(E27="No Tractor"," ",Implements!AR176)) -> 93.71247358 | O27: =IF(D27=$U$11,"",IF(E27="No Tractor"," ",SUM(Implements!AO176:AR176))) -> 143.1791402 | P27: =IF(D27=$U$11,"",IF(E27="No Tractor"," ",Implements!W176)) -> 24.28261818 | Q27: =IF(D27=$U$11,"",IF(E27="No Tractor"," ",O27/P27)) -> 5.896363365 | T27: =Implements!X140 -> TRUE | U27: =Implements!Y140 -> FALSE
B29: =IF(T1=FALSE,Implements!$B$42,"") ->  | D29: =IF((Implements!M214+Implements!N214+Implements!O214)=0,$U$11,CONCATENATE(Implements!B141," — ",Implements!F141," ft"," — ",Implements!Z141)) -> Manure Spreader — 15 ft — Sub-meter Receiver 1 | E29: =IF(D29=$U$11,"",Implements!D141) -> Tractor 1 | F29: =IF(D29=$U$11,"",IF(E29="No Tractor"," ",Implements!S233)) -> 18.33333333 | G29: =IF($D$29=$U$11,"",IF($E$29="No Tractor"," ",Implements!P214)) -> 0 | H29: =IF($D$29=$U$11,"",IF($E$29="No Tractor"," ",Implements!Q214)) -> 0 | I29: =IF($D$29=$U$11,"",IF($E$29="No Tractor"," ",Implements!R214)) -> 17.93692724 | J29: =IF($D$29=$U$11,"",IF($E$29="No Tractor"," ",Implements!S214)) -> 17.93692724 | L29: =IF(D29=$U$11,"",IF(E29="No Tractor"," ",Implements!AP177)) -> 14.63 | M29: =IF(D29=$U$11,"",IF(E29="No Tractor"," ",Implements!AQ177)) -> 12.906975 | N29: =IF(D29=$U$11,"",IF(E29="No Tractor"," ",Implements!AR177)) -> 117.3097474 | O29: =IF(D29=$U$11,"",IF(E29="No Tractor"," ",SUM(Implements!AO177:AR177))) -> 162.5167224 | P29: =IF(D29=$U$11,"",IF(E29="No Tractor"," ",Implements!W177)) -> 5.575090909 | Q29: =IF(D29=$U$11,"",IF(E29="No Tractor"," ",O29/P29)) -> 29.15050626 | T29: =Implements!X141 -> TRUE | U29: =Implements!Y141 -> FALSE
B34: Disclaimer: The information provided within represents estimates that are a result of a set of complex calculations that are described in more detail in the user manual. Changes in parameter values and its implications on returns are estimates and the user should use their own reasonable judgment to reflect whether the direction of change in returns is appropriate before acting on the results. As such, this software is provided ‘as is’ and without warranties as to performance of merchantability. Further, statements may have been made to you about this software. Any such statements do not constitute warranties and shall not be relied on by the user in deciding whether to use the program or act on its results. This program is provided without any expressed or implied warranties whatsoever. Because the diversity of conditions and hardware under which this program may be used, no warranty of merchantability or warranty of fitness for a particular purpose is offered. The user is advised to test the program thoroughly before relying on it. The user assumes the entire risk of using the program. The University of Arkansas will not be liable for any claim or damage brought against the user by any third party, nor will the University of Arkansas be liable for any consequential, indirect or special damages suffered by the user as a result of the software.

Sheet Crop 1
A1: =CONCATENATE($Z$2," Production Practices ","for ",Inputs!$J$5) -> Cotton Production Practices for Circle C Farms | Z1: TRUE | AA1: Conversion Factors | AS1: Data Validation Lookups | AV1: Planting Operation Check
Z2: Cotton | AA2: =Defaults!Q15 -> qt | AB2: 0.25 | AC2: =Defaults!Q19 -> gal | AD2: =Defaults!Q17 -> oz | AE2: 0.0625 | AF2: =Defaults!Q20 -> lb | AG2: =Defaults!Q20 -> lb | AH2: 112 | AI2: =Defaults!Q18 -> cwt | AJ2: =Defaults!Q15 -> qt | AK2: 0.5 | AL2: =Defaults!Q16 -> pt | AM2: =Defaults!Q20 -> lb | AN2: 2000 | AO2: =Defaults!Q21 -> ton | AP2: =Defaults!Q15 -> qt | AQ2: 0.03125 | AR2: =Defaults!Q17 -> oz | AS2: Operations | AT2: Planter Operations | AU2: Herbicides | AV2: =IF($AT$3=Defaults!$I$3,Defaults!$I$7,IF($AT$3=Defaults!$I$11,Defaults!$I$15,IF($AT$3=Defaults!$I$17,Defaults!$I$21,""))) -> Row Planter 1
Z3: FALSE | AA3: =Defaults!Q16 -> pt | AB3: 0.125 | AD3: =Defaults!Q18 -> cwt | AE3: 0.00892857 | AP3: =Defaults!Q16 -> pt | AQ3: 0.0625 | AS3: =IF(OR($Z$2=Defaults!$M$5,$Z$2=Defaults!$M$6,$Z$2=Defaults!$M$7,$Z$2=Defaults!$M$8,$Z$2=Defaults!$M$9,$Z$2=Defaults!$M$10)=TRUE,Defaults!$I$38,FALSE) -> BudgetInsect | AT3: =IF(OR($Z$2=Defaults!$M$5,$Z$2=Defaults!$M$6,$Z$2=Defaults!$M$7,$Z$2=Defaults!$M$10)=TRUE,Defaults!$I$17,IF(OR($Z$2=Defaults!$M$9,$Z$2=Defaults!$M$11,$Z$2=Defaults!$M$12)=TRUE,Defaults!$I$11,Defaults!$I$3)) -> BudgetPlantOther | AU3: =IF(OR(C13="",L13="",L13=0)=TRUE,FALSE,IF($Z$2=Defaults!$M$5,Defaults!$AL$2,IF($Z$2=Defaults!$M$6,Defaults!$AS$2,IF($Z$2=Defaults!$M$7,Defaults!$AZ$2,IF($Z$2=Defaults!$M$8,Defaults!$BG$2,IF($Z$2=Defaults!$M$9,Defaults!$BN$2,IF($Z$2=Defaults!$M$12,Defaults!$CI$2,FALSE))))))) -> CottonBD | AV3: =IF($AT$3=Defaults!$I$3,Defaults!$I$8,IF($AT$3=Defaults!$I$11,Defaults!$I$16,IF($AT$3=Defaults!$I$17,Defaults!$I$22,""))) -> 
Z4: Benchmark (No Tractor Guidance) | AA4: =Defaults!Q17 -> oz | AB4: 0.0078125 | AS4: =IF(OR(C33="",L33="",L33=0)=TRUE,FALSE,IF($AS$3=FALSE,FALSE,IF(OR($Z$2=Defaults!$M$5,$Z$2=Defaults!$M$6,$Z$2=Defaults!$M$7,$Z$2=Defaults!$M$8,$Z$2=Defaults!$M$9,$Z$2=Defaults!$M$10)=TRUE,Defaults!$T$20))) -> Insecticide | AT4: =IF($C$31="","",IF($AT$3=Defaults!$I$3,VLOOKUP($C$31,Defaults!$I$4:$K$10,3,FALSE),IF($AT$3=Defaults!$I$11,VLOOKUP($C$31,Defaults!$I$12:$K$16,3,FALSE),IF($AT$3=Defaults!$I$17,VLOOKUP($C$31,Defaults!$I$18:$K$22,3,FALSE))))) ->  | AU4: =IF(OR(C18="",L18="",L18=0)=TRUE,FALSE,IF($Z$2=Defaults!$M$5,Defaults!$AL$18,IF($Z$2=Defaults!$M$7,Defaults!$AZ$18,IF($Z$2=Defaults!$M$8,Defaults!$BG$18,IF($Z$2=Defaults!$M$9,Defaults!$BN$18,IF($Z$2=Defaults!$M$10,Defaults!$BU$18,IF($Z$2=Defaults!$M$12,Defaults!$CI$2,FALSE))))))) -> CottonPP | AV4: =IF($AT$3=Defaults!$I$3,Defaults!$I$7,IF($AT$3=Defaults!$I$11,Defaults!$I$15,"")) -> 
B5: =IF(Z1=FALSE,"","Modify Green Cells Below") -> Modify Green Cells Below | Z5: Adjusted for Tractor Guidance | AA5: Partial Returns ($/acre): | AH5: =Defaults!M25 -> Labor Multiplier by Operation | AS5: =IF($Z$2=Defaults!$M$5,Defaults!$I$52,IF($Z$2=Defaults!$M$10,Defaults!$I$43,IF($Z$2=Defaults!$M$12,Defaults!$I$48,FALSE))) -> BudgetDefol | AU5: =IF(OR(C48="",L48="",L48=0)=TRUE,FALSE,IF($Z$2=Defaults!$M$5,Defaults!$AL$36,IF($Z$2=Defaults!$M$6,Defaults!$AS$36,IF($Z$2=Defaults!$M$7,Defaults!$AZ$36,IF($Z$2=Defaults!$M$8,Defaults!$BG$36,IF($Z$2=Defaults!$M$9,Defaults!$BN$36,IF($Z$2=Defaults!$M$10,Defaults!$BU$36,IF($Z$2=Defaults!$M$11,Defaults!$CB$36,FALSE)))))))) -> CottonPRE | AV5: =IF($AT$3=Defaults!$I$3,Defaults!$I$8,IF($AT$3=Defaults!$I$11,Defaults!$I$16,"")) -> 
C6: =IF($Z$1=TRUE,"Modify budget specifications using the green cells provided","") -> Modify budget specifications using the green cells provided | U6: =F10 -> Benchmark without Tractor Guidance | X6: Adjusted for Tractor Guidance | Z6: Cost Savings ($/acre): | AA6: ="/acre" -> /acre | AS6: =IF(OR(C39="",L39="",L39=0)=TRUE,FALSE,IF($Z$2=Defaults!$M$5,Defaults!$T$37,IF($Z$2=Defaults!$M$10,Defaults!$T$32,IF($Z$2=Defaults!$M$12,Defaults!$T$16,FALSE)))) -> Defoliant | AU6: =IF(OR(C55="",L55="",L55=0)=TRUE,FALSE,IF($Z$2=Defaults!$M$5,Defaults!$AL$64,IF($Z$2=Defaults!$M$6,Defaults!$AS$64,IF($Z$2=Defaults!$M$7,Defaults!$AZ$64,IF($Z$2=Defaults!$M$8,Defaults!$BG$64,IF($Z$2=Defaults!$M$9,Defaults!$BN$64,IF($Z$2=Defaults!$M$10,Defaults!$BU$64,FALSE))))))) -> CottonPOST | AV6: =IF($AT$3=Defaults!$I$3,Defaults!$I$9,"") -> 
Q7: =IF($Z$2=Defaults!$M$12,"Efficiency Gains ($/acre):",AA5) -> Partial Returns ($/acre): | U7: =IF($Z$2=Defaults!$M$12,"",IFERROR(+IF($Z$2=Defaults!$M$12,"",U8*Inputs!$K$13)-N68,0)) -> 311.5013085 | X7: =IF($Z$2=Defaults!$M$12,-AO68,IFERROR(+X8*Inputs!$K$13-W68,0)) -> 396.8218022 | Z7: =CONCATENATE(Implements!$B$36," Trips") -> Over-the-Top Sprayer Trips | AA7: =(IF(C13=Defaults!$I$27,L13,0)+IF(C18=Defaults!$I$27,L18,0)+IF(C33=Defaults!$I$41,L33,0)+IF(OR(C39=Defaults!$I$46,C39=Defaults!$I$55)=TRUE,L39,0)+IF(OR(C44=Defaults!$I$60,C44=Defaults!$I$65)=TRUE,L44,0)+IF(C48=Defaults!$I$27,L48,0)+IF(C55=Defaults!$I$27,L55,0)) -> 13 | AB7: =CONCATENATE(Implements!$B$39," Trips") -> Post-Directed Sprayer Trips | AC7: =IF(C61=Defaults!$I$33,L61,0) -> 1 | AD7: =CONCATENATE(Implements!$B$41," Trips") -> Fertilizer Spreader Trips | AE7: =IF(C23=Defaults!$I$37,L23,0)+IF(C39=Defaults!$I$37,L39,0) -> 1 | AF7: =CONCATENATE(Implements!$B$42," Trips") -> Manure Spreader Trips | AG7: =IF(C39=Defaults!$I$51,L39,0) -> 0 | AH7: =Defaults!M26 -> Field Preparation | AI7: =Defaults!N26 -> 1.5 | AS7: =IF($Z$2=Defaults!$M$5,Defaults!$I$57,IF($Z$2=Defaults!$M$8,Defaults!$I$62,FALSE)) -> BudgetGrowthReg | AU7: =IF(OR(C61="",L61="",L61=0)=TRUE,FALSE,IF($Z$2=Defaults!$M$5,Defaults!$AL$84,FALSE)) -> CottonLAY | AV7: =IF($AT$3=Defaults!$I$3,Defaults!$I$10,"") -> 
Q8: =IF($Z$2=Defaults!M12,$Z$6,"Yield (units/acre):") -> Yield (units/acre): | U8: =IF($Z$2=Defaults!$M$12,"",ROUND(VLOOKUP($Z$2,Inputs!$B$13:$F$17,5,FALSE),IF($Z$2=Defaults!$M$10,2,0))) -> 1200 | X8: =IF($Z$2=Defaults!$M$12,-AK68,ROUND(VLOOKUP(Z2,Inputs!$B$13:$F$17,5,FALSE)*(1+Implements!$E$159+Implements!$E$160+Implements!$E$161+Implements!$E$162+Implements!$E$163+Implements!$E$164+Implements!$E$165),IF($Z$2=Defaults!$M$10,2,0))) -> 1248 | Z8: =CONCATENATE(Implements!$B$36," Trips") -> Over-the-Top Sprayer Trips | AA8: =(IF(C13=Defaults!$I$27,V13,0)+IF(C18=Defaults!$I$27,V18,0)+IF(C33=Defaults!$I$41,V33,0)+IF(OR(C39=Defaults!$I$46,C39=Defaults!$I$55)=TRUE,V39,0)+IF(OR(C44=Defaults!$I$60,C44=Defaults!$I$65)=TRUE,V44,0)+IF(C48=Defaults!$I$27,V48,0)+IF(C55=Defaults!$I$27,V55,0)) -> 13 | AB8: =CONCATENATE(Implements!$B$39," Trips") -> Post-Directed Sprayer Trips | AC8: =IF(C61=Defaults!$I$33,V61,0) -> 1 | AD8: =CONCATENATE(Implements!$B$41," Trips") -> Fertilizer Spreader Trips | AE8: =IF(C23=Defaults!$I$37,V23,0)+IF(C39=Defaults!$I$37,V39,0) -> 1 | AF8: =CONCATENATE(Implements!$B$42," Trips") -> Manure Spreader Trips | AG8: =IF(C39=Defaults!$I$51,V39,0) -> 0 | AH8: =Defaults!M27 -> Planting | AI8: =Defaults!N27 -> 1.5 | AS8: =IF(OR(C44="",L44="",L44=0)=TRUE,FALSE,IF($Z$2=Defaults!$M$5,Defaults!$T$44,IF($Z$2=Defaults!$M$8,Defaults!$T$49,FALSE))) -> GrowthRegulator | AV8: =Defaults!$I$5 -> Custom Ground Seeding
Z9: =IF($Z$2=Defaults!$M$5,5,IF($Z$2=Defaults!$M$6,6,IF($Z$2=Defaults!$M$7,7,IF($Z$2=Defaults!$M$8,8,IF($Z$2=Defaults!$M$9,9,IF($Z$2=Defaults!$M$10,10,IF($Z$2=Defaults!$M$11,11,IF($Z$2=Defaults!$M$12,12)))))))) -> 5 | AH9: =Defaults!M28 -> Fertilizer | AI9: =Defaults!N28 -> 1.5 | AV9: =Defaults!$I$6 -> Custom Air Seeding
F10: Benchmark without Tractor Guidance | P10: Adjusted for Tractor Guidance | Z10: TRUE | AH10: =Defaults!M29 -> Post-Plant Field Work | AI10: =Defaults!N29 -> 1.5 | AK10: =ROUND(SUM(IFERROR(1/F13*G13*L13,0)+IFERROR(1/F18*G18*L18,0)+IFERROR(1/F23*G23*L23,0)+IFERROR(1/F31*G31*L31,0)+IFERROR(1/F33*G33*L33,0)+IFERROR(1/F39*G39*L39,0)+IFERROR(1/F44*G44*L44,0)+IFERROR(1/F48*G48*L48,0)+IFERROR(1/F55*G55*L55,0)+IFERROR(1/F61*G61*L61,0)),2) -> 3.79 | AL10: gallons/acre for all non-custom done field work tracked | AR10: =ROUND(SUM(IFERROR(1/Q13*R13*V13,0)+IFERROR(1/Q18*R18*V18,0)+IFERROR(1/Q23*R23*V23,0)+IFERROR(1/Q31*R31*V31,0)+IFERROR(1/Q33*R33*V33,0)+IFERROR(1/Q39*R39*V39,0)+IFERROR(1/Q44*R44*V44,0)+IFERROR(1/Q48*R48*V48,0)+IFERROR(1/Q55*R55*V55,0)+IFERROR(1/Q61*R61*V61,0)),2) -> 3.71 | AS10: gallons/acre for all non-custom done field work tracked
C11: Operation/ Operating Input | D11: Timing | E11: Unit | F11: Performance Rate (acres/hour) | G11: Fuel (gal/hr) | H11: R&M ($/hr) | I11: Capital Recovery ($/hr) | J11: Cost/Unit ($/acre) | K11: Default Cost/Unit ($/acre) | L11: Quantity of Trips/Inputs | M11: Default Quantity of Trips/Inputs | N11: Total Cost ($/acre) | Q11: Performance Rate (acres/hour) Change in Quantity (units/acre) | R11: Fuel (gal/hr) | S11: R&M ($/hr) | T11: Capital Recovery ($/hr) | U11: Cost ($/acre) Cost ($/unit) | V11: Quantity of Trips/Inputs | W11: Total Cost ($/acre) | X11: Change in Cost ($/acre) | Z11: Operation Quantity | AA11: Application Unit | AB11: Application Quantity | AC11: Application MIN | AD11: Application MAX | AE11: Default Purchase Unit | AF11: Default Input Price Lookup | AG11: Adjusted Input Quantity | AH11: Benchmark Operation Cost ($/acre) | AI11: Benchmark Labor Cost ($/acre) | AJ11: Benchmark Fuel Cost ($/acre) | AK11: Benchmark R&M Cost ($/acre) | AL11: Benchmark Capital Recovery Cost ($/acre) | AM11: Benchmark Operation Input Cost ($/acre) | AN11: Benchmark Seed Cost ($/acre) | AO11: Benchmark Chemical Cost ($/acre) | AP11: Operation Cost ($/acre) | AQ11: Labor Cost ($/acre) | AR11: Fuel Cost ($/acre) | AS11: R&M Cost ($/acre) | AT11: Capital Recovery Cost ($/acre) | AU11: Operation Input Cost ($/acre) | AV11: Seed Cost ($/acre) | AW11: Chemical Cost ($/acre) | AY11: Application Unit | AZ11: =Defaults!$M$5 -> Cotton | BA11: =Defaults!$M$6 -> Corn | BB11: =Defaults!$M$7 -> Sorghum | BC11: =Defaults!$M$8 -> Soybean | BD11: =Defaults!$M$9 -> Rice | BE11: =Defaults!$M$10 -> Peanut | BF11: =Defaults!$M$11 -> Wheat | BG11: =Defaults!$M$12 -> Est. Pasture or Hay | BI11: Application Quantity | BJ11: =Defaults!$M$5 -> Cotton | BK11: =Defaults!$M$6 -> Corn | BL11: =Defaults!$M$7 -> Sorghum | BM11: =Defaults!$M$8 -> Soybean | BN11: =Defaults!$M$9 -> Rice | BO11: =Defaults!$M$10 -> Peanut | BP11: =Defaults!$M$11 -> Wheat | BQ11: =Defaults!$M$12 -> Est. Pasture or Hay | BS11: Application MAX | BT11: =Defaults!$M$5 -> Cotton | BU11: =Defaults!$M$6 -> Corn | BV11: =Defaults!$M$7 -> Sorghum | BW11: =Defaults!$M$8 -> Soybean | BX11: =Defaults!$M$9 -> Rice | BY11: =Defaults!$M$10 -> Peanut | BZ11: =Defaults!$M$11 -> Wheat | CA11: =Defaults!$M$12 -> Est. Pasture or Hay
C12: Burndown Weed Control | D12: =IF($Z$2=Defaults!$M$5,Cotton!D12,IF($Z$2=Defaults!$M$6,Corn!D12,IF($Z$2=Defaults!$M$7,Sorghum!D12,IF($Z$2=Defaults!$M$8,Soybean!D12,IF($Z$2=Defaults!$M$9,Rice!D12,IF($Z$2=Defaults!$M$10,Peanut!D12,IF($Z$2=Defaults!$M$11,Wheat!D12,IF($Z$2=Defaults!$M$12,Pasture!D12,FALSE)))))))) -> Spring | Z12: =IF($Z$2=Defaults!$M$5,Cotton!B12,IF($Z$2=Defaults!$M$6,Corn!B12,IF($Z$2=Defaults!$M$7,Sorghum!B12,IF($Z$2=Defaults!$M$8,Soybean!B12,IF($Z$2=Defaults!$M$9,Rice!B12,IF($Z$2=Defaults!$M$10,Peanut!B12,IF($Z$2=Defaults!$M$11,Wheat!B12,IF($Z$2=Defaults!$M$12,Pasture!B12,"")))))))) -> Burndown Weed Control | AY12: BD | BI12: BD | BS12: BD
C13: Over-the-Top Sprayer 1 | F13: =IF(L13=0,0,IF(C13=Defaults!$I$27,Implements!$AK$185,IF(C13=Defaults!$I$28,Implements!$AK$186,0))) -> 61.45454545 | G13: =IF($L13=0,0,IFERROR(VLOOKUP($C13,Implements!$X$181:$AN$188,15,FALSE),0)) -> 8.36 | H13: =IF($L13=0,0,IFERROR(VLOOKUP($C13,Implements!$X$181:$AN$188,16,FALSE),0)) -> 45.04666667 | I13: =IF($L13=0,0,IFERROR(VLOOKUP($C13,Implements!$X$181:$AN$188,17,FALSE),0)) -> 137.6458252 | J13: =IF(OR(C13="",L13="",L13=0)=TRUE,"",IF(OR(C13=Defaults!$I$25,C13=Defaults!$I$26)=TRUE,VLOOKUP(C13,Defaults!$I$24:$K$27,3,FALSE),ROUND(1/F13*(1*Inputs!$AA$13+($AI$7-1)*Inputs!$AA$15),2)+ROUND(G13*Inputs!$V$13/F13,2)+ROUND(H13/F13,2)+ROUND(I13/F13,2))) -> 3.5 | K13: =IF(OR(C13="",L13="",L13=0)=TRUE,"",IF(OR(C13=Defaults!$I$25,C13=Defaults!$I$26)=TRUE,VLOOKUP(C13,Defaults!$I$24:$K$27,3,FALSE),ROUND(1/F13*(1*Inputs!$AA$13+($AI$7-1)*Inputs!$AA$15),2)+ROUND(G13*Inputs!$V$13/F13,2)+ROUND(H13/F13,2)+ROUND(I13/F13,2))) -> 3.5 | L13: 1 | M13: =AB13 -> 1 | N13: =IF(C13="",0,IF(L13=0,0,IF(L13="","",J13*L13))) -> 3.5 | Q13: =IF(V13=0,0,IF(C13=Defaults!$I$27,Implements!$AK$174,IF(C13=Defaults!$I$28,Implements!$AK$175,0))) -> 62.81269091 | R13: =IF($V13=0,0,IFERROR(VLOOKUP($C13,Implements!$X$170:$AN$177,15,FALSE),0)) -> 8.36 | S13: =IF($V13=0,0,IFERROR(VLOOKUP($C13,Implements!$X$170:$AN$177,16,FALSE),0)) -> 45.04666667 | T13: =IF($V13=0,0,IFERROR(VLOOKUP($C13,Implements!$X$170:$AN$177,17,FALSE),0)) -> 138.7259237 | U13: =IF(OR(C13="",V13="",V13=0)=TRUE,"",IF(LEFT(C13,6)="Custom",J13,ROUND(1/Q13*(1*Inputs!$AA$13+($AI$7-1)*Inputs!$AA$15),2)+ROUND(R13*Inputs!$V$13/Q13,2)+ROUND(S13/Q13,2)+ROUND(T13/Q13,2))) -> 3.44 | V13: =+L13 -> 1 | W13: =IF(C13="","",IF(V13=0,0,IF(V13="","",U13*V13))) -> 3.44 | X13: =IF(C13="","",W13-N13) -> -0.06 | Z13: =IF($Z$2=Defaults!$M$5,Cotton!B13,IF($Z$2=Defaults!$M$6,Corn!B13,IF($Z$2=Defaults!$M$7,Sorghum!B13,IF($Z$2=Defaults!$M$8,Soybean!B13,IF($Z$2=Defaults!$M$9,Rice!B13,IF($Z$2=Defaults!$M$10,Peanut!B13,IF($Z$2=Defaults!$M$11,Wheat!B13,IF($Z$2=Defaults!$M$12,Pasture!B13,"")))))))) -> Over-the-Top Sprayer 1 | AB13: =IF(C13="","",VLOOKUP(C13,Defaults!$I$24:$K$28,2,FALSE)) -> 1 | AC13: 0 | AD13: =IF(AB13="","",AB13*2) -> 2 | AG13: =+AB13 -> 1 | AH13: =N13 -> 3.5 | AI13: =ROUND(IFERROR(1/F13*(1*Inputs!$AA$13+($AI$7-1)*Inputs!$AA$15),0),2)*L13 -> 0.29 | AJ13: =ROUND(IFERROR(1/F13*G13*Inputs!$V$13,0),2)*L13 -> 0.24 | AK13: =ROUND(IFERROR(1/F13*H13,0),2)*L13 -> 0.73 | AL13: =ROUND(IFERROR(1/F13*I13,0),2)*L13 -> 2.24 | AP13: =W13 -> 3.44 | AQ13: =ROUND(IFERROR(1/Q13*(1*Inputs!$AA$13+($AI$7-1)*Inputs!$AA$15),0),2)*V13 -> 0.28 | AR13: =ROUND(IFERROR(1/Q13*R13*Inputs!$V$13,0),2)*V13 -> 0.23 | AS13: =ROUND(IFERROR(1/Q13*S13,0),2)*V13 -> 0.72 | AT13: =ROUND(IFERROR(1/Q13*T13,0),2)*V13 -> 2.21 | AZ13: =AZ11 -> Cotton | BA13: =BA11 -> Corn | BB13: Sorghum | BC13: Soybean | BD13: Rice | BE13: Peanut | BF13: Wheat | BG13: Est. Pasture or Hay | BJ13: =BJ11 -> Cotton | BK13: =BK11 -> Corn | BL13: Sorghum | BM13: Soybean | BN13: Rice | BO13: Peanut | BP13: Wheat | BQ13: Est. Pasture or Hay | BT13: =BT11 -> Cotton | BU13: =BU11 -> Corn | BV13: Sorghum | BW13: Soybean | BX13: Rice | BY13: Peanut | BZ13: Wheat | CA13: Est. Pasture or Hay
C14: Glyphosate | E14: pt | J14: 4.75 | K14: =IF(C14="","",ROUND(IF(E14=AE14,AF14,IF(AE14=$AC$2,AF14*VLOOKUP(E14,$AA$2:$AB$4,2,FALSE),IF(AE14=$AF$2,AF14*VLOOKUP(E14,$AD$2:$AE$3,2,FALSE),IF(AE14=$AI$2,AF14/VLOOKUP(E14,$AG$2:$AH$2,2,FALSE),IF(AE14=$AL$2,AF14*VLOOKUP(E14,$AJ$2:$AK$2,2,FALSE),IF(AE14=$AO$2,AF14/VLOOKUP(E14,$AM$2:$AN$2,2,FALSE),IF(AE14=$AR$2,AF14*VLOOKUP(E14,$AP$2:$AQ$3,2,FALSE)))))))),2)) -> 4.75 | L14: 2 | M14: =AB14 -> 2 | N14: =IF(C14="",0,IF(L14=0,0,IF(L14="","",J14*L14))) -> 9.5 | Q14: =IF(L14>0,ABS(V14-L14),"") -> 0.4416 | U14: =J14 -> 4.75 | V14: =IF(AG14=0,0,AG14) -> 1.5584 | W14: =IF(C14="","",IF(V14=0,0,IF(V14="","",U14*V14))) -> 7.4024 | X14: =IF(C14="","",W14-N14) -> -2.0976 | Z14: =IF($Z$2=Defaults!$M$5,Cotton!B14,IF($Z$2=Defaults!$M$6,Corn!B14,IF($Z$2=Defaults!$M$7,Sorghum!B14,IF($Z$2=Defaults!$M$8,Soybean!B14,IF($Z$2=Defaults!$M$9,Rice!B14,IF($Z$2=Defaults!$M$10,Peanut!B14,IF($Z$2=Defaults!$M$11,Wheat!B14,IF($Z$2=Defaults!$M$12,Pasture!B14,"")))))))) -> Glyphosate | AA14: =IF($C14="","",HLOOKUP($Z$2,$AZ$13:$BG$16,2,FALSE)) -> pt | AB14: =IF($C14="","",HLOOKUP($Z$2,$BJ$13:$BQ$16,2,FALSE)) -> 2 | AC14: 0 | AD14: =IF($C14="","",HLOOKUP($Z$2,$BT$13:$CA$16,2,FALSE)) -> 2 | AE14: =IF(C14="","",VLOOKUP(C14,Defaults!$AH:$AJ,2,FALSE)) -> gal | AF14: =IF(C14="","",ROUND(VLOOKUP(C14,Defaults!$AH:$AJ,3,FALSE),2)) -> 38 | AG14: =IFERROR(IF(LEFT($C$13,6)="Custom",L14,L14*(1-VLOOKUP($C$13,Implements!$A$159:$D$166,4,FALSE))),"") -> 1.5584 | AM14: =N14 -> 9.5 | AO14: =N14 -> 9.5 | AU14: =W14 -> 7.4024 | AW14: =W14 -> 7.4024 | AY14: =IF($C14="","",$C14) -> Glyphosate | AZ14: =IF($C14="","",VLOOKUP($C14,Defaults!$AL$3:$AQ$17,4,FALSE)) -> pt | BA14: =IF($C14="","",VLOOKUP($C14,Defaults!$AS$3:$AX$17,4,FALSE)) -> pt | BB14: =IF($C14="","",VLOOKUP($C14,Defaults!$AZ$3:$BE$17,4,FALSE)) -> pt | BC14: =IF($C14="","",VLOOKUP($C14,Defaults!$BG$3:$BL$16,4,FALSE)) -> pt | BD14: =IF($C14="","",VLOOKUP($C14,Defaults!$BN$3:$BS$17,4,FALSE)) -> oz | BE14: ="" ->  | BF14: ="" ->  | BG14: =IF($C14="","",VLOOKUP($C14,Defaults!$CI:$CN,4,FALSE)) -> oz | BI14: =IF($C14="","",$C14) -> Glyphosate | BJ14: =IF($C14="","",IFERROR(VLOOKUP($C14,Defaults!$AL$3:$AQ$17,5,FALSE),"")) -> 2 | BK14: =IF($C14="","",IFERROR(VLOOKUP($C14,Defaults!$AS$3:$AX$17,5,FALSE),"")) -> 2 | BL14: =IF($C14="","",IFERROR(VLOOKUP($C14,Defaults!$AZ$3:$BE$17,5,FALSE),"")) -> 2 | BM14: =IF($C14="","",IFERROR(VLOOKUP($C14,Defaults!$BG$3:$BL$16,5,FALSE),"")) -> 2 | BN14: =IF($C14="","",IFERROR(VLOOKUP($C14,Defaults!$BN$3:$BS$17,5,FALSE),"")) -> 32 | BO14: ="" ->  | BP14: ="" ->  | BQ14: =IF($C14="","",IFERROR(VLOOKUP($C14,Defaults!$CI:$CN,5,FALSE),"")) -> 16 | BS14: =IF($C14="","",$C14) -> Glyphosate | BT14: =IF($C14="","",IFERROR(VLOOKUP($C14,Defaults!$AL$3:$AQ$17,6,FALSE),"")) -> 2 | BU14: =IF($C14="","",IFERROR(VLOOKUP($C14,Defaults!$AS$3:$AX$17,6,FALSE),"")) -> 2 | BV14: =IF($C14="","",IFERROR(VLOOKUP($C14,Defaults!$AZ$3:$BE$17,6,FALSE),"")) -> 2 | BW14: =IF($C14="","",IFERROR(VLOOKUP($C14,Defaults!$BG$3:$BL$16,6,FALSE),"")) -> 2 | BX14: =IF($C14="","",IFERROR(VLOOKUP($C14,Defaults!$BN$3:$BS$17,6,FALSE),"")) -> 32 | BY14: ="" ->  | BZ14: ="" ->  | CA14: =IF($C14="","",IFERROR(VLOOKUP($C14,Defaults!$CI:$CN,6,FALSE),"")) -> 16
C15: Banvel | E15: oz | J15: 0.51 | K15: =IF(C15="","",ROUND(IF(E15=AE15,AF15,IF(AE15=$AC$2,AF15*VLOOKUP(E15,$AA$2:$AB$4,2,FALSE),IF(AE15=$AF$2,AF15*VLOOKUP(E15,$AD$2:$AE$3,2,FALSE),IF(AE15=$AI$2,AF15/VLOOKUP(E15,$AG$2:$AH$2,2,FALSE),IF(AE15=$AL$2,AF15*VLOOKUP(E15,$AJ$2:$AK$2,2,FALSE),IF(AE15=$AO$2,AF15/VLOOKUP(E15,$AM$2:$AN$2,2,FALSE),IF(AE15=$AR$2,AF15*VLOOKUP(E15,$AP$2:$AQ$3,2,FALSE)))))))),2)) -> 0.51 | L15: 8 | M15: =AB15 -> 8 | N15: =IF(C15="",0,IF(L15=0,0,IF(L15="","",J15*L15))) -> 4.08 | Q15: =IF(L15>0,ABS(V15-L15),"") -> 1.7664 | U15: =J15 -> 0.51 | V15: =IF(AG15=0,0,AG15) -> 6.2336 | W15: =IF(C15="","",IF(V15=0,0,IF(V15="","",U15*V15))) -> 3.179136 | X15: =IF(C15="","",W15-N15) -> -0.900864 | Z15: =IF($Z$2=Defaults!$M$5,Cotton!B15,IF($Z$2=Defaults!$M$6,Corn!B15,IF($Z$2=Defaults!$M$7,Sorghum!B15,IF($Z$2=Defaults!$M$8,Soybean!B15,IF($Z$2=Defaults!$M$9,Rice!B15,IF($Z$2=Defaults!$M$10,Peanut!B15,IF($Z$2=Defaults!$M$11,Wheat!B15,IF($Z$2=Defaults!$M$12,Pasture!B15,"")))))))) -> Banvel | AA15: =IF($C15="","",HLOOKUP($Z$2,$AZ$13:$BG$16,3,FALSE)) -> oz | AB15: =IF($C15="","",HLOOKUP($Z$2,$BJ$13:$BQ$16,3,FALSE)) -> 8 | AC15: 0 | AD15: =IF($C15="","",HLOOKUP($Z$2,$BT$13:$CA$16,3,FALSE)) -> 8 | AE15: =IF(C15="","",VLOOKUP(C15,Defaults!$AH:$AJ,2,FALSE)) -> gal | AF15: =IF(C15="","",ROUND(VLOOKUP(C15,Defaults!$AH:$AJ,3,FALSE),2)) -> 65 | AG15: =IFERROR(IF(LEFT($C$13,6)="Custom",L15,L15*(1-VLOOKUP($C$13,Implements!$A$159:$D$166,4,FALSE))),"") -> 6.2336 | AM15: =N15 -> 4.08 | AO15: =N15 -> 4.08 | AU15: =W15 -> 3.179136 | AW15: =W15 -> 3.179136 | AY15: =IF($C15="","",$C15) -> Banvel | AZ15: =IF($C15="","",VLOOKUP($C15,Defaults!$AL$3:$AQ$17,4,FALSE)) -> oz | BA15: =IF($C15="","",VLOOKUP($C15,Defaults!$AS$3:$AX$17,4,FALSE)) ->  | BB15: =IF($C15="","",VLOOKUP($C15,Defaults!$AZ$3:$BE$17,4,FALSE)) ->  | BC15: =IF($C15="","",VLOOKUP($C15,Defaults!$BG$3:$BL$16,4,FALSE)) ->  | BD15: =IF($C15="","",VLOOKUP($C15,Defaults!$BN$3:$BS$17,4,FALSE)) ->  | BE15: ="" ->  | BF15: ="" ->  | BG15: =IF($C15="","",VLOOKUP($C15,Defaults!$CI:$CN,4,FALSE)) -> pt | BI15: =IF($C15="","",$C15) -> Banvel | BJ15: =IF($C15="","",IFERROR(VLOOKUP($C15,Defaults!$AL$3:$AQ$17,5,FALSE),"")) -> 8 | BK15: =IF($C15="","",IFERROR(VLOOKUP($C15,Defaults!$AS$3:$AX$17,5,FALSE),"")) ->  | BL15: =IF($C15="","",IFERROR(VLOOKUP($C15,Defaults!$AZ$3:$BE$17,5,FALSE),"")) ->  | BM15: =IF($C15="","",IFERROR(VLOOKUP($C15,Defaults!$BG$3:$BL$16,5,FALSE),"")) ->  | BN15: =IF($C15="","",IFERROR(VLOOKUP($C15,Defaults!$BN$3:$BS$17,5,FALSE),"")) ->  | BO15: ="" ->  | BP15: ="" ->  | BQ15: =IF($C15="","",IFERROR(VLOOKUP($C15,Defaults!$CI:$CN,5,FALSE),"")) -> 1 | BS15: =IF($C15="","",$C15) -> Banvel | BT15: =IF($C15="","",IFERROR(VLOOKUP($C15,Defaults!$AL$3:$AQ$17,6,FALSE),"")) -> 8 | BU15: =IF($C15="","",IFERROR(VLOOKUP($C15,Defaults!$AS$3:$AX$17,6,FALSE),"")) ->  | BV15: =IF($C15="","",IFERROR(VLOOKUP($C15,Defaults!$AZ$3:$BE$17,6,FALSE),"")) ->  | BW15: =IF($C15="","",IFERROR(VLOOKUP($C15,Defaults!$BG$3:$BL$16,6,FALSE),"")) ->  | BX15: =IF($C15="","",IFERROR(VLOOKUP($C15,Defaults!$BN$3:$BS$17,6,FALSE),"")) ->  | BY15: ="" ->  | BZ15: ="" ->  | CA15: =IF($C15="","",IFERROR(VLOOKUP($C15,Defaults!$CI:$CN,6,FALSE),"")) -> 8
K16: =IF(C16="","",ROUND(IF(E16=AE16,AF16,IF(AE16=$AC$2,AF16*VLOOKUP(E16,$AA$2:$AB$4,2,FALSE),IF(AE16=$AF$2,AF16*VLOOKUP(E16,$AD$2:$AE$3,2,FALSE),IF(AE16=$AI$2,AF16/VLOOKUP(E16,$AG$2:$AH$2,2,FALSE),IF(AE16=$AL$2,AF16*VLOOKUP(E16,$AJ$2:$AK$2,2,FALSE),IF(AE16=$AO$2,AF16/VLOOKUP(E16,$AM$2:$AN$2,2,FALSE),IF(AE16=$AR$2,AF16*VLOOKUP(E16,$AP$2:$AQ$3,2,FALSE)))))))),2)) ->  | M16: =AB16 ->  | N16: =IF(C16="",0,IF(L16=0,0,IF(L16="","",J16*L16))) -> 0 | Q16: =IF(L16>0,ABS(V16-L16),"") ->  | U16: =J16 -> 0 | V16: =IF(AG16=0,0,AG16) -> 0 | W16: =IF(C16="","",IF(V16=0,0,IF(V16="","",U16*V16))) ->  | X16: =IF(C16="","",W16-N16) ->  | Z16: =IF($Z$2=Defaults!$M$5,Cotton!B16,IF($Z$2=Defaults!$M$6,Corn!B16,IF($Z$2=Defaults!$M$7,Sorghum!B16,IF($Z$2=Defaults!$M$8,Soybean!B16,IF($Z$2=Defaults!$M$9,Rice!B16,IF($Z$2=Defaults!$M$10,Peanut!B16,IF($Z$2=Defaults!$M$11,Wheat!B16,IF($Z$2=Defaults!$M$12,Pasture!B16,"")))))))) ->  | AA16: =IF($C16="","",HLOOKUP($Z$2,$AZ$13:$BG$16,4,FALSE)) ->  | AB16: =IF($C16="","",HLOOKUP($Z$2,$BJ$13:$BQ$16,4,FALSE)) ->  | AC16: 0 | AD16: =IF($C16="","",HLOOKUP($Z$2,$BT$13:$CA$16,4,FALSE)) ->  | AE16: =IF(C16="","",VLOOKUP(C16,Defaults!$AH:$AJ,2,FALSE)) ->  | AF16: =IF(C16="","",ROUND(VLOOKUP(C16,Defaults!$AH:$AJ,3,FALSE),2)) ->  | AG16: =IFERROR(IF(LEFT($C$13,6)="Custom",L16,L16*(1-VLOOKUP($C$13,Implements!$A$159:$D$166,4,FALSE))),"") -> 0 | AM16: =N16 -> 0 | AO16: =N16 -> 0 | AU16: =W16 ->  | AW16: =W16 ->  | AY16: =IF($C16="","",$C16) ->  | AZ16: =IF($C16="","",VLOOKUP($C16,Defaults!$AL$3:$AQ$17,4,FALSE)) ->  | BA16: =IF($C16="","",VLOOKUP($C16,Defaults!$AS$3:$AX$17,4,FALSE)) ->  | BB16: =IF($C16="","",VLOOKUP($C16,Defaults!$AZ$3:$BE$17,4,FALSE)) ->  | BC16: =IF($C16="","",VLOOKUP($C16,Defaults!$BG$3:$BL$16,4,FALSE)) ->  | BD16: =IF($C16="","",VLOOKUP($C16,Defaults!$BN$3:$BS$17,4,FALSE)) ->  | BE16: ="" ->  | BF16: ="" ->  | BG16: =IF($C16="","",VLOOKUP($C16,Defaults!$CI:$CN,4,FALSE)) ->  | BI16: =IF($C16="","",$C16) ->  | BJ16: =IF($C16="","",IFERROR(VLOOKUP($C16,Defaults!$AL$3:$AQ$17,5,FALSE),"")) ->  | BK16: =IF($C16="","",IFERROR(VLOOKUP($C16,Defaults!$AS$3:$AX$17,5,FALSE),"")) ->  | BL16: =IF($C16="","",IFERROR(VLOOKUP($C16,Defaults!$AZ$3:$BE$17,5,FALSE),"")) ->  | BM16: =IF($C16="","",IFERROR(VLOOKUP($C16,Defaults!$BG$3:$BL$16,5,FALSE),"")) ->  | BN16: =IF($C16="","",IFERROR(VLOOKUP($C16,Defaults!$BN$3:$BS$17,5,FALSE),"")) ->  | BO16: ="" ->  | BP16: ="" ->  | BQ16: =IF($C16="","",IFERROR(VLOOKUP($C16,Defaults!$CI:$CN,5,FALSE),"")) ->  | BS16: =IF($C16="","",$C16) ->  | BT16: =IF($C16="","",IFERROR(VLOOKUP($C16,Defaults!$AL$3:$AQ$17,6,FALSE),"")) ->  | BU16: =IF($C16="","",IFERROR(VLOOKUP($C16,Defaults!$AS$3:$AX$17,6,FALSE),"")) ->  | BV16: =IF($C16="","",IFERROR(VLOOKUP($C16,Defaults!$AZ$3:$BE$17,6,FALSE),"")) ->  | BW16: =IF($C16="","",IFERROR(VLOOKUP($C16,Defaults!$BG$3:$BL$16,6,FALSE),"")) ->  | BX16: =IF($C16="","",IFERROR(VLOOKUP($C16,Defaults!$BN$3:$BS$17,6,FALSE),"")) ->  | BY16: ="" ->  | BZ16: ="" ->  | CA16: =IF($C16="","",IFERROR(VLOOKUP($C16,Defaults!$CI:$CN,6,FALSE),"")) -> 
C17: Preplant Weed Control | D17: =IF($Z$2=Defaults!$M$5,Cotton!D17,IF($Z$2=Defaults!$M$6,Corn!D17,IF($Z$2=Defaults!$M$7,Sorghum!D17,IF($Z$2=Defaults!$M$8,Soybean!D17,IF($Z$2=Defaults!$M$9,Rice!D17,IF($Z$2=Defaults!$M$10,Peanut!D17,IF($Z$2=Defaults!$M$11,Wheat!D17,IF($Z$2=Defaults!$M$12,Pasture!D17,FALSE)))))))) -> Spring | Z17: =IF($Z$2=Defaults!$M$5,Cotton!B17,IF($Z$2=Defaults!$M$6,Corn!B17,IF($Z$2=Defaults!$M$7,Sorghum!B17,IF($Z$2=Defaults!$M$8,Soybean!B17,IF($Z$2=Defaults!$M$9,Rice!B17,IF($Z$2=Defaults!$M$10,Peanut!B17,IF($Z$2=Defaults!$M$11,Wheat!B17,IF($Z$2=Defaults!$M$12,Pasture!B17,"")))))))) -> Preplant Weed Control | AY17: PP | BI17: PP | BS17: PP
C18: Over-the-Top Sprayer 1 | F18: =IF(L18=0,0,IF(C18=Defaults!$I$27,Implements!$AK$185,IF(C18=Defaults!$I$28,Implements!$AK$186,0))) -> 61.45454545 | G18: =IF($L18=0,0,IFERROR(VLOOKUP($C18,Implements!$X$181:$AN$188,15,FALSE),0)) -> 8.36 | H18: =IF($L18=0,0,IFERROR(VLOOKUP($C18,Implements!$X$181:$AN$188,16,FALSE),0)) -> 45.04666667 | I18: =IF($L18=0,0,IFERROR(VLOOKUP($C18,Implements!$X$181:$AN$188,17,FALSE),0)) -> 137.6458252 | J18: =IF(OR(C18="",L18="",L18=0)=TRUE,"",IF(OR(C18=Defaults!$I$25,C18=Defaults!$I$26)=TRUE,VLOOKUP(C18,Defaults!$I$24:$K$27,3,FALSE),ROUND(1/F18*(1*Inputs!$AA$13+($AI$7-1)*Inputs!$AA$15),2)+ROUND(G18*Inputs!$V$13/F18,2)+ROUND(H18/F18,2)+ROUND(I18/F18,2))) -> 3.5 | K18: =IF(OR(C18="",L18="",L18=0)=TRUE,"",IF(OR(C18=Defaults!$I$25,C18=Defaults!$I$26)=TRUE,VLOOKUP(C18,Defaults!$I$24:$K$27,3,FALSE),ROUND(1/F18*(1*Inputs!$AA$13+($AI$7-1)*Inputs!$AA$15),2)+ROUND(G18*Inputs!$V$13/F18,2)+ROUND(H18/F18,2)+ROUND(I18/F18,2))) -> 3.5 | L18: 1 | M18: =AB18 -> 1 | N18: =IF(C18="",0,IF(L18=0,0,IF(L18="","",J18*L18))) -> 3.5 | Q18: =IF(V18=0,0,IF(C18=Defaults!$I$27,Implements!$AK$174,IF(C18=Defaults!$I$28,Implements!$AK$175,0))) -> 62.81269091 | R18: =IF($V18=0,0,IFERROR(VLOOKUP($C18,Implements!$X$170:$AN$177,15,FALSE),0)) -> 8.36 | S18: =IF($V18=0,0,IFERROR(VLOOKUP($C18,Implements!$X$170:$AN$177,16,FALSE),0)) -> 45.04666667 | T18: =IF($V18=0,0,IFERROR(VLOOKUP($C18,Implements!$X$170:$AN$177,17,FALSE),0)) -> 138.7259237 | U18: =IF(OR(C18="",V18="",V18=0)=TRUE,"",IF(LEFT(C18,6)="Custom",J18,ROUND(1/Q18*(1*Inputs!$AA$13+($AI$7-1)*Inputs!$AA$15),2)+ROUND(R18*Inputs!$V$13/Q18,2)+ROUND(S18/Q18,2)+ROUND(T18/Q18,2))) -> 3.44 | V18: =+L18 -> 1 | W18: =IF(C18="","",IF(V18=0,0,IF(V18="","",U18*V18))) -> 3.44 | X18: =IF(C18="","",W18-N18) -> -0.06 | Z18: =IF($Z$2=Defaults!$M$5,Cotton!B18,IF($Z$2=Defaults!$M$6,Corn!B18,IF($Z$2=Defaults!$M$7,Sorghum!B18,IF($Z$2=Defaults!$M$8,Soybean!B18,IF($Z$2=Defaults!$M$9,Rice!B18,IF($Z$2=Defaults!$M$10,Peanut!B18,IF($Z$2=Defaults!$M$11,Wheat!B18,IF($Z$2=Defaults!$M$12,Pasture!B18,"")))))))) -> Over-the-Top Sprayer 1 | AB18: =IF(C18="","",VLOOKUP(C18,Defaults!$I$24:$K$28,2,FALSE)) -> 1 | AC18: 0 | AD18: =IF(AB18="","",AB18*2) -> 2 | AG18: =+AB18 -> 1 | AH18: =N18 -> 3.5 | AI18: =ROUND(IFERROR(1/F18*(1*Inputs!$AA$13+($AI$7-1)*Inputs!$AA$15),0),2)*L18 -> 0.29 | AJ18: =ROUND(IFERROR(1/F18*G18*Inputs!$V$13,0),2)*L18 -> 0.24 | AK18: =ROUND(IFERROR(1/F18*H18,0),2)*L18 -> 0.73 | AL18: =ROUND(IFERROR(1/F18*I18,0),2)*L18 -> 2.24 | AP18: =W18 -> 3.44 | AQ18: =ROUND(IFERROR(1/Q18*(1*Inputs!$AA$13+($AI$7-1)*Inputs!$AA$15),0),2)*V18 -> 0.28 | AR18: =ROUND(IFERROR(1/Q18*R18*Inputs!$V$13,0),2)*V18 -> 0.23 | AS18: =ROUND(IFERROR(1/Q18*S18,0),2)*V18 -> 0.72 | AT18: =ROUND(IFERROR(1/Q18*T18,0),2)*V18 -> 2.21 | AZ18: =AZ11 -> Cotton | BA18: =BA11 -> Corn | BB18: Sorghum | BC18: Soybean | BD18: Rice | BE18: Peanut | BF18: Wheat | BG18: Est. Pasture or Hay | BJ18: =BJ11 -> Cotton | BK18: =BK11 -> Corn | BL18: Sorghum | BM18: Soybean | BN18: Rice | BO18: Peanut | BP18: Wheat | BQ18: Est. Pasture or Hay | BT18: =BT11 -> Cotton | BU18: =BU11 -> Corn | BV18: Sorghum | BW18: Soybean | BX18: Rice | BY18: Peanut | BZ18: Wheat | CA18: Est. Pasture or Hay
C19: Glyphosate | E19: pt | J19: 4.75 | K19: =IF(C19="","",ROUND(IF(E19=AE19,AF19,IF(AE19=$AC$2,AF19*VLOOKUP(E19,$AA$2:$AB$4,2,FALSE),IF(AE19=$AF$2,AF19*VLOOKUP(E19,$AD$2:$AE$3,2,FALSE),IF(AE19=$AI$2,AF19/VLOOKUP(E19,$AG$2:$AH$2,2,FALSE),IF(AE19=$AL$2,AF19*VLOOKUP(E19,$AJ$2:$AK$2,2,FALSE),IF(AE19=$AO$2,AF19/VLOOKUP(E19,$AM$2:$AN$2,2,FALSE),IF(AE19=$AR$2,AF19*VLOOKUP(E19,$AP$2:$AQ$3,2,FALSE)))))))),2)) -> 4.75 | L19: 2 | M19: =AB19 -> 2 | N19: =IF(C19="",0,IF(L19=0,0,IF(L19="","",J19*L19))) -> 9.5 | Q19: =IF(L19>0,ABS(V19-L19),"") -> 0.4416 | U19: =J19 -> 4.75 | V19: =IF(AG19=0,0,AG19) -> 1.5584 | W19: =IF(C19="","",IF(V19=0,0,IF(V19="","",U19*V19))) -> 7.4024 | X19: =IF(C19="","",W19-N19) -> -2.0976 | Z19: =IF($Z$2=Defaults!$M$5,Cotton!B19,IF($Z$2=Defaults!$M$6,Corn!B19,IF($Z$2=Defaults!$M$7,Sorghum!B19,IF($Z$2=Defaults!$M$8,Soybean!B19,IF($Z$2=Defaults!$M$9,Rice!B19,IF($Z$2=Defaults!$M$10,Peanut!B19,IF($Z$2=Defaults!$M$11,Wheat!B19,IF($Z$2=Defaults!$M$12,Pasture!B19,"")))))))) -> Glyphosate | AA19: =IF($C19="","",HLOOKUP($Z$2,$AZ$18:$BG$21,2,FALSE)) -> pt | AB19: =IF($C19="","",HLOOKUP($Z$2,$BJ$18:$BQ$21,2,FALSE)) -> 2 | AC19: 0 | AD19: =IF($C19="","",HLOOKUP($Z$2,$BT$18:$CA$21,2,FALSE)) -> 2 | AE19: =IF(C19="","",VLOOKUP(C19,Defaults!$AH:$AJ,2,FALSE)) -> gal | AF19: =IF(C19="","",ROUND(VLOOKUP(C19,Defaults!$AH:$AJ,3,FALSE),2)) -> 38 | AG19: =IFERROR(IF(LEFT($C$18,6)="Custom",L19,L19*(1-VLOOKUP($C$18,Implements!$A$159:$D$166,4,FALSE))),"") -> 1.5584 | AM19: =N19 -> 9.5 | AO19: =N19 -> 9.5 | AU19: =W19 -> 7.4024 | AW19: =W19 -> 7.4024 | AY19: =IF($C19="","",$C19) -> Glyphosate | AZ19: =IF($C19="","",VLOOKUP($C19,Defaults!$AL$19:$AQ$35,4,FALSE)) -> pt | BA19: =IF($C19="","",VLOOKUP($C19,Defaults!$AS$19:$AX$35,4,FALSE)) ->  | BB19: =IF($C19="","",VLOOKUP($C19,Defaults!$AZ$19:$BE$35,4,FALSE)) -> oz | BC19: =IF($C19="","",VLOOKUP($C19,Defaults!$BG$19:$BL$35,4,FALSE)) ->  | BD19: =IF($C19="","",VLOOKUP($C19,Defaults!$BN$19:$BS$35,4,FALSE)) -> oz | BE19: =IF($C19="","",VLOOKUP($C19,Defaults!$BU$19:$BZ$35,4,FALSE)) ->  | BF19: ="" ->  | BG19: =IF($C19="","",VLOOKUP($C19,Defaults!$CI:$CN,4,FALSE)) -> oz | BI19: =IF($C19="","",$C19) -> Glyphosate | BJ19: =IF($C19="","",IFERROR(VLOOKUP($C19,Defaults!$AL$19:$AQ$35,5,FALSE),"")) -> 2 | BK19: =IF($C19="","",IFERROR(VLOOKUP($C19,Defaults!$AS$19:$AX$35,5,FALSE),"")) ->  | BL19: =IF($C19="","",IFERROR(VLOOKUP($C19,Defaults!$AZ$19:$BE$35,5,FALSE),"")) -> 32 | BM19: =IF($C19="","",IFERROR(VLOOKUP($C19,Defaults!$BG$19:$BL$35,5,FALSE),"")) ->  | BN19: =IF($C19="","",IFERROR(VLOOKUP($C19,Defaults!$BN$19:$BS$35,5,FALSE),"")) -> 32 | BO19: =IF($C19="","",IFERROR(VLOOKUP($C19,Defaults!$BU$19:$BZ$35,5,FALSE),"")) ->  | BP19: ="" ->  | BQ19: =IF($C19="","",IFERROR(VLOOKUP($C19,Defaults!$CI:$CN,5,FALSE),"")) -> 16 | BS19: =IF($C19="","",$C19) -> Glyphosate | BT19: =IF($C19="","",IFERROR(VLOOKUP($C19,Defaults!$AL$19:$AQ$35,6,FALSE),"")) -> 2 | BU19: =IF($C19="","",IFERROR(VLOOKUP($C19,Defaults!$AS$19:$AX$35,6,FALSE),"")) ->  | BV19: =IF($C19="","",IFERROR(VLOOKUP($C19,Defaults!$AZ$19:$BE$35,6,FALSE),"")) -> 32 | BW19: =IF($C19="","",IFERROR(VLOOKUP($C19,Defaults!$BG$19:$BL$35,6,FALSE),"")) ->  | BX19: =IF($C19="","",IFERROR(VLOOKUP($C19,Defaults!$BN$19:$BS$35,6,FALSE),"")) -> 32 | BY19: =IF($C19="","",IFERROR(VLOOKUP($C19,Defaults!$BU$19:$BZ$35,6,FALSE),"")) ->  | BZ19: ="" ->  | CA19: =IF($C19="","",IFERROR(VLOOKUP($C19,Defaults!$CI:$CN,6,FALSE),"")) -> 16
C20: Reflex | E20: pt | J20: 12.88 | K20: =IF(C20="","",ROUND(IF(E20=AE20,AF20,IF(AE20=$AC$2,AF20*VLOOKUP(E20,$AA$2:$AB$4,2,FALSE),IF(AE20=$AF$2,AF20*VLOOKUP(E20,$AD$2:$AE$3,2,FALSE),IF(AE20=$AI$2,AF20/VLOOKUP(E20,$AG$2:$AH$2,2,FALSE),IF(AE20=$AL$2,AF20*VLOOKUP(E20,$AJ$2:$AK$2,2,FALSE),IF(AE20=$AO$2,AF20/VLOOKUP(E20,$AM$2:$AN$2,2,FALSE),IF(AE20=$AR$2,AF20*VLOOKUP(E20,$AP$2:$AQ$3,2,FALSE)))))))),2)) -> 12.88 | L20: 1 | M20: =AB20 -> 1 | N20: =IF(C20="",0,IF(L20=0,0,IF(L20="","",J20*L20))) -> 12.88 | Q20: =IF(L20>0,ABS(V20-L20),"") -> 0.2208 | U20: =J20 -> 12.88 | V20: =IF(AG20=0,0,AG20) -> 0.7792 | W20: =IF(C20="","",IF(V20=0,0,IF(V20="","",U20*V20))) -> 10.036096 | X20: =IF(C20="","",W20-N20) -> -2.843904 | Z20: =IF($Z$2=Defaults!$M$5,Cotton!B20,IF($Z$2=Defaults!$M$6,Corn!B20,IF($Z$2=Defaults!$M$7,Sorghum!B20,IF($Z$2=Defaults!$M$8,Soybean!B20,IF($Z$2=Defaults!$M$9,Rice!B20,IF($Z$2=Defaults!$M$10,Peanut!B20,IF($Z$2=Defaults!$M$11,Wheat!B20,IF($Z$2=Defaults!$M$12,Pasture!B20,"")))))))) -> Reflex | AA20: =IF($C20="","",HLOOKUP($Z$2,$AZ$18:$BG$21,3,FALSE)) -> pt | AB20: =IF($C20="","",HLOOKUP($Z$2,$BJ$18:$BQ$21,3,FALSE)) -> 1 | AC20: 0 | AD20: =IF($C20="","",HLOOKUP($Z$2,$BT$18:$CA$21,3,FALSE)) -> 1 | AE20: =IF(C20="","",VLOOKUP(C20,Defaults!$AH:$AJ,2,FALSE)) -> gal | AF20: =IF(C20="","",ROUND(VLOOKUP(C20,Defaults!$AH:$AJ,3,FALSE),2)) -> 103 | AG20: =IFERROR(IF(LEFT($C$18,6)="Custom",L20,L20*(1-VLOOKUP($C$18,Implements!$A$159:$D$166,4,FALSE))),"") -> 0.7792 | AM20: =N20 -> 12.88 | AO20: =N20 -> 12.88 | AU20: =W20 -> 10.036096 | AW20: =W20 -> 10.036096 | AY20: =IF($C20="","",$C20) -> Reflex | AZ20: =IF($C20="","",VLOOKUP($C20,Defaults!$AL$19:$AQ$35,4,FALSE)) -> pt | BA20: =IF($C20="","",VLOOKUP($C20,Defaults!$AS$19:$AX$35,4,FALSE)) ->  | BB20: =IF($C20="","",VLOOKUP($C20,Defaults!$AZ$19:$BE$35,4,FALSE)) ->  | BC20: =IF($C20="","",VLOOKUP($C20,Defaults!$BG$19:$BL$35,4,FALSE)) ->  | BD20: =IF($C20="","",VLOOKUP($C20,Defaults!$BN$19:$BS$35,4,FALSE)) ->  | BE20: =IF($C20="","",VLOOKUP($C20,Defaults!$BU$19:$BZ$35,4,FALSE)) ->  | BF20: ="" ->  | BG20: =IF($C20="","",VLOOKUP($C20,Defaults!$CI:$CN,4,FALSE)) ->  | BI20: =IF($C20="","",$C20) -> Reflex | BJ20: =IF($C20="","",IFERROR(VLOOKUP($C20,Defaults!$AL$19:$AQ$35,5,FALSE),"")) -> 1 | BK20: =IF($C20="","",IFERROR(VLOOKUP($C20,Defaults!$AS$19:$AX$35,5,FALSE),"")) ->  | BL20: =IF($C20="","",IFERROR(VLOOKUP($C20,Defaults!$AZ$19:$BE$35,5,FALSE),"")) ->  | BM20: =IF($C20="","",IFERROR(VLOOKUP($C20,Defaults!$BG$19:$BL$35,5,FALSE),"")) ->  | BN20: =IF($C20="","",IFERROR(VLOOKUP($C20,Defaults!$BN$19:$BS$35,5,FALSE),"")) ->  | BO20: =IF($C20="","",IFERROR(VLOOKUP($C20,Defaults!$BU$19:$BZ$35,5,FALSE),"")) ->  | BP20: ="" ->  | BQ20: =IF($C20="","",IFERROR(VLOOKUP($C20,Defaults!$CI:$CN,5,FALSE),"")) ->  | BS20: =IF($C20="","",$C20) -> Reflex | BT20: =IF($C20="","",IFERROR(VLOOKUP($C20,Defaults!$AL$19:$AQ$35,6,FALSE),"")) -> 1 | BU20: =IF($C20="","",IFERROR(VLOOKUP($C20,Defaults!$AS$19:$AX$35,6,FALSE),"")) ->  | BV20: =IF($C20="","",IFERROR(VLOOKUP($C20,Defaults!$AZ$19:$BE$35,6,FALSE),"")) ->  | BW20: =IF($C20="","",IFERROR(VLOOKUP($C20,Defaults!$BG$19:$BL$35,6,FALSE),"")) ->  | BX20: =IF($C20="","",IFERROR(VLOOKUP($C20,Defaults!$BN$19:$BS$35,6,FALSE),"")) ->  | BY20: =IF($C20="","",IFERROR(VLOOKUP($C20,Defaults!$BU$19:$BZ$35,6,FALSE),"")) ->  | BZ20: ="" ->  | CA20: =IF($C20="","",IFERROR(VLOOKUP($C20,Defaults!$CI:$CN,6,FALSE),"")) -> 
K21: =IF(C21="","",ROUND(IF(E21=AE21,AF21,IF(AE21=$AC$2,AF21*VLOOKUP(E21,$AA$2:$AB$4,2,FALSE),IF(AE21=$AF$2,AF21*VLOOKUP(E21,$AD$2:$AE$3,2,FALSE),IF(AE21=$AI$2,AF21/VLOOKUP(E21,$AG$2:$AH$2,2,FALSE),IF(AE21=$AL$2,AF21*VLOOKUP(E21,$AJ$2:$AK$2,2,FALSE),IF(AE21=$AO$2,AF21/VLOOKUP(E21,$AM$2:$AN$2,2,FALSE),IF(AE21=$AR$2,AF21*VLOOKUP(E21,$AP$2:$AQ$3,2,FALSE)))))))),2)) ->  | M21: =AB21 ->  | N21: =IF(C21="",0,IF(L21=0,0,IF(L21="","",J21*L21))) -> 0 | Q21: =IF(L21>0,ABS(V21-L21),"") ->  | U21: =J21 -> 0 | V21: =IF(AG21=0,0,AG21) -> 0 | W21: =IF(C21="","",IF(V21=0,0,IF(V21="","",U21*V21))) ->  | X21: =IF(C21="","",W21-N21) ->  | Z21: =IF($Z$2=Defaults!$M$5,Cotton!B21,IF($Z$2=Defaults!$M$6,Corn!B21,IF($Z$2=Defaults!$M$7,Sorghum!B21,IF($Z$2=Defaults!$M$8,Soybean!B21,IF($Z$2=Defaults!$M$9,Rice!B21,IF($Z$2=Defaults!$M$10,Peanut!B21,IF($Z$2=Defaults!$M$11,Wheat!B21,IF($Z$2=Defaults!$M$12,Pasture!B21,"")))))))) ->  | AA21: =IF($C21="","",HLOOKUP($Z$2,$AZ$18:$BG$21,4,FALSE)) ->  | AB21: =IF($C21="","",HLOOKUP($Z$2,$BJ$18:$BQ$21,4,FALSE)) ->  | AC21: 0 | AD21: =IF($C21="","",HLOOKUP($Z$2,$BT$18:$CA$21,4,FALSE)) ->  | AE21: =IF(C21="","",VLOOKUP(C21,Defaults!$AH:$AJ,2,FALSE)) ->  | AF21: =IF(C21="","",ROUND(VLOOKUP(C21,Defaults!$AH:$AJ,3,FALSE),2)) ->  | AG21: =IFERROR(IF(LEFT($C$18,6)="Custom",L21,L21*(1-VLOOKUP($C$18,Implements!$A$159:$D$166,4,FALSE))),"") -> 0 | AM21: =N21 -> 0 | AO21: =N21 -> 0 | AU21: =W21 ->  | AW21: =W21 ->  | AY21: =IF($C21="","",$C21) ->  | AZ21: =IF($C21="","",VLOOKUP($C21,Defaults!$AL$19:$AQ$35,4,FALSE)) ->  | BA21: =IF($C21="","",VLOOKUP($C21,Defaults!$AS$19:$AX$35,4,FALSE)) ->  | BB21: =IF($C21="","",VLOOKUP($C21,Defaults!$AZ$19:$BE$35,4,FALSE)) ->  | BC21: =IF($C21="","",VLOOKUP($C21,Defaults!$BG$19:$BL$35,4,FALSE)) ->  | BD21: =IF($C21="","",VLOOKUP($C21,Defaults!$BN$19:$BS$35,4,FALSE)) ->  | BE21: =IF($C21="","",VLOOKUP($C21,Defaults!$BU$19:$BZ$35,4,FALSE)) ->  | BF21: ="" ->  | BG21: =IF($C21="","",VLOOKUP($C21,Defaults!$CI:$CN,4,FALSE)) ->  | BI21: =IF($C21="","",$C21) ->  | BJ21: =IF($C21="","",IFERROR(VLOOKUP($C21,Defaults!$AL$19:$AQ$35,5,FALSE),"")) ->  | BK21: =IF($C21="","",IFERROR(VLOOKUP($C21,Defaults!$AS$19:$AX$35,5,FALSE),"")) ->  | BL21: =IF($C21="","",IFERROR(VLOOKUP($C21,Defaults!$AZ$19:$BE$35,5,FALSE),"")) ->  | BM21: =IF($C21="","",IFERROR(VLOOKUP($C21,Defaults!$BG$19:$BL$35,5,FALSE),"")) ->  | BN21: =IF($C21="","",IFERROR(VLOOKUP($C21,Defaults!$BN$19:$BS$35,5,FALSE),"")) ->  | BO21: =IF($C21="","",IFERROR(VLOOKUP($C21,Defaults!$BU$19:$BZ$35,5,FALSE),"")) ->  | BP21: ="" ->  | BQ21: =IF($C21="","",IFERROR(VLOOKUP($C21,Defaults!$CI:$CN,5,FALSE),"")) ->  | BS21: =IF($C21="","",$C21) ->  | BT21: =IF($C21="","",IFERROR(VLOOKUP($C21,Defaults!$AL$19:$AQ$35,6,FALSE),"")) ->  | BU21: =IF($C21="","",IFERROR(VLOOKUP($C21,Defaults!$AS$19:$AX$35,6,FALSE),"")) ->  | BV21: =IF($C21="","",IFERROR(VLOOKUP($C21,Defaults!$AZ$19:$BE$35,6,FALSE),"")) ->  | BW21: =IF($C21="","",IFERROR(VLOOKUP($C21,Defaults!$BG$19:$BL$35,6,FALSE),"")) ->  | BX21: =IF($C21="","",IFERROR(VLOOKUP($C21,Defaults!$BN$19:$BS$35,6,FALSE),"")) ->  | BY21: =IF($C21="","",IFERROR(VLOOKUP($C21,Defaults!$BU$19:$BZ$35,6,FALSE),"")) ->  | BZ21: ="" ->  | CA21: =IF($C21="","",IFERROR(VLOOKUP($C21,Defaults!$CI:$CN,6,FALSE),"")) -> 
C22: Field Preparation | D22: =IF($Z$2=Defaults!$M$5,Cotton!D22,IF($Z$2=Defaults!$M$6,Corn!D22,IF($Z$2=Defaults!$M$7,Sorghum!D22,IF($Z$2=Defaults!$M$8,Soybean!D22,IF($Z$2=Defaults!$M$9,Rice!D22,IF($Z$2=Defaults!$M$10,Peanut!D22,IF($Z$2=Defaults!$M$11,Wheat!D22,IF($Z$2=Defaults!$M$12,Pasture!D22,FALSE)))))))) -> Spring | Z22: =IF($Z$2=Defaults!$M$5,Cotton!B22,IF($Z$2=Defaults!$M$6,Corn!B22,IF($Z$2=Defaults!$M$7,Sorghum!B22,IF($Z$2=Defaults!$M$8,Soybean!B22,IF($Z$2=Defaults!$M$9,Rice!B22,IF($Z$2=Defaults!$M$10,Peanut!B22,IF($Z$2=Defaults!$M$11,Wheat!B22,IF($Z$2=Defaults!$M$12,Pasture!B22,"")))))))) -> Field Preparation
C23: Fertilizer Spreader | F23: =IF(L23=0,0,IF(C23=Defaults!$I$37,Implements!$AK$187,0)) -> 23.75757576 | G23: =IF($L23=0,0,IFERROR(VLOOKUP($C23,Implements!$X$181:$AN$188,15,FALSE),0)) -> 8.36 | H23: =IF($L23=0,0,IFERROR(VLOOKUP($C23,Implements!$X$181:$AN$188,16,FALSE),0)) -> 17.16666667 | I23: =IF($L23=0,0,IFERROR(VLOOKUP($C23,Implements!$X$181:$AN$188,17,FALSE),0)) -> 93.00305105 | J23: =IF(OR(C23="",L23="",L23=0)=TRUE,"",IF(C23=Defaults!$I$36,VLOOKUP(C23,Defaults!$I$35:$K$37,3,FALSE),ROUND(1/F23*(1*Inputs!$AA$13+($AI$9-1)*Inputs!$AA$15),2)+ROUND(G23*Inputs!$V$13/F23,2)+ROUND(H23/F23,2)+ROUND(I23/F23,2))) -> 5.99 | K23: =IF(OR(C23="",L23="",L23=0)=TRUE,"",IF(C23=Defaults!$I$36,VLOOKUP(C23,Defaults!$I$35:$K$37,3,FALSE),ROUND(1/F23*(1*Inputs!$AA$13+($AI$9-1)*Inputs!$AA$15),2)+ROUND(G23*Inputs!$V$13/F23,2)+ROUND(H23/F23,2)+ROUND(I23/F23,2))) -> 5.99 | L23: 1 | M23: =AB23 -> 1 | N23: =IF(C23="",0,IF(L23=0,0,IF(L23="","",J23*L23))) -> 5.99 | Q23: =IF(V23=0,0,IF(C23=Defaults!$I$37,Implements!$AK$176,0)) -> 24.28261818 | R23: =IF($V23=0,0,IFERROR(VLOOKUP($C23,Implements!$X$170:$AN$177,15,FALSE),0)) -> 8.36 | S23: =IF($V23=0,0,IFERROR(VLOOKUP($C23,Implements!$X$170:$AN$177,16,FALSE),0)) -> 17.16666667 | T23: =IF($V23=0,0,IFERROR(VLOOKUP($C23,Implements!$X$170:$AN$177,17,FALSE),0)) -> 93.71247358 | U23: =IF(OR(C23="",V23="",V23=0)=TRUE,"",IF(LEFT(C23,6)="Custom",J23,ROUND(1/Q23*(1*Inputs!$AA$13+($AI$9-1)*Inputs!$AA$15),2)+ROUND(R23*Inputs!$V$13/Q23,2)+ROUND(S23/Q23,2)+ROUND(T23/Q23,2))) -> 5.9 | V23: =+L23 -> 1 | W23: =IF(C23="","",IF(V23=0,0,IF(V23="","",U23*V23))) -> 5.9 | X23: =IF(C23="","",W23-N23) -> -0.09 | Z23: =IF($Z$2=Defaults!$M$5,Cotton!B23,IF($Z$2=Defaults!$M$6,Corn!B23,IF($Z$2=Defaults!$M$7,Sorghum!B23,IF($Z$2=Defaults!$M$8,Soybean!B23,IF($Z$2=Defaults!$M$9,Rice!B23,IF($Z$2=Defaults!$M$10,Peanut!B23,IF($Z$2=Defaults!$M$11,Wheat!B23,IF($Z$2=Defaults!$M$12,Pasture!B23,"")))))))) -> Fertilizer Spreader | AB23: =IF(C23="","",HLOOKUP(Z2,Defaults!$X$2:$AE$14,13,FALSE)) -> 1 | AC23: 0 | AD23: =IF(AB23="","",AB23*2) -> 2 | AG23: =+AB23 -> 1 | AH23: =N23 -> 5.99 | AI23: =ROUND(IFERROR(1/F23*(1*Inputs!$AA$13+($AI$7-1)*Inputs!$AA$15),0),2)*L23 -> 0.74 | AJ23: =ROUND(IFERROR(1/F23*G23*Inputs!$V$13,0),2)*L23 -> 0.62 | AK23: =ROUND(IFERROR(1/F23*H23,0),2)*L23 -> 0.72 | AL23: =ROUND(IFERROR(1/F23*I23,0),2)*L23 -> 3.91 | AP23: =W23 -> 5.9 | AQ23: =ROUND(IFERROR(1/Q23*(1*Inputs!$AA$13+($AI$7-1)*Inputs!$AA$15),0),2)*V23 -> 0.73 | AR23: =ROUND(IFERROR(1/Q23*R23*Inputs!$V$13,0),2)*V23 -> 0.6 | AS23: =ROUND(IFERROR(1/Q23*S23,0),2)*V23 -> 0.71 | AT23: =ROUND(IFERROR(1/Q23*T23,0),2)*V23 -> 3.86
C24: Urea [46-0-0] | E24: lb | J24: 0.15 | K24: =IF(C24="","",ROUND(IF(E24=AE24,AF24,IF(AE24=$AC$2,AF24*VLOOKUP(E24,$AA$2:$AB$4,2,FALSE),IF(AE24=$AF$2,AF24*VLOOKUP(E24,$AD$2:$AE$3,2,FALSE),IF(AE24=$AI$2,AF24/VLOOKUP(E24,$AG$2:$AH$2,2,FALSE),IF(AE24=$AL$2,AF24*VLOOKUP(E24,$AJ$2:$AK$2,2,FALSE),IF(AE24=$AO$2,AF24/VLOOKUP(E24,$AM$2:$AN$2,2,FALSE),IF(AE24=$AR$2,AF24*VLOOKUP(E24,$AP$2:$AQ$3,2,FALSE)))))))),2)) -> 0.15 | L24: 122 | M24: 122 | N24: =IF(C24="",0,IF(L24=0,0,IF(L24="","",J24*L24))) -> 18.3 | Q24: =IF(L24>0,ABS(V24-L24),"") -> 2.7328 | U24: =J24 -> 0.15 | V24: =IF(AG24=0,0,AG24) -> 119.2672 | W24: 17.89008 | X24: -0.40992 | Z24: =IF($Z$2=Defaults!$M$5,Cotton!B24,IF($Z$2=Defaults!$M$6,Corn!B24,IF($Z$2=Defaults!$M$7,Sorghum!B24,IF($Z$2=Defaults!$M$8,Soybean!B24,IF($Z$2=Defaults!$M$9,Rice!B24,IF($Z$2=Defaults!$M$10,Peanut!B24,IF($Z$2=Defaults!$M$11,Wheat!B24,IF($Z$2=Defaults!$M$12,Pasture!B24,"")))))))) -> Urea [46-0-0] | AA24: =IF(C24="","",VLOOKUP(C24,Defaults!$T$3:$AE$13,4,FALSE)) -> lb | AB24: =IF(C24="","",IFERROR(VLOOKUP(C24,Defaults!$T$3:$AE$13,$Z$9,FALSE),"")) -> 122 | AC24: 0 | AE24: =IF(C24="","",VLOOKUP(C24,Defaults!$T$3:$V$13,2,FALSE)) -> cwt | AF24: =IF(C24="","",ROUND(VLOOKUP(C24,Defaults!$T$3:$V$13,3,FALSE),2)) -> 16.78 | AG24: =IFERROR(IF(LEFT($C$23,6)="Custom",L24,L24*(1-VLOOKUP($C$23,Implements!$A$159:$D$166,4,FALSE))),"") -> 119.2672 | AM24: =N24 -> 18.3 | AO24: =N24 -> 18.3 | AU24: =W24 -> 17.89008 | AW24: =W24 -> 17.89008
C25: Diammonium Phosphate [18-46-0] | E25: lb | J25: 0.22 | K25: =IF(C25="","",ROUND(IF(E25=AE25,AF25,IF(AE25=$AC$2,AF25*VLOOKUP(E25,$AA$2:$AB$4,2,FALSE),IF(AE25=$AF$2,AF25*VLOOKUP(E25,$AD$2:$AE$3,2,FALSE),IF(AE25=$AI$2,AF25/VLOOKUP(E25,$AG$2:$AH$2,2,FALSE),IF(AE25=$AL$2,AF25*VLOOKUP(E25,$AJ$2:$AK$2,2,FALSE),IF(AE25=$AO$2,AF25/VLOOKUP(E25,$AM$2:$AN$2,2,FALSE),IF(AE25=$AR$2,AF25*VLOOKUP(E25,$AP$2:$AQ$3,2,FALSE)))))))),2)) -> 0.22 | L25: 65 | M25: 65 | N25: 14.3 | Q25: 1.456 | U25: 0.22 | V25: 63.544 | W25: 13.97968 | X25: -0.32032 | Z25: =IF($Z$2=Defaults!$M$5,Cotton!B25,IF($Z$2=Defaults!$M$6,Corn!B25,IF($Z$2=Defaults!$M$7,Sorghum!B25,IF($Z$2=Defaults!$M$8,Soybean!B25,IF($Z$2=Defaults!$M$9,Rice!B25,IF($Z$2=Defaults!$M$10,Peanut!B25,IF($Z$2=Defaults!$M$11,Wheat!B25,IF($Z$2=Defaults!$M$12,Pasture!B25,"")))))))) -> Diammonium Phosphate [18-46-0] | AA25: =IF(C25="","",VLOOKUP(C25,Defaults!$T$3:$AE$13,4,FALSE)) -> lb | AB25: =IF(C25="","",IFERROR(VLOOKUP(C25,Defaults!$T$3:$AE$13,$Z$9,FALSE),"")) -> 65 | AC25: 0 | AE25: =IF(C25="","",VLOOKUP(C25,Defaults!$T$3:$V$13,2,FALSE)) -> cwt | AF25: =IF(C25="","",ROUND(VLOOKUP(C25,Defaults!$T$3:$V$13,3,FALSE),2)) -> 24.82 | AG25: =IFERROR(IF(LEFT($C$23,6)="Custom",L25,L25*(1-VLOOKUP($C$23,Implements!$A$159:$D$166,4,FALSE))),"") -> 63.544 | AM25: 14.3 | AO25: 14.3 | AU25: 13.97968 | AW25: 13.97968
C26: Potash [0-0-60] | E26: lb | J26: 0.15 | K26: 0.15 | L26: 100 | M26: 100 | N26: 15 | Q26: 2.24 | U26: 0.15 | V26: 97.76 | W26: 14.664 | X26: -0.336 | Z26: =IF($Z$2=Defaults!$M$5,Cotton!B26,IF($Z$2=Defaults!$M$6,Corn!B26,IF($Z$2=Defaults!$M$7,Sorghum!B26,IF($Z$2=Defaults!$M$8,Soybean!B26,IF($Z$2=Defaults!$M$9,Rice!B26,IF($Z$2=Defaults!$M$10,Peanut!B26,IF($Z$2=Defaults!$M$11,Wheat!B26,IF($Z$2=Defaults!$M$12,Pasture!B26,"")))))))) -> Potash [0-0-60] | AA26: =IF(C26="","",VLOOKUP(C26,Defaults!$T$3:$AE$13,4,FALSE)) -> lb | AB26: =IF(C26="","",IFERROR(VLOOKUP(C26,Defaults!$T$3:$AE$13,$Z$9,FALSE),"")) -> 100 | AC26: 0 | AE26: =IF(C26="","",VLOOKUP(C26,Defaults!$T$3:$V$13,2,FALSE)) -> cwt | AF26: =IF(C26="","",ROUND(VLOOKUP(C26,Defaults!$T$3:$V$13,3,FALSE),2)) -> 16.97 | AG26: =IFERROR(IF(LEFT($C$23,6)="Custom",L26,L26*(1-VLOOKUP($C$23,Implements!$A$159:$D$166,4,FALSE))),"") -> 97.76 | AM26: 15 | AO26: 15 | AU26: 14.664 | AW26: 14.664
C27: Amm. Sulfate [21-0-0](24% Sulfate) | E27: lb | J27: 0.15 | K27: 0.15 | L27: 125 | M27: 125 | N27: 18.75 | Q27: 2.8 | U27: 0.15 | V27: 122.2 | W27: 18.33 | X27: -0.42 | Z27: =IF($Z$2=Defaults!$M$5,Cotton!B27,IF($Z$2=Defaults!$M$6,Corn!B27,IF($Z$2=Defaults!$M$7,Sorghum!B27,IF($Z$2=Defaults!$M$8,Soybean!B27,IF($Z$2=Defaults!$M$9,Rice!B27,IF($Z$2=Defaults!$M$10,Peanut!B27,IF($Z$2=Defaults!$M$11,Wheat!B27,IF($Z$2=Defaults!$M$12,Pasture!B27,"")))))))) -> Amm. Sulfate [21-0-0](24% Sulfate) | AA27: =IF(C27="","",VLOOKUP(C27,Defaults!$T$3:$AE$13,4,FALSE)) -> lb | AB27: =IF(C27="","",IFERROR(VLOOKUP(C27,Defaults!$T$3:$AE$13,$Z$9,FALSE),"")) -> 125 | AC27: 0 | AE27: =IF(C27="","",VLOOKUP(C27,Defaults!$T$3:$V$13,2,FALSE)) -> cwt | AF27: =IF(C27="","",ROUND(VLOOKUP(C27,Defaults!$T$3:$V$13,3,FALSE),2)) -> 17.23 | AG27: =IFERROR(IF(LEFT($C$23,6)="Custom",L27,L27*(1-VLOOKUP($C$23,Implements!$A$159:$D$166,4,FALSE))),"") -> 122.2 | AM27: 18.75 | AO27: 18.75 | AU27: 18.33 | AW27: 18.33
C28: Sodium Borate (15% Boron) | E28: lb | J28: 0.75 | K28: 0.75 | L28: 7 | M28: 7 | N28: 5.25 | Q28: 0.1568 | U28: 0.75 | V28: 6.8432 | W28: 5.1324 | X28: -0.1176 | Z28: =IF($Z$2=Defaults!$M$5,Cotton!B28,IF($Z$2=Defaults!$M$6,Corn!B28,IF($Z$2=Defaults!$M$7,Sorghum!B28,IF($Z$2=Defaults!$M$8,Soybean!B28,IF($Z$2=Defaults!$M$9,Rice!B28,IF($Z$2=Defaults!$M$10,Peanut!B28,IF($Z$2=Defaults!$M$11,Wheat!B28,IF($Z$2=Defaults!$M$12,Pasture!B28,"")))))))) -> Sodium Borate (15% Boron) | AA28: =IF(C28="","",VLOOKUP(C28,Defaults!$T$3:$AE$13,4,FALSE)) -> lb | AB28: =IF(C28="","",IFERROR(VLOOKUP(C28,Defaults!$T$3:$AE$13,$Z$9,FALSE),"")) -> 7 | AC28: 0 | AE28: =IF(C28="","",VLOOKUP(C28,Defaults!$T$3:$V$13,2,FALSE)) -> lb | AF28: =IF(C28="","",ROUND(VLOOKUP(C28,Defaults!$T$3:$V$13,3,FALSE),2)) -> 0.75 | AG28: =IFERROR(IF(LEFT($C$23,6)="Custom",L28,L28*(1-VLOOKUP($C$23,Implements!$A$159:$D$166,4,FALSE))),"") -> 6.8432 | AM28: 5.25 | AO28: 5.25 | AU28: 5.1324 | AW28: 5.1324
N29: 0 | U29: 0 | V29: 0 | Z29: =IF($Z$2=Defaults!$M$5,Cotton!B29,IF($Z$2=Defaults!$M$6,Corn!B29,IF($Z$2=Defaults!$M$7,Sorghum!B29,IF($Z$2=Defaults!$M$8,Soybean!B29,IF($Z$2=Defaults!$M$9,Rice!B29,IF($Z$2=Defaults!$M$10,Peanut!B29,IF($Z$2=Defaults!$M$11,Wheat!B29,IF($Z$2=Defaults!$M$12,Pasture!B29,"")))))))) ->  | AA29: =IF(C29="","",VLOOKUP(C29,Defaults!$T$3:$AE$13,4,FALSE)) ->  | AB29: =IF(C29="","",IFERROR(VLOOKUP(C29,Defaults!$T$3:$AE$13,$Z$9,FALSE),"")) ->  | AC29: 1 | AE29: =IF(C29="","",VLOOKUP(C29,Defaults!$T$3:$V$13,2,FALSE)) ->  | AF29: =IF(C29="","",ROUND(VLOOKUP(C29,Defaults!$T$3:$V$13,3,FALSE),2)) ->  | AG29: =IFERROR(IF(LEFT($C$23,6)="Custom",L29,L29*(1-VLOOKUP($C$23,Implements!$A$159:$D$166,4,FALSE))),"") -> 0 | AM29: 0 | AO29: 0
C30: Planting, Insecticide, Defoliant, and Growth Regulator Application | Z30: =IF($Z$2=Defaults!$M$5,Cotton!B30,IF($Z$2=Defaults!$M$6,Corn!B30,IF($Z$2=Defaults!$M$7,Sorghum!B30,IF($Z$2=Defaults!$M$8,Soybean!B30,IF($Z$2=Defaults!$M$9,Rice!B30,IF($Z$2=Defaults!$M$10,Peanut!B30,IF($Z$2=Defaults!$M$11,Wheat!B30,IF($Z$2=Defaults!$M$12,Pasture!B30,"")))))))) -> Planting, Insecticide, Defoliant, and Growth Regulator Application | AY30: Insecticide - Defoliant/Fertilizer/Innoculant/Litter - Fungicide/Growth Regulator | BI30: Insecticide - Defoliant/Fertilizer/Innoculant/Litter - Fungicide/Growth Regulator
C31: Row Planter 1 | F31: =IF($L31=0,0,IF($C31=Defaults!$I$9,Implements!$AK$181,IF(C31=Defaults!$I$10,Implements!$AK$182,IF($C31=Defaults!$I$7,Implements!$AK$183,IF(C31=Defaults!$I$8,Implements!$AK$184,0))))) -> 8.666666667 | G31: =IF($L31=0,0,IFERROR(VLOOKUP($C31,Implements!$X$181:$AN$188,15,FALSE),0)) -> 8.36 | H31: =IF($L31=0,0,IFERROR(VLOOKUP($C31,Implements!$X$181:$AN$188,16,FALSE),0)) -> 43.46666667 | I31: =IF($L31=0,0,IFERROR(VLOOKUP($C31,Implements!$X$181:$AN$188,17,FALSE),0)) -> 118.5407197 | J31: =IF(OR(C31="",L31="",L31=0)=TRUE,"",IF(OR(C31=Defaults!$I$5,C31=Defaults!$I$6)=TRUE,$AT$4,IF(OR(C31=AV2,C31=AV3,C31=AV4,C31=AV5,C31=AV6,C31=AV7)=TRUE,ROUND(1/F31*(1*Inputs!$AA$13+($AI$8-1)*Inputs!$AA$15),2)+ROUND(G31*Inputs!$V$13/F31,2)+ROUND(H31*1/F31,2)+ROUND(I31/F31,2)))) -> 22.43 | K31: =IF(OR(C31="",L31="",L31=0)=TRUE,"",IF(OR(C31=Defaults!$I$5,C31=Defaults!$I$6)=TRUE,$AT$4,IF(OR(C31=AV2,C31=AV3,C31=AV4,C31=AV5,C31=AV6,C31=AV7)=TRUE,ROUND(1/F31*(1*Inputs!$AA$13+($AI$8-1)*Inputs!$AA$15),2)+ROUND(G31*Inputs!$V$13/F31,2)+ROUND(H31*1/F31,2)+ROUND(I31/F31,2)))) -> 22.43 | L31: 1 | M31: =AB31 -> 1 | N31: =IF(C31="",0,IF(L31=0,0,IF(L31="","",J31*L31))) -> 22.43 | Q31: =IF($V31=0,0,IF($C31=Defaults!$I$9,Implements!$AK$170,IF(C31=Defaults!$I$10,Implements!$AK$171,IF($C31=Defaults!$I$7,Implements!$AK$172,IF(C31=Defaults!$I$8,Implements!$AK$173,0))))) -> 8.8582 | R31: =IF($V31=0,0,IFERROR(VLOOKUP($C31,Implements!$X$170:$AN$177,15,FALSE),0)) -> 8.36 | S31: =IF($V31=0,0,IFERROR(VLOOKUP($C31,Implements!$X$170:$AN$177,16,FALSE),0)) -> 43.46666667 | T31: =IF($V31=0,0,IFERROR(VLOOKUP($C31,Implements!$X$170:$AN$177,17,FALSE),0)) -> 119.3106573 | U31: =IF(OR(C31="",V31="",V31=0)=TRUE,"",IF(LEFT(C31,6)="Custom",J31,ROUND(1/Q31*(1*Inputs!$AA$13+($AI$8-1)*Inputs!$AA$15),2)+ROUND(R31*Inputs!$V$13/Q31,2)+ROUND(S31*1/Q31,2)+ROUND(T31/Q31,2))) -> 22.02 | V31: =+L31 -> 1 | W31: =IF(C31="","",IF(V31=0,0,IF(V31="","",U31*V31))) -> 22.02 | X31: =IF(C31="","",W31-N31) -> -0.41 | Z31: =IF($Z$2=Defaults!$M$5,Cotton!B31,IF($Z$2=Defaults!$M$6,Corn!B31,IF($Z$2=Defaults!$M$7,Sorghum!B31,IF($Z$2=Defaults!$M$8,Soybean!B31,IF($Z$2=Defaults!$M$9,Rice!B31,IF($Z$2=Defaults!$M$10,Peanut!B31,IF($Z$2=Defaults!$M$11,Wheat!B31,IF($Z$2=Defaults!$M$12,Pasture!B31,"")))))))) -> Row Planter 1 | AB31: =IF(C31="","",IF($Z$2=Defaults!$M$8,VLOOKUP(C31,Defaults!$I$4:$J$10,2,FALSE),IF(OR($Z$2=Defaults!$M$9,$Z$2=Defaults!$M$11,$Z$2=Defaults!$M$12),VLOOKUP(C31,Defaults!$I$12:$J$16,2,FALSE),VLOOKUP(C31,Defaults!$I$18:$J$22,2,FALSE)))) -> 1 | AC31: 0 | AD31: =IF(AB31="","",AB31*2) -> 2 | AG31: =+AB31 -> 1 | AH31: =N31 -> 22.43 | AI31: =ROUND(IFERROR(1/F31*(1*Inputs!$AA$13+($AI$7-1)*Inputs!$AA$15),0),2)*L31 -> 2.04 | AJ31: =ROUND(IFERROR(1/F31*G31*Inputs!$V$13,0),2)*L31 -> 1.69 | AK31: =ROUND(IFERROR(1/F31*H31,0),2)*L31 -> 5.02 | AL31: =ROUND(IFERROR(1/F31*I31,0),2)*L31 -> 13.68 | AP31: =W31 -> 22.02 | AQ31: =ROUND(IFERROR(1/Q31*(1*Inputs!$AA$13+($AI$7-1)*Inputs!$AA$15),0),2)*V31 -> 1.99 | AR31: =ROUND(IFERROR(1/Q31*R31*Inputs!$V$13,0),2)*V31 -> 1.65 | AS31: =ROUND(IFERROR(1/Q31*S31,0),2)*V31 -> 4.91 | AT31: =ROUND(IFERROR(1/Q31*T31,0),2)*V31 -> 13.47 | AZ31: =AZ11 -> Cotton | BA31: =BA11 -> Corn | BB31: Sorghum | BC31: Soybean | BD31: Rice | BE31: Peanut | BF31: Wheat | BG31: Est. Pasture or Hay | BJ31: =BJ11 -> Cotton | BK31: =BK11 -> Corn | BL31: Sorghum | BM31: Soybean | BN31: Rice | BO31: Peanut | BP31: Wheat | BQ31: Est. Pasture or Hay
C32: Seed | E32: =IF(C31="","","acre") -> acre | J32: 120.03 | K32: =IF(OR(C32="",L32="",L32=0)=TRUE,"",IF(VLOOKUP($Z$2,Defaults!$M$4:$R$12,6,FALSE)="","",VLOOKUP($Z$2,Defaults!$M$4:$R$12,6,FALSE))) -> 120.03 | L32: 1 | M32: 1 | N32: =IF(C32="",0,IF(L32=0,0,IF(L32="","",J32*L32))) -> 120.03 | Q32: =IF(L32>0,ABS(V32-L32),"") -> 0.0235 | U32: =J32 -> 120.03 | V32: =IF(AG32=0,0,AG32) -> 0.9765 | W32: =IF(C32="",0,IF(V32=0,0,IF(V32="","",U32*V32))) -> 117.209295 | X32: -2.820705 | Z32: =IF($Z$2=Defaults!$M$5,Cotton!B32,IF($Z$2=Defaults!$M$6,Corn!B32,IF($Z$2=Defaults!$M$7,Sorghum!B32,IF($Z$2=Defaults!$M$8,Soybean!B32,IF($Z$2=Defaults!$M$9,Rice!B32,IF($Z$2=Defaults!$M$10,Peanut!B32,IF($Z$2=Defaults!$M$11,Wheat!B32,IF($Z$2=Defaults!$M$12,Pasture!B32,"")))))))) -> Seed | AA32: =VLOOKUP(Z2,Defaults!$M$5:$R$12,6,FALSE) -> 120.03 | AB32: =IF($C$31="","",1) -> 1 | AC32: 0 | AG32: =IFERROR(IF(LEFT($C$31,6)="Custom",L32,L32*(1-VLOOKUP($C$31,Implements!$A$159:$D$166,4,FALSE))),"") -> 0.9765 | AM32: =N32 -> 120.03 | AN32: =N32 -> 120.03 | AU32: =W32 -> 117.209295 | AV32: =W32 -> 117.209295
C33: Over-the-Top Sprayer 1 | F33: =IF($L33=0,0,IF(C33=Defaults!$I$27,Implements!$AK$185,IF($C33=Defaults!$I$28,Implements!$AK$186,0))) -> 61.45454545 | G33: =IF($L33=0,0,IFERROR(VLOOKUP($C33,Implements!$X$181:$AN$188,15,FALSE),0)) -> 8.36 | H33: =IF($L33=0,0,IFERROR(VLOOKUP($C33,Implements!$X$181:$AN$188,16,FALSE),0)) -> 45.04666667 | I33: =IF($L33=0,0,IFERROR(VLOOKUP($C33,Implements!$X$181:$AN$188,17,FALSE),0)) -> 137.6458252 | J33: =IF(OR(C33="",L33="",L33=0)=TRUE,"",IF(C33=Defaults!$I$40,VLOOKUP(C33,Defaults!$I$39:$K$41,3,FALSE),ROUND(1/F33*(1*Inputs!$AA$13+($AI$7-1)*Inputs!$AA$15),2)+ROUND(G33*Inputs!$V$13/F33,2)+ROUND(H33/F33,2)+ROUND(I33/F33,2))) -> 3.5 | K33: =IF(OR(C33="",L33="",L33=0)=TRUE,"",IF(C33=Defaults!$I$40,VLOOKUP(C33,Defaults!$I$39:$K$41,3,FALSE),ROUND(1/F33*(1*Inputs!$AA$13+($AI$7-1)*Inputs!$AA$15),2)+ROUND(G33*Inputs!$V$13/F33,2)+ROUND(H33/F33,2)+ROUND(I33/F33,2))) -> 3.5 | L33: 3 | M33: 3 | N33: 10.5 | Q33: =IF($V33=0,0,IF(C33=Defaults!$I$27,Implements!$AK$174,IF($C33=Defaults!$I$28,Implements!$AK$175,0))) -> 62.81269091 | R33: =IF($V33=0,0,IFERROR(VLOOKUP($C33,Implements!$X$170:$AN$177,15,FALSE),0)) -> 8.36 | S33: =IF($V33=0,0,IFERROR(VLOOKUP($C33,Implements!$X$170:$AN$177,16,FALSE),0)) -> 45.04666667 | T33: =IF($V33=0,0,IFERROR(VLOOKUP($C33,Implements!$X$170:$AN$177,17,FALSE),0)) -> 138.7259237 | U33: =IF(OR(C33="",V33="",V33=0)=TRUE,"",IF(LEFT(C33,6)="Custom",J33,ROUND(1/Q33*(1*Inputs!$AA$13+($AI$7-1)*Inputs!$AA$15),2)+ROUND(R33*Inputs!$V$13/Q33,2)+ROUND(S33/Q33,2)+ROUND(T33/Q33,2))) -> 3.44 | V33: =+L33 -> 3 | W33: 10.32 | X33: -0.18 | Z33: =IF($Z$2=Defaults!$M$5,Cotton!B33,IF($Z$2=Defaults!$M$6,Corn!B33,IF($Z$2=Defaults!$M$7,Sorghum!B33,IF($Z$2=Defaults!$M$8,Soybean!B33,IF($Z$2=Defaults!$M$9,Rice!B33,IF($Z$2=Defaults!$M$10,Peanut!B33,IF($Z$2=Defaults!$M$11,Wheat!B33,IF($Z$2=Defaults!$M$12,Pasture!B33,"")))))))) -> Over-the-Top Sprayer 1 | AB33: =IF(C33="","",IF(OR($Z$2=Defaults!$M$5,$Z$2=Defaults!$M$6,$Z$2=Defaults!$M$7,$Z$2=Defaults!$M$8,$Z$2=Defaults!$M$9,$Z$2=Defaults!$M$10)=TRUE,HLOOKUP($Z$2,Defaults!X20:AE30,11,FALSE),"")) -> 3 | AC33: 0 | AD33: =IF(AB33="","",AB33*2) -> 6 | AG33: =+AB33 -> 3 | AH33: =N33 -> 10.5 | AI33: =ROUND(IFERROR(1/F33*(1*Inputs!$AA$13+($AI$7-1)*Inputs!$AA$15),0),2)*L33 -> 0.87 | AJ33: =ROUND(IFERROR(1/F33*G33*Inputs!$V$13,0),2)*L33 -> 0.72 | AK33: =ROUND(IFERROR(1/F33*H33,0),2)*L33 -> 2.19 | AL33: =ROUND(IFERROR(1/F33*I33,0),2)*L33 -> 6.72 | AP33: =W33 -> 10.32 | AQ33: =ROUND(IFERROR(1/Q33*(1*Inputs!$AA$13+($AI$7-1)*Inputs!$AA$15),0),2)*V33 -> 0.84 | AR33: =ROUND(IFERROR(1/Q33*R33*Inputs!$V$13,0),2)*V33 -> 0.69 | AS33: =ROUND(IFERROR(1/Q33*S33,0),2)*V33 -> 2.16 | AT33: =ROUND(IFERROR(1/Q33*T33,0),2)*V33 -> 6.63 | AY33: Insecticide | BI33: Insecticide
C34: Centric | E34: oz | J34: 4.64 | K34: =IF(C34="","",ROUND(IF(E34=AE34,AF34,IF(AE34=$AC$2,AF34*VLOOKUP(E34,$AA$2:$AB$4,2,FALSE),IF(AE34=$AF$2,AF34*VLOOKUP(E34,$AD$2:$AE$3,2,FALSE),IF(AE34=$AI$2,AF34/VLOOKUP(E34,$AG$2:$AH$2,2,FALSE),IF(AE34=$AL$2,AF34*VLOOKUP(E34,$AJ$2:$AK$2,2,FALSE),IF(AE34=$AO$2,AF34/VLOOKUP(E34,$AM$2:$AN$2,2,FALSE),IF(AE34=$AR$2,AF34*VLOOKUP(E34,$AP$2:$AQ$3,2,FALSE)))))))),2)) -> 4.64 | L34: 4 | M34: 4 | N34: 18.56 | Q34: =IF(L34>0,ABS(V34-L34),"") -> 0.8832 | U34: =J34 -> 4.64 | V34: =IF(AG34=0,0,AG34) -> 3.1168 | W34: 14.461952 | X34: -4.098048 | Z34: =IF($Z$2=Defaults!$M$5,Cotton!B34,IF($Z$2=Defaults!$M$6,Corn!B34,IF($Z$2=Defaults!$M$7,Sorghum!B34,IF($Z$2=Defaults!$M$8,Soybean!B34,IF($Z$2=Defaults!$M$9,Rice!B34,IF($Z$2=Defaults!$M$10,Peanut!B34,IF($Z$2=Defaults!$M$11,Wheat!B34,IF($Z$2=Defaults!$M$12,Pasture!B34,"")))))))) -> Centric | AA34: =IF(C34="","",HLOOKUP($Z$2,$AZ$31:$BG$42,4,FALSE)) -> oz | AB34: =IF(C34="","",HLOOKUP($Z$2,$BJ$31:$BQ$42,4,FALSE)) -> 4 | AC34: 0 | AE34: =IF(C34="","",IF(OR($Z$2=Defaults!$M$5,$Z$2=Defaults!$M$6,$Z$2=Defaults!$M$7,$Z$2=Defaults!$M$8,$Z$2=Defaults!$M$9,$Z$2=Defaults!$M$10)=TRUE,VLOOKUP(C34,Defaults!$T$21:$AE$29,2,FALSE),"")) -> oz | AF34: =IF(C34="","",IF(OR($Z$2=Defaults!$M$5,$Z$2=Defaults!$M$6,$Z$2=Defaults!$M$7,$Z$2=Defaults!$M$8,$Z$2=Defaults!$M$9,$Z$2=Defaults!$M$10)=TRUE,ROUND(VLOOKUP(C34,Defaults!$T$21:$AC$29,3,FALSE),2),"")) -> 4.64 | AG34: =IFERROR(IF(LEFT($C$33,6)="Custom",L34,L34*(1-VLOOKUP($C$33,Implements!$A$159:$D$166,4,FALSE))),"") -> 3.1168 | AM34: =N34 -> 18.56 | AO34: =N34 -> 18.56 | AU34: =W34 -> 14.461952 | AW34: =W34 -> 14.461952 | AY34: =IF($C34="","",$C34) -> Centric | AZ34: =IF($C34="","",VLOOKUP(C34,Defaults!$T$21:$AE$29,4,FALSE)) -> oz | BA34: =IF($C34="","",VLOOKUP(C34,Defaults!$T$21:$AE$29,4,FALSE)) -> oz | BB34: =IF($C34="","",VLOOKUP(C34,Defaults!$T$21:$AE$29,4,FALSE)) -> oz | BC34: =IF($C34="","",VLOOKUP(C34,Defaults!$T$21:$AE$29,4,FALSE)) -> oz | BD34: =IF($C34="","",VLOOKUP(C34,Defaults!$T$21:$AE$29,4,FALSE)) -> oz | BE34: =IF($C34="","",VLOOKUP(C34,Defaults!$T$21:$AE$29,4,FALSE)) -> oz | BI34: =IF($C34="","",$C34) -> Centric | BJ34: =IF($C34="","",IFERROR(VLOOKUP(C34,Defaults!$T$21:$AE$29,5,FALSE),"")) -> 4 | BK34: =IF($C34="","",IFERROR(VLOOKUP(C34,Defaults!$T$21:$AE$29,6,FALSE),"")) ->  | BL34: =IF($C34="","",IFERROR(VLOOKUP(C34,Defaults!$T$21:$AE$29,7,FALSE),"")) ->  | BM34: =IF($C34="","",IFERROR(VLOOKUP(C34,Defaults!$T$21:$AE$29,8,FALSE),"")) ->  | BN34: =IF($C34="","",IFERROR(VLOOKUP(C34,Defaults!$T$21:$AE$29,9,FALSE),"")) ->  | BO34: =IF($C34="","",IFERROR(VLOOKUP(C34,Defaults!$T$21:$AE$29,10,FALSE),"")) -> 
C35: Diamond | E35: oz | J35: 1.31 | K35: =IF(C35="","",ROUND(IF(E35=AE35,AF35,IF(AE35=$AC$2,AF35*VLOOKUP(E35,$AA$2:$AB$4,2,FALSE),IF(AE35=$AF$2,AF35*VLOOKUP(E35,$AD$2:$AE$3,2,FALSE),IF(AE35=$AI$2,AF35/VLOOKUP(E35,$AG$2:$AH$2,2,FALSE),IF(AE35=$AL$2,AF35*VLOOKUP(E35,$AJ$2:$AK$2,2,FALSE),IF(AE35=$AO$2,AF35/VLOOKUP(E35,$AM$2:$AN$2,2,FALSE),IF(AE35=$AR$2,AF35*VLOOKUP(E35,$AP$2:$AQ$3,2,FALSE)))))))),2)) -> 1.31 | L35: 12 | M35: 12 | N35: 15.72 | Q35: =IF(L35>0,ABS(V35-L35),"") -> 2.6496 | U35: =J35 -> 1.31 | V35: =IF(AG35=0,0,AG35) -> 9.3504 | W35: 12.249024 | X35: -3.470976 | Z35: =IF($Z$2=Defaults!$M$5,Cotton!B35,IF($Z$2=Defaults!$M$6,Corn!B35,IF($Z$2=Defaults!$M$7,Sorghum!B35,IF($Z$2=Defaults!$M$8,Soybean!B35,IF($Z$2=Defaults!$M$9,Rice!B35,IF($Z$2=Defaults!$M$10,Peanut!B35,IF($Z$2=Defaults!$M$11,Wheat!B35,IF($Z$2=Defaults!$M$12,Pasture!B35,"")))))))) -> Diamond | AA35: =IF(C35="","",HLOOKUP($Z$2,$AZ$31:$BG$42,5,FALSE)) -> oz | AB35: =IF(C35="","",HLOOKUP($Z$2,$BJ$31:$BQ$42,5,FALSE)) -> 12 | AC35: 0 | AE35: =IF(C35="","",IF(OR($Z$2=Defaults!$M$5,$Z$2=Defaults!$M$6,$Z$2=Defaults!$M$7,$Z$2=Defaults!$M$8,$Z$2=Defaults!$M$9,$Z$2=Defaults!$M$10)=TRUE,VLOOKUP(C35,Defaults!$T$21:$AE$29,2,FALSE),"")) -> oz | AF35: =IF(C35="","",IF(OR($Z$2=Defaults!$M$5,$Z$2=Defaults!$M$6,$Z$2=Defaults!$M$7,$Z$2=Defaults!$M$8,$Z$2=Defaults!$M$9,$Z$2=Defaults!$M$10)=TRUE,ROUND(VLOOKUP(C35,Defaults!$T$21:$AC$29,3,FALSE),2),"")) -> 1.31 | AG35: =IFERROR(IF(LEFT($C$33,6)="Custom",L35,L35*(1-VLOOKUP($C$33,Implements!$A$159:$D$166,4,FALSE))),"") -> 9.3504 | AM35: =N35 -> 15.72 | AO35: =N35 -> 15.72 | AU35: =W35 -> 12.249024 | AW35: =W35 -> 12.249024 | AY35: Diamond | AZ35: =IF($C35="","",VLOOKUP(C35,Defaults!$T$21:$AE$29,4,FALSE)) -> oz | BA35: =IF($C35="","",VLOOKUP(C35,Defaults!$T$21:$AE$29,4,FALSE)) -> oz | BB35: =IF($C35="","",VLOOKUP(C35,Defaults!$T$21:$AE$29,4,FALSE)) -> oz | BC35: =IF($C35="","",VLOOKUP(C35,Defaults!$T$21:$AE$29,4,FALSE)) -> oz | BD35: =IF($C35="","",VLOOKUP(C35,Defaults!$T$21:$AE$29,4,FALSE)) -> oz | BE35: =IF($C35="","",VLOOKUP(C35,Defaults!$T$21:$AE$29,4,FALSE)) -> oz | BI35: =IF($C35="","",$C35) -> Diamond | BJ35: =IF($C35="","",IFERROR(VLOOKUP(C35,Defaults!$T$21:$AE$29,5,FALSE),"")) -> 12 | BK35: =IF($C35="","",IFERROR(VLOOKUP(C35,Defaults!$T$21:$AE$29,6,FALSE),"")) ->  | BL35: =IF($C35="","",IFERROR(VLOOKUP(C35,Defaults!$T$21:$AE$29,7,FALSE),"")) ->  | BM35: =IF($C35="","",IFERROR(VLOOKUP(C35,Defaults!$T$21:$AE$29,8,FALSE),"")) ->  | BN35: =IF($C35="","",IFERROR(VLOOKUP(C35,Defaults!$T$21:$AE$29,9,FALSE),"")) ->  | BO35: =IF($C35="","",IFERROR(VLOOKUP(C35,Defaults!$T$21:$AE$29,10,FALSE),"")) -> 
C36: Transform | E36: oz | J36: 6.88 | K36: =IF(C36="","",ROUND(IF(E36=AE36,AF36,IF(AE36=$AC$2,AF36*VLOOKUP(E36,$AA$2:$AB$4,2,FALSE),IF(AE36=$AF$2,AF36*VLOOKUP(E36,$AD$2:$AE$3,2,FALSE),IF(AE36=$AI$2,AF36/VLOOKUP(E36,$AG$2:$AH$2,2,FALSE),IF(AE36=$AL$2,AF36*VLOOKUP(E36,$AJ$2:$AK$2,2,FALSE),IF(AE36=$AO$2,AF36/VLOOKUP(E36,$AM$2:$AN$2,2,FALSE),IF(AE36=$AR$2,AF36*VLOOKUP(E36,$AP$2:$AQ$3,2,FALSE)))))))),2)) -> 6.88 | L36: 4 | M36: 4 | N36: 27.52 | Q36: =IF(L36>0,ABS(V36-L36),"") -> 0.8832 | U36: =J36 -> 6.88 | V36: =IF(AG36=0,0,AG36) -> 3.1168 | W36: 21.443584 | X36: -6.076416 | Z36: =IF($Z$2=Defaults!$M$5,Cotton!B36,IF($Z$2=Defaults!$M$6,Corn!B36,IF($Z$2=Defaults!$M$7,Sorghum!B36,IF($Z$2=Defaults!$M$8,Soybean!B36,IF($Z$2=Defaults!$M$9,Rice!B36,IF($Z$2=Defaults!$M$10,Peanut!B36,IF($Z$2=Defaults!$M$11,Wheat!B36,IF($Z$2=Defaults!$M$12,Pasture!B36,"")))))))) -> Transform | AA36: =IF(C36="","",HLOOKUP($Z$2,$AZ$31:$BG$42,6,FALSE)) -> oz | AB36: =IF(C36="","",HLOOKUP($Z$2,$BJ$31:$BQ$42,6,FALSE)) -> 4 | AC36: 0 | AE36: =IF(C36="","",IF(OR($Z$2=Defaults!$M$5,$Z$2=Defaults!$M$6,$Z$2=Defaults!$M$7,$Z$2=Defaults!$M$8,$Z$2=Defaults!$M$9,$Z$2=Defaults!$M$10)=TRUE,VLOOKUP(C36,Defaults!$T$21:$AE$29,2,FALSE),"")) -> oz | AF36: =IF(C36="","",IF(OR($Z$2=Defaults!$M$5,$Z$2=Defaults!$M$6,$Z$2=Defaults!$M$7,$Z$2=Defaults!$M$8,$Z$2=Defaults!$M$9,$Z$2=Defaults!$M$10)=TRUE,ROUND(VLOOKUP(C36,Defaults!$T$21:$AC$29,3,FALSE),2),"")) -> 6.88 | AG36: =IFERROR(IF(LEFT($C$33,6)="Custom",L36,L36*(1-VLOOKUP($C$33,Implements!$A$159:$D$166,4,FALSE))),"") -> 3.1168 | AM36: =N36 -> 27.52 | AO36: =N36 -> 27.52 | AU36: =W36 -> 21.443584 | AW36: =W36 -> 21.443584 | AY36: Transform | AZ36: =IF($C36="","",VLOOKUP(C36,Defaults!$T$21:$AE$29,4,FALSE)) -> oz | BA36: =IF($C36="","",VLOOKUP(C36,Defaults!$T$21:$AE$29,4,FALSE)) -> oz | BB36: =IF($C36="","",VLOOKUP(C36,Defaults!$T$21:$AE$29,4,FALSE)) -> oz | BC36: =IF($C36="","",VLOOKUP(C36,Defaults!$T$21:$AE$29,4,FALSE)) -> oz | BD36: =IF($C36="","",VLOOKUP(C36,Defaults!$T$21:$AE$29,4,FALSE)) -> oz | BE36: =IF($C36="","",VLOOKUP(C36,Defaults!$T$21:$AE$29,4,FALSE)) -> oz | BI36: =IF($C36="","",$C36) -> Transform | BJ36: =IF($C36="","",IFERROR(VLOOKUP(C36,Defaults!$T$21:$AE$29,5,FALSE),"")) -> 4 | BK36: =IF($C36="","",IFERROR(VLOOKUP(C36,Defaults!$T$21:$AE$29,6,FALSE),"")) ->  | BL36: =IF($C36="","",IFERROR(VLOOKUP(C36,Defaults!$T$21:$AE$29,7,FALSE),"")) ->  | BM36: =IF($C36="","",IFERROR(VLOOKUP(C36,Defaults!$T$21:$AE$29,8,FALSE),"")) ->  | BN36: =IF($C36="","",IFERROR(VLOOKUP(C36,Defaults!$T$21:$AE$29,9,FALSE),"")) ->  | BO36: =IF($C36="","",IFERROR(VLOOKUP(C36,Defaults!$T$21:$AE$29,10,FALSE),"")) -> 
C37: Prevathon | E37: oz | J37: 1.16 | K37: =IF(C37="","",ROUND(IF(E37=AE37,AF37,IF(AE37=$AC$2,AF37*VLOOKUP(E37,$AA$2:$AB$4,2,FALSE),IF(AE37=$AF$2,AF37*VLOOKUP(E37,$AD$2:$AE$3,2,FALSE),IF(AE37=$AI$2,AF37/VLOOKUP(E37,$AG$2:$AH$2,2,FALSE),IF(AE37=$AL$2,AF37*VLOOKUP(E37,$AJ$2:$AK$2,2,FALSE),IF(AE37=$AO$2,AF37/VLOOKUP(E37,$AM$2:$AN$2,2,FALSE),IF(AE37=$AR$2,AF37*VLOOKUP(E37,$AP$2:$AQ$3,2,FALSE)))))))),2)) -> 1.16 | L37: 20 | M37: 20 | N37: 23.2 | Q37: =IF(L37>0,ABS(V37-L37),"") -> 4.416 | U37: =J37 -> 1.16 | V37: =IF(AG37=0,0,AG37) -> 15.584 | W37: 18.07744 | X37: -5.12256 | Z37: =IF($Z$2=Defaults!$M$5,Cotton!B37,IF($Z$2=Defaults!$M$6,Corn!B37,IF($Z$2=Defaults!$M$7,Sorghum!B37,IF($Z$2=Defaults!$M$8,Soybean!B37,IF($Z$2=Defaults!$M$9,Rice!B37,IF($Z$2=Defaults!$M$10,Peanut!B37,IF($Z$2=Defaults!$M$11,Wheat!B37,IF($Z$2=Defaults!$M$12,Pasture!B37,"")))))))) -> Prevathon | AA37: =IF(C37="","",HLOOKUP($Z$2,$AZ$31:$BG$42,7,FALSE)) -> oz | AB37: =IF(C37="","",HLOOKUP($Z$2,$BJ$31:$BQ$42,7,FALSE)) -> 20 | AC37: 0 | AE37: =IF(C37="","",IF(OR($Z$2=Defaults!$M$5,$Z$2=Defaults!$M$6,$Z$2=Defaults!$M$7,$Z$2=Defaults!$M$8,$Z$2=Defaults!$M$9,$Z$2=Defaults!$M$10)=TRUE,VLOOKUP(C37,Defaults!$T$21:$AE$29,2,FALSE),"")) -> oz | AF37: =IF(C37="","",IF(OR($Z$2=Defaults!$M$5,$Z$2=Defaults!$M$6,$Z$2=Defaults!$M$7,$Z$2=Defaults!$M$8,$Z$2=Defaults!$M$9,$Z$2=Defaults!$M$10)=TRUE,ROUND(VLOOKUP(C37,Defaults!$T$21:$AC$29,3,FALSE),2),"")) -> 1.16 | AG37: =IFERROR(IF(LEFT($C$33,6)="Custom",L37,L37*(1-VLOOKUP($C$33,Implements!$A$159:$D$166,4,FALSE))),"") -> 15.584 | AM37: =N37 -> 23.2 | AO37: =N37 -> 23.2 | AU37: =W37 -> 18.07744 | AW37: =W37 -> 18.07744 | AY37: Prevathon | AZ37: =IF($C37="","",VLOOKUP(C37,Defaults!$T$21:$AE$29,4,FALSE)) -> oz | BA37: =IF($C37="","",VLOOKUP(C37,Defaults!$T$21:$AE$29,4,FALSE)) -> oz | BB37: =IF($C37="","",VLOOKUP(C37,Defaults!$T$21:$AE$29,4,FALSE)) -> oz | BC37: =IF($C37="","",VLOOKUP(C37,Defaults!$T$21:$AE$29,4,FALSE)) -> oz | BD37: =IF($C37="","",VLOOKUP(C37,Defaults!$T$21:$AE$29,4,FALSE)) -> oz | BE37: =IF($C37="","",VLOOKUP(C37,Defaults!$T$21:$AE$29,4,FALSE)) -> oz | BI37: =IF($C37="","",$C37) -> Prevathon | BJ37: =IF($C37="","",IFERROR(VLOOKUP(C37,Defaults!$T$21:$AE$29,5,FALSE),"")) -> 20 | BK37: =IF($C37="","",IFERROR(VLOOKUP(C37,Defaults!$T$21:$AE$29,6,FALSE),"")) -> 14 | BL37: =IF($C37="","",IFERROR(VLOOKUP(C37,Defaults!$T$21:$AE$29,7,FALSE),"")) ->  | BM37: =IF($C37="","",IFERROR(VLOOKUP(C37,Defaults!$T$21:$AE$29,8,FALSE),"")) ->  | BN37: =IF($C37="","",IFERROR(VLOOKUP(C37,Defaults!$T$21:$AE$29,9,FALSE),"")) ->  | BO37: =IF($C37="","",IFERROR(VLOOKUP(C37,Defaults!$T$21:$AE$29,10,FALSE),"")) -> 
K38: =IF(C38="","",ROUND(IF(E38=AE38,AF38,IF(AE38=$AC$2,AF38*VLOOKUP(E38,$AA$2:$AB$4,2,FALSE),IF(AE38=$AF$2,AF38*VLOOKUP(E38,$AD$2:$AE$3,2,FALSE),IF(AE38=$AI$2,AF38/VLOOKUP(E38,$AG$2:$AH$2,2,FALSE),IF(AE38=$AL$2,AF38*VLOOKUP(E38,$AJ$2:$AK$2,2,FALSE),IF(AE38=$AO$2,AF38/VLOOKUP(E38,$AM$2:$AN$2,2,FALSE),IF(AE38=$AR$2,AF38*VLOOKUP(E38,$AP$2:$AQ$3,2,FALSE)))))))),2)) ->  | N38: 0 | Q38: =IF(L38>0,ABS(V38-L38),"") ->  | U38: =J38 -> 0 | V38: =IF(AG38=0,0,AG38) -> 0 | Z38: =IF($Z$2=Defaults!$M$5,Cotton!B38,IF($Z$2=Defaults!$M$6,Corn!B38,IF($Z$2=Defaults!$M$7,Sorghum!B38,IF($Z$2=Defaults!$M$8,Soybean!B38,IF($Z$2=Defaults!$M$9,Rice!B38,IF($Z$2=Defaults!$M$10,Peanut!B38,IF($Z$2=Defaults!$M$11,Wheat!B38,IF($Z$2=Defaults!$M$12,Pasture!B38,"")))))))) ->  | AA38: =IF(C38="","",HLOOKUP($Z$2,$AZ$31:$BG$42,8,FALSE)) ->  | AB38: =IF(C38="","",HLOOKUP($Z$2,$BJ$31:$BQ$42,8,FALSE)) ->  | AC38: 0 | AE38: =IF(C38="","",IF(OR($Z$2=Defaults!$M$5,$Z$2=Defaults!$M$6,$Z$2=Defaults!$M$7,$Z$2=Defaults!$M$8,$Z$2=Defaults!$M$9,$Z$2=Defaults!$M$10)=TRUE,VLOOKUP(C38,Defaults!$T$21:$AE$29,2,FALSE),"")) ->  | AF38: =IF(C38="","",IF(OR($Z$2=Defaults!$M$5,$Z$2=Defaults!$M$6,$Z$2=Defaults!$M$7,$Z$2=Defaults!$M$8,$Z$2=Defaults!$M$9,$Z$2=Defaults!$M$10)=TRUE,ROUND(VLOOKUP(C38,Defaults!$T$21:$AC$29,3,FALSE),2),"")) ->  | AG38: =IFERROR(IF(LEFT($C$33,6)="Custom",L38,L38*(1-VLOOKUP($C$33,Implements!$A$159:$D$166,4,FALSE))),"") -> 0 | AM38: =N38 -> 0 | AO38: =N38 -> 0 | AU38: =W38 ->  | AW38: =W38 ->  | AZ38: =IF($C38="","",VLOOKUP(C38,Defaults!$T$21:$AE$29,4,FALSE)) ->  | BA38: =IF($C38="","",VLOOKUP(C38,Defaults!$T$21:$AE$29,4,FALSE)) ->  | BB38: =IF($C38="","",VLOOKUP(C38,Defaults!$T$21:$AE$29,4,FALSE)) ->  | BC38: =IF($C38="","",VLOOKUP(C38,Defaults!$T$21:$AE$29,4,FALSE)) ->  | BD38: =IF($C38="","",VLOOKUP(C38,Defaults!$T$21:$AE$29,4,FALSE)) ->  | BE38: =IF($C38="","",VLOOKUP(C38,Defaults!$T$21:$AE$29,4,FALSE)) ->  | BI38: =IF($C38="","",$C38) ->  | BJ38: =IF($C38="","",IFERROR(VLOOKUP(C38,Defaults!$T$21:$AE$29,5,FALSE),"")) ->  | BK38: =IF($C38="","",IFERROR(VLOOKUP(C38,Defaults!$T$21:$AE$29,6,FALSE),"")) ->  | BL38: =IF($C38="","",IFERROR(VLOOKUP(C38,Defaults!$T$21:$AE$29,7,FALSE),"")) ->  | BM38: =IF($C38="","",IFERROR(VLOOKUP(C38,Defaults!$T$21:$AE$29,8,FALSE),"")) ->  | BN38: =IF($C38="","",IFERROR(VLOOKUP(C38,Defaults!$T$21:$AE$29,9,FALSE),"")) ->  | BO38: =IF($C38="","",IFERROR(VLOOKUP(C38,Defaults!$T$21:$AE$29,10,FALSE),"")) -> 
C39: Over-the-Top Sprayer 1 | F39: =IF($L39=0,0,IF(C39=Defaults!$I$27,Implements!$AK$185,IF($C39=Defaults!$I$28,Implements!$AK$186,IF($C39=Defaults!$I$37,Implements!$AK$187,IF($C39=Defaults!$I$51,Implements!$AK$188,0))))) -> 61.45454545 | G39: =IF($L39=0,0,IFERROR(VLOOKUP($C39,Implements!$X$181:$AN$188,15,FALSE),0)) -> 8.36 | H39: =IF($L39=0,0,IFERROR(VLOOKUP($C39,Implements!$X$181:$AN$188,16,FALSE),0)) -> 45.04666667 | I39: =IF($L39=0,0,IFERROR(VLOOKUP($C39,Implements!$X$181:$AN$188,17,FALSE),0)) -> 137.6458252 | J39: =IF(OR(C39="",L39="",L39=0)=TRUE,"",IF(OR(C39=Defaults!$I$25,C39=Defaults!$I$26)=TRUE,VLOOKUP(C39,Defaults!$I$24:$K$28,3,FALSE),IF(C39=Defaults!$I$54,VLOOKUP(C39,Defaults!$I$53:$K$56,3,FALSE),IF(C39=Defaults!$I$45,VLOOKUP(C39,Defaults!$I$44:$K$47,3,FALSE),IF(C39=Defaults!$I$50,VLOOKUP(C39,Defaults!$I$49:$K$51,3,FALSE),ROUND(1/F39*(1*Inputs!$AA$13+($AI$7-1)*Inputs!$AA$15),2)+ROUND(G39*Inputs!$V$13/F39,2)+ROUND(H39/F39,2)+ROUND(I39/F39,2)))))) -> 3.5 | K39: =IF(OR(C39="",L39="",L39=0)=TRUE,"",IF(OR(C39=Defaults!$I$25,C39=Defaults!$I$26)=TRUE,VLOOKUP(C39,Defaults!$I$24:$K$28,3,FALSE),IF(C39=Defaults!$I$54,VLOOKUP(C39,Defaults!$I$53:$K$56,3,FALSE),IF(C39=Defaults!$I$45,VLOOKUP(C39,Defaults!$I$44:$K$47,3,FALSE),IF(C39=Defaults!$I$50,VLOOKUP(C39,Defaults!$I$49:$K$51,3,FALSE),ROUND(1/F39*(1*Inputs!$AA$13+($AI$7-1)*Inputs!$AA$15),2)+ROUND(G39*Inputs!$V$13/F39,2)+ROUND(H39/F39,2)+ROUND(I39/F39,2)))))) -> 3.5 | L39: 2 | M39: 2 | N39: 7 | Q39: =IF($V39=0,0,IF(C39=Defaults!$I$27,Implements!$AK$174,IF($C39=Defaults!$I$28,Implements!$AK$175,IF($C39=Defaults!$I$37,Implements!$AK$176,IF($C39=Defaults!$I$51,Implements!$AK$177,0))))) -> 62.81269091 | R39: =IF($V39=0,0,IFERROR(VLOOKUP($C39,Implements!$X$170:$AN$177,15,FALSE),0)) -> 8.36 | S39: =IF($V39=0,0,IFERROR(VLOOKUP($C39,Implements!$X$170:$AN$177,16,FALSE),0)) -> 45.04666667 | T39: =IF($V39=0,0,IFERROR(VLOOKUP($C39,Implements!$X$170:$AN$177,17,FALSE),0)) -> 138.7259237 | U39: =IF(OR(C39="",V39="",V39=0)=TRUE,"",IF(LEFT(C39,6)="Custom",J39,ROUND(1/Q39*(1*Inputs!$AA$13+($AI$7-1)*Inputs!$AA$15),2)+ROUND(R39*Inputs!$V$13/Q39,2)+ROUND(S39/Q39,2)+ROUND(T39/Q39,2))) -> 3.44 | V39: =+L39 -> 2 | W39: 6.88 | X39: -0.12 | Z39: =IF($Z$2=Defaults!$M$5,Cotton!B39,IF($Z$2=Defaults!$M$6,Corn!B39,IF($Z$2=Defaults!$M$7,Sorghum!B39,IF($Z$2=Defaults!$M$8,Soybean!B39,IF($Z$2=Defaults!$M$9,Rice!B39,IF($Z$2=Defaults!$M$10,Peanut!B39,IF($Z$2=Defaults!$M$11,Wheat!B39,IF($Z$2=Defaults!$M$12,Pasture!B39,"")))))))) -> Over-the-Top Sprayer 1 | AB39: =IF(C39="","",IF($Z$2=Defaults!$M$5,VLOOKUP(C39,Defaults!$I$53:$J$56,2,FALSE),IF($Z$2=Defaults!$M$10,VLOOKUP(C39,Defaults!$I$44:$K$47,2,FALSE),IF($Z$2=Defaults!$M$12,VLOOKUP(C39,Defaults!$I$49:$K$51,2,FALSE),"")))) -> 2 | AC39: 0 | AD39: =IF(AB39="","",AB39*2) -> 4 | AG39: =+AB39 -> 2 | AH39: =N39 -> 7 | AI39: =ROUND(IFERROR(1/F39*(1*Inputs!$AA$13+($AI$7-1)*Inputs!$AA$15),0),2)*L39 -> 0.58 | AJ39: =ROUND(IFERROR(1/F39*G39*Inputs!$V$13,0),2)*L39 -> 0.48 | AK39: =ROUND(IFERROR(1/F39*H39,0),2)*L39 -> 1.46 | AL39: =ROUND(IFERROR(1/F39*I39,0),2)*L39 -> 4.48 | AP39: =W39 -> 6.88 | AQ39: =ROUND(IFERROR(1/Q39*(1*Inputs!$AA$13+($AI$7-1)*Inputs!$AA$15),0),2)*V39 -> 0.56 | AR39: =ROUND(IFERROR(1/Q39*R39*Inputs!$V$13,0),2)*V39 -> 0.46 | AS39: =ROUND(IFERROR(1/Q39*S39,0),2)*V39 -> 1.44 | AT39: =ROUND(IFERROR(1/Q39*T39,0),2)*V39 -> 4.42 | AY39: Other: Defoliant, Fertilizer, Innoculant or Litter
C40: Dropp | E40: oz | J40: 1.6 | K40: =IF(C40="","",ROUND(IF(E40=AE40,AF40,IF(AE40=$AC$2,AF40*VLOOKUP(E40,$AA$2:$AB$4,2,FALSE),IF(AE40=$AF$2,AF40*VLOOKUP(E40,$AD$2:$AE$3,2,FALSE),IF(AE40=$AI$2,AF40/VLOOKUP(E40,$AG$2:$AH$2,2,FALSE),IF(AE40=$AL$2,AF40*VLOOKUP(E40,$AJ$2:$AK$2,2,FALSE),IF(AE40=$AO$2,AF40/VLOOKUP(E40,$AM$2:$AN$2,2,FALSE),IF(AE40=$AR$2,AF40*VLOOKUP(E40,$AP$2:$AQ$3,2,FALSE)))))))),2)) -> 1.6 | L40: 2 | M40: 2 | N40: 3.2 | Q40: =IF(L40>0,ABS(V40-L40),"") -> 0.4416 | U40: =J40 -> 1.6 | V40: =IF(AG40=0,0,AG40) -> 1.5584 | W40: 2.49344 | X40: -0.70656 | Z40: =IF($Z$2=Defaults!$M$5,Cotton!B40,IF($Z$2=Defaults!$M$6,Corn!B40,IF($Z$2=Defaults!$M$7,Sorghum!B40,IF($Z$2=Defaults!$M$8,Soybean!B40,IF($Z$2=Defaults!$M$9,Rice!B40,IF($Z$2=Defaults!$M$10,Peanut!B40,IF($Z$2=Defaults!$M$11,Wheat!B40,IF($Z$2=Defaults!$M$12,Pasture!B40,"")))))))) -> Dropp | AA40: =IF(C40="","",HLOOKUP($Z$2,$AZ$31:$BG$43,10,FALSE)) -> oz | AB40: =IF(C40="","",HLOOKUP($Z$2,$BJ$31:$BQ$43,10,FALSE)) -> 2 | AC40: 0 | AE40: =IF(C40="","",IF($Z$2=Defaults!$M$5,VLOOKUP(C40,Defaults!$T$38:$AE$41,2,FALSE),IF(OR($Z$2=Defaults!$M$7,$Z$2=Defaults!$M$11)=TRUE,VLOOKUP(C40,Defaults!$T$3:$AE$13,2,FALSE),IF($Z$2=Defaults!$M$10,VLOOKUP(C40,Defaults!$T$33:$AE$34,2,FALSE),IF($Z$2=Defaults!$M$12,VLOOKUP(C40,Defaults!$T$3:$U$13,2,FALSE),""))))) -> oz | AF40: =IF(C40="","",IF($Z$2=Defaults!$M$5,ROUND(VLOOKUP(C40,Defaults!$T$38:$AE$41,3,FALSE),2),IF(OR($Z$2=Defaults!$M$7,$Z$2=Defaults!$M$11)=TRUE,ROUND(VLOOKUP(C40,Defaults!$T$3:$AE$13,3,FALSE),2),IF($Z$2=Defaults!$M$10,ROUND(VLOOKUP(C40,Defaults!$T$33:$AE$34,3,FALSE),2),IF($Z$2=Defaults!$M$12,ROUND(VLOOKUP(C40,Defaults!$T$17:$AE$18,3,FALSE),2),""))))) -> 1.6 | AG40: =IFERROR(IF(LEFT($C$39,6)="Custom",L40,L40*(1-VLOOKUP($C$39,Implements!$A$159:$D$166,4,FALSE))),"") -> 1.5584 | AM40: =N40 -> 3.2 | AO40: =N40 -> 3.2 | AU40: =W40 -> 2.49344 | AW40: =W40 -> 2.49344 | AY40: Dropp | AZ40: =IF($C40="","",VLOOKUP(C40,Defaults!$T$38:$X$41,4,FALSE)) -> oz | BB40: =IF($C40="","",VLOOKUP(C40,Defaults!$T$3:$X$13,4,FALSE)) ->  | BE40: =IF($C40="","",VLOOKUP(C40,Defaults!$T$33:$X$34,4,FALSE)) ->  | BF40: =IF($C40="","",VLOOKUP(C40,Defaults!$T$3:$X$13,4,FALSE)) ->  | BG40: =IF($C40="","",VLOOKUP(C40,Defaults!$T$17:$AE$18,4,FALSE)) ->  | BI40: =IF($C40="","",$C40) -> Dropp | BJ40: =IF($C40="","",IFERROR(VLOOKUP(C40,Defaults!$T$38:$AE$41,5,FALSE),"")) -> 2 | BL40: =IF($C40="","",IFERROR(VLOOKUP(C40,Defaults!$T$3:$AE$13,7,FALSE),"")) ->  | BO40: =IF($C40="","",IFERROR(VLOOKUP(C40,Defaults!$T$33:$AE$34,10,FALSE),"")) ->  | BP40: =IF($C40="","",IFERROR(VLOOKUP(C40,Defaults!$T$3:$AE$13,11,FALSE),"")) ->  | BQ40: =IF($C40="","",IFERROR(VLOOKUP(C40,Defaults!$T$17:$AE$18,12,FALSE),"")) -> 
C41: Folex | E41: oz | J41: 0.58 | K41: =IF(C41="","",ROUND(IF(E41=AE41,AF41,IF(AE41=$AC$2,AF41*VLOOKUP(E41,$AA$2:$AB$4,2,FALSE),IF(AE41=$AF$2,AF41*VLOOKUP(E41,$AD$2:$AE$3,2,FALSE),IF(AE41=$AI$2,AF41/VLOOKUP(E41,$AG$2:$AH$2,2,FALSE),IF(AE41=$AL$2,AF41*VLOOKUP(E41,$AJ$2:$AK$2,2,FALSE),IF(AE41=$AO$2,AF41/VLOOKUP(E41,$AM$2:$AN$2,2,FALSE),IF(AE41=$AR$2,AF41*VLOOKUP(E41,$AP$2:$AQ$3,2,FALSE)))))))),2)) -> 0.58 | L41: 14 | M41: 14 | N41: 8.12 | Q41: =IF(L41>0,ABS(V41-L41),"") -> 3.0912 | U41: =J41 -> 0.58 | V41: =IF(AG41=0,0,AG41) -> 10.9088 | W41: 6.327104 | X41: -1.792896 | Z41: =IF($Z$2=Defaults!$M$5,Cotton!B41,IF($Z$2=Defaults!$M$6,Corn!B41,IF($Z$2=Defaults!$M$7,Sorghum!B41,IF($Z$2=Defaults!$M$8,Soybean!B41,IF($Z$2=Defaults!$M$9,Rice!B41,IF($Z$2=Defaults!$M$10,Peanut!B41,IF($Z$2=Defaults!$M$11,Wheat!B41,IF($Z$2=Defaults!$M$12,Pasture!B41,"")))))))) -> Folex | AA41: =IF(C41="","",HLOOKUP($Z$2,$AZ$31:$BG$43,11,FALSE)) -> oz | AB41: =IF(C41="","",HLOOKUP($Z$2,$BJ$31:$BQ$43,11,FALSE)) -> 14 | AC41: 0 | AE41: =IF(C41="","",IF($Z$2=Defaults!$M$5,VLOOKUP(C41,Defaults!$T$38:$AE$41,2,FALSE),IF(OR($Z$2=Defaults!$M$7,$Z$2=Defaults!$M$11)=TRUE,VLOOKUP(C41,Defaults!$T$3:$AE$13,2,FALSE),IF($Z$2=Defaults!$M$10,VLOOKUP(C41,Defaults!$T$33:$AE$34,2,FALSE),IF($Z$2=Defaults!$M$12,VLOOKUP(C41,Defaults!$T$3:$U$13,2,FALSE),""))))) -> oz | AF41: =IF(C41="","",IF($Z$2=Defaults!$M$5,ROUND(VLOOKUP(C41,Defaults!$T$38:$AE$41,3,FALSE),2),IF(OR($Z$2=Defaults!$M$7,$Z$2=Defaults!$M$11)=TRUE,ROUND(VLOOKUP(C41,Defaults!$T$3:$AE$13,3,FALSE),2),IF($Z$2=Defaults!$M$10,ROUND(VLOOKUP(C41,Defaults!$T$33:$AE$34,3,FALSE),2),IF($Z$2=Defaults!$M$12,ROUND(VLOOKUP(C41,Defaults!$T$17:$AE$18,3,FALSE),2),""))))) -> 0.58 | AG41: =IFERROR(IF(LEFT($C$39,6)="Custom",L41,L41*(1-VLOOKUP($C$39,Implements!$A$159:$D$166,4,FALSE))),"") -> 10.9088 | AM41: =N41 -> 8.12 | AO41: =N41 -> 8.12 | AU41: =W41 -> 6.327104 | AW41: =W41 -> 6.327104 | AY41: Folex | AZ41: =IF($C41="","",VLOOKUP(C41,Defaults!$T$38:$X$41,4,FALSE)) -> oz | BB41: =IF($C41="","",VLOOKUP(C41,Defaults!$T$3:$X$13,4,FALSE)) ->  | BE41: =IF($C41="","",VLOOKUP(C41,Defaults!$T$33:$X$34,4,FALSE)) ->  | BF41: =IF($C41="","",VLOOKUP(C41,Defaults!$T$3:$X$13,4,FALSE)) ->  | BI41: Folex | BJ41: =IF($C41="","",IFERROR(VLOOKUP(C41,Defaults!$T$38:$AE$41,5,FALSE),"")) -> 14 | BL41: =IF($C41="","",IFERROR(VLOOKUP(C41,Defaults!$T$3:$AE$13,7,FALSE),"")) ->  | BO41: =IF($C41="","",IFERROR(VLOOKUP(C41,Defaults!$T$33:$AE$34,10,FALSE),"")) ->  | BP41: =IF($C41="","",IFERROR(VLOOKUP(C41,Defaults!$T$3:$AE$13,11,FALSE),"")) ->  | BQ41: =IF($C41="","",IFERROR(VLOOKUP(C41,Defaults!$T$17:$AE$18,12,FALSE),"")) -> 
C42: Prep | E42: oz | J42: 0.21 | K42: =IF(C42="","",ROUND(IF(E42=AE42,AF42,IF(AE42=$AC$2,AF42*VLOOKUP(E42,$AA$2:$AB$4,2,FALSE),IF(AE42=$AF$2,AF42*VLOOKUP(E42,$AD$2:$AE$3,2,FALSE),IF(AE42=$AI$2,AF42/VLOOKUP(E42,$AG$2:$AH$2,2,FALSE),IF(AE42=$AL$2,AF42*VLOOKUP(E42,$AJ$2:$AK$2,2,FALSE),IF(AE42=$AO$2,AF42/VLOOKUP(E42,$AM$2:$AN$2,2,FALSE),IF(AE42=$AR$2,AF42*VLOOKUP(E42,$AP$2:$AQ$3,2,FALSE)))))))),2)) -> 0.21 | L42: 38 | M42: 38 | N42: 7.98 | Q42: =IF(L42>0,ABS(V42-L42),"") -> 8.3904 | U42: =J42 -> 0.21 | V42: =IF(AG42=0,0,AG42) -> 29.6096 | W42: 6.218016 | X42: -1.761984 | Z42: =IF($Z$2=Defaults!$M$5,Cotton!B42,IF($Z$2=Defaults!$M$6,Corn!B42,IF($Z$2=Defaults!$M$7,Sorghum!B42,IF($Z$2=Defaults!$M$8,Soybean!B42,IF($Z$2=Defaults!$M$9,Rice!B42,IF($Z$2=Defaults!$M$10,Peanut!B42,IF($Z$2=Defaults!$M$11,Wheat!B42,IF($Z$2=Defaults!$M$12,Pasture!B42,"")))))))) -> Prep | AA42: =IF(C42="","",HLOOKUP($Z$2,$AZ$31:$BG$43,12,FALSE)) -> oz | AB42: =IF(C42="","",HLOOKUP($Z$2,$BJ$31:$BQ$43,12,FALSE)) -> 38 | AC42: 0 | AE42: =IF(C42="","",IF($Z$2=Defaults!$M$5,VLOOKUP(C42,Defaults!$T$38:$AE$41,2,FALSE),IF(OR($Z$2=Defaults!$M$7,$Z$2=Defaults!$M$11)=TRUE,VLOOKUP(C42,Defaults!$T$3:$AE$13,2,FALSE),IF($Z$2=Defaults!$M$10,VLOOKUP(C42,Defaults!$T$33:$AE$34,2,FALSE),IF($Z$2=Defaults!$M$12,VLOOKUP(C42,Defaults!$T$3:$U$13,2,FALSE),""))))) -> oz | AF42: =IF(C42="","",IF($Z$2=Defaults!$M$5,ROUND(VLOOKUP(C42,Defaults!$T$38:$AE$41,3,FALSE),2),IF(OR($Z$2=Defaults!$M$7,$Z$2=Defaults!$M$11)=TRUE,ROUND(VLOOKUP(C42,Defaults!$T$3:$AE$13,3,FALSE),2),IF($Z$2=Defaults!$M$10,ROUND(VLOOKUP(C42,Defaults!$T$33:$AE$34,3,FALSE),2),IF($Z$2=Defaults!$M$12,ROUND(VLOOKUP(C42,Defaults!$T$17:$AE$18,3,FALSE),2),""))))) -> 0.21 | AG42: =IFERROR(IF(LEFT($C$39,6)="Custom",L42,L42*(1-VLOOKUP($C$39,Implements!$A$159:$D$166,4,FALSE))),"") -> 29.6096 | AM42: =N42 -> 7.98 | AO42: =N42 -> 7.98 | AU42: =W42 -> 6.218016 | AW42: =W42 -> 6.218016 | AY42: Prep | AZ42: =IF($C42="","",VLOOKUP(C42,Defaults!$T$38:$X$41,4,FALSE)) -> oz | BB42: =IF($C42="","",VLOOKUP(C42,Defaults!$T$3:$X$13,4,FALSE)) ->  | BE42: =IF($C42="","",VLOOKUP(C42,Defaults!$T$33:$X$34,4,FALSE)) ->  | BF42: =IF($C42="","",VLOOKUP(C42,Defaults!$T$3:$X$13,4,FALSE)) ->  | BI42: Prep | BJ42: =IF($C42="","",IFERROR(VLOOKUP(C42,Defaults!$T$38:$AE$41,5,FALSE),"")) -> 38 | BL42: =IF($C42="","",IFERROR(VLOOKUP(C42,Defaults!$T$3:$AE$13,7,FALSE),"")) ->  | BO42: =IF($C42="","",IFERROR(VLOOKUP(C42,Defaults!$T$33:$AE$34,10,FALSE),"")) ->  | BP42: =IF($C42="","",IFERROR(VLOOKUP(C42,Defaults!$T$3:$AE$13,11,FALSE),"")) ->  | BQ42: =IF($C42="","",IFERROR(VLOOKUP(C42,Defaults!$T$17:$AE$18,12,FALSE),"")) -> 
K43: =IF(C43="","",ROUND(IF(E43=AE43,AF43,IF(AE43=$AC$2,AF43*VLOOKUP(E43,$AA$2:$AB$4,2,FALSE),IF(AE43=$AF$2,AF43*VLOOKUP(E43,$AD$2:$AE$3,2,FALSE),IF(AE43=$AI$2,AF43/VLOOKUP(E43,$AG$2:$AH$2,2,FALSE),IF(AE43=$AL$2,AF43*VLOOKUP(E43,$AJ$2:$AK$2,2,FALSE),IF(AE43=$AO$2,AF43/VLOOKUP(E43,$AM$2:$AN$2,2,FALSE),IF(AE43=$AR$2,AF43*VLOOKUP(E43,$AP$2:$AQ$3,2,FALSE)))))))),2)) ->  | N43: 0 | Q43: =IF(L43>0,ABS(V43-L43),"") ->  | U43: =J43 -> 0 | V43: =IF(AG43=0,0,AG43) -> 0 | Z43: =IF($Z$2=Defaults!$M$5,Cotton!B43,IF($Z$2=Defaults!$M$6,Corn!B43,IF($Z$2=Defaults!$M$7,Sorghum!B43,IF($Z$2=Defaults!$M$8,Soybean!B43,IF($Z$2=Defaults!$M$9,Rice!B43,IF($Z$2=Defaults!$M$10,Peanut!B43,IF($Z$2=Defaults!$M$11,Wheat!B43,IF($Z$2=Defaults!$M$12,Pasture!B43,"")))))))) ->  | AA43: =IF(C43="","",HLOOKUP($Z$2,$AZ$31:$BG$43,13,FALSE)) ->  | AB43: =IF(C43="","",HLOOKUP($Z$2,$BJ$31:$BQ$43,13,FALSE)) ->  | AC43: 1 | AE43: =IF(C43="","",IF($Z$2=Defaults!$M$5,VLOOKUP(C43,Defaults!$T$38:$AE$41,2,FALSE),IF(OR($Z$2=Defaults!$M$7,$Z$2=Defaults!$M$11)=TRUE,VLOOKUP(C43,Defaults!$T$3:$AE$13,2,FALSE),IF($Z$2=Defaults!$M$10,VLOOKUP(C43,Defaults!$T$33:$AE$34,2,FALSE),IF($Z$2=Defaults!$M$12,VLOOKUP(C43,Defaults!$T$3:$U$13,2,FALSE),""))))) ->  | AF43: =IF(C43="","",IF($Z$2=Defaults!$M$5,ROUND(VLOOKUP(C43,Defaults!$T$38:$AE$41,3,FALSE),2),IF(OR($Z$2=Defaults!$M$7,$Z$2=Defaults!$M$11)=TRUE,ROUND(VLOOKUP(C43,Defaults!$T$3:$AE$13,3,FALSE),2),IF($Z$2=Defaults!$M$10,ROUND(VLOOKUP(C43,Defaults!$T$33:$AE$34,3,FALSE),2),IF($Z$2=Defaults!$M$12,ROUND(VLOOKUP(C43,Defaults!$T$17:$AE$18,3,FALSE),2),""))))) ->  | AG43: =IFERROR(IF(LEFT($C$39,6)="Custom",L43,L43*(1-VLOOKUP($C$39,Implements!$A$159:$D$166,4,FALSE))),"") -> 0 | AM43: =N43 -> 0 | AO43: =N43 -> 0 | AU43: =W43 ->  | AW43: =W43 ->  | AZ43: =IF($C43="","",VLOOKUP(C43,Defaults!$T$38:$X$41,4,FALSE)) ->  | BB43: =IF($C43="","",VLOOKUP(C43,Defaults!$T$3:$X$13,4,FALSE)) ->  | BE43: =IF($C43="","",VLOOKUP(C43,Defaults!$T$33:$X$34,4,FALSE)) ->  | BF43: =IF($C43="","",VLOOKUP(C43,Defaults!$T$3:$X$13,4,FALSE)) ->  | BJ43: =IF($C43="","",IFERROR(VLOOKUP(C43,Defaults!$T$38:$AE$41,5,FALSE),"")) ->  | BL43: =IF($C43="","",IFERROR(VLOOKUP(C43,Defaults!$T$3:$AE$13,7,FALSE),"")) ->  | BO43: =IF($C43="","",IFERROR(VLOOKUP(C43,Defaults!$T$33:$AE$34,10,FALSE),"")) ->  | BP43: =IF($C43="","",IFERROR(VLOOKUP(C43,Defaults!$T$3:$AE$13,11,FALSE),"")) ->  | BQ43: =IF($C43="","",IFERROR(VLOOKUP(C43,Defaults!$T$17:$AE$18,12,FALSE),"")) -> 
C44: Over-the-Top Sprayer 1 | F44: =IF($L44=0,0,IF($C44=Defaults!$I$27,Implements!$AK$185,IF($C44=Defaults!$I$28,Implements!$AK$186,0))) -> 61.45454545 | G44: =IF($L44=0,0,IFERROR(VLOOKUP($C44,Implements!$X$181:$AN$188,15,FALSE),0)) -> 8.36 | H44: =IF($L44=0,0,IFERROR(VLOOKUP($C44,Implements!$X$181:$AN$188,16,FALSE),0)) -> 45.04666667 | I44: =IF($L44=0,0,IFERROR(VLOOKUP($C44,Implements!$X$181:$AN$188,17,FALSE),0)) -> 137.6458252 | J44: =IF(OR(C44="",L44="",L44=0)=TRUE,"",IF(OR(C44=Defaults!$I$25,C44=Defaults!$I$26)=TRUE,VLOOKUP(C44,Defaults!$I$24:$K$27,3,FALSE),IF(C44=Defaults!$I$59,VLOOKUP(C44,Defaults!$I$58:$K$61,3,FALSE),IF(C44=Defaults!$I$64,VLOOKUP(C44,Defaults!$I$63:$K$66,3,FALSE),ROUND(1/F44*(1*Inputs!$AA$13+($AI$7-1)*Inputs!$AA$15),2)+ROUND(G44*Inputs!$V$13/F44,2)+ROUND(H44/F44,2)+ROUND(I44/F44,2))))) -> 3.5 | K44: =IF(OR(C44="",L44="",L44=0)=TRUE,"",IF(OR(C44=Defaults!$I$25,C44=Defaults!$I$26)=TRUE,VLOOKUP(C44,Defaults!$I$24:$K$27,3,FALSE),IF(C44=Defaults!$I$59,VLOOKUP(C44,Defaults!$I$58:$K$61,3,FALSE),IF(C44=Defaults!$I$64,VLOOKUP(C44,Defaults!$I$63:$K$66,3,FALSE),ROUND(1/F44*(1*Inputs!$AA$13+($AI$7-1)*Inputs!$AA$15),2)+ROUND(G44*Inputs!$V$13/F44,2)+ROUND(H44/F44,2)+ROUND(I44/F44,2))))) -> 3.5 | L44: 4 | M44: 4 | N44: =IF(C44="",0,IF(L44=0,0,IF(L44="","",J44*L44))) -> 14 | Q44: =IF($V44=0,0,IF($C44=Defaults!$I$27,Implements!$AK$174,IF($C44=Defaults!$I$28,Implements!$AK$175,0))) -> 62.81269091 | R44: =IF($V44=0,0,IFERROR(VLOOKUP($C44,Implements!$X$170:$AN$177,15,FALSE),0)) -> 8.36 | S44: =IF($V44=0,0,IFERROR(VLOOKUP($C44,Implements!$X$170:$AN$177,16,FALSE),0)) -> 45.04666667 | T44: =IF($V44=0,0,IFERROR(VLOOKUP($C44,Implements!$X$170:$AN$177,17,FALSE),0)) -> 138.7259237 | U44: =IF(OR(C44="",V44="",V44=0)=TRUE,"",IF(LEFT(C44,6)="Custom",J44,ROUND(1/Q44*(1*Inputs!$AA$13+($AI$7-1)*Inputs!$AA$15),2)+ROUND(R44*Inputs!$V$13/Q44,2)+ROUND(S44/Q44,2)+ROUND(T44/Q44,2))) -> 3.44 | V44: =+L44 -> 4 | W44: =IF(C44="","",IF(V44=0,0,IF(V44="","",U44*V44))) -> 13.76 | X44: -0.24 | Z44: =IF($Z$2=Defaults!$M$5,Cotton!B44,IF($Z$2=Defaults!$M$6,Corn!B44,IF($Z$2=Defaults!$M$7,Sorghum!B44,IF($Z$2=Defaults!$M$8,Soybean!B44,IF($Z$2=Defaults!$M$9,Rice!B44,IF($Z$2=Defaults!$M$10,Peanut!B44,IF($Z$2=Defaults!$M$11,Wheat!B44,IF($Z$2=Defaults!$M$12,Pasture!B44,"")))))))) -> Over-the-Top Sprayer 1 | AB44: =IF(C44="","",IF($Z$2=Defaults!$M$5,VLOOKUP(C44,Defaults!$I$58:$K$61,2,FALSE),IF($Z$2=Defaults!$M$8,VLOOKUP(C44,Defaults!$I$63:$K$66,2,FALSE),""))) -> 4 | AC44: 0 | AD44: =IF(AB44="","",AB44*2) -> 8 | AG44: =+AB44 -> 4 | AH44: =N44 -> 14 | AI44: =ROUND(IFERROR(1/F44*(1*Inputs!$AA$13+($AI$7-1)*Inputs!$AA$15),0),2)*L44 -> 1.16 | AJ44: =ROUND(IFERROR(1/F44*G44*Inputs!$V$13,0),2)*L44 -> 0.96 | AK44: =ROUND(IFERROR(1/F44*H44,0),2)*L44 -> 2.92 | AL44: =ROUND(IFERROR(1/F44*I44,0),2)*L44 -> 8.96 | AP44: =W44 -> 13.76 | AQ44: =ROUND(IFERROR(1/Q44*(1*Inputs!$AA$13+($AI$7-1)*Inputs!$AA$15),0),2)*V44 -> 1.12 | AR44: =ROUND(IFERROR(1/Q44*R44*Inputs!$V$13,0),2)*V44 -> 0.92 | AS44: =ROUND(IFERROR(1/Q44*S44,0),2)*V44 -> 2.88 | AT44: =ROUND(IFERROR(1/Q44*T44,0),2)*V44 -> 8.84 | AY44: Other: Growth Regulator or Fungicide
C45: Mepex | E45: oz | J45: 0.13 | K45: =IF(C45="","",ROUND(IF(E45=AE45,AF45,IF(AE45=$AC$2,AF45*VLOOKUP(E45,$AA$2:$AB$4,2,FALSE),IF(AE45=$AF$2,AF45*VLOOKUP(E45,$AD$2:$AE$3,2,FALSE),IF(AE45=$AI$2,AF45/VLOOKUP(E45,$AG$2:$AH$2,2,FALSE),IF(AE45=$AL$2,AF45*VLOOKUP(E45,$AJ$2:$AK$2,2,FALSE),IF(AE45=$AO$2,AF45/VLOOKUP(E45,$AM$2:$AN$2,2,FALSE),IF(AE45=$AR$2,AF45*VLOOKUP(E45,$AP$2:$AQ$3,2,FALSE)))))))),2)) -> 0.13 | L45: 44 | M45: 44 | N45: 5.72 | Q45: =IF(L45>0,ABS(V45-L45),"") -> 9.7152 | U45: =J45 -> 0.13 | V45: =IF(AG45=0,0,AG45) -> 34.2848 | W45: 4.457024 | X45: -1.262976 | Z45: =IF($Z$2=Defaults!$M$5,Cotton!B45,IF($Z$2=Defaults!$M$6,Corn!B45,IF($Z$2=Defaults!$M$7,Sorghum!B45,IF($Z$2=Defaults!$M$8,Soybean!B45,IF($Z$2=Defaults!$M$9,Rice!B45,IF($Z$2=Defaults!$M$10,Peanut!B45,IF($Z$2=Defaults!$M$11,Wheat!B45,IF($Z$2=Defaults!$M$12,Pasture!B45,"")))))))) -> Mepex | AA45: =IF(C45="","",HLOOKUP($Z$2,$AZ$31:$BG$46,15,FALSE)) -> oz | AB45: =IF(C45="","",HLOOKUP($Z$2,$BJ$31:$BQ$46,15,FALSE)) -> 44 | AC45: 0 | AE45: =IF(C45="","",IF($Z$2=Defaults!$M$5,VLOOKUP(C45,Defaults!$T$45:$AE$46,2,FALSE),IF($Z$2=Defaults!$M$8,VLOOKUP(C45,Defaults!$T$50:$AE$51,2,FALSE),""))) -> oz | AF45: =IF(C45="","",IF($Z$2=Defaults!$M$5,ROUND(VLOOKUP(C45,Defaults!$T$45:$AE$46,3,FALSE),2),IF($Z$2=Defaults!$M$8,ROUND(VLOOKUP(C45,Defaults!$T$50:$AE$51,3,FALSE),2),""))) -> 0.13 | AG45: =IFERROR(IF(LEFT($C$44,6)="Custom",L45,L45*(1-VLOOKUP($C$44,Implements!$A$159:$D$166,4,FALSE))),"") -> 34.2848 | AM45: =N45 -> 5.72 | AO45: =N45 -> 5.72 | AU45: =W45 -> 4.457024 | AW45: =W45 -> 4.457024 | AY45: Mepex | AZ45: =IF($C45="","",VLOOKUP(C45,Defaults!$T$45:$AE$46,4,FALSE)) -> oz | BC45: =IF($C45="","",VLOOKUP(C45,Defaults!$T$50:$AE$51,4,FALSE)) ->  | BI45: Mepex | BJ45: =IF($C45="","",IFERROR(VLOOKUP(C45,Defaults!$T$45:$AE$46,5,FALSE),"")) -> 44 | BM45: =IF($C45="","",IFERROR(VLOOKUP(C45,Defaults!$T$50:$AE$51,8,FALSE),"")) -> 
K46: =IF(C46="","",ROUND(IF(E46=AE46,AF46,IF(AE46=$AC$2,AF46*VLOOKUP(E46,$AA$2:$AB$4,2,FALSE),IF(AE46=$AF$2,AF46*VLOOKUP(E46,$AD$2:$AE$3,2,FALSE),IF(AE46=$AI$2,AF46/VLOOKUP(E46,$AG$2:$AH$2,2,FALSE),IF(AE46=$AL$2,AF46*VLOOKUP(E46,$AJ$2:$AK$2,2,FALSE),IF(AE46=$AO$2,AF46/VLOOKUP(E46,$AM$2:$AN$2,2,FALSE),IF(AE46=$AR$2,AF46*VLOOKUP(E46,$AP$2:$AQ$3,2,FALSE)))))))),2)) ->  | N46: 0 | Q46: =IF(L46>0,ABS(V46-L46),"") ->  | U46: =J46 -> 0 | V46: =IF(AG46=0,0,AG46) -> 0 | Z46: =IF($Z$2=Defaults!$M$5,Cotton!B46,IF($Z$2=Defaults!$M$6,Corn!B46,IF($Z$2=Defaults!$M$7,Sorghum!B46,IF($Z$2=Defaults!$M$8,Soybean!B46,IF($Z$2=Defaults!$M$9,Rice!B46,IF($Z$2=Defaults!$M$10,Peanut!B46,IF($Z$2=Defaults!$M$11,Wheat!B46,IF($Z$2=Defaults!$M$12,Pasture!B46,"")))))))) ->  | AA46: =IF(C46="","",HLOOKUP($Z$2,$AZ$31:$BG$46,16,FALSE)) ->  | AB46: =IF(C46="","",HLOOKUP($Z$2,$BJ$31:$BQ$46,16,FALSE)) ->  | AC46: 0 | AE46: =IF(C46="","",IF($Z$2=Defaults!$M$5,VLOOKUP(C46,Defaults!$T$45:$AE$46,2,FALSE),IF($Z$2=Defaults!$M$8,VLOOKUP(C46,Defaults!$T$50:$AE$51,2,FALSE),""))) ->  | AF46: =IF(C46="","",IF($Z$2=Defaults!$M$5,ROUND(VLOOKUP(C46,Defaults!$T$45:$AE$46,3,FALSE),2),IF($Z$2=Defaults!$M$8,ROUND(VLOOKUP(C46,Defaults!$T$50:$AE$51,3,FALSE),2),""))) ->  | AG46: =IFERROR(IF(LEFT($C$44,6)="Custom",L46,L46*(1-VLOOKUP($C$44,Implements!$A$159:$D$166,4,FALSE))),"") -> 0 | AM46: =N46 -> 0 | AO46: =N46 -> 0 | AU46: =W46 ->  | AW46: =W46 ->  | AZ46: =IF($C46="","",VLOOKUP(C46,Defaults!$T$45:$AE$46,4,FALSE)) ->  | BC46: =IF($C46="","",VLOOKUP(C46,Defaults!$T$50:$AE$51,4,FALSE)) ->  | BJ46: =IF($C46="","",IFERROR(VLOOKUP(C46,Defaults!$T$45:$AE$46,5,FALSE),"")) ->  | BM46: =IF($C46="","",IFERROR(VLOOKUP(C46,Defaults!$T$50:$AE$51,8,FALSE),"")) -> 
C47: Preemergence Weed Control | D47: =IF($Z$2=Defaults!$M$5,Cotton!D47,IF($Z$2=Defaults!$M$6,Corn!D47,IF($Z$2=Defaults!$M$7,Sorghum!D47,IF($Z$2=Defaults!$M$8,Soybean!D47,IF($Z$2=Defaults!$M$9,Rice!D47,IF($Z$2=Defaults!$M$10,Peanut!D47,IF($Z$2=Defaults!$M$11,Wheat!D47,IF($Z$2=Defaults!$M$12,Pasture!D48,FALSE)))))))) -> At Planting | Z47: =IF($Z$2=Defaults!$M$5,Cotton!B47,IF($Z$2=Defaults!$M$6,Corn!B47,IF($Z$2=Defaults!$M$7,Sorghum!B47,IF($Z$2=Defaults!$M$8,Soybean!B47,IF($Z$2=Defaults!$M$9,Rice!B47,IF($Z$2=Defaults!$M$10,Peanut!B47,IF($Z$2=Defaults!$M$11,Wheat!B47,IF($Z$2=Defaults!$M$12,Pasture!B47,"")))))))) -> Preemergence Weed Control | AY47: PRE | BI47: PRE | BS47: PRE
C48: Over-the-Top Sprayer 1 | F48: =IF(L48=0,0,IF(C48=Defaults!$I$27,Implements!$AK$185,IF(C48=Defaults!$I$28,Implements!$AK$186,0))) -> 61.45454545 | G48: =IF($L48=0,0,IFERROR(VLOOKUP($C48,Implements!$X$181:$AN$188,15,FALSE),0)) -> 8.36 | H48: =IF($L48=0,0,IFERROR(VLOOKUP($C48,Implements!$X$181:$AN$188,16,FALSE),0)) -> 45.04666667 | I48: =IF($L48=0,0,IFERROR(VLOOKUP($C48,Implements!$X$181:$AN$188,17,FALSE),0)) -> 137.6458252 | J48: =IF(OR(C48="",L48="",L48=0)=TRUE,"",IF(OR(C48=Defaults!$I$25,C48=Defaults!$I$26)=TRUE,VLOOKUP(C48,Defaults!$I$24:$K$27,3,FALSE),ROUND(1/F48*(1*Inputs!$AA$13+($AI$7-1)*Inputs!$AA$15),2)+ROUND(G48*Inputs!$V$13/F48,2)+ROUND(H48/F48,2)+ROUND(I48/F48,2))) -> 3.5 | K48: =IF(OR(C48="",L48="",L48=0)=TRUE,"",IF(OR(C48=Defaults!$I$25,C48=Defaults!$I$26)=TRUE,VLOOKUP(C48,Defaults!$I$24:$K$27,3,FALSE),ROUND(1/F48*(1*Inputs!$AA$13+($AI$7-1)*Inputs!$AA$15),2)+ROUND(G48*Inputs!$V$13/F48,2)+ROUND(H48/F48,2)+ROUND(I48/F48,2))) -> 3.5 | L48: 1 | M48: =AB48 -> 1 | N48: =IF(C48="",0,IF(L48=0,0,IF(L48="","",J48*L48))) -> 3.5 | Q48: =IF(V48=0,0,IF(C48=Defaults!$I$27,Implements!$AK$174,IF(C48=Defaults!$I$28,Implements!$AK$175,0))) -> 62.81269091 | R48: =IF($V48=0,0,IFERROR(VLOOKUP($C48,Implements!$X$170:$AN$177,15,FALSE),0)) -> 8.36 | S48: =IF($V48=0,0,IFERROR(VLOOKUP($C48,Implements!$X$170:$AN$177,16,FALSE),0)) -> 45.04666667 | T48: =IF($V48=0,0,IFERROR(VLOOKUP($C48,Implements!$X$170:$AN$177,17,FALSE),0)) -> 138.7259237 | U48: =IF(OR(C48="",V48="",V48=0)=TRUE,"",IF(LEFT(C48,6)="Custom",J48,ROUND(1/Q48*(1*Inputs!$AA$13+($AI$7-1)*Inputs!$AA$15),2)+ROUND(R48*Inputs!$V$13/Q48,2)+ROUND(S48/Q48,2)+ROUND(T48/Q48,2))) -> 3.44 | V48: =+L48 -> 1 | W48: =IF(C48="","",IF(V48=0,0,IF(V48="","",U48*V48))) -> 3.44 | X48: =IF(C48="","",W48-N48) -> -0.06 | Z48: =IF($Z$2=Defaults!$M$5,Cotton!B48,IF($Z$2=Defaults!$M$6,Corn!B48,IF($Z$2=Defaults!$M$7,Sorghum!B48,IF($Z$2=Defaults!$M$8,Soybean!B48,IF($Z$2=Defaults!$M$9,Rice!B48,IF($Z$2=Defaults!$M$10,Peanut!B48,IF($Z$2=Defaults!$M$11,Wheat!B48,IF($Z$2=Defaults!$M$12,Pasture!B48,"")))))))) -> Over-the-Top Sprayer 1 | AB48: =IF(C48="","",IF($Z$2=Defaults!$M$12,VLOOKUP(C48,Defaults!$I$35:$J$37,2,FALSE),VLOOKUP(C48,Defaults!$I$24:$J$28,2,FALSE))) -> 1 | AC48: 0 | AD48: =IF(AB48="","",AB48*2) -> 2 | AG48: =+AB48 -> 1 | AH48: =N48 -> 3.5 | AI48: =ROUND(IFERROR(1/F48*(1*Inputs!$AA$13+($AI$7-1)*Inputs!$AA$15),0),2)*L48 -> 0.29 | AJ48: =ROUND(IFERROR(1/F48*G48*Inputs!$V$13,0),2)*L48 -> 0.24 | AK48: =ROUND(IFERROR(1/F48*H48,0),2)*L48 -> 0.73 | AL48: =ROUND(IFERROR(1/F48*I48,0),2)*L48 -> 2.24 | AP48: =W48 -> 3.44 | AQ48: =ROUND(IFERROR(1/Q48*(1*Inputs!$AA$13+($AI$7-1)*Inputs!$AA$15),0),2)*V48 -> 0.28 | AR48: =ROUND(IFERROR(1/Q48*R48*Inputs!$V$13,0),2)*V48 -> 0.23 | AS48: =ROUND(IFERROR(1/Q48*S48,0),2)*V48 -> 0.72 | AT48: =ROUND(IFERROR(1/Q48*T48,0),2)*V48 -> 2.21 | AZ48: =AZ11 -> Cotton | BA48: Corn | BB48: Sorghum | BC48: Soybean | BD48: Rice | BE48: Peanut | BF48: Wheat | BG48: Est. Pasture or Hay | BJ48: =BJ11 -> Cotton | BK48: Corn | BL48: Sorghum | BM48: Soybean | BN48: Rice | BO48: Peanut | BP48: Wheat | BQ48: Est. Pasture or Hay | BT48: =BT11 -> Cotton | BU48: Corn | BV48: Sorghum | BW48: Soybean | BX48: Rice | BY48: Peanut | BZ48: Wheat | CA48: Est. Pasture or Hay
C49: Cotoran | E49: pt | J49: 5.25 | K49: =IF(C49="","",ROUND(IF(E49=AE49,AF49,IF(AE49=$AC$2,AF49*VLOOKUP(E49,$AA$2:$AB$4,2,FALSE),IF(AE49=$AF$2,AF49*VLOOKUP(E49,$AD$2:$AE$3,2,FALSE),IF(AE49=$AI$2,AF49/VLOOKUP(E49,$AG$2:$AH$2,2,FALSE),IF(AE49=$AL$2,AF49*VLOOKUP(E49,$AJ$2:$AK$2,2,FALSE),IF(AE49=$AO$2,AF49/VLOOKUP(E49,$AM$2:$AN$2,2,FALSE),IF(AE49=$AR$2,AF49*VLOOKUP(E49,$AP$2:$AQ$3,2,FALSE)))))))),2)) -> 5.25 | L49: 1.6 | M49: 1.6 | N49: 8.4 | Q49: =IF(L49>0,ABS(V49-L49),"") -> 0.35328 | U49: =J49 -> 5.25 | V49: =IF(AG49=0,0,AG49) -> 1.24672 | W49: 6.54528 | X49: -1.85472 | Z49: =IF($Z$2=Defaults!$M$5,Cotton!B49,IF($Z$2=Defaults!$M$6,Corn!B49,IF($Z$2=Defaults!$M$7,Sorghum!B49,IF($Z$2=Defaults!$M$8,Soybean!B49,IF($Z$2=Defaults!$M$9,Rice!B49,IF($Z$2=Defaults!$M$10,Peanut!B49,IF($Z$2=Defaults!$M$11,Wheat!B49,IF($Z$2=Defaults!$M$12,Pasture!B49,"")))))))) -> Cotoran | AA49: =IF(C49="","",HLOOKUP($Z$2,$AZ$48:$BG$53,2,FALSE)) -> pt | AB49: =IF(C49="","",HLOOKUP($Z$2,$BJ$48:$BQ$53,2,FALSE)) -> 1.6 | AC49: 0 | AD49: =IF(C49="","",HLOOKUP($Z$2,$BT$48:$CA$53,2,FALSE)) -> 2 | AE49: =IF(C49="","",VLOOKUP(C49,Defaults!$AH:$AJ,2,FALSE)) -> gal | AF49: =IF(C49="","",ROUND(VLOOKUP(C49,Defaults!$AH:$AJ,3,FALSE),2)) -> 42 | AG49: =IFERROR(IF(LEFT($C$48,6)="Custom",L49,L49*(1-VLOOKUP($C$48,Implements!$A$159:$D$166,4,FALSE))),"") -> 1.24672 | AM49: =N49 -> 8.4 | AO49: =N49 -> 8.4 | AU49: =W49 -> 6.54528 | AW49: =W49 -> 6.54528 | AY49: =IF($C49="","",$C49) -> Cotoran | AZ49: =IF($C49="","",VLOOKUP($C49,Defaults!$AL$37:$AQ$63,4,FALSE)) -> pt | BA49: =IF($C49="","",VLOOKUP($C49,Defaults!$AS$37:$AX$63,4,FALSE)) ->  | BB49: =IF($C49="","",VLOOKUP($C49,Defaults!$AZ$37:$BE$63,4,FALSE)) ->  | BC49: =IF($C49="","",VLOOKUP($C49,Defaults!$BG$37:$BL$63,4,FALSE)) ->  | BD49: =IF($C49="","",VLOOKUP($C49,Defaults!$BN$37:$BS$63,4,FALSE)) ->  | BE49: =IF($C49="","",VLOOKUP($C49,Defaults!$BU$37:$BZ$63,4,FALSE)) ->  | BF49: =IF($C49="","",VLOOKUP($C49,Defaults!$CB$37:$CG$63,4,FALSE)) ->  | BG49: =IF($C49="","",VLOOKUP($C49,Defaults!$CI:$CN,4,FALSE)) ->  | BI49: =IF($C49="","",$C49) -> Cotoran | BJ49: =IF($C49="","",IFERROR(VLOOKUP($C49,Defaults!$AL$37:$AQ$63,5,FALSE),"")) -> 1.6 | BK49: =IF($C49="","",IFERROR(VLOOKUP($C49,Defaults!$AS$37:$AX$63,5,FALSE),"")) ->  | BL49: =IF($C49="","",IFERROR(VLOOKUP($C49,Defaults!$AZ$37:$BE$63,5,FALSE),"")) ->  | BM49: =IF($C49="","",IFERROR(VLOOKUP($C49,Defaults!$BG$37:$BL$63,5,FALSE),"")) ->  | BN49: =IF($C49="","",IFERROR(VLOOKUP($C49,Defaults!$BN$37:$BS$63,5,FALSE),"")) ->  | BO49: =IF($C49="","",IFERROR(VLOOKUP($C49,Defaults!$BU$37:$BZ$63,5,FALSE),"")) ->  | BP49: =IF($C49="","",IFERROR(VLOOKUP($C49,Defaults!$CB$37:$CG$63,5,FALSE),"")) ->  | BQ49: =IF($C49="","",IFERROR(VLOOKUP($C49,Defaults!$CI:$CN,5,FALSE),"")) ->  | BS49: =IF($C49="","",$C49) -> Cotoran | BT49: =IF($C49="","",IFERROR(VLOOKUP($C49,Defaults!$AL$37:$AQ$63,6,FALSE),"")) -> 2 | BU49: =IF($C49="","",IFERROR(VLOOKUP($C49,Defaults!$AS$37:$AX$63,6,FALSE),"")) ->  | BV49: =IF($C49="","",IFERROR(VLOOKUP($C49,Defaults!$AZ$37:$BE$63,6,FALSE),"")) ->  | BW49: =IF($C49="","",IFERROR(VLOOKUP($C49,Defaults!$BG$37:$BL$63,6,FALSE),"")) ->  | BX49: =IF($C49="","",IFERROR(VLOOKUP($C49,Defaults!$BN$37:$BS$63,6,FALSE),"")) ->  | BY49: =IF($C49="","",IFERROR(VLOOKUP($C49,Defaults!$BU$37:$BZ$63,6,FALSE),"")) ->  | BZ49: =IF($C49="","",IFERROR(VLOOKUP($C49,Defaults!$CB$37:$CG$63,6,FALSE),"")) ->  | CA49: =IF($C49="","",IFERROR(VLOOKUP($C49,Defaults!$CI:$CN,6,FALSE),"")) -> 
C50: Gramoxone | E50: pt | J50: 4.13 | K50: =IF(C50="","",ROUND(IF(E50=AE50,AF50,IF(AE50=$AC$2,AF50*VLOOKUP(E50,$AA$2:$AB$4,2,FALSE),IF(AE50=$AF$2,AF50*VLOOKUP(E50,$AD$2:$AE$3,2,FALSE),IF(AE50=$AI$2,AF50/VLOOKUP(E50,$AG$2:$AH$2,2,FALSE),IF(AE50=$AL$2,AF50*VLOOKUP(E50,$AJ$2:$AK$2,2,FALSE),IF(AE50=$AO$2,AF50/VLOOKUP(E50,$AM$2:$AN$2,2,FALSE),IF(AE50=$AR$2,AF50*VLOOKUP(E50,$AP$2:$AQ$3,2,FALSE)))))))),2)) -> 4.13 | L50: 2 | M50: 2 | N50: 8.26 | Q50: =IF(L50>0,ABS(V50-L50),"") -> 0.4416 | U50: =J50 -> 4.13 | V50: =IF(AG50=0,0,AG50) -> 1.5584 | W50: 6.436192 | X50: -1.823808 | Z50: =IF($Z$2=Defaults!$M$5,Cotton!B50,IF($Z$2=Defaults!$M$6,Corn!B50,IF($Z$2=Defaults!$M$7,Sorghum!B50,IF($Z$2=Defaults!$M$8,Soybean!B50,IF($Z$2=Defaults!$M$9,Rice!B50,IF($Z$2=Defaults!$M$10,Peanut!B50,IF($Z$2=Defaults!$M$11,Wheat!B50,IF($Z$2=Defaults!$M$12,Pasture!B50,"")))))))) -> Gramoxone | AA50: =IF(C50="","",HLOOKUP($Z$2,$AZ$48:$BG$53,3,FALSE)) -> pt | AB50: =IF(C50="","",HLOOKUP($Z$2,$BJ$48:$BQ$53,3,FALSE)) -> 2 | AC50: 0 | AD50: =IF(C50="","",HLOOKUP($Z$2,$BT$48:$CA$53,3,FALSE)) -> 2 | AE50: =IF(C50="","",VLOOKUP(C50,Defaults!$AH:$AJ,2,FALSE)) -> gal | AF50: =IF(C50="","",ROUND(VLOOKUP(C50,Defaults!$AH:$AJ,3,FALSE),2)) -> 33 | AG50: =IFERROR(IF(LEFT($C$48,6)="Custom",L50,L50*(1-VLOOKUP($C$48,Implements!$A$159:$D$166,4,FALSE))),"") -> 1.5584 | AM50: =N50 -> 8.26 | AO50: =N50 -> 8.26 | AU50: =W50 -> 6.436192 | AW50: =W50 -> 6.436192 | AY50: =IF($C50="","",$C50) -> Gramoxone | AZ50: =IF($C50="","",VLOOKUP($C50,Defaults!$AL$37:$AQ$63,4,FALSE)) -> pt | BA50: =IF($C50="","",VLOOKUP($C50,Defaults!$AS$37:$AX$63,4,FALSE)) ->  | BB50: =IF($C50="","",VLOOKUP($C50,Defaults!$AZ$37:$BE$63,4,FALSE)) ->  | BC50: =IF($C50="","",VLOOKUP($C50,Defaults!$BG$37:$BL$63,4,FALSE)) -> oz | BD50: =IF($C50="","",VLOOKUP($C50,Defaults!$BN$37:$BS$63,4,FALSE)) ->  | BE50: =IF($C50="","",VLOOKUP($C50,Defaults!$BU$37:$BZ$63,4,FALSE)) ->  | BF50: =IF($C50="","",VLOOKUP($C50,Defaults!$CB$37:$CG$63,4,FALSE)) ->  | BG50: =IF($C50="","",VLOOKUP($C50,Defaults!$CI:$CN,4,FALSE)) -> pt | BI50: =IF($C50="","",$C50) -> Gramoxone | BJ50: =IF($C50="","",IFERROR(VLOOKUP($C50,Defaults!$AL$37:$AQ$63,5,FALSE),"")) -> 2 | BK50: =IF($C50="","",IFERROR(VLOOKUP($C50,Defaults!$AS$37:$AX$63,5,FALSE),"")) ->  | BL50: =IF($C50="","",IFERROR(VLOOKUP($C50,Defaults!$AZ$37:$BE$63,5,FALSE),"")) ->  | BM50: =IF($C50="","",IFERROR(VLOOKUP($C50,Defaults!$BG$37:$BL$63,5,FALSE),"")) -> 40 | BN50: =IF($C50="","",IFERROR(VLOOKUP($C50,Defaults!$BN$37:$BS$63,5,FALSE),"")) ->  | BO50: =IF($C50="","",IFERROR(VLOOKUP($C50,Defaults!$BU$37:$BZ$63,5,FALSE),"")) ->  | BP50: =IF($C50="","",IFERROR(VLOOKUP($C50,Defaults!$CB$37:$CG$63,5,FALSE),"")) ->  | BQ50: =IF($C50="","",IFERROR(VLOOKUP($C50,Defaults!$CI:$CN,5,FALSE),"")) -> 0.7 | BS50: =IF($C50="","",$C50) -> Gramoxone | BT50: =IF($C50="","",IFERROR(VLOOKUP($C50,Defaults!$AL$37:$AQ$63,6,FALSE),"")) -> 2 | BU50: =IF($C50="","",IFERROR(VLOOKUP($C50,Defaults!$AS$37:$AX$63,6,FALSE),"")) ->  | BV50: =IF($C50="","",IFERROR(VLOOKUP($C50,Defaults!$AZ$37:$BE$63,6,FALSE),"")) ->  | BW50: =IF($C50="","",IFERROR(VLOOKUP($C50,Defaults!$BG$37:$BL$63,6,FALSE),"")) -> 40 | BX50: =IF($C50="","",IFERROR(VLOOKUP($C50,Defaults!$BN$37:$BS$63,6,FALSE),"")) ->  | BY50: =IF($C50="","",IFERROR(VLOOKUP($C50,Defaults!$BU$37:$BZ$63,6,FALSE),"")) ->  | BZ50: =IF($C50="","",IFERROR(VLOOKUP($C50,Defaults!$CB$37:$CG$63,6,FALSE),"")) ->  | CA50: =IF($C50="","",IFERROR(VLOOKUP($C50,Defaults!$CI:$CN,6,FALSE),"")) -> 1.3
C51: Liberty | E51: oz | J51: 0.42 | K51: =IF(C51="","",ROUND(IF(E51=AE51,AF51,IF(AE51=$AC$2,AF51*VLOOKUP(E51,$AA$2:$AB$4,2,FALSE),IF(AE51=$AF$2,AF51*VLOOKUP(E51,$AD$2:$AE$3,2,FALSE),IF(AE51=$AI$2,AF51/VLOOKUP(E51,$AG$2:$AH$2,2,FALSE),IF(AE51=$AL$2,AF51*VLOOKUP(E51,$AJ$2:$AK$2,2,FALSE),IF(AE51=$AO$2,AF51/VLOOKUP(E51,$AM$2:$AN$2,2,FALSE),IF(AE51=$AR$2,AF51*VLOOKUP(E51,$AP$2:$AQ$3,2,FALSE)))))))),2)) -> 0.42 | L51: 32 | M51: 32 | N51: 13.44 | Q51: =IF(L51>0,ABS(V51-L51),"") -> 7.0656 | U51: =J51 -> 0.42 | V51: =IF(AG51=0,0,AG51) -> 24.9344 | W51: 10.472448 | X51: -2.967552 | Z51: =IF($Z$2=Defaults!$M$5,Cotton!B51,IF($Z$2=Defaults!$M$6,Corn!B51,IF($Z$2=Defaults!$M$7,Sorghum!B51,IF($Z$2=Defaults!$M$8,Soybean!B51,IF($Z$2=Defaults!$M$9,Rice!B51,IF($Z$2=Defaults!$M$10,Peanut!B51,IF($Z$2=Defaults!$M$11,Wheat!B51,IF($Z$2=Defaults!$M$12,Pasture!B51,"")))))))) -> Liberty | AA51: =IF(C51="","",HLOOKUP($Z$2,$AZ$48:$BG$53,4,FALSE)) -> oz | AB51: =IF(C51="","",HLOOKUP($Z$2,$BJ$48:$BQ$53,4,FALSE)) -> 32 | AC51: 0 | AD51: =IF(C51="","",HLOOKUP($Z$2,$BT$48:$CA$53,4,FALSE)) -> 32 | AE51: =IF(C51="","",VLOOKUP(C51,Defaults!$AH:$AJ,2,FALSE)) -> gal | AF51: =IF(C51="","",ROUND(VLOOKUP(C51,Defaults!$AH:$AJ,3,FALSE),2)) -> 53.9 | AG51: =IFERROR(IF(LEFT($C$48,6)="Custom",L51,L51*(1-VLOOKUP($C$48,Implements!$A$159:$D$166,4,FALSE))),"") -> 24.9344 | AM51: =N51 -> 13.44 | AO51: =N51 -> 13.44 | AU51: =W51 -> 10.472448 | AW51: =W51 -> 10.472448 | AY51: =IF($C51="","",$C51) -> Liberty | AZ51: =IF($C51="","",VLOOKUP($C51,Defaults!$AL$37:$AQ$63,4,FALSE)) -> oz | BA51: =IF($C51="","",VLOOKUP($C51,Defaults!$AS$37:$AX$63,4,FALSE)) ->  | BB51: =IF($C51="","",VLOOKUP($C51,Defaults!$AZ$37:$BE$63,4,FALSE)) ->  | BC51: =IF($C51="","",VLOOKUP($C51,Defaults!$BG$37:$BL$63,4,FALSE)) -> oz | BD51: =IF($C51="","",VLOOKUP($C51,Defaults!$BN$37:$BS$63,4,FALSE)) ->  | BE51: =IF($C51="","",VLOOKUP($C51,Defaults!$BU$37:$BZ$63,4,FALSE)) ->  | BF51: =IF($C51="","",VLOOKUP($C51,Defaults!$CB$37:$CG$63,4,FALSE)) ->  | BG51: =IF($C51="","",VLOOKUP($C51,Defaults!$CI:$CN,4,FALSE)) ->  | BI51: =IF($C51="","",$C51) -> Liberty | BJ51: =IF($C51="","",IFERROR(VLOOKUP($C51,Defaults!$AL$37:$AQ$63,5,FALSE),"")) -> 32 | BK51: =IF($C51="","",IFERROR(VLOOKUP($C51,Defaults!$AS$37:$AX$63,5,FALSE),"")) ->  | BL51: =IF($C51="","",IFERROR(VLOOKUP($C51,Defaults!$AZ$37:$BE$63,5,FALSE),"")) ->  | BM51: =IF($C51="","",IFERROR(VLOOKUP($C51,Defaults!$BG$37:$BL$63,5,FALSE),"")) -> 29 | BN51: =IF($C51="","",IFERROR(VLOOKUP($C51,Defaults!$BN$37:$BS$63,5,FALSE),"")) ->  | BO51: =IF($C51="","",IFERROR(VLOOKUP($C51,Defaults!$BU$37:$BZ$63,5,FALSE),"")) ->  | BP51: =IF($C51="","",IFERROR(VLOOKUP($C51,Defaults!$CB$37:$CG$63,5,FALSE),"")) ->  | BQ51: =IF($C51="","",IFERROR(VLOOKUP($C51,Defaults!$CI:$CN,5,FALSE),"")) ->  | BS51: =IF($C51="","",$C51) -> Liberty | BT51: =IF($C51="","",IFERROR(VLOOKUP($C51,Defaults!$AL$37:$AQ$63,6,FALSE),"")) -> 32 | BU51: =IF($C51="","",IFERROR(VLOOKUP($C51,Defaults!$AS$37:$AX$63,6,FALSE),"")) ->  | BV51: =IF($C51="","",IFERROR(VLOOKUP($C51,Defaults!$AZ$37:$BE$63,6,FALSE),"")) ->  | BW51: =IF($C51="","",IFERROR(VLOOKUP($C51,Defaults!$BG$37:$BL$63,6,FALSE),"")) -> 29 | BX51: =IF($C51="","",IFERROR(VLOOKUP($C51,Defaults!$BN$37:$BS$63,6,FALSE),"")) ->  | BY51: =IF($C51="","",IFERROR(VLOOKUP($C51,Defaults!$BU$37:$BZ$63,6,FALSE),"")) ->  | BZ51: =IF($C51="","",IFERROR(VLOOKUP($C51,Defaults!$CB$37:$CG$63,6,FALSE),"")) ->  | CA51: =IF($C51="","",IFERROR(VLOOKUP($C51,Defaults!$CI:$CN,6,FALSE),"")) -> 
C52: Dual Magnum | E52: pt | J52: 13.63 | K52: =IF(C52="","",ROUND(IF(E52=AE52,AF52,IF(AE52=$AC$2,AF52*VLOOKUP(E52,$AA$2:$AB$4,2,FALSE),IF(AE52=$AF$2,AF52*VLOOKUP(E52,$AD$2:$AE$3,2,FALSE),IF(AE52=$AI$2,AF52/VLOOKUP(E52,$AG$2:$AH$2,2,FALSE),IF(AE52=$AL$2,AF52*VLOOKUP(E52,$AJ$2:$AK$2,2,FALSE),IF(AE52=$AO$2,AF52/VLOOKUP(E52,$AM$2:$AN$2,2,FALSE),IF(AE52=$AR$2,AF52*VLOOKUP(E52,$AP$2:$AQ$3,2,FALSE)))))))),2)) -> 13.63 | L52: 1 | M52: 1 | N52: 13.63 | Q52: =IF(L52>0,ABS(V52-L52),"") -> 0.2208 | U52: =J52 -> 13.63 | V52: =IF(AG52=0,0,AG52) -> 0.7792 | W52: 10.620496 | X52: -3.009504 | Z52: =IF($Z$2=Defaults!$M$5,Cotton!B52,IF($Z$2=Defaults!$M$6,Corn!B52,IF($Z$2=Defaults!$M$7,Sorghum!B52,IF($Z$2=Defaults!$M$8,Soybean!B52,IF($Z$2=Defaults!$M$9,Rice!B52,IF($Z$2=Defaults!$M$10,Peanut!B52,IF($Z$2=Defaults!$M$11,Wheat!B52,IF($Z$2=Defaults!$M$12,Pasture!B52,"")))))))) -> Dual Magnum | AA52: =IF(C52="","",HLOOKUP($Z$2,$AZ$48:$BG$53,5,FALSE)) -> pt | AB52: =IF(C52="","",HLOOKUP($Z$2,$BJ$48:$BQ$53,5,FALSE)) -> 1 | AC52: 0 | AD52: =IF(C52="","",HLOOKUP($Z$2,$BT$48:$CA$53,5,FALSE)) -> 1 | AE52: =IF(C52="","",VLOOKUP(C52,Defaults!$AH:$AJ,2,FALSE)) -> gal | AF52: =IF(C52="","",ROUND(VLOOKUP(C52,Defaults!$AH:$AJ,3,FALSE),2)) -> 109 | AG52: =IFERROR(IF(LEFT($C$48,6)="Custom",L52,L52*(1-VLOOKUP($C$48,Implements!$A$159:$D$166,4,FALSE))),"") -> 0.7792 | AM52: =N52 -> 13.63 | AO52: =N52 -> 13.63 | AU52: =W52 -> 10.620496 | AW52: =W52 -> 10.620496 | AY52: =IF($C52="","",$C52) -> Dual Magnum | AZ52: =IF($C52="","",VLOOKUP($C52,Defaults!$AL$37:$AQ$63,4,FALSE)) -> pt | BA52: =IF($C52="","",VLOOKUP($C52,Defaults!$AS$37:$AX$63,4,FALSE)) ->  | BB52: =IF($C52="","",VLOOKUP($C52,Defaults!$AZ$37:$BE$63,4,FALSE)) -> pt | BC52: =IF($C52="","",VLOOKUP($C52,Defaults!$BG$37:$BL$63,4,FALSE)) -> pt | BD52: =IF($C52="","",VLOOKUP($C52,Defaults!$BN$37:$BS$63,4,FALSE)) ->  | BE52: =IF($C52="","",VLOOKUP($C52,Defaults!$BU$37:$BZ$63,4,FALSE)) -> pt | BF52: =IF($C52="","",VLOOKUP($C52,Defaults!$CB$37:$CG$63,4,FALSE)) ->  | BG52: =IF($C52="","",VLOOKUP($C52,Defaults!$CI:$CN,4,FALSE)) ->  | BI52: =IF($C52="","",$C52) -> Dual Magnum | BJ52: =IF($C52="","",IFERROR(VLOOKUP($C52,Defaults!$AL$37:$AQ$63,5,FALSE),"")) -> 1 | BK52: =IF($C52="","",IFERROR(VLOOKUP($C52,Defaults!$AS$37:$AX$63,5,FALSE),"")) ->  | BL52: =IF($C52="","",IFERROR(VLOOKUP($C52,Defaults!$AZ$37:$BE$63,5,FALSE),"")) -> 1 | BM52: =IF($C52="","",IFERROR(VLOOKUP($C52,Defaults!$BG$37:$BL$63,5,FALSE),"")) -> 1 | BN52: =IF($C52="","",IFERROR(VLOOKUP($C52,Defaults!$BN$37:$BS$63,5,FALSE),"")) ->  | BO52: =IF($C52="","",IFERROR(VLOOKUP($C52,Defaults!$BU$37:$BZ$63,5,FALSE),"")) -> 1 | BP52: =IF($C52="","",IFERROR(VLOOKUP($C52,Defaults!$CB$37:$CG$63,5,FALSE),"")) ->  | BQ52: =IF($C52="","",IFERROR(VLOOKUP($C52,Defaults!$CI:$CN,5,FALSE),"")) ->  | BS52: =IF($C52="","",$C52) -> Dual Magnum | BT52: =IF($C52="","",IFERROR(VLOOKUP($C52,Defaults!$AL$37:$AQ$63,6,FALSE),"")) -> 1 | BU52: =IF($C52="","",IFERROR(VLOOKUP($C52,Defaults!$AS$37:$AX$63,6,FALSE),"")) ->  | BV52: =IF($C52="","",IFERROR(VLOOKUP($C52,Defaults!$AZ$37:$BE$63,6,FALSE),"")) -> 2 | BW52: =IF($C52="","",IFERROR(VLOOKUP($C52,Defaults!$BG$37:$BL$63,6,FALSE),"")) -> 1.67 | BX52: =IF($C52="","",IFERROR(VLOOKUP($C52,Defaults!$BN$37:$BS$63,6,FALSE),"")) ->  | BY52: =IF($C52="","",IFERROR(VLOOKUP($C52,Defaults!$BU$37:$BZ$63,6,FALSE),"")) -> 2 | BZ52: =IF($C52="","",IFERROR(VLOOKUP($C52,Defaults!$CB$37:$CG$63,6,FALSE),"")) ->  | CA52: =IF($C52="","",IFERROR(VLOOKUP($C52,Defaults!$CI:$CN,6,FALSE),"")) -> 
K53: =IF(C53="","",ROUND(IF(E53=AE53,AF53,IF(AE53=$AC$2,AF53*VLOOKUP(E53,$AA$2:$AB$4,2,FALSE),IF(AE53=$AF$2,AF53*VLOOKUP(E53,$AD$2:$AE$3,2,FALSE),IF(AE53=$AI$2,AF53/VLOOKUP(E53,$AG$2:$AH$2,2,FALSE),IF(AE53=$AL$2,AF53*VLOOKUP(E53,$AJ$2:$AK$2,2,FALSE),IF(AE53=$AO$2,AF53/VLOOKUP(E53,$AM$2:$AN$2,2,FALSE),IF(AE53=$AR$2,AF53*VLOOKUP(E53,$AP$2:$AQ$3,2,FALSE)))))))),2)) ->  | N53: 0 | Q53: =IF(L53>0,ABS(V53-L53),"") ->  | U53: =J53 -> 0 | V53: =IF(AG53=0,0,AG53) -> 0 | Z53: =IF($Z$2=Defaults!$M$5,Cotton!B53,IF($Z$2=Defaults!$M$6,Corn!B53,IF($Z$2=Defaults!$M$7,Sorghum!B53,IF($Z$2=Defaults!$M$8,Soybean!B53,IF($Z$2=Defaults!$M$9,Rice!B53,IF($Z$2=Defaults!$M$10,Peanut!B53,IF($Z$2=Defaults!$M$11,Wheat!B53,IF($Z$2=Defaults!$M$12,Pasture!B53,"")))))))) ->  | AA53: =IF(C53="","",HLOOKUP($Z$2,$AZ$48:$BG$53,6,FALSE)) ->  | AB53: =IF(C53="","",HLOOKUP($Z$2,$BJ$48:$BQ$53,6,FALSE)) ->  | AC53: 0 | AD53: =IF(C53="","",HLOOKUP($Z$2,$BT$48:$CA$53,6,FALSE)) ->  | AE53: =IF(C53="","",VLOOKUP(C53,Defaults!$AH:$AJ,2,FALSE)) ->  | AF53: =IF(C53="","",ROUND(VLOOKUP(C53,Defaults!$AH:$AJ,3,FALSE),2)) ->  | AG53: =IFERROR(IF(LEFT($C$48,6)="Custom",L53,L53*(1-VLOOKUP($C$48,Implements!$A$159:$D$166,4,FALSE))),"") -> 0 | AM53: =N53 -> 0 | AO53: =N53 -> 0 | AU53: =W53 ->  | AW53: =W53 ->  | AY53: =IF($C53="","",$C53) ->  | AZ53: =IF($C53="","",VLOOKUP($C53,Defaults!$AL$37:$AQ$63,4,FALSE)) ->  | BA53: =IF($C53="","",VLOOKUP($C53,Defaults!$AS$37:$AX$63,4,FALSE)) ->  | BB53: =IF($C53="","",VLOOKUP($C53,Defaults!$AZ$37:$BE$63,4,FALSE)) ->  | BC53: =IF($C53="","",VLOOKUP($C53,Defaults!$BG$37:$BL$63,4,FALSE)) ->  | BD53: =IF($C53="","",VLOOKUP($C53,Defaults!$BN$37:$BS$63,4,FALSE)) ->  | BE53: =IF($C53="","",VLOOKUP($C53,Defaults!$BU$37:$BZ$63,4,FALSE)) ->  | BF53: =IF($C53="","",VLOOKUP($C53,Defaults!$CB$37:$CG$63,4,FALSE)) ->  | BG53: =IF($C53="","",VLOOKUP($C53,Defaults!$CI:$CN,4,FALSE)) ->  | BI53: =IF($C53="","",$C53) ->  | BJ53: =IF($C53="","",IFERROR(VLOOKUP($C53,Defaults!$AL$37:$AQ$63,5,FALSE),"")) ->  | BK53: =IF($C53="","",IFERROR(VLOOKUP($C53,Defaults!$AS$37:$AX$63,5,FALSE),"")) ->  | BL53: =IF($C53="","",IFERROR(VLOOKUP($C53,Defaults!$AZ$37:$BE$63,5,FALSE),"")) ->  | BM53: =IF($C53="","",IFERROR(VLOOKUP($C53,Defaults!$BG$37:$BL$63,5,FALSE),"")) ->  | BN53: =IF($C53="","",IFERROR(VLOOKUP($C53,Defaults!$BN$37:$BS$63,5,FALSE),"")) ->  | BO53: =IF($C53="","",IFERROR(VLOOKUP($C53,Defaults!$BU$37:$BZ$63,5,FALSE),"")) ->  | BP53: =IF($C53="","",IFERROR(VLOOKUP($C53,Defaults!$CB$37:$CG$63,5,FALSE),"")) ->  | BQ53: =IF($C53="","",IFERROR(VLOOKUP($C53,Defaults!$CI:$CN,5,FALSE),"")) ->  | BS53: =IF($C53="","",$C53) ->  | BT53: =IF($C53="","",IFERROR(VLOOKUP($C53,Defaults!$AL$37:$AQ$63,6,FALSE),"")) ->  | BU53: =IF($C53="","",IFERROR(VLOOKUP($C53,Defaults!$AS$37:$AX$63,6,FALSE),"")) ->  | BV53: =IF($C53="","",IFERROR(VLOOKUP($C53,Defaults!$AZ$37:$BE$63,6,FALSE),"")) ->  | BW53: =IF($C53="","",IFERROR(VLOOKUP($C53,Defaults!$BG$37:$BL$63,6,FALSE),"")) ->  | BX53: =IF($C53="","",IFERROR(VLOOKUP($C53,Defaults!$BN$37:$BS$63,6,FALSE),"")) ->  | BY53: =IF($C53="","",IFERROR(VLOOKUP($C53,Defaults!$BU$37:$BZ$63,6,FALSE),"")) ->  | BZ53: =IF($C53="","",IFERROR(VLOOKUP($C53,Defaults!$CB$37:$CG$63,6,FALSE),"")) ->  | CA53: =IF($C53="","",IFERROR(VLOOKUP($C53,Defaults!$CI:$CN,6,FALSE),"")) -> 
C54: Postemergence Weed Control | D54: =IF($Z$2=Defaults!$M$5,Cotton!D54,IF($Z$2=Defaults!$M$6,Corn!D54,IF($Z$2=Defaults!$M$7,Sorghum!D54,IF($Z$2=Defaults!$M$8,Soybean!D54,IF($Z$2=Defaults!$M$9,Rice!D54,IF($Z$2=Defaults!$M$10,Peanut!D54,IF($Z$2=Defaults!$M$11,Wheat!D54,IF($Z$2=Defaults!$M$12,Pasture!D54,FALSE)))))))) -> Post Planting | Z54: =IF($Z$2=Defaults!$M$5,Cotton!B54,IF($Z$2=Defaults!$M$6,Corn!B54,IF($Z$2=Defaults!$M$7,Sorghum!B54,IF($Z$2=Defaults!$M$8,Soybean!B54,IF($Z$2=Defaults!$M$9,Rice!B54,IF($Z$2=Defaults!$M$10,Peanut!B54,IF($Z$2=Defaults!$M$11,Wheat!B54,IF($Z$2=Defaults!$M$12,Pasture!B54,"")))))))) -> Postemergence Weed Control | AY54: POST | BI54: POST | BS54: POST
C55: Over-the-Top Sprayer 1 | F55: =IF(L55=0,0,IF(C55=Defaults!$I$27,Implements!$AK$185,IF(C55=Defaults!$I$28,Implements!$AK$186,0))) -> 61.45454545 | G55: =IF($L55=0,0,IFERROR(VLOOKUP($C55,Implements!$X$181:$AN$188,15,FALSE),0)) -> 8.36 | H55: =IF($L55=0,0,IFERROR(VLOOKUP($C55,Implements!$X$181:$AN$188,16,FALSE),0)) -> 45.04666667 | I55: =IF($L55=0,0,IFERROR(VLOOKUP($C55,Implements!$X$181:$AN$188,17,FALSE),0)) -> 137.6458252 | J55: =IF(OR(C55="",L55="",L55=0)=TRUE,"",IF(OR(C55=Defaults!$I$25,C55=Defaults!$I$26)=TRUE,VLOOKUP(C55,Defaults!$I$24:$K$27,3,FALSE),ROUND(1/F55*(1*Inputs!$AA$13+($AI$7-1)*Inputs!$AA$15),2)+ROUND(G55*Inputs!$V$13/F55,2)+ROUND(H55/F55,2)+ROUND(I55/F55,2))) -> 3.5 | K55: =IF(OR(C55="",L55="",L55=0)=TRUE,"",IF(OR(C55=Defaults!$I$25,C55=Defaults!$I$26)=TRUE,VLOOKUP(C55,Defaults!$I$24:$K$27,3,FALSE),ROUND(1/F55*(1*Inputs!$AA$13+($AI$7-1)*Inputs!$AA$15),2)+ROUND(G55*Inputs!$V$13/F55,2)+ROUND(H55/F55,2)+ROUND(I55/F55,2))) -> 3.5 | L55: 1 | M55: =AB55 -> 1 | N55: =IF(C55="",0,IF(L55=0,0,IF(L55="","",J55*L55))) -> 3.5 | Q55: =IF(V55=0,0,IF(C55=Defaults!$I$27,Implements!$AK$174,IF(C55=Defaults!$I$28,Implements!$AK$175,0))) -> 62.81269091 | R55: =IF($V55=0,0,IFERROR(VLOOKUP($C55,Implements!$X$170:$AN$177,15,FALSE),0)) -> 8.36 | S55: =IF($V55=0,0,IFERROR(VLOOKUP($C55,Implements!$X$170:$AN$177,16,FALSE),0)) -> 45.04666667 | T55: =IF($V55=0,0,IFERROR(VLOOKUP($C55,Implements!$X$170:$AN$177,17,FALSE),0)) -> 138.7259237 | U55: =IF(OR(C55="",V55="",V55=0)=TRUE,"",IF(LEFT(C55,6)="Custom",J55,ROUND(1/Q55*(1*Inputs!$AA$13+($AI$7-1)*Inputs!$AA$15),2)+ROUND(R55*Inputs!$V$13/Q55,2)+ROUND(S55/Q55,2)+ROUND(T55/Q55,2))) -> 3.44 | V55: =+L55 -> 1 | W55: =IF(C55="","",IF(V55=0,0,IF(V55="","",U55*V55))) -> 3.44 | X55: =IF(C55="","",W55-N55) -> -0.06 | Z55: =IF($Z$2=Defaults!$M$5,Cotton!B55,IF($Z$2=Defaults!$M$6,Corn!B55,IF($Z$2=Defaults!$M$7,Sorghum!B55,IF($Z$2=Defaults!$M$8,Soybean!B55,IF($Z$2=Defaults!$M$9,Rice!B55,IF($Z$2=Defaults!$M$10,Peanut!B55,IF($Z$2=Defaults!$M$11,Wheat!B55,IF($Z$2=Defaults!$M$12,Pasture!B55,"")))))))) -> Over-the-Top Sprayer 1 | AB55: =IF(C55="","",IF($Z$2=Defaults!$M$12,VLOOKUP(C55,Defaults!$I$35:$J$37,2,FALSE),VLOOKUP(C55,Defaults!$I$24:$J$28,2,FALSE))) -> 1 | AC55: 0 | AD55: =IF(AB55="","",AB55*2) -> 2 | AG55: =+AB55 -> 1 | AH55: =N55 -> 3.5 | AI55: =ROUND(IFERROR(1/F55*(1*Inputs!$AA$13+($AI$7-1)*Inputs!$AA$15),0),2)*L55 -> 0.29 | AJ55: =ROUND(IFERROR(1/F55*G55*Inputs!$V$13,0),2)*L55 -> 0.24 | AK55: =ROUND(IFERROR(1/F55*H55,0),2)*L55 -> 0.73 | AL55: =ROUND(IFERROR(1/F55*I55,0),2)*L55 -> 2.24 | AP55: =W55 -> 3.44 | AQ55: =ROUND(IFERROR(1/Q55*(1*Inputs!$AA$13+($AI$7-1)*Inputs!$AA$15),0),2)*V55 -> 0.28 | AR55: =ROUND(IFERROR(1/Q55*R55*Inputs!$V$13,0),2)*V55 -> 0.23 | AS55: =ROUND(IFERROR(1/Q55*S55,0),2)*V55 -> 0.72 | AT55: =ROUND(IFERROR(1/Q55*T55,0),2)*V55 -> 2.21 | AZ55: =AZ11 -> Cotton | BA55: Corn | BB55: Sorghum | BC55: Soybean | BD55: Rice | BE55: Peanut | BF55: Wheat | BG55: Est. Pasture or Hay | BJ55: =BJ11 -> Cotton | BK55: Corn | BL55: Sorghum | BM55: Soybean | BN55: Rice | BO55: Peanut | BP55: Wheat | BQ55: Est. Pasture or Hay | BT55: =BT11 -> Cotton | BU55: Corn | BV55: Sorghum | BW55: Soybean | BX55: Rice | BY55: Peanut | BZ55: Wheat | CA55: Est. Pasture or Hay
C56: Glyphosate | E56: pt | J56: 4.75 | K56: =IF(C56="","",ROUND(IF(E56=AE56,AF56,IF(AE56=$AC$2,AF56*VLOOKUP(E56,$AA$2:$AB$4,2,FALSE),IF(AE56=$AF$2,AF56*VLOOKUP(E56,$AD$2:$AE$3,2,FALSE),IF(AE56=$AI$2,AF56/VLOOKUP(E56,$AG$2:$AH$2,2,FALSE),IF(AE56=$AL$2,AF56*VLOOKUP(E56,$AJ$2:$AK$2,2,FALSE),IF(AE56=$AO$2,AF56/VLOOKUP(E56,$AM$2:$AN$2,2,FALSE),IF(AE56=$AR$2,AF56*VLOOKUP(E56,$AP$2:$AQ$3,2,FALSE)))))))),2)) -> 4.75 | L56: 2 | M56: =AB56 -> 2 | N56: =IF(C56="",0,IF(L56=0,0,IF(L56="","",J56*L56))) -> 9.5 | Q56: =IF(L56>0,ABS(V56-L56),"") -> 0.4416 | U56: =J56 -> 4.75 | V56: =IF(AG56=0,0,AG56) -> 1.5584 | W56: =IF(C56="","",IF(V56=0,0,IF(V56="","",U56*V56))) -> 7.4024 | X56: -2.0976 | Z56: =IF($Z$2=Defaults!$M$5,Cotton!B56,IF($Z$2=Defaults!$M$6,Corn!B56,IF($Z$2=Defaults!$M$7,Sorghum!B56,IF($Z$2=Defaults!$M$8,Soybean!B56,IF($Z$2=Defaults!$M$9,Rice!B56,IF($Z$2=Defaults!$M$10,Peanut!B56,IF($Z$2=Defaults!$M$11,Wheat!B56,IF($Z$2=Defaults!$M$12,Pasture!B56,"")))))))) -> Glyphosate | AA56: =IF(C56="","",HLOOKUP($Z$2,$AZ$55:$BG$59,2,FALSE)) -> pt | AB56: =IF(C56="","",HLOOKUP($Z$2,$BJ$55:$BQ$59,2,FALSE)) -> 2 | AC56: 0 | AD56: =IF(C56="","",HLOOKUP($Z$2,$BT$55:$CA$59,2,FALSE)) -> 2 | AE56: =IF(C56="","",VLOOKUP(C56,Defaults!$AH:$AJ,2,FALSE)) -> gal | AF56: =IF(C56="","",ROUND(VLOOKUP(C56,Defaults!$AH:$AJ,3,FALSE),2)) -> 38 | AG56: =IFERROR(IF(LEFT($C$55,6)="Custom",L56,L56*(1-VLOOKUP($C$55,Implements!$A$159:$D$166,4,FALSE))),"") -> 1.5584 | AM56: =N56 -> 9.5 | AO56: =N56 -> 9.5 | AU56: =W56 -> 7.4024 | AW56: =W56 -> 7.4024 | AY56: =IF($C56="","",$C56) -> Glyphosate | AZ56: =IF($C56="","",VLOOKUP($C56,Defaults!$AL$65:$AQ$82,4,FALSE)) -> pt | BA56: =IF($C56="","",VLOOKUP($C56,Defaults!$AS$65:$AX$96,4,FALSE)) -> pt | BB56: =IF($C56="","",VLOOKUP($C56,Defaults!$AZ$65:$BE$96,4,FALSE)) ->  | BC56: =IF($C56="","",VLOOKUP($C56,Defaults!$BG$65:$BL$96,4,FALSE)) -> oz | BD56: =IF($C56="","",VLOOKUP($C56,Defaults!$BN$65:$BS$96,4,FALSE)) ->  | BE56: =IF($C56="","",VLOOKUP($C56,Defaults!$BU$65:$BZ$96,4,FALSE)) ->  | BF56: =IF($C56="","",VLOOKUP($C56,Defaults!$CB$65:$CG$96,4,FALSE)) ->  | BG56: =IF($C56="","",VLOOKUP($C56,Defaults!$CI:$CN,4,FALSE)) -> oz | BI56: =IF($C56="","",$C56) -> Glyphosate | BJ56: =IF($C56="","",IFERROR(VLOOKUP($C56,Defaults!$AL$65:$AQ$82,5,FALSE),"")) -> 2 | BK56: =IF($C56="","",IFERROR(VLOOKUP($C56,Defaults!$AS$65:$AX$96,5,FALSE),"")) -> 2 | BL56: =IF($C56="","",IFERROR(VLOOKUP($C56,Defaults!$AZ$65:$BE$96,5,FALSE),"")) ->  | BM56: =IF($C56="","",IFERROR(VLOOKUP($C56,Defaults!$BG$65:$BL$96,5,FALSE),"")) -> 32 | BN56: =IF($C56="","",IFERROR(VLOOKUP($C56,Defaults!$BN$65:$BS$96,5,FALSE),"")) ->  | BO56: =IF($C56="","",IFERROR(VLOOKUP($C56,Defaults!$BU$65:$BZ$96,5,FALSE),"")) ->  | BP56: ="" ->  | BQ56: =IF($C56="","",IFERROR(VLOOKUP($C56,Defaults!$CI:$CN,5,FALSE),"")) -> 16 | BS56: =IF($C56="","",$C56) -> Glyphosate | BT56: =IF($C56="","",IFERROR(VLOOKUP($C56,Defaults!$AL$65:$AQ$82,6,FALSE),"")) -> 2 | BU56: =IF($C56="","",IFERROR(VLOOKUP($C56,Defaults!$AS$65:$AX$96,6,FALSE),"")) -> 2 | BV56: =IF($C56="","",IFERROR(VLOOKUP($C56,Defaults!$AZ$65:$BE$96,6,FALSE),"")) ->  | BW56: =IF($C56="","",IFERROR(VLOOKUP($C56,Defaults!$BG$65:$BL$96,6,FALSE),"")) -> 32 | BX56: =IF($C56="","",IFERROR(VLOOKUP($C56,Defaults!$BN$65:$BS$96,6,FALSE),"")) ->  | BY56: =IF($C56="","",IFERROR(VLOOKUP($C56,Defaults!$BU$65:$BZ$96,6,FALSE),"")) ->  | BZ56: ="" ->  | CA56: =IF($C56="","",IFERROR(VLOOKUP($C56,Defaults!$CI:$CN,6,FALSE),"")) -> 16
K57: =IF(C57="","",ROUND(IF(E57=AE57,AF57,IF(AE57=$AC$2,AF57*VLOOKUP(E57,$AA$2:$AB$4,2,FALSE),IF(AE57=$AF$2,AF57*VLOOKUP(E57,$AD$2:$AE$3,2,FALSE),IF(AE57=$AI$2,AF57/VLOOKUP(E57,$AG$2:$AH$2,2,FALSE),IF(AE57=$AL$2,AF57*VLOOKUP(E57,$AJ$2:$AK$2,2,FALSE),IF(AE57=$AO$2,AF57/VLOOKUP(E57,$AM$2:$AN$2,2,FALSE),IF(AE57=$AR$2,AF57*VLOOKUP(E57,$AP$2:$AQ$3,2,FALSE)))))))),2)) ->  | M57: =AB57 ->  | N57: =IF(C57="",0,IF(L57=0,0,IF(L57="","",J57*L57))) -> 0 | Q57: =IF(L57>0,ABS(V57-L57),"") ->  | U57: =J57 -> 0 | V57: =IF(AG57=0,0,AG57) -> 0 | W57: =IF(C57="","",IF(V57=0,0,IF(V57="","",U57*V57))) ->  | Z57: =IF($Z$2=Defaults!$M$5,Cotton!B57,IF($Z$2=Defaults!$M$6,Corn!B57,IF($Z$2=Defaults!$M$7,Sorghum!B57,IF($Z$2=Defaults!$M$8,Soybean!B57,IF($Z$2=Defaults!$M$9,Rice!B57,IF($Z$2=Defaults!$M$10,Peanut!B57,IF($Z$2=Defaults!$M$11,Wheat!B57,IF($Z$2=Defaults!$M$12,Pasture!B57,"")))))))) ->  | AA57: =IF(C57="","",HLOOKUP($Z$2,$AZ$55:$BG$59,3,FALSE)) ->  | AB57: =IF(C57="","",HLOOKUP($Z$2,$BJ$55:$BQ$59,3,FALSE)) ->  | AC57: 0 | AD57: =IF(C57="","",HLOOKUP($Z$2,$BT$55:$CA$59,3,FALSE)) ->  | AE57: =IF(C57="","",VLOOKUP(C57,Defaults!$AH:$AJ,2,FALSE)) ->  | AF57: =IF(C57="","",ROUND(VLOOKUP(C57,Defaults!$AH:$AJ,3,FALSE),2)) ->  | AG57: =IFERROR(IF(LEFT($C$55,6)="Custom",L57,L57*(1-VLOOKUP($C$55,Implements!$A$159:$D$166,4,FALSE))),"") -> 0 | AM57: =N57 -> 0 | AO57: =N57 -> 0 | AU57: =W57 ->  | AW57: =W57 ->  | AY57: =IF($C57="","",$C57) ->  | AZ57: =IF($C57="","",VLOOKUP($C57,Defaults!$AL$65:$AQ$82,4,FALSE)) ->  | BA57: =IF($C57="","",VLOOKUP($C57,Defaults!$AS$65:$AX$96,4,FALSE)) ->  | BB57: =IF($C57="","",VLOOKUP($C57,Defaults!$AZ$65:$BE$96,4,FALSE)) ->  | BC57: =IF($C57="","",VLOOKUP($C57,Defaults!$BG$65:$BL$96,4,FALSE)) ->  | BD57: =IF($C57="","",VLOOKUP($C57,Defaults!$BN$65:$BS$96,4,FALSE)) ->  | BE57: =IF($C57="","",VLOOKUP($C57,Defaults!$BU$65:$BZ$96,4,FALSE)) ->  | BF57: =IF($C57="","",VLOOKUP($C57,Defaults!$CB$65:$CG$96,4,FALSE)) ->  | BG57: =IF($C57="","",VLOOKUP($C57,Defaults!$CI:$CN,4,FALSE)) ->  | BI57: =IF($C57="","",$C57) ->  | BJ57: =IF($C57="","",IFERROR(VLOOKUP($C57,Defaults!$AL$65:$AQ$82,5,FALSE),"")) ->  | BK57: =IF($C57="","",IFERROR(VLOOKUP($C57,Defaults!$AS$65:$AX$96,5,FALSE),"")) ->  | BL57: =IF($C57="","",IFERROR(VLOOKUP($C57,Defaults!$AZ$65:$BE$96,5,FALSE),"")) ->  | BM57: =IF($C57="","",IFERROR(VLOOKUP($C57,Defaults!$BG$65:$BL$96,5,FALSE),"")) ->  | BN57: =IF($C57="","",IFERROR(VLOOKUP($C57,Defaults!$BN$65:$BS$96,5,FALSE),"")) ->  | BO57: =IF($C57="","",IFERROR(VLOOKUP($C57,Defaults!$BU$65:$BZ$96,5,FALSE),"")) ->  | BP57: ="" ->  | BQ57: =IF($C57="","",IFERROR(VLOOKUP($C57,Defaults!$CI:$CN,5,FALSE),"")) ->  | BS57: =IF($C57="","",$C57) ->  | BT57: =IF($C57="","",IFERROR(VLOOKUP($C57,Defaults!$AL$65:$AQ$82,6,FALSE),"")) ->  | BU57: =IF($C57="","",IFERROR(VLOOKUP($C57,Defaults!$AS$65:$AX$96,6,FALSE),"")) ->  | BV57: =IF($C57="","",IFERROR(VLOOKUP($C57,Defaults!$AZ$65:$BE$96,6,FALSE),"")) ->  | BW57: =IF($C57="","",IFERROR(VLOOKUP($C57,Defaults!$BG$65:$BL$96,6,FALSE),"")) ->  | BX57: =IF($C57="","",IFERROR(VLOOKUP($C57,Defaults!$BN$65:$BS$96,6,FALSE),"")) ->  | BY57: =IF($C57="","",IFERROR(VLOOKUP($C57,Defaults!$BU$65:$BZ$96,6,FALSE),"")) ->  | BZ57: ="" ->  | CA57: =IF($C57="","",IFERROR(VLOOKUP($C57,Defaults!$CI:$CN,6,FALSE),"")) -> 
K58: =IF(C58="","",ROUND(IF(E58=AE58,AF58,IF(AE58=$AC$2,AF58*VLOOKUP(E58,$AA$2:$AB$4,2,FALSE),IF(AE58=$AF$2,AF58*VLOOKUP(E58,$AD$2:$AE$3,2,FALSE),IF(AE58=$AI$2,AF58/VLOOKUP(E58,$AG$2:$AH$2,2,FALSE),IF(AE58=$AL$2,AF58*VLOOKUP(E58,$AJ$2:$AK$2,2,FALSE),IF(AE58=$AO$2,AF58/VLOOKUP(E58,$AM$2:$AN$2,2,FALSE),IF(AE58=$AR$2,AF58*VLOOKUP(E58,$AP$2:$AQ$3,2,FALSE)))))))),2)) ->  | M58: =AB58 ->  | N58: =IF(C58="",0,IF(L58=0,0,IF(L58="","",J58*L58))) -> 0 | Q58: =IF(L58>0,ABS(V58-L58),"") ->  | U58: =J58 -> 0 | V58: =IF(AG58=0,0,AG58) -> 0 | W58: =IF(C58="","",IF(V58=0,0,IF(V58="","",U58*V58))) ->  | Z58: =IF($Z$2=Defaults!$M$5,Cotton!B58,IF($Z$2=Defaults!$M$6,Corn!B58,IF($Z$2=Defaults!$M$7,Sorghum!B58,IF($Z$2=Defaults!$M$8,Soybean!B58,IF($Z$2=Defaults!$M$9,Rice!B58,IF($Z$2=Defaults!$M$10,Peanut!B58,IF($Z$2=Defaults!$M$11,Wheat!B58,IF($Z$2=Defaults!$M$12,Pasture!B58,"")))))))) ->  | AA58: =IF(C58="","",HLOOKUP($Z$2,$AZ$55:$BG$59,4,FALSE)) ->  | AB58: =IF(C58="","",HLOOKUP($Z$2,$BJ$55:$BQ$59,4,FALSE)) ->  | AC58: 0 | AD58: =IF(C58="","",HLOOKUP($Z$2,$BT$55:$CA$59,4,FALSE)) ->  | AE58: =IF(C58="","",VLOOKUP(C58,Defaults!$AH:$AJ,2,FALSE)) ->  | AF58: =IF(C58="","",ROUND(VLOOKUP(C58,Defaults!$AH:$AJ,3,FALSE),2)) ->  | AG58: =IFERROR(IF(LEFT($C$55,6)="Custom",L58,L58*(1-VLOOKUP($C$55,Implements!$A$159:$D$166,4,FALSE))),"") -> 0 | AM58: =N58 -> 0 | AO58: =N58 -> 0 | AU58: =W58 ->  | AW58: =W58 ->  | AY58: =IF($C58="","",$C58) ->  | AZ58: =IF($C58="","",VLOOKUP($C58,Defaults!$AL$65:$AQ$82,4,FALSE)) ->  | BA58: =IF($C58="","",VLOOKUP($C58,Defaults!$AS$65:$AX$96,4,FALSE)) ->  | BB58: =IF($C58="","",VLOOKUP($C58,Defaults!$AZ$65:$BE$96,4,FALSE)) ->  | BC58: =IF($C58="","",VLOOKUP($C58,Defaults!$BG$65:$BL$96,4,FALSE)) ->  | BD58: =IF($C58="","",VLOOKUP($C58,Defaults!$BN$65:$BS$96,4,FALSE)) ->  | BE58: =IF($C58="","",VLOOKUP($C58,Defaults!$BU$65:$BZ$96,4,FALSE)) ->  | BF58: =IF($C58="","",VLOOKUP($C58,Defaults!$CB$65:$CG$96,4,FALSE)) ->  | BG58: =IF($C58="","",VLOOKUP($C58,Defaults!$CI:$CN,4,FALSE)) ->  | BI58: =IF($C58="","",$C58) ->  | BJ58: =IF($C58="","",IFERROR(VLOOKUP($C58,Defaults!$AL$65:$AQ$82,5,FALSE),"")) ->  | BK58: =IF($C58="","",IFERROR(VLOOKUP($C58,Defaults!$AS$65:$AX$96,5,FALSE),"")) ->  | BL58: =IF($C58="","",IFERROR(VLOOKUP($C58,Defaults!$AZ$65:$BE$96,5,FALSE),"")) ->  | BM58: =IF($C58="","",IFERROR(VLOOKUP($C58,Defaults!$BG$65:$BL$96,5,FALSE),"")) ->  | BN58: =IF($C58="","",IFERROR(VLOOKUP($C58,Defaults!$BN$65:$BS$96,5,FALSE),"")) ->  | BO58: =IF($C58="","",IFERROR(VLOOKUP($C58,Defaults!$BU$65:$BZ$96,5,FALSE),"")) ->  | BP58: ="" ->  | BQ58: =IF($C58="","",IFERROR(VLOOKUP($C58,Defaults!$CI:$CN,5,FALSE),"")) ->  | BS58: =IF($C58="","",$C58) ->  | BT58: =IF($C58="","",IFERROR(VLOOKUP($C58,Defaults!$AL$65:$AQ$82,6,FALSE),"")) ->  | BU58: =IF($C58="","",IFERROR(VLOOKUP($C58,Defaults!$AS$65:$AX$96,6,FALSE),"")) ->  | BV58: =IF($C58="","",IFERROR(VLOOKUP($C58,Defaults!$AZ$65:$BE$96,6,FALSE),"")) ->  | BW58: =IF($C58="","",IFERROR(VLOOKUP($C58,Defaults!$BG$65:$BL$96,6,FALSE),"")) ->  | BX58: =IF($C58="","",IFERROR(VLOOKUP($C58,Defaults!$BN$65:$BS$96,6,FALSE),"")) ->  | BY58: =IF($C58="","",IFERROR(VLOOKUP($C58,Defaults!$BU$65:$BZ$96,6,FALSE),"")) ->  | BZ58: ="" ->  | CA58: =IF($C58="","",IFERROR(VLOOKUP($C58,Defaults!$CI:$CN,6,FALSE),"")) -> 
K59: =IF(C59="","",ROUND(IF(E59=AE59,AF59,IF(AE59=$AC$2,AF59*VLOOKUP(E59,$AA$2:$AB$4,2,FALSE),IF(AE59=$AF$2,AF59*VLOOKUP(E59,$AD$2:$AE$3,2,FALSE),IF(AE59=$AI$2,AF59/VLOOKUP(E59,$AG$2:$AH$2,2,FALSE),IF(AE59=$AL$2,AF59*VLOOKUP(E59,$AJ$2:$AK$2,2,FALSE),IF(AE59=$AO$2,AF59/VLOOKUP(E59,$AM$2:$AN$2,2,FALSE),IF(AE59=$AR$2,AF59*VLOOKUP(E59,$AP$2:$AQ$3,2,FALSE)))))))),2)) ->  | M59: =AB59 ->  | N59: =IF(C59="",0,IF(L59=0,0,IF(L59="","",J59*L59))) -> 0 | Q59: =IF(L59>0,ABS(V59-L59),"") ->  | U59: =J59 -> 0 | V59: =IF(AG59=0,0,AG59) -> 0 | W59: =IF(C59="","",IF(V59=0,0,IF(V59="","",U59*V59))) ->  | Z59: =IF($Z$2=Defaults!$M$5,Cotton!B59,IF($Z$2=Defaults!$M$6,Corn!B59,IF($Z$2=Defaults!$M$7,Sorghum!B59,IF($Z$2=Defaults!$M$8,Soybean!B59,IF($Z$2=Defaults!$M$9,Rice!B59,IF($Z$2=Defaults!$M$10,Peanut!B59,IF($Z$2=Defaults!$M$11,Wheat!B59,IF($Z$2=Defaults!$M$12,Pasture!B59,"")))))))) ->  | AA59: =IF(C59="","",HLOOKUP($Z$2,$AZ$55:$BG$59,5,FALSE)) ->  | AB59: =IF(C59="","",HLOOKUP($Z$2,$BJ$55:$BQ$59,5,FALSE)) ->  | AC59: 0 | AD59: =IF(C59="","",HLOOKUP($Z$2,$BT$55:$CA$59,5,FALSE)) ->  | AE59: =IF(C59="","",VLOOKUP(C59,Defaults!$AH:$AJ,2,FALSE)) ->  | AF59: =IF(C59="","",ROUND(VLOOKUP(C59,Defaults!$AH:$AJ,3,FALSE),2)) ->  | AG59: =IFERROR(IF(LEFT($C$55,6)="Custom",L59,L59*(1-VLOOKUP($C$55,Implements!$A$159:$D$166,4,FALSE))),"") -> 0 | AU59: =W59 ->  | AW59: =W59 ->  | AY59: =IF($C59="","",$C59) ->  | AZ59: =IF($C59="","",VLOOKUP($C59,Defaults!$AL$65:$AQ$82,4,FALSE)) ->  | BA59: =IF($C59="","",VLOOKUP($C59,Defaults!$AS$65:$AX$96,4,FALSE)) ->  | BB59: =IF($C59="","",VLOOKUP($C59,Defaults!$AZ$65:$BE$96,4,FALSE)) ->  | BC59: =IF($C59="","",VLOOKUP($C59,Defaults!$BG$65:$BL$96,4,FALSE)) ->  | BD59: =IF($C59="","",VLOOKUP($C59,Defaults!$BN$65:$BS$96,4,FALSE)) ->  | BE59: =IF($C59="","",VLOOKUP($C59,Defaults!$BU$65:$BZ$96,4,FALSE)) ->  | BF59: =IF($C59="","",VLOOKUP($C59,Defaults!$CB$65:$CG$96,4,FALSE)) ->  | BG59: =IF($C59="","",VLOOKUP($C59,Defaults!$CI:$CN,4,FALSE)) ->  | BI59: =IF($C59="","",$C59) ->  | BJ59: =IF($C59="","",IFERROR(VLOOKUP($C59,Defaults!$AL$65:$AQ$82,5,FALSE),"")) ->  | BK59: =IF($C59="","",IFERROR(VLOOKUP($C59,Defaults!$AS$65:$AX$96,5,FALSE),"")) ->  | BL59: =IF($C59="","",IFERROR(VLOOKUP($C59,Defaults!$AZ$65:$BE$96,5,FALSE),"")) ->  | BM59: =IF($C59="","",IFERROR(VLOOKUP($C59,Defaults!$BG$65:$BL$96,5,FALSE),"")) ->  | BN59: =IF($C59="","",IFERROR(VLOOKUP($C59,Defaults!$BN$65:$BS$96,5,FALSE),"")) ->  | BO59: =IF($C59="","",IFERROR(VLOOKUP($C59,Defaults!$BU$65:$BZ$96,5,FALSE),"")) ->  | BP59: ="" ->  | BQ59: =IF($C59="","",IFERROR(VLOOKUP($C59,Defaults!$CI:$CN,5,FALSE),"")) ->  | BS59: =IF($C59="","",$C59) ->  | BT59: =IF($C59="","",IFERROR(VLOOKUP($C59,Defaults!$AL$65:$AQ$82,6,FALSE),"")) ->  | BU59: =IF($C59="","",IFERROR(VLOOKUP($C59,Defaults!$AS$65:$AX$96,6,FALSE),"")) ->  | BV59: =IF($C59="","",IFERROR(VLOOKUP($C59,Defaults!$AZ$65:$BE$96,6,FALSE),"")) ->  | BW59: =IF($C59="","",IFERROR(VLOOKUP($C59,Defaults!$BG$65:$BL$96,6,FALSE),"")) ->  | BX59: =IF($C59="","",IFERROR(VLOOKUP($C59,Defaults!$BN$65:$BS$96,6,FALSE),"")) ->  | BY59: =IF($C59="","",IFERROR(VLOOKUP($C59,Defaults!$BU$65:$BZ$96,6,FALSE),"")) ->  | BZ59: ="" ->  | CA59: =IF($C59="","",IFERROR(VLOOKUP($C59,Defaults!$CI:$CN,6,FALSE),"")) -> 
C60: Layby Weed Control | D60: =IF($Z$2=Defaults!$M$5,Cotton!D60,IF($Z$2=Defaults!$M$6,Corn!D60,IF($Z$2=Defaults!$M$7,Sorghum!D60,IF($Z$2=Defaults!$M$8,Soybean!D60,IF($Z$2=Defaults!$M$9,Rice!D60,IF($Z$2=Defaults!$M$10,Peanut!D60,IF($Z$2=Defaults!$M$11,Wheat!D60,IF($Z$2=Defaults!$M$12,Pasture!D60,FALSE)))))))) -> Summer | Z60: =IF($Z$2=Defaults!$M$5,Cotton!B60,IF($Z$2=Defaults!$M$6,Corn!B60,IF($Z$2=Defaults!$M$7,Sorghum!B60,IF($Z$2=Defaults!$M$8,Soybean!B60,IF($Z$2=Defaults!$M$9,Rice!B60,IF($Z$2=Defaults!$M$10,Peanut!B60,IF($Z$2=Defaults!$M$11,Wheat!B60,IF($Z$2=Defaults!$M$12,Pasture!B60,"")))))))) -> Layby Weed Control | AY60: LAY | BI60: LAY | BS60: LAY
C61: Post-Directed Sprayer 2 | F61: =IF(L61=0,0,IF(C61=Defaults!$I$33,Implements!$AK$186,0)) -> 11.81818182 | G61: =IF($L61=0,0,IFERROR(VLOOKUP($C61,Implements!$X$181:$AN$188,15,FALSE),0)) -> 8.36 | H61: =IF($L61=0,0,IFERROR(VLOOKUP($C61,Implements!$X$181:$AN$188,16,FALSE),0)) -> 15.253125 | I61: =IF($L61=0,0,IFERROR(VLOOKUP($C61,Implements!$X$181:$AN$188,17,FALSE),0)) -> 94.7448709 | J61: =IF(OR(C61="",L61="",L61=0)=TRUE,"",IF(OR(C61=Defaults!$I$25,C61=Defaults!$I$26)=TRUE,VLOOKUP(C61,Defaults!$I$24:$K$27,3,FALSE),ROUND(1/F61*(1*Inputs!$AA$13+($AI$7-1)*Inputs!$AA$15),2)+ROUND(G61*Inputs!$V$13/F61,2)+ROUND(H61/F61,2)+ROUND(I61/F61,2))) -> 12.05 | K61: =IF(OR(C61="",L61="",L61=0)=TRUE,"",IF(OR(C61=Defaults!$I$25,C61=Defaults!$I$26)=TRUE,VLOOKUP(C61,Defaults!$I$24:$K$27,3,FALSE),ROUND(1/F61*(1*Inputs!$AA$13+($AI$7-1)*Inputs!$AA$15),2)+ROUND(G61*Inputs!$V$13/F61,2)+ROUND(H61/F61,2)+ROUND(I61/F61,2))) -> 12.05 | L61: 1 | M61: =AB61 -> 1 | N61: =IF(C61="",0,IF(L61=0,0,IF(L61="","",J61*L61))) -> 12.05 | Q61: =IF(V61=0,0,IF(C61=Defaults!$I$33,Implements!$AK$175,0)) -> 12.07936364 | R61: =IF($V61=0,0,IFERROR(VLOOKUP($C61,Implements!$X$170:$AN$177,15,FALSE),0)) -> 8.36 | S61: =IF($V61=0,0,IFERROR(VLOOKUP($C61,Implements!$X$170:$AN$177,16,FALSE),0)) -> 15.253125 | T61: =IF($V61=0,0,IFERROR(VLOOKUP($C61,Implements!$X$170:$AN$177,17,FALSE),0)) -> 95.49278765 | U61: =IF(OR(C61="",V61="",V61=0)=TRUE,"",IF(LEFT(C61,6)="Custom",J61,ROUND(1/Q61*(1*Inputs!$AA$13+($AI$7-1)*Inputs!$AA$15),2)+ROUND(R61*Inputs!$V$13/Q61,2)+ROUND(S61/Q61,2)+ROUND(T61/Q61,2))) -> 11.84 | V61: =+L61 -> 1 | W61: =IF(C61="","",IF(V61=0,0,IF(V61="","",U61*V61))) -> 11.84 | X61: -0.21 | Z61: =IF($Z$2=Defaults!$M$5,Cotton!B61,IF($Z$2=Defaults!$M$6,Corn!B61,IF($Z$2=Defaults!$M$7,Sorghum!B61,IF($Z$2=Defaults!$M$8,Soybean!B61,IF($Z$2=Defaults!$M$9,Rice!B61,IF($Z$2=Defaults!$M$10,Peanut!B61,IF($Z$2=Defaults!$M$11,Wheat!B61,IF($Z$2=Defaults!$M$12,Pasture!B61,"")))))))) -> Post-Directed Sprayer 2 | AB61: =IF(C61="","",IF($Z$2=Defaults!$M$12,VLOOKUP(C61,Defaults!$I$35:$J$37,2,FALSE),VLOOKUP(C61,Defaults!$I$30:$J$33,2,FALSE))) -> 1 | AC61: 0 | AD61: =IF(AB61="","",AB61*2) -> 2 | AG61: =+AB61 -> 1 | AH61: =N61 -> 12.05 | AI61: =ROUND(IFERROR(1/F61*(1*Inputs!$AA$13+($AI$7-1)*Inputs!$AA$15),0),2)*L61 -> 1.5 | AJ61: =ROUND(IFERROR(1/F61*G61*Inputs!$V$13,0),2)*L61 -> 1.24 | AK61: =ROUND(IFERROR(1/F61*H61,0),2)*L61 -> 1.29 | AL61: =ROUND(IFERROR(1/F61*I61,0),2)*L61 -> 8.02 | AP61: =W61 -> 11.84 | AQ61: =ROUND(IFERROR(1/Q61*(1*Inputs!$AA$13+($AI$7-1)*Inputs!$AA$15),0),2)*V61 -> 1.46 | AR61: =ROUND(IFERROR(1/Q61*R61*Inputs!$V$13,0),2)*V61 -> 1.21 | AS61: =ROUND(IFERROR(1/Q61*S61,0),2)*V61 -> 1.26 | AT61: =ROUND(IFERROR(1/Q61*T61,0),2)*V61 -> 7.91 | AZ61: =AZ11 -> Cotton | BA61: =BA11 -> Corn | BB61: Sorghum | BC61: Soybean | BD61: Rice | BE61: Peanut | BF61: Wheat | BG61: Est. Pasture or Hay | BJ61: =BJ11 -> Cotton | BK61: =BK11 -> Corn | BL61: Sorghum | BM61: Soybean | BN61: Rice | BO61: Peanut | BP61: Wheat | BQ61: Est. Pasture or Hay | BT61: =BT11 -> Cotton | BU61: =BU11 -> Corn | BV61: Sorghum | BW61: Soybean | BX61: Rice | BY61: Peanut | BZ61: Wheat | CA61: Est. Pasture or Hay
C62: Valor | E62: oz | J62: 4.38 | K62: =IF(C62="","",ROUND(IF(E62=AE62,AF62,IF(AE62=$AC$2,AF62*VLOOKUP(E62,$AA$2:$AB$4,2,FALSE),IF(AE62=$AF$2,AF62*VLOOKUP(E62,$AD$2:$AE$3,2,FALSE),IF(AE62=$AI$2,AF62/VLOOKUP(E62,$AG$2:$AH$2,2,FALSE),IF(AE62=$AL$2,AF62*VLOOKUP(E62,$AJ$2:$AK$2,2,FALSE),IF(AE62=$AO$2,AF62/VLOOKUP(E62,$AM$2:$AN$2,2,FALSE),IF(AE62=$AR$2,AF62*VLOOKUP(E62,$AP$2:$AQ$3,2,FALSE)))))))),2)) -> 4.38 | L62: 2 | M62: =AB62 -> 2 | N62: =IF(C62="",0,IF(L62=0,0,IF(L62="","",J62*L62))) -> 8.76 | Q62: =IF(L62>0,ABS(V62-L62),"") -> 0.182 | U62: =J62 -> 4.38 | V62: =IF(AG62=0,0,AG62) -> 1.818 | W62: =IF(C62="","",IF(V62=0,0,IF(V62="","",U62*V62))) -> 7.96284 | X62: -0.79716 | Z62: =IF($Z$2=Defaults!$M$5,Cotton!B62,IF($Z$2=Defaults!$M$6,Corn!B62,IF($Z$2=Defaults!$M$7,Sorghum!B62,IF($Z$2=Defaults!$M$8,Soybean!B62,IF($Z$2=Defaults!$M$9,Rice!B62,IF($Z$2=Defaults!$M$10,Peanut!B62,IF($Z$2=Defaults!$M$11,Wheat!B62,IF($Z$2=Defaults!$M$12,Pasture!B62,"")))))))) -> Valor | AA62: =IF(C62="","",HLOOKUP($Z$2,$AZ$61:$BG$65,2,FALSE)) -> oz | AB62: =IF(C62="","",HLOOKUP($Z$2,$BJ$61:$BQ$65,2,FALSE)) -> 2 | AC62: 0 | AD62: =IF(C62="","",HLOOKUP($Z$2,$BT$61:$CA$65,2,FALSE)) -> 2 | AE62: =IF(C62="","",VLOOKUP(C62,Defaults!$AH:$AJ,2,FALSE)) -> oz | AF62: =IF(C62="","",ROUND(VLOOKUP(C62,Defaults!$AH:$AJ,3,FALSE),2)) -> 4.38 | AG62: =IFERROR(IF(LEFT($C$61,6)="Custom",L62,L62*(1-VLOOKUP($C$61,Implements!$A$159:$D$166,4,FALSE))),"") -> 1.818 | AM62: =N62 -> 8.76 | AO62: =N62 -> 8.76 | AU62: =W62 -> 7.96284 | AW62: =W62 -> 7.96284 | AY62: =IF($C62="","",$C62) -> Valor | AZ62: =IF($C62="","",VLOOKUP($C62,Defaults!$AL$85:$AQ$101,4,FALSE)) -> oz | BA62: ="" ->  | BB62: ="" ->  | BC62: ="" ->  | BD62: ="" ->  | BE62: ="" ->  | BF62: ="" ->  | BG62: ="" ->  | BI62: =IF($C62="","",$C62) -> Valor | BJ62: =IF($C62="","",IFERROR(VLOOKUP($C62,Defaults!$AL$85:$AQ$101,5,FALSE),"")) -> 2 | BK62: ="" ->  | BL62: ="" ->  | BM62: ="" ->  | BN62: ="" ->  | BO62: ="" ->  | BP62: ="" ->  | BQ62: ="" ->  | BS62: =IF($C62="","",$C62) -> Valor | BT62: =IF($C62="","",IFERROR(VLOOKUP($C62,Defaults!$AL$85:$AQ$101,6,FALSE),"")) -> 2 | BU62: ="" ->  | BV62: ="" ->  | BW62: ="" ->  | BX62: ="" ->  | BY62: ="" ->  | BZ62: ="" ->  | CA62: ="" -> 
C63: MSMA | E63: qt | J63: 6 | K63: =IF(C63="","",ROUND(IF(E63=AE63,AF63,IF(AE63=$AC$2,AF63*VLOOKUP(E63,$AA$2:$AB$4,2,FALSE),IF(AE63=$AF$2,AF63*VLOOKUP(E63,$AD$2:$AE$3,2,FALSE),IF(AE63=$AI$2,AF63/VLOOKUP(E63,$AG$2:$AH$2,2,FALSE),IF(AE63=$AL$2,AF63*VLOOKUP(E63,$AJ$2:$AK$2,2,FALSE),IF(AE63=$AO$2,AF63/VLOOKUP(E63,$AM$2:$AN$2,2,FALSE),IF(AE63=$AR$2,AF63*VLOOKUP(E63,$AP$2:$AQ$3,2,FALSE)))))))),2)) -> 6 | L63: 1.5 | M63: =AB63 -> 1.5 | N63: =IF(C63="",0,IF(L63=0,0,IF(L63="","",J63*L63))) -> 9 | Q63: =IF(L63>0,ABS(V63-L63),"") -> 0.1365 | U63: =J63 -> 6 | V63: =IF(AG63=0,0,AG63) -> 1.3635 | W63: =IF(C63="","",IF(V63=0,0,IF(V63="","",U63*V63))) -> 8.181 | X63: -0.819 | Z63: =IF($Z$2=Defaults!$M$5,Cotton!B63,IF($Z$2=Defaults!$M$6,Corn!B63,IF($Z$2=Defaults!$M$7,Sorghum!B63,IF($Z$2=Defaults!$M$8,Soybean!B63,IF($Z$2=Defaults!$M$9,Rice!B63,IF($Z$2=Defaults!$M$10,Peanut!B63,IF($Z$2=Defaults!$M$11,Wheat!B63,IF($Z$2=Defaults!$M$12,Pasture!B63,"")))))))) -> MSMA | AA63: =IF(C63="","",HLOOKUP($Z$2,$AZ$61:$BG$65,3,FALSE)) -> qt | AB63: =IF(C63="","",HLOOKUP($Z$2,$BJ$61:$BQ$65,3,FALSE)) -> 1.5 | AC63: 0 | AD63: =IF(C63="","",HLOOKUP($Z$2,$BT$61:$CA$65,3,FALSE)) -> 1.5 | AE63: =IF(C63="","",VLOOKUP(C63,Defaults!$AH:$AJ,2,FALSE)) -> gal | AF63: =IF(C63="","",ROUND(VLOOKUP(C63,Defaults!$AH:$AJ,3,FALSE),2)) -> 24 | AG63: =IFERROR(IF(LEFT($C$61,6)="Custom",L63,L63*(1-VLOOKUP($C$61,Implements!$A$159:$D$166,4,FALSE))),"") -> 1.3635 | AM63: =N63 -> 9 | AO63: =N63 -> 9 | AU63: =W63 -> 8.181 | AW63: =W63 -> 8.181 | AY63: =IF($C63="","",$C63) -> MSMA | AZ63: =IF($C63="","",VLOOKUP($C63,Defaults!$AL$85:$AQ$101,4,FALSE)) -> qt | BA63: ="" ->  | BB63: ="" ->  | BC63: ="" ->  | BD63: ="" ->  | BE63: ="" ->  | BF63: ="" ->  | BG63: ="" ->  | BI63: =IF($C63="","",$C63) -> MSMA | BJ63: =IF($C63="","",IFERROR(VLOOKUP($C63,Defaults!$AL$85:$AQ$101,5,FALSE),"")) -> 1.5 | BK63: ="" ->  | BL63: ="" ->  | BM63: ="" ->  | BN63: ="" ->  | BO63: ="" ->  | BP63: ="" ->  | BQ63: ="" ->  | BS63: =IF($C63="","",$C63) -> MSMA | BT63: =IF($C63="","",IFERROR(VLOOKUP($C63,Defaults!$AL$85:$AQ$101,6,FALSE),"")) -> 1.5 | BU63: ="" ->  | BV63: ="" ->  | BW63: ="" ->  | BX63: ="" ->  | BY63: ="" ->  | BZ63: ="" ->  | CA63: ="" -> 
K64: =IF(C64="","",ROUND(IF(E64=AE64,AF64,IF(AE64=$AC$2,AF64*VLOOKUP(E64,$AA$2:$AB$4,2,FALSE),IF(AE64=$AF$2,AF64*VLOOKUP(E64,$AD$2:$AE$3,2,FALSE),IF(AE64=$AI$2,AF64/VLOOKUP(E64,$AG$2:$AH$2,2,FALSE),IF(AE64=$AL$2,AF64*VLOOKUP(E64,$AJ$2:$AK$2,2,FALSE),IF(AE64=$AO$2,AF64/VLOOKUP(E64,$AM$2:$AN$2,2,FALSE),IF(AE64=$AR$2,AF64*VLOOKUP(E64,$AP$2:$AQ$3,2,FALSE)))))))),2)) ->  | M64: =AB64 ->  | N64: =IF(C64="",0,IF(L64=0,0,IF(L64="","",J64*L64))) -> 0 | Q64: =IF(L64>0,ABS(V64-L64),"") ->  | U64: =J64 -> 0 | V64: =IF(AG64=0,0,AG64) -> 0 | W64: =IF(C64="","",IF(V64=0,0,IF(V64="","",U64*V64))) ->  | Z64: =IF($Z$2=Defaults!$M$5,Cotton!B64,IF($Z$2=Defaults!$M$6,Corn!B64,IF($Z$2=Defaults!$M$7,Sorghum!B64,IF($Z$2=Defaults!$M$8,Soybean!B64,IF($Z$2=Defaults!$M$9,Rice!B64,IF($Z$2=Defaults!$M$10,Peanut!B64,IF($Z$2=Defaults!$M$11,Wheat!B64,IF($Z$2=Defaults!$M$12,Pasture!B64,"")))))))) ->  | AA64: =IF(C64="","",HLOOKUP($Z$2,$AZ$61:$BG$65,4,FALSE)) ->  | AB64: =IF(C64="","",HLOOKUP($Z$2,$BJ$61:$BQ$65,4,FALSE)) ->  | AC64: 0 | AD64: =IF(C64="","",HLOOKUP($Z$2,$BT$61:$CA$65,4,FALSE)) ->  | AE64: =IF(C64="","",VLOOKUP(C64,Defaults!$AH:$AJ,2,FALSE)) ->  | AF64: =IF(C64="","",ROUND(VLOOKUP(C64,Defaults!$AH:$AJ,3,FALSE),2)) ->  | AG64: =IFERROR(IF(LEFT($C$61,6)="Custom",L64,L64*(1-VLOOKUP($C$61,Implements!$A$159:$D$166,4,FALSE))),"") -> 0 | AM64: =N64 -> 0 | AO64: =N64 -> 0 | AU64: =W64 ->  | AW64: =W64 ->  | AY64: =IF($C64="","",$C64) ->  | AZ64: =IF($C64="","",VLOOKUP($C64,Defaults!$AL$85:$AQ$101,4,FALSE)) ->  | BA64: ="" ->  | BB64: ="" ->  | BC64: ="" ->  | BD64: ="" ->  | BE64: ="" ->  | BF64: ="" ->  | BG64: ="" ->  | BI64: =IF($C64="","",$C64) ->  | BJ64: =IF($C64="","",IFERROR(VLOOKUP($C64,Defaults!$AL$85:$AQ$101,5,FALSE),"")) ->  | BK64: ="" ->  | BL64: ="" ->  | BM64: ="" ->  | BN64: ="" ->  | BO64: ="" ->  | BP64: ="" ->  | BQ64: ="" ->  | BS64: =IF($C64="","",$C64) ->  | BT64: =IF($C64="","",IFERROR(VLOOKUP($C64,Defaults!$AL$85:$AQ$101,6,FALSE),"")) ->  | BU64: ="" ->  | BV64: ="" ->  | BW64: ="" ->  | BX64: ="" ->  | BY64: ="" ->  | BZ64: ="" ->  | CA64: ="" -> 
K65: =IF(C65="","",ROUND(IF(E65=AE65,AF65,IF(AE65=$AC$2,AF65*VLOOKUP(E65,$AA$2:$AB$4,2,FALSE),IF(AE65=$AF$2,AF65*VLOOKUP(E65,$AD$2:$AE$3,2,FALSE),IF(AE65=$AI$2,AF65/VLOOKUP(E65,$AG$2:$AH$2,2,FALSE),IF(AE65=$AL$2,AF65*VLOOKUP(E65,$AJ$2:$AK$2,2,FALSE),IF(AE65=$AO$2,AF65/VLOOKUP(E65,$AM$2:$AN$2,2,FALSE),IF(AE65=$AR$2,AF65*VLOOKUP(E65,$AP$2:$AQ$3,2,FALSE)))))))),2)) ->  | M65: =AB65 ->  | N65: =IF(C65="",0,IF(L65=0,0,IF(L65="","",J65*L65))) -> 0 | Q65: =IF(L65>0,ABS(V65-L65),"") ->  | U65: =J65 -> 0 | V65: =IF(AG65=0,0,AG65) -> 0 | W65: =IF(C65="","",IF(V65=0,0,IF(V65="","",U65*V65))) ->  | Z65: =IF($Z$2=Defaults!$M$5,Cotton!B65,IF($Z$2=Defaults!$M$6,Corn!B65,IF($Z$2=Defaults!$M$7,Sorghum!B65,IF($Z$2=Defaults!$M$8,Soybean!B65,IF($Z$2=Defaults!$M$9,Rice!B65,IF($Z$2=Defaults!$M$10,Peanut!B65,IF($Z$2=Defaults!$M$11,Wheat!B65,IF($Z$2=Defaults!$M$12,Pasture!B65,"")))))))) ->  | AA65: =IF(C65="","",HLOOKUP($Z$2,$AZ$61:$BG$65,5,FALSE)) ->  | AB65: =IF(C65="","",HLOOKUP($Z$2,$BJ$61:$BQ$65,5,FALSE)) ->  | AC65: 0 | AD65: =IF(C65="","",HLOOKUP($Z$2,$BT$61:$CA$65,5,FALSE)) ->  | AE65: =IF(C65="","",VLOOKUP(C65,Defaults!$AH:$AJ,2,FALSE)) ->  | AF65: =IF(C65="","",ROUND(VLOOKUP(C65,Defaults!$AH:$AJ,3,FALSE),2)) ->  | AG65: =IFERROR(IF(LEFT($C$61,6)="Custom",L65,L65*(1-VLOOKUP($C$61,Implements!$A$159:$D$166,4,FALSE))),"") -> 0 | AU65: =W65 ->  | AW65: =W65 ->  | AY65: =IF($C65="","",$C65) ->  | AZ65: =IF($C65="","",VLOOKUP($C65,Defaults!$AL$85:$AQ$101,4,FALSE)) ->  | BA65: ="" ->  | BB65: ="" ->  | BC65: ="" ->  | BD65: ="" ->  | BE65: ="" ->  | BF65: ="" ->  | BG65: ="" ->  | BI65: =IF($C65="","",$C65) ->  | BJ65: =IF($C65="","",IFERROR(VLOOKUP($C65,Defaults!$AL$85:$AQ$101,5,FALSE),"")) ->  | BK65: ="" ->  | BL65: ="" ->  | BM65: ="" ->  | BN65: ="" ->  | BO65: ="" ->  | BP65: ="" ->  | BQ65: ="" ->  | BS65: =IF($C65="","",$C65) ->  | BT65: =IF($C65="","",IFERROR(VLOOKUP($C65,Defaults!$AL$85:$AQ$101,6,FALSE),"")) ->  | BU65: ="" ->  | BV65: ="" ->  | BW65: ="" ->  | BX65: ="" ->  | BY65: ="" ->  | BZ65: ="" ->  | CA65: ="" -> 
C67: Benchmark Operating Interest ($/acre): | N67: =((SUM(N13:N16)+SUM(N18:N21)+SUM(N23:N29)+SUM(N31:N32)+SUM(N33:N38)+SUM(N39:N43)+SUM(N44:N46)+SUM(N48:N53)+SUM(N55:N59))-(IFERROR(I13/F13,0)*L13+IFERROR(I18/F18,0)*L18+IFERROR(I23/F23,0)*L23+IFERROR(I31/F31,0)*L31+IFERROR(I33/F33,0)*L33+IFERROR(I39/F39,0)*L39+IFERROR(I44/F44,0)*L44+IFERROR(I48/F48,0)*L48+IFERROR(I55/F55,0)*L55))/2*Inputs!$V$17 -> 9.928691521 | Q67: Change in Operating Interest ($/acre): | W67: =((SUM(W13:W16)+SUM(W18:W21)+SUM(W23:W29)+SUM(W31:W32)+SUM(W33:W38)+SUM(W39:W43)+SUM(W44:W46)+SUM(W48:W53)+SUM(W55:W59))-(IFERROR(T13/Q13,0)*V13+IFERROR(T18/Q18,0)*V18+IFERROR(T23/Q23,0)*V23+IFERROR(T31/Q31,0)*V31+IFERROR(T33/Q33,0)*V33+IFERROR(T39/Q39,0)*V39+IFERROR(T44/Q44,0)*V44+IFERROR(T48/Q48,0)*V48+IFERROR(T55/Q55,0)*V55))/2*Inputs!$V$17 -> 8.764470763 | X67: =IF(C67="","",W67-N67) -> -1.164220758 | AH67: =SUM(AH13:AH65) -> 85.97 | AI67: =SUM(AI13:AI65) -> 8.05 | AJ67: =SUM(AJ13:AJ65) -> 6.67 | AK67: =SUM(AK13:AK65) -> 16.52 | AL67: =SUM(AL13:AL65) -> 54.73 | AM67: =SUM(AM13:AM65)+N67 -> 418.5286915 | AN67: =AN32 -> 120.03 | AO67: =SUM(AO13:AO65) -> 288.57 | AP67: 84.48 | AQ67: 7.82 | AR67: 6.45 | AS67: 16.24 | AT67: 53.97 | AU67: =SUM(AU13:AU65)+W67 -> 367.3381978 | AV67: =AV32 -> 117.209295 | AW67: =SUM(AW13:AW65) -> 241.364432
C68: Benchmark Total Specified Expenses ($/acre): | N68: =SUM(N13:N67) -> 504.4986915 | Q68: Change in Total Specified Expenses: | W68: =SUM(W13:W67) -> 451.8181978 | X68: =IF(C68="","",W68-N68) -> -52.68049376 | AH68: ='Output Comparison'!B47 -> Input Use Savings ($/acre) | AK68: =(AU67)-(AM67) -> -51.19049376 | AL68: ='Output Comparison'!B53 -> Equipment Efficiency Change ($/acre) | AO68: =(AP67)-(AH67) -> -1.49
AH69: ='Output Comparison'!B50 -> Seed Cost Change ($/acre) | AK69: =(AV67)-(AN67) -> -2.820705 | AL69: ='Output Comparison'!B56 -> Labor Cost Change ($/acre) | AO69: =(AQ67)-(AI67) -> -0.23
AH70: ='Output Comparison'!B51 -> Chemical & Fertilizer Cost Change ($/acre) | AK70: =(AW67)-(AO67) -> -47.205568 | AL70: ='Output Comparison'!B57 -> Fuel Cost Change ($/acre) | AO70: =(AR67)-(AJ67) -> -0.22
AL71: ='Output Comparison'!B58 -> R&M Cost Change ($/acre) | AO71: =(AS67)-(AK67) -> -0.28
AL72: ='Output Comparison'!B59 -> Capital Recovery Cost Change ($/acre) | AO72: =(AT67)-(AL67) -> -0.76
B74: Disclaimer: The information provided within represents estimates that are a result of a set of complex calculations that are described in more detail in the user manual. Changes in parameter values and its implications on returns are estimates and the user should use their own reasonable judgment to reflect whether the direction of change in returns is appropriate before acting on the results. As such, this software is provided ‘as is’ and without warranties as to performance of merchantability. Further, statements may have been made to you about this software. Any such statements do not constitute warranties and shall not be relied on by the user in deciding whether to use the program or act on its results. This program is provided without any expressed or implied warranties whatsoever. Because the diversity of conditions and hardware under which this program may be used, no warranty of merchantability or warranty of fitness for a particular purpose is offered. The user is advised to test the program thoroughly before relying on it. The user assumes the entire risk of using the program. The University of Arkansas will not be liable for any claim or damage brought against the user by any third party, nor will the University of Arkansas be liable for any consequential, indirect or special damages suffered by the user as a result of the software.

Sheet Crop 2
A1: =CONCATENATE($Z$2," Production Practices ","for ",Inputs!$J$5) -> Soybean Production Practices for Circle C Farms | Z1: TRUE | AA1: Conversion Factors | AS1: Data Validation Lookups | AV1: Planting Operation Check
Z2: Soybean | AA2: =Defaults!Q15 -> qt | AB2: 0.25 | AC2: =Defaults!Q19 -> gal | AD2: =Defaults!Q17 -> oz | AE2: 0.0625 | AF2: =Defaults!Q20 -> lb | AG2: =Defaults!Q20 -> lb | AH2: 112 | AI2: =Defaults!Q18 -> cwt | AJ2: =Defaults!Q15 -> qt | AK2: 0.5 | AL2: =Defaults!Q16 -> pt | AM2: =Defaults!Q20 -> lb | AN2: 2000 | AO2: =Defaults!Q21 -> ton | AP2: =Defaults!Q15 -> qt | AQ2: 0.03125 | AR2: =Defaults!Q17 -> oz | AS2: Operations | AT2: Planter Operations | AU2: Herbicides | AV2: =IF($AT$3=Defaults!$I$3,Defaults!I7,IF($AT$3=Defaults!$I$11,Defaults!I15,IF($AT$3=Defaults!$I$17,Defaults!I21,""))) -> No-Till Grain Drill 1
Z3: FALSE | AA3: =Defaults!Q16 -> pt | AB3: 0.125 | AD3: FALSE | AE3: 0.00892857 | AP3: =Defaults!Q16 -> pt | AQ3: 0.0625 | AS3: =IF(OR($Z$2=Defaults!$M$5,$Z$2=Defaults!$M$6,$Z$2=Defaults!$M$7,$Z$2=Defaults!$M$8,$Z$2=Defaults!$M$9,$Z$2=Defaults!$M$10)=TRUE,Defaults!$I$38,FALSE) -> BudgetInsect | AT3: =IF(OR($Z$2=Defaults!$M$5,$Z$2=Defaults!$M$6,$Z$2=Defaults!$M$7,$Z$2=Defaults!$M$10)=TRUE,Defaults!$I$17,IF(OR($Z$2=Defaults!$M$9,$Z$2=Defaults!$M$11,$Z$2=Defaults!$M$12)=TRUE,Defaults!$I$11,Defaults!$I$3)) -> BudgetPlantSoy | AU3: =IF(OR(C13="",L13="",L13=0)=TRUE,FALSE,IF($Z$2=Defaults!$M$5,Defaults!$AL$2,IF($Z$2=Defaults!$M$6,Defaults!$AS$2,IF($Z$2=Defaults!$M$7,Defaults!$AZ$2,IF($Z$2=Defaults!$M$8,Defaults!$BG$2,IF($Z$2=Defaults!$M$9,Defaults!$BN$2,IF($Z$2=Defaults!$M$12,Defaults!$CI$2,FALSE))))))) -> SoybeanBD | AV3: =IF($AT$3=Defaults!$I$3,Defaults!I8,IF($AT$3=Defaults!$I$11,Defaults!I16,IF($AT$3=Defaults!$I$17,Defaults!I22,""))) -> 
Z4: Benchmark (No Tractor Guidance) | AA4: =Defaults!Q17 -> oz | AB4: 0.0078125 | AS4: =IF(OR(C33="",L33="",L33=0)=TRUE,FALSE,IF($AS$3=FALSE,FALSE,IF(OR($Z$2=Defaults!$M$5,$Z$2=Defaults!$M$6,$Z$2=Defaults!$M$7,$Z$2=Defaults!$M$8,$Z$2=Defaults!$M$9,$Z$2=Defaults!$M$10)=TRUE,Defaults!$T$20))) -> Insecticide | AT4: =IF($C$31="","",IF($AT$3=Defaults!$I$3,VLOOKUP($C$31,Defaults!$I$4:$K$10,3,FALSE),IF($AT$3=Defaults!$I$11,VLOOKUP($C$31,Defaults!$I$12:$K$16,3,FALSE),IF($AT$3=Defaults!$I$17,VLOOKUP($C$31,Defaults!$I$18:$K$22,3,FALSE))))) ->  | AU4: =IF(OR(C18="",L18="",L18=0)=TRUE,FALSE,IF($Z$2=Defaults!$M$5,Defaults!$AL$18,IF($Z$2=Defaults!$M$7,Defaults!$AZ$18,IF($Z$2=Defaults!$M$8,Defaults!$BG$18,IF($Z$2=Defaults!$M$9,Defaults!$BN$18,IF($Z$2=Defaults!$M$10,Defaults!$BU$18,IF($Z$2=Defaults!$M$12,Defaults!$CI$2,FALSE))))))) -> FALSE | AV4: =IF($AT$3=Defaults!$I$3,Defaults!$I$7,IF($AT$3=Defaults!$I$11,Defaults!$I$15,"")) -> No-Till Grain Drill 1
B5: =IF(Z1=FALSE,"","Modify Green Cells Below") -> Modify Green Cells Below | Z5: Adjusted for Tractor Guidance | AA5: Partial Returns ($/acre): | AH5: =Defaults!M25 -> Labor Multiplier by Operation | AS5: =IF($Z$2=Defaults!$M$5,Defaults!$I$52,IF($Z$2=Defaults!$M$10,Defaults!$I$43,IF($Z$2=Defaults!$M$12,Defaults!$I$48,FALSE))) -> FALSE | AU5: =IF(OR(C48="",L48="",L48=0)=TRUE,FALSE,IF($Z$2=Defaults!$M$5,Defaults!$AL$36,IF($Z$2=Defaults!$M$6,Defaults!$AS$36,IF($Z$2=Defaults!$M$7,Defaults!$AZ$36,IF($Z$2=Defaults!$M$8,Defaults!$BG$36,IF($Z$2=Defaults!$M$9,Defaults!$BN$36,IF($Z$2=Defaults!$M$10,Defaults!$BU$36,IF($Z$2=Defaults!$M$11,Defaults!$CB$36,FALSE)))))))) -> FALSE | AV5: =IF($AT$3=Defaults!$I$3,Defaults!$I$8,IF($AT$3=Defaults!$I$11,Defaults!$I$16,"")) -> 
C6: =IF($Z$1=TRUE,"Modify budget specifications using the green cells provided","") -> Modify budget specifications using the green cells provided | U6: =F10 -> Benchmark without Tractor Guidance | X6: Adjusted for Tractor Guidance | Z6: Cost Savings ($/acre): | AA6: ="/acre" -> /acre | AS6: =IF(OR(C39="",L39="",L39=0)=TRUE,FALSE,IF($Z$2=Defaults!$M$5,Defaults!$T$37,IF($Z$2=Defaults!$M$10,Defaults!$T$32,IF($Z$2=Defaults!$M$12,Defaults!$T$16,FALSE)))) -> FALSE | AU6: =IF(OR(C55="",L55="",L55=0)=TRUE,FALSE,IF($Z$2=Defaults!$M$5,Defaults!$AL$64,IF($Z$2=Defaults!$M$6,Defaults!$AS$64,IF($Z$2=Defaults!$M$7,Defaults!$AZ$64,IF($Z$2=Defaults!$M$8,Defaults!$BG$64,IF($Z$2=Defaults!$M$9,Defaults!$BN$64,IF($Z$2=Defaults!$M$10,Defaults!$BU$64,FALSE))))))) -> FALSE | AV6: =IF($AT$3=Defaults!$I$3,Defaults!$I$9,"") -> Row Planter 1
Q7: =IF($Z$2=Defaults!$M$12,"Efficiency Gains ($/acre):",AA5) -> Partial Returns ($/acre): | U7: =IF($Z$2=Defaults!$M$12,"",IFERROR(+IF($Z$2=Defaults!$M$12,"",U8*Inputs!$K$15)-N68,0)) -> 398.3151187 | X7: =IF($Z$2=Defaults!$M$12,-AO68,IFERROR(+X8*Inputs!$K$15-W68,0)) -> 432.2858621 | Z7: =CONCATENATE(Implements!$B$36," Trips") -> Over-the-Top Sprayer Trips | AA7: =(IF(C13=Defaults!$I$27,L13,0)+IF(C18=Defaults!$I$27,L18,0)+IF(C33=Defaults!$I$41,L33,0)+IF(OR(C39=Defaults!$I$46,C39=Defaults!$I$55)=TRUE,L39,0)+IF(OR(C44=Defaults!$I$60,C44=Defaults!$I$65)=TRUE,L44,0)+IF(C48=Defaults!$I$27,L48,0)+IF(C55=Defaults!$I$27,L55,0)) -> 3 | AB7: =CONCATENATE(Implements!$B$39," Trips") -> Post-Directed Sprayer Trips | AC7: =IF(C61=Defaults!$I$33,L61,0) -> 0 | AD7: =CONCATENATE(Implements!$B$41," Trips") -> Fertilizer Spreader Trips | AE7: =IF(C23=Defaults!$I$37,L23,0)+IF(C39=Defaults!$I$37,L39,0) -> 1 | AF7: =CONCATENATE(Implements!$B$42," Trips") -> Manure Spreader Trips | AG7: =IF(C39=Defaults!$I$51,L39,0) -> 0 | AH7: =Defaults!M26 -> Field Preparation | AI7: =Defaults!N26 -> 1.5 | AS7: =IF($Z$2=Defaults!$M$5,Defaults!$I$57,IF($Z$2=Defaults!$M$8,Defaults!$I$62,FALSE)) -> BudgetFung | AU7: =IF(OR(C61="",L61="",L61=0)=TRUE,FALSE,IF($Z$2=Defaults!$M$5,Defaults!$AL$84,FALSE)) -> FALSE | AV7: =IF($AT$3=Defaults!$I$3,Defaults!$I$10,"") -> 
Q8: =IF($Z$2=Defaults!M12,$Z$6,"Yield (units/acre):") -> Yield (units/acre): | U8: =IF($Z$2=Defaults!$M$12,"",ROUND(VLOOKUP($Z$2,Inputs!$B$13:$F$17,5,FALSE),IF($Z$2=Defaults!$M$10,2,0))) -> 60 | X8: =IF($Z$2=Defaults!$M$12,-AK68,ROUND(VLOOKUP(Z2,Inputs!$B$13:$F$17,5,FALSE)*(1+Implements!$F$159+Implements!$F$160+Implements!$F$161+Implements!$F$162+Implements!$F$163+Implements!$F$164+Implements!$F$165),IF($Z$2=Defaults!$M$10,2,0))) -> 62 | Z8: =CONCATENATE(Implements!$B$36," Trips") -> Over-the-Top Sprayer Trips | AA8: =(IF(C13=Defaults!$I$27,V13,0)+IF(C18=Defaults!$I$27,V18,0)+IF(C33=Defaults!$I$41,V33,0)+IF(OR(C39=Defaults!$I$46,C39=Defaults!$I$55)=TRUE,V39,0)+IF(OR(C44=Defaults!$I$60,C44=Defaults!$I$65)=TRUE,V44,0)+IF(C48=Defaults!$I$27,V48,0)+IF(C55=Defaults!$I$27,V55,0)) -> 3 | AB8: =CONCATENATE(Implements!$B$39," Trips") -> Post-Directed Sprayer Trips | AC8: =IF(C61=Defaults!$I$33,V61,0) -> 0 | AD8: =CONCATENATE(Implements!$B$41," Trips") -> Fertilizer Spreader Trips | AE8: =IF(C23=Defaults!$I$37,V23,0)+IF(C39=Defaults!$I$37,V39,0) -> 1 | AF8: =CONCATENATE(Implements!$B$42," Trips") -> Manure Spreader Trips | AG8: =IF(C39=Defaults!$I$51,V39,0) -> 0 | AH8: =Defaults!M27 -> Planting | AI8: =Defaults!N27 -> 1.5 | AS8: =IF(OR(C44="",L44="",L44=0)=TRUE,FALSE,IF($Z$2=Defaults!$M$5,Defaults!$T$44,IF($Z$2=Defaults!$M$8,Defaults!$T$49,FALSE))) -> Fungicide | AV8: =Defaults!$I$5 -> Custom Ground Seeding
Z9: =IF($Z$2=Defaults!$M$5,5,IF($Z$2=Defaults!$M$6,6,IF($Z$2=Defaults!$M$7,7,IF($Z$2=Defaults!$M$8,8,IF($Z$2=Defaults!$M$9,9,IF($Z$2=Defaults!$M$10,10,IF($Z$2=Defaults!$M$11,11,IF($Z$2=Defaults!$M$12,12)))))))) -> 8 | AH9: =Defaults!M28 -> Fertilizer | AI9: =Defaults!N28 -> 1.5 | AV9: =Defaults!$I$6 -> Custom Air Seeding
F10: Benchmark without Tractor Guidance | P10: Adjusted for Tractor Guidance | Z10: TRUE | AH10: =Defaults!M29 -> Post-Plant Field Work | AI10: =Defaults!N29 -> 1.5 | AK10: =ROUND(SUM(IFERROR(1/F13*G13*L13,0)+IFERROR(1/F18*G18*L18,0)+IFERROR(1/F23*G23*L23,0)+IFERROR(1/F31*G31*L31,0)+IFERROR(1/F33*G33*L33,0)+IFERROR(1/F39*G39*L39,0)+IFERROR(1/F44*G44*L44,0)+IFERROR(1/F48*G48*L48,0)+IFERROR(1/F55*G55*L55,0)+IFERROR(1/F61*G61*L61,0)),2) -> 1.72 | AR10: =ROUND(SUM(IFERROR(1/Q13*R13*V13,0)+IFERROR(1/Q18*R18*V18,0)+IFERROR(1/Q23*R23*V23,0)+IFERROR(1/Q31*R31*V31,0)+IFERROR(1/Q33*R33*V33,0)+IFERROR(1/Q39*R39*V39,0)+IFERROR(1/Q44*R44*V44,0)+IFERROR(1/Q48*R48*V48,0)+IFERROR(1/Q55*R55*V55,0)+IFERROR(1/Q61*R61*V61,0)),2) -> 1.69
C11: Operation/ Operating Input | D11: Timing | E11: Unit | F11: Performance Rate (acres/hour) | G11: Fuel (gal/hr) | H11: R&M ($/hr) | I11: Capital Recovery ($/hr) | J11: Cost/Unit ($/acre) | K11: Default Cost/Unit ($/acre) | L11: Quantity of Trips/Inputs | M11: Default Quantity of Trips/Inputs | N11: Total Cost ($/acre) | Q11: Performance Rate (acres/hour) Change in Quantity (units/acre) | R11: Fuel (gal/hr) | S11: R&M ($/hr) | T11: Capital Recovery ($/hr) | U11: Cost ($/acre) Cost ($/unit) | V11: Quantity of Trips/Inputs | W11: Total Cost ($/acre) | X11: Change in Cost ($/acre) | Z11: Operation Quantity | AA11: Application Unit | AB11: Application Quantity | AC11: Application MIN | AD11: Application MAX | AE11: Default Purchase Unit | AF11: Default Input Price Lookup | AG11: Adjusted Input Quantity | AH11: Benchmark Operation Cost ($/acre) | AI11: Benchmark Labor Cost ($/acre) | AJ11: Benchmark Fuel Cost ($/acre) | AK11: Benchmark R&M Cost ($/acre) | AL11: Benchmark Capital Recovery Cost ($/acre) | AM11: Benchmark Operation Input Cost ($/acre) | AN11: Benchmark Seed Cost ($/acre) | AO11: Benchmark Chemical Cost ($/acre) | AP11: Operation Cost ($/acre) | AQ11: Labor Cost ($/acre) | AR11: Fuel Cost ($/acre) | AS11: R&M Cost ($/acre) | AT11: Capital Recovery Cost ($/acre) | AU11: Operation Input Cost ($/acre) | AV11: Seed Cost ($/acre) | AW11: Chemical Cost ($/acre) | AY11: Application Unit | AZ11: =Defaults!$M$5 -> Cotton | BA11: =Defaults!$M$6 -> Corn | BB11: =Defaults!$M$7 -> Sorghum | BC11: =Defaults!$M$8 -> Soybean | BD11: =Defaults!$M$9 -> Rice | BE11: =Defaults!$M$10 -> Peanut | BF11: =Defaults!$M$11 -> Wheat | BG11: =Defaults!$M$12 -> Est. Pasture or Hay | BI11: Application Quantity | BJ11: =Defaults!$M$5 -> Cotton | BK11: =Defaults!$M$6 -> Corn | BL11: =Defaults!$M$7 -> Sorghum | BM11: =Defaults!$M$8 -> Soybean | BN11: =Defaults!$M$9 -> Rice | BO11: =Defaults!$M$10 -> Peanut | BP11: =Defaults!$M$11 -> Wheat | BQ11: =Defaults!$M$12 -> Est. Pasture or Hay | BS11: Application MAX | BT11: =Defaults!$M$5 -> Cotton | BU11: =Defaults!$M$6 -> Corn | BV11: =Defaults!$M$7 -> Sorghum | BW11: =Defaults!$M$8 -> Soybean | BX11: =Defaults!$M$9 -> Rice | BY11: =Defaults!$M$10 -> Peanut | BZ11: =Defaults!$M$11 -> Wheat | CA11: =Defaults!$M$12 -> Est. Pasture or Hay
C12: Burndown Weed Control | D12: =IF($Z$2=Defaults!$M$5,Cotton!D12,IF($Z$2=Defaults!$M$6,Corn!D12,IF($Z$2=Defaults!$M$7,Sorghum!D12,IF($Z$2=Defaults!$M$8,Soybean!D12,IF($Z$2=Defaults!$M$9,Rice!D12,IF($Z$2=Defaults!$M$10,Peanut!D12,IF($Z$2=Defaults!$M$11,Wheat!D12,IF($Z$2=Defaults!$M$12,Pasture!D12,FALSE)))))))) -> Spring | Z12: =IF($Z$2=Defaults!$M$5,Cotton!B12,IF($Z$2=Defaults!$M$6,Corn!B12,IF($Z$2=Defaults!$M$7,Sorghum!B12,IF($Z$2=Defaults!$M$8,Soybean!B12,IF($Z$2=Defaults!$M$9,Rice!B12,IF($Z$2=Defaults!$M$10,Peanut!B12,IF($Z$2=Defaults!$M$11,Wheat!B12,IF($Z$2=Defaults!$M$12,Pasture!B12,"")))))))) -> Burndown Weed Control | AY12: BD | BI12: BD | BS12: BD
C13: Over-the-Top Sprayer 1 | F13: =IF(L13=0,0,IF(C13=Defaults!$I$27,Implements!$AK$185,IF(C13=Defaults!$I$28,Implements!$AK$186,0))) -> 61.45454545 | G13: =IF($L13=0,0,IFERROR(VLOOKUP($C13,Implements!$X$181:$AN$188,15,FALSE),0)) -> 8.36 | H13: =IF($L13=0,0,IFERROR(VLOOKUP($C13,Implements!$X$181:$AN$188,16,FALSE),0)) -> 45.04666667 | I13: =IF($L13=0,0,IFERROR(VLOOKUP($C13,Implements!$X$181:$AN$188,17,FALSE),0)) -> 137.6458252 | J13: =IF(OR(C13="",L13="",L13=0)=TRUE,"",IF(OR(C13=Defaults!$I$25,C13=Defaults!$I$26)=TRUE,VLOOKUP(C13,Defaults!$I$24:$K$27,3,FALSE),ROUND(1/F13*(1*Inputs!$AA$13+($AI$7-1)*Inputs!$AA$15),2)+ROUND(G13*Inputs!$V$13/F13,2)+ROUND(H13/F13,2)+ROUND(I13/F13,2))) -> 3.5 | K13: =IF(OR(C13="",L13="",L13=0)=TRUE,"",IF(OR(C13=Defaults!$I$25,C13=Defaults!$I$26)=TRUE,VLOOKUP(C13,Defaults!$I$24:$K$27,3,FALSE),ROUND(1/F13*(1*Inputs!$AA$13+($AI$7-1)*Inputs!$AA$15),2)+ROUND(G13*Inputs!$V$13/F13,2)+ROUND(H13/F13,2)+ROUND(I13/F13,2))) -> 3.5 | L13: 1 | M13: =AB13 -> 1 | N13: =IF(C13="",0,IF(L13=0,0,IF(L13="","",J13*L13))) -> 3.5 | Q13: =IF(V13=0,0,IF(C13=Defaults!$I$27,Implements!$AK$174,IF(C13=Defaults!$I$28,Implements!$AK$175,0))) -> 62.81269091 | R13: =IF($V13=0,0,IFERROR(VLOOKUP($C13,Implements!$X$170:$AN$177,15,FALSE),0)) -> 8.36 | S13: =IF($V13=0,0,IFERROR(VLOOKUP($C13,Implements!$X$170:$AN$177,16,FALSE),0)) -> 45.04666667 | T13: =IF($V13=0,0,IFERROR(VLOOKUP($C13,Implements!$X$170:$AN$177,17,FALSE),0)) -> 138.7259237 | U13: =IF(OR(C13="",V13="",V13=0)=TRUE,"",IF(LEFT(C13,6)="Custom",J13,ROUND(1/Q13*(1*Inputs!$AA$13+($AI$7-1)*Inputs!$AA$15),2)+ROUND(R13*Inputs!$V$13/Q13,2)+ROUND(S13/Q13,2)+ROUND(T13/Q13,2))) -> 3.44 | V13: =+L13 -> 1 | W13: =IF(C13="","",IF(V13=0,0,IF(V13="","",U13*V13))) -> 3.44 | X13: =IF(C13="","",W13-N13) -> -0.06 | Z13: =IF($Z$2=Defaults!$M$5,Cotton!B13,IF($Z$2=Defaults!$M$6,Corn!B13,IF($Z$2=Defaults!$M$7,Sorghum!B13,IF($Z$2=Defaults!$M$8,Soybean!B13,IF($Z$2=Defaults!$M$9,Rice!B13,IF($Z$2=Defaults!$M$10,Peanut!B13,IF($Z$2=Defaults!$M$11,Wheat!B13,IF($Z$2=Defaults!$M$12,Pasture!B13,"")))))))) -> Over-the-Top Sprayer 1 | AB13: =IF(C13="","",VLOOKUP(C13,Defaults!$I$24:$K$28,2,FALSE)) -> 1 | AC13: 0 | AD13: =IF(AB13="","",AB13*2) -> 2 | AG13: =+AB13 -> 1 | AH13: =N13 -> 3.5 | AI13: =ROUND(IFERROR(1/F13*(1*Inputs!$AA$13+($AI$7-1)*Inputs!$AA$15),0),2)*L13 -> 0.29 | AJ13: =ROUND(IFERROR(1/F13*G13*Inputs!$V$13,0),2)*L13 -> 0.24 | AK13: =ROUND(IFERROR(1/F13*H13,0),2)*L13 -> 0.73 | AL13: =ROUND(IFERROR(1/F13*I13,0),2)*L13 -> 2.24 | AP13: =W13 -> 3.44 | AQ13: =ROUND(IFERROR(1/Q13*(1*Inputs!$AA$13+($AI$7-1)*Inputs!$AA$15),0),2)*V13 -> 0.28 | AR13: =ROUND(IFERROR(1/Q13*R13*Inputs!$V$13,0),2)*V13 -> 0.23 | AS13: =ROUND(IFERROR(1/Q13*S13,0),2)*V13 -> 0.72 | AT13: =ROUND(IFERROR(1/Q13*T13,0),2)*V13 -> 2.21 | AZ13: =AZ11 -> Cotton | BA13: =BA11 -> Corn | BB13: Sorghum | BC13: Soybean | BD13: Rice | BE13: Peanut | BF13: Wheat | BG13: Est. Pasture or Hay | BJ13: =BJ11 -> Cotton | BK13: =BK11 -> Corn | BL13: Sorghum | BM13: Soybean | BN13: Rice | BO13: Peanut | BP13: Wheat | BQ13: Est. Pasture or Hay | BT13: =BT11 -> Cotton | BU13: =BU11 -> Corn | BV13: Sorghum | BW13: Soybean | BX13: Rice | BY13: Peanut | BZ13: Wheat | CA13: Est. Pasture or Hay
C14: Glyphosate | E14: pt | J14: 4.75 | K14: =IF(C14="","",ROUND(IF(E14=AE14,AF14,IF(AE14=$AC$2,AF14*VLOOKUP(E14,$AA$2:$AB$4,2,FALSE),IF(AE14=$AF$2,AF14*VLOOKUP(E14,$AD$2:$AE$3,2,FALSE),IF(AE14=$AI$2,AF14/VLOOKUP(E14,$AG$2:$AH$2,2,FALSE),IF(AE14=$AL$2,AF14*VLOOKUP(E14,$AJ$2:$AK$2,2,FALSE),IF(AE14=$AO$2,AF14/VLOOKUP(E14,$AM$2:$AN$2,2,FALSE),IF(AE14=$AR$2,AF14*VLOOKUP(E14,$AP$2:$AQ$3,2,FALSE)))))))),2)) -> 4.75 | L14: 2 | M14: =AB14 -> 2 | N14: =IF(C14="",0,IF(L14=0,0,IF(L14="","",J14*L14))) -> 9.5 | Q14: =IF(L14>0,ABS(V14-L14),"") -> 0.4416 | U14: =J14 -> 4.75 | V14: =IF(AG14=0,0,AG14) -> 1.5584 | W14: =IF(C14="","",IF(V14=0,0,IF(V14="","",U14*V14))) -> 7.4024 | X14: =IF(C14="","",W14-N14) -> -2.0976 | Z14: =IF($Z$2=Defaults!$M$5,Cotton!B14,IF($Z$2=Defaults!$M$6,Corn!B14,IF($Z$2=Defaults!$M$7,Sorghum!B14,IF($Z$2=Defaults!$M$8,Soybean!B14,IF($Z$2=Defaults!$M$9,Rice!B14,IF($Z$2=Defaults!$M$10,Peanut!B14,IF($Z$2=Defaults!$M$11,Wheat!B14,IF($Z$2=Defaults!$M$12,Pasture!B14,"")))))))) -> Glyphosate | AA14: =IF($C14="","",HLOOKUP($Z$2,$AZ$13:$BG$16,2,FALSE)) -> pt | AB14: =IF($C14="","",HLOOKUP($Z$2,$BJ$13:$BQ$16,2,FALSE)) -> 2 | AC14: 0 | AD14: =IF($C14="","",HLOOKUP($Z$2,$BT$13:$CA$16,2,FALSE)) -> 2 | AE14: =IF(C14="","",VLOOKUP(C14,Defaults!$AH:$AJ,2,FALSE)) -> gal | AF14: =IF(C14="","",ROUND(VLOOKUP(C14,Defaults!$AH:$AJ,3,FALSE),2)) -> 38 | AG14: =IFERROR(IF(LEFT($C$13,6)="Custom",L14,L14*(1-VLOOKUP($C$13,Implements!$A$159:$D$166,4,FALSE))),"") -> 1.5584 | AM14: =N14 -> 9.5 | AO14: =N14 -> 9.5 | AU14: =W14 -> 7.4024 | AW14: =W14 -> 7.4024 | AY14: =IF($C14="","",$C14) -> Glyphosate | AZ14: =IF($C14="","",VLOOKUP($C14,Defaults!$AL$3:$AQ$17,4,FALSE)) -> pt | BA14: =IF($C14="","",VLOOKUP($C14,Defaults!$AS$3:$AX$17,4,FALSE)) -> pt | BB14: =IF($C14="","",VLOOKUP($C14,Defaults!$AZ$3:$BE$17,4,FALSE)) -> pt | BC14: =IF($C14="","",VLOOKUP($C14,Defaults!$BG$3:$BL$16,4,FALSE)) -> pt | BD14: =IF($C14="","",VLOOKUP($C14,Defaults!$BN$3:$BS$17,4,FALSE)) -> oz | BE14: ="" ->  | BF14: ="" ->  | BG14: =IF($C14="","",VLOOKUP($C14,Defaults!$CI:$CN,4,FALSE)) -> oz | BI14: =IF($C14="","",$C14) -> Glyphosate | BJ14: =IF($C14="","",IFERROR(VLOOKUP($C14,Defaults!$AL$3:$AQ$17,5,FALSE),"")) -> 2 | BK14: =IF($C14="","",IFERROR(VLOOKUP($C14,Defaults!$AS$3:$AX$17,5,FALSE),"")) -> 2 | BL14: =IF($C14="","",IFERROR(VLOOKUP($C14,Defaults!$AZ$3:$BE$17,5,FALSE),"")) -> 2 | BM14: =IF($C14="","",IFERROR(VLOOKUP($C14,Defaults!$BG$3:$BL$16,5,FALSE),"")) -> 2 | BN14: =IF($C14="","",IFERROR(VLOOKUP($C14,Defaults!$BN$3:$BS$17,5,FALSE),"")) -> 32 | BO14: ="" ->  | BP14: ="" ->  | BQ14: =IF($C14="","",IFERROR(VLOOKUP($C14,Defaults!$CI:$CN,5,FALSE),"")) -> 16 | BS14: =IF($C14="","",$C14) -> Glyphosate | BT14: =IF($C14="","",IFERROR(VLOOKUP($C14,Defaults!$AL$3:$AQ$17,6,FALSE),"")) -> 2 | BU14: =IF($C14="","",IFERROR(VLOOKUP($C14,Defaults!$AS$3:$AX$17,6,FALSE),"")) -> 2 | BV14: =IF($C14="","",IFERROR(VLOOKUP($C14,Defaults!$AZ$3:$BE$17,6,FALSE),"")) -> 2 | BW14: =IF($C14="","",IFERROR(VLOOKUP($C14,Defaults!$BG$3:$BL$16,6,FALSE),"")) -> 2 | BX14: =IF($C14="","",IFERROR(VLOOKUP($C14,Defaults!$BN$3:$BS$17,6,FALSE),"")) -> 32 | BY14: ="" ->  | BZ14: ="" ->  | CA14: =IF($C14="","",IFERROR(VLOOKUP($C14,Defaults!$CI:$CN,6,FALSE),"")) -> 16
C15: 2,4-D | E15: oz | J15: 0.12 | K15: =IF(C15="","",ROUND(IF(E15=AE15,AF15,IF(AE15=$AC$2,AF15*VLOOKUP(E15,$AA$2:$AB$4,2,FALSE),IF(AE15=$AF$2,AF15*VLOOKUP(E15,$AD$2:$AE$3,2,FALSE),IF(AE15=$AI$2,AF15/VLOOKUP(E15,$AG$2:$AH$2,2,FALSE),IF(AE15=$AL$2,AF15*VLOOKUP(E15,$AJ$2:$AK$2,2,FALSE),IF(AE15=$AO$2,AF15/VLOOKUP(E15,$AM$2:$AN$2,2,FALSE),IF(AE15=$AR$2,AF15*VLOOKUP(E15,$AP$2:$AQ$3,2,FALSE)))))))),2)) -> 0.12 | L15: 32 | M15: =AB15 -> 32 | N15: =IF(C15="",0,IF(L15=0,0,IF(L15="","",J15*L15))) -> 3.84 | Q15: =IF(L15>0,ABS(V15-L15),"") -> 7.0656 | U15: =J15 -> 0.12 | V15: =IF(AG15=0,0,AG15) -> 24.9344 | W15: =IF(C15="","",IF(V15=0,0,IF(V15="","",U15*V15))) -> 2.992128 | X15: =IF(C15="","",W15-N15) -> -0.847872 | Z15: =IF($Z$2=Defaults!$M$5,Cotton!B15,IF($Z$2=Defaults!$M$6,Corn!B15,IF($Z$2=Defaults!$M$7,Sorghum!B15,IF($Z$2=Defaults!$M$8,Soybean!B15,IF($Z$2=Defaults!$M$9,Rice!B15,IF($Z$2=Defaults!$M$10,Peanut!B15,IF($Z$2=Defaults!$M$11,Wheat!B15,IF($Z$2=Defaults!$M$12,Pasture!B15,"")))))))) -> 2,4-D | AA15: =IF($C15="","",HLOOKUP($Z$2,$AZ$13:$BG$16,3,FALSE)) -> oz | AB15: =IF($C15="","",HLOOKUP($Z$2,$BJ$13:$BQ$16,3,FALSE)) -> 32 | AC15: 0 | AD15: =IF($C15="","",HLOOKUP($Z$2,$BT$13:$CA$16,3,FALSE)) -> 32 | AE15: =IF(C15="","",VLOOKUP(C15,Defaults!$AH:$AJ,2,FALSE)) -> gal | AF15: =IF(C15="","",ROUND(VLOOKUP(C15,Defaults!$AH:$AJ,3,FALSE),2)) -> 15.4 | AG15: =IFERROR(IF(LEFT($C$13,6)="Custom",L15,L15*(1-VLOOKUP($C$13,Implements!$A$159:$D$166,4,FALSE))),"") -> 24.9344 | AM15: =N15 -> 3.84 | AO15: =N15 -> 3.84 | AU15: =W15 -> 2.992128 | AW15: =W15 -> 2.992128 | AY15: =IF($C15="","",$C15) -> 2,4-D | AZ15: =IF($C15="","",VLOOKUP($C15,Defaults!$AL$3:$AQ$17,4,FALSE)) -> oz | BA15: =IF($C15="","",VLOOKUP($C15,Defaults!$AS$3:$AX$17,4,FALSE)) -> oz | BB15: =IF($C15="","",VLOOKUP($C15,Defaults!$AZ$3:$BE$17,4,FALSE)) ->  | BC15: =IF($C15="","",VLOOKUP($C15,Defaults!$BG$3:$BL$16,4,FALSE)) -> oz | BD15: =IF($C15="","",VLOOKUP($C15,Defaults!$BN$3:$BS$17,4,FALSE)) -> pt | BE15: ="" ->  | BF15: ="" ->  | BG15: =IF($C15="","",VLOOKUP($C15,Defaults!$CI:$CN,4,FALSE)) -> pt | BI15: =IF($C15="","",$C15) -> 2,4-D | BJ15: =IF($C15="","",IFERROR(VLOOKUP($C15,Defaults!$AL$3:$AQ$17,5,FALSE),"")) -> 32 | BK15: =IF($C15="","",IFERROR(VLOOKUP($C15,Defaults!$AS$3:$AX$17,5,FALSE),"")) -> 32 | BL15: =IF($C15="","",IFERROR(VLOOKUP($C15,Defaults!$AZ$3:$BE$17,5,FALSE),"")) ->  | BM15: =IF($C15="","",IFERROR(VLOOKUP($C15,Defaults!$BG$3:$BL$16,5,FALSE),"")) -> 32 | BN15: =IF($C15="","",IFERROR(VLOOKUP($C15,Defaults!$BN$3:$BS$17,5,FALSE),"")) -> 1 | BO15: ="" ->  | BP15: ="" ->  | BQ15: =IF($C15="","",IFERROR(VLOOKUP($C15,Defaults!$CI:$CN,5,FALSE),"")) -> 1 | BS15: =IF($C15="","",$C15) -> 2,4-D | BT15: =IF($C15="","",IFERROR(VLOOKUP($C15,Defaults!$AL$3:$AQ$17,6,FALSE),"")) -> 32 | BU15: =IF($C15="","",IFERROR(VLOOKUP($C15,Defaults!$AS$3:$AX$17,6,FALSE),"")) -> 32 | BV15: =IF($C15="","",IFERROR(VLOOKUP($C15,Defaults!$AZ$3:$BE$17,6,FALSE),"")) ->  | BW15: =IF($C15="","",IFERROR(VLOOKUP($C15,Defaults!$BG$3:$BL$16,6,FALSE),"")) -> 32 | BX15: =IF($C15="","",IFERROR(VLOOKUP($C15,Defaults!$BN$3:$BS$17,6,FALSE),"")) -> 2 | BY15: ="" ->  | BZ15: ="" ->  | CA15: =IF($C15="","",IFERROR(VLOOKUP($C15,Defaults!$CI:$CN,6,FALSE),"")) -> 4
K16: =IF(C16="","",ROUND(IF(E16=AE16,AF16,IF(AE16=$AC$2,AF16*VLOOKUP(E16,$AA$2:$AB$4,2,FALSE),IF(AE16=$AF$2,AF16*VLOOKUP(E16,$AD$2:$AE$3,2,FALSE),IF(AE16=$AI$2,AF16/VLOOKUP(E16,$AG$2:$AH$2,2,FALSE),IF(AE16=$AL$2,AF16*VLOOKUP(E16,$AJ$2:$AK$2,2,FALSE),IF(AE16=$AO$2,AF16/VLOOKUP(E16,$AM$2:$AN$2,2,FALSE),IF(AE16=$AR$2,AF16*VLOOKUP(E16,$AP$2:$AQ$3,2,FALSE)))))))),2)) ->  | M16: =AB16 ->  | N16: =IF(C16="",0,IF(L16=0,0,IF(L16="","",J16*L16))) -> 0 | Q16: =IF(L16>0,ABS(V16-L16),"") ->  | U16: =J16 -> 0 | V16: =IF(AG16=0,0,AG16) -> 0 | W16: =IF(C16="","",IF(V16=0,0,IF(V16="","",U16*V16))) ->  | X16: =IF(C16="","",W16-N16) ->  | Z16: =IF($Z$2=Defaults!$M$5,Cotton!B16,IF($Z$2=Defaults!$M$6,Corn!B16,IF($Z$2=Defaults!$M$7,Sorghum!B16,IF($Z$2=Defaults!$M$8,Soybean!B16,IF($Z$2=Defaults!$M$9,Rice!B16,IF($Z$2=Defaults!$M$10,Peanut!B16,IF($Z$2=Defaults!$M$11,Wheat!B16,IF($Z$2=Defaults!$M$12,Pasture!B16,"")))))))) ->  | AA16: =IF($C16="","",HLOOKUP($Z$2,$AZ$13:$BG$16,4,FALSE)) ->  | AB16: =IF($C16="","",HLOOKUP($Z$2,$BJ$13:$BQ$16,4,FALSE)) ->  | AC16: 0 | AD16: =IF($C16="","",HLOOKUP($Z$2,$BT$13:$CA$16,4,FALSE)) ->  | AE16: =IF(C16="","",VLOOKUP(C16,Defaults!$AH:$AJ,2,FALSE)) ->  | AF16: =IF(C16="","",ROUND(VLOOKUP(C16,Defaults!$AH:$AJ,3,FALSE),2)) ->  | AG16: =IFERROR(IF(LEFT($C$13,6)="Custom",L16,L16*(1-VLOOKUP($C$13,Implements!$A$159:$D$166,4,FALSE))),"") -> 0 | AM16: =N16 -> 0 | AO16: =N16 -> 0 | AU16: =W16 ->  | AW16: =W16 ->  | AY16: =IF($C16="","",$C16) ->  | AZ16: =IF($C16="","",VLOOKUP($C16,Defaults!$AL$3:$AQ$17,4,FALSE)) ->  | BA16: =IF($C16="","",VLOOKUP($C16,Defaults!$AS$3:$AX$17,4,FALSE)) ->  | BB16: =IF($C16="","",VLOOKUP($C16,Defaults!$AZ$3:$BE$17,4,FALSE)) ->  | BC16: =IF($C16="","",VLOOKUP($C16,Defaults!$BG$3:$BL$16,4,FALSE)) ->  | BD16: =IF($C16="","",VLOOKUP($C16,Defaults!$BN$3:$BS$17,4,FALSE)) ->  | BE16: ="" ->  | BF16: ="" ->  | BG16: =IF($C16="","",VLOOKUP($C16,Defaults!$CI:$CN,4,FALSE)) ->  | BI16: =IF($C16="","",$C16) ->  | BJ16: =IF($C16="","",IFERROR(VLOOKUP($C16,Defaults!$AL$3:$AQ$17,5,FALSE),"")) ->  | BK16: =IF($C16="","",IFERROR(VLOOKUP($C16,Defaults!$AS$3:$AX$17,5,FALSE),"")) ->  | BL16: =IF($C16="","",IFERROR(VLOOKUP($C16,Defaults!$AZ$3:$BE$17,5,FALSE),"")) ->  | BM16: =IF($C16="","",IFERROR(VLOOKUP($C16,Defaults!$BG$3:$BL$16,5,FALSE),"")) ->  | BN16: =IF($C16="","",IFERROR(VLOOKUP($C16,Defaults!$BN$3:$BS$17,5,FALSE),"")) ->  | BO16: ="" ->  | BP16: ="" ->  | BQ16: =IF($C16="","",IFERROR(VLOOKUP($C16,Defaults!$CI:$CN,5,FALSE),"")) ->  | BS16: =IF($C16="","",$C16) ->  | BT16: =IF($C16="","",IFERROR(VLOOKUP($C16,Defaults!$AL$3:$AQ$17,6,FALSE),"")) ->  | BU16: =IF($C16="","",IFERROR(VLOOKUP($C16,Defaults!$AS$3:$AX$17,6,FALSE),"")) ->  | BV16: =IF($C16="","",IFERROR(VLOOKUP($C16,Defaults!$AZ$3:$BE$17,6,FALSE),"")) ->  | BW16: =IF($C16="","",IFERROR(VLOOKUP($C16,Defaults!$BG$3:$BL$16,6,FALSE),"")) ->  | BX16: =IF($C16="","",IFERROR(VLOOKUP($C16,Defaults!$BN$3:$BS$17,6,FALSE),"")) ->  | BY16: ="" ->  | BZ16: ="" ->  | CA16: =IF($C16="","",IFERROR(VLOOKUP($C16,Defaults!$CI:$CN,6,FALSE),"")) -> 
C17: Preplant Weed Control | D17: =IF($Z$2=Defaults!$M$5,Cotton!D17,IF($Z$2=Defaults!$M$6,Corn!D17,IF($Z$2=Defaults!$M$7,Sorghum!D17,IF($Z$2=Defaults!$M$8,Soybean!D17,IF($Z$2=Defaults!$M$9,Rice!D17,IF($Z$2=Defaults!$M$10,Peanut!D17,IF($Z$2=Defaults!$M$11,Wheat!D17,IF($Z$2=Defaults!$M$12,Pasture!D17,FALSE)))))))) -> Spring | Z17: =IF($Z$2=Defaults!$M$5,Cotton!B17,IF($Z$2=Defaults!$M$6,Corn!B17,IF($Z$2=Defaults!$M$7,Sorghum!B17,IF($Z$2=Defaults!$M$8,Soybean!B17,IF($Z$2=Defaults!$M$9,Rice!B17,IF($Z$2=Defaults!$M$10,Peanut!B17,IF($Z$2=Defaults!$M$11,Wheat!B17,IF($Z$2=Defaults!$M$12,Pasture!B17,"")))))))) -> Preplant Weed Control | AY17: PP | BI17: PP | BS17: PP
F18: =IF(L18=0,0,IF(C18=Defaults!$I$27,Implements!$AK$185,IF(C18=Defaults!$I$28,Implements!$AK$186,0))) -> 0 | G18: =IF($L18=0,0,IFERROR(VLOOKUP($C18,Implements!$X$181:$AN$188,15,FALSE),0)) -> 0 | H18: =IF($L18=0,0,IFERROR(VLOOKUP($C18,Implements!$X$181:$AN$188,16,FALSE),0)) -> 0 | I18: =IF($L18=0,0,IFERROR(VLOOKUP($C18,Implements!$X$181:$AN$188,17,FALSE),0)) -> 0 | J18: =IF(OR(C18="",L18="",L18=0)=TRUE,"",IF(OR(C18=Defaults!$I$25,C18=Defaults!$I$26)=TRUE,VLOOKUP(C18,Defaults!$I$24:$K$27,3,FALSE),ROUND(1/F18*(1*Inputs!$AA$13+($AI$7-1)*Inputs!$AA$15),2)+ROUND(G18*Inputs!$V$13/F18,2)+ROUND(H18/F18,2)+ROUND(I18/F18,2))) ->  | K18: =IF(OR(C18="",L18="",L18=0)=TRUE,"",IF(OR(C18=Defaults!$I$25,C18=Defaults!$I$26)=TRUE,VLOOKUP(C18,Defaults!$I$24:$K$27,3,FALSE),ROUND(1/F18*(1*Inputs!$AA$13+($AI$7-1)*Inputs!$AA$15),2)+ROUND(G18*Inputs!$V$13/F18,2)+ROUND(H18/F18,2)+ROUND(I18/F18,2))) ->  | M18: =AB18 ->  | N18: =IF(C18="",0,IF(L18=0,0,IF(L18="","",J18*L18))) -> 0 | Q18: =IF(V18=0,0,IF(C18=Defaults!$I$27,Implements!$AK$174,IF(C18=Defaults!$I$28,Implements!$AK$175,0))) -> 0 | R18: =IF($V18=0,0,IFERROR(VLOOKUP($C18,Implements!$X$170:$AN$177,15,FALSE),0)) -> 0 | S18: =IF($V18=0,0,IFERROR(VLOOKUP($C18,Implements!$X$170:$AN$177,16,FALSE),0)) -> 0 | T18: =IF($V18=0,0,IFERROR(VLOOKUP($C18,Implements!$X$170:$AN$177,17,FALSE),0)) -> 0 | U18: =IF(OR(C18="",V18="",V18=0)=TRUE,"",IF(LEFT(C18,6)="Custom",J18,ROUND(1/Q18*(1*Inputs!$AA$13+($AI$7-1)*Inputs!$AA$15),2)+ROUND(R18*Inputs!$V$13/Q18,2)+ROUND(S18/Q18,2)+ROUND(T18/Q18,2))) ->  | V18: =+L18 -> 0 | W18: =IF(C18="","",IF(V18=0,0,IF(V18="","",U18*V18))) ->  | X18: =IF(C18="","",W18-N18) ->  | Z18: =IF($Z$2=Defaults!$M$5,Cotton!B18,IF($Z$2=Defaults!$M$6,Corn!B18,IF($Z$2=Defaults!$M$7,Sorghum!B18,IF($Z$2=Defaults!$M$8,Soybean!B18,IF($Z$2=Defaults!$M$9,Rice!B18,IF($Z$2=Defaults!$M$10,Peanut!B18,IF($Z$2=Defaults!$M$11,Wheat!B18,IF($Z$2=Defaults!$M$12,Pasture!B18,"")))))))) ->  | AB18: =IF(C18="","",VLOOKUP(C18,Defaults!$I$24:$K$28,2,FALSE)) ->  | AC18: 0 | AD18: =IF(AB18="","",AB18*2) ->  | AG18: =+AB18 ->  | AH18: =N18 -> 0 | AI18: =ROUND(IFERROR(1/F18*(1*Inputs!$AA$13+($AI$7-1)*Inputs!$AA$15),0),2)*L18 -> 0 | AJ18: =ROUND(IFERROR(1/F18*G18*Inputs!$V$13,0),2)*L18 -> 0 | AK18: =ROUND(IFERROR(1/F18*H18,0),2)*L18 -> 0 | AL18: =ROUND(IFERROR(1/F18*I18,0),2)*L18 -> 0 | AP18: =W18 ->  | AQ18: =ROUND(IFERROR(1/Q18*(1*Inputs!$AA$13+($AI$7-1)*Inputs!$AA$15),0),2)*V18 -> 0 | AR18: =ROUND(IFERROR(1/Q18*R18*Inputs!$V$13,0),2)*V18 -> 0 | AS18: =ROUND(IFERROR(1/Q18*S18,0),2)*V18 -> 0 | AT18: =ROUND(IFERROR(1/Q18*T18,0),2)*V18 -> 0 | AZ18: =AZ11 -> Cotton | BA18: =BA11 -> Corn | BB18: Sorghum | BC18: Soybean | BD18: Rice | BE18: Peanut | BF18: Wheat | BG18: Est. Pasture or Hay | BJ18: =BJ11 -> Cotton | BK18: =BK11 -> Corn | BL18: Sorghum | BM18: Soybean | BN18: Rice | BO18: Peanut | BP18: Wheat | BQ18: Est. Pasture or Hay | BT18: =BT11 -> Cotton | BU18: =BU11 -> Corn | BV18: Sorghum | BW18: Soybean | BX18: Rice | BY18: Peanut | BZ18: Wheat | CA18: Est. Pasture or Hay
K19: =IF(C19="","",ROUND(IF(E19=AE19,AF19,IF(AE19=$AC$2,AF19*VLOOKUP(E19,$AA$2:$AB$4,2,FALSE),IF(AE19=$AF$2,AF19*VLOOKUP(E19,$AD$2:$AE$3,2,FALSE),IF(AE19=$AI$2,AF19/VLOOKUP(E19,$AG$2:$AH$2,2,FALSE),IF(AE19=$AL$2,AF19*VLOOKUP(E19,$AJ$2:$AK$2,2,FALSE),IF(AE19=$AO$2,AF19/VLOOKUP(E19,$AM$2:$AN$2,2,FALSE),IF(AE19=$AR$2,AF19*VLOOKUP(E19,$AP$2:$AQ$3,2,FALSE)))))))),2)) ->  | M19: =AB19 ->  | N19: =IF(C19="",0,IF(L19=0,0,IF(L19="","",J19*L19))) -> 0 | Q19: =IF(L19>0,ABS(V19-L19),"") ->  | U19: =J19 -> 0 | V19: =IF(AG19=0,0,AG19) ->  | W19: =IF(C19="","",IF(V19=0,0,IF(V19="","",U19*V19))) ->  | X19: =IF(C19="","",W19-N19) ->  | Z19: =IF($Z$2=Defaults!$M$5,Cotton!B19,IF($Z$2=Defaults!$M$6,Corn!B19,IF($Z$2=Defaults!$M$7,Sorghum!B19,IF($Z$2=Defaults!$M$8,Soybean!B19,IF($Z$2=Defaults!$M$9,Rice!B19,IF($Z$2=Defaults!$M$10,Peanut!B19,IF($Z$2=Defaults!$M$11,Wheat!B19,IF($Z$2=Defaults!$M$12,Pasture!B19,"")))))))) ->  | AA19: =IF($C19="","",HLOOKUP($Z$2,$AZ$18:$BG$21,2,FALSE)) ->  | AB19: =IF($C19="","",HLOOKUP($Z$2,$BJ$18:$BQ$21,2,FALSE)) ->  | AC19: 0 | AD19: =IF($C19="","",HLOOKUP($Z$2,$BT$18:$CA$21,2,FALSE)) ->  | AE19: =IF(C19="","",VLOOKUP(C19,Defaults!$AH:$AJ,2,FALSE)) ->  | AF19: =IF(C19="","",ROUND(VLOOKUP(C19,Defaults!$AH:$AJ,3,FALSE),2)) ->  | AG19: =IFERROR(IF(LEFT($C$18,6)="Custom",L19,L19*(1-VLOOKUP($C$18,Implements!$A$159:$D$166,4,FALSE))),"") ->  | AM19: =N19 -> 0 | AO19: =N19 -> 0 | AU19: =W19 ->  | AW19: =W19 ->  | AY19: =IF($C19="","",$C19) ->  | AZ19: =IF($C19="","",VLOOKUP($C19,Defaults!$AL$19:$AQ$35,4,FALSE)) ->  | BA19: =IF($C19="","",VLOOKUP($C19,Defaults!$AS$19:$AX$35,4,FALSE)) ->  | BB19: =IF($C19="","",VLOOKUP($C19,Defaults!$AZ$19:$BE$35,4,FALSE)) ->  | BC19: =IF($C19="","",VLOOKUP($C19,Defaults!$BG$19:$BL$35,4,FALSE)) ->  | BD19: =IF($C19="","",VLOOKUP($C19,Defaults!$BN$19:$BS$35,4,FALSE)) ->  | BE19: =IF($C19="","",VLOOKUP($C19,Defaults!$BU$19:$BZ$35,4,FALSE)) ->  | BF19: ="" ->  | BG19: =IF($C19="","",VLOOKUP($C19,Defaults!$CI:$CN,4,FALSE)) ->  | BI19: =IF($C19="","",$C19) ->  | BJ19: =IF($C19="","",IFERROR(VLOOKUP($C19,Defaults!$AL$19:$AQ$35,5,FALSE),"")) ->  | BK19: =IF($C19="","",IFERROR(VLOOKUP($C19,Defaults!$AS$19:$AX$35,5,FALSE),"")) ->  | BL19: =IF($C19="","",IFERROR(VLOOKUP($C19,Defaults!$AZ$19:$BE$35,5,FALSE),"")) ->  | BM19: =IF($C19="","",IFERROR(VLOOKUP($C19,Defaults!$BG$19:$BL$35,5,FALSE),"")) ->  | BN19: =IF($C19="","",IFERROR(VLOOKUP($C19,Defaults!$BN$19:$BS$35,5,FALSE),"")) ->  | BO19: =IF($C19="","",IFERROR(VLOOKUP($C19,Defaults!$BU$19:$BZ$35,5,FALSE),"")) ->  | BP19: ="" ->  | BQ19: =IF($C19="","",IFERROR(VLOOKUP($C19,Defaults!$CI:$CN,5,FALSE),"")) ->  | BS19: =IF($C19="","",$C19) ->  | BT19: =IF($C19="","",IFERROR(VLOOKUP($C19,Defaults!$AL$19:$AQ$35,6,FALSE),"")) ->  | BU19: =IF($C19="","",IFERROR(VLOOKUP($C19,Defaults!$AS$19:$AX$35,6,FALSE),"")) ->  | BV19: =IF($C19="","",IFERROR(VLOOKUP($C19,Defaults!$AZ$19:$BE$35,6,FALSE),"")) ->  | BW19: =IF($C19="","",IFERROR(VLOOKUP($C19,Defaults!$BG$19:$BL$35,6,FALSE),"")) ->  | BX19: =IF($C19="","",IFERROR(VLOOKUP($C19,Defaults!$BN$19:$BS$35,6,FALSE),"")) ->  | BY19: =IF($C19="","",IFERROR(VLOOKUP($C19,Defaults!$BU$19:$BZ$35,6,FALSE),"")) ->  | BZ19: ="" ->  | CA19: =IF($C19="","",IFERROR(VLOOKUP($C19,Defaults!$CI:$CN,6,FALSE),"")) -> 
K20: =IF(C20="","",ROUND(IF(E20=AE20,AF20,IF(AE20=$AC$2,AF20*VLOOKUP(E20,$AA$2:$AB$4,2,FALSE),IF(AE20=$AF$2,AF20*VLOOKUP(E20,$AD$2:$AE$3,2,FALSE),IF(AE20=$AI$2,AF20/VLOOKUP(E20,$AG$2:$AH$2,2,FALSE),IF(AE20=$AL$2,AF20*VLOOKUP(E20,$AJ$2:$AK$2,2,FALSE),IF(AE20=$AO$2,AF20/VLOOKUP(E20,$AM$2:$AN$2,2,FALSE),IF(AE20=$AR$2,AF20*VLOOKUP(E20,$AP$2:$AQ$3,2,FALSE)))))))),2)) ->  | M20: =AB20 ->  | N20: =IF(C20="",0,IF(L20=0,0,IF(L20="","",J20*L20))) -> 0 | Q20: =IF(L20>0,ABS(V20-L20),"") ->  | U20: =J20 -> 0 | V20: =IF(AG20=0,0,AG20) ->  | W20: =IF(C20="","",IF(V20=0,0,IF(V20="","",U20*V20))) ->  | X20: =IF(C20="","",W20-N20) ->  | Z20: =IF($Z$2=Defaults!$M$5,Cotton!B20,IF($Z$2=Defaults!$M$6,Corn!B20,IF($Z$2=Defaults!$M$7,Sorghum!B20,IF($Z$2=Defaults!$M$8,Soybean!B20,IF($Z$2=Defaults!$M$9,Rice!B20,IF($Z$2=Defaults!$M$10,Peanut!B20,IF($Z$2=Defaults!$M$11,Wheat!B20,IF($Z$2=Defaults!$M$12,Pasture!B20,"")))))))) ->  | AA20: =IF($C20="","",HLOOKUP($Z$2,$AZ$18:$BG$21,3,FALSE)) ->  | AB20: =IF($C20="","",HLOOKUP($Z$2,$BJ$18:$BQ$21,3,FALSE)) ->  | AC20: 0 | AD20: =IF($C20="","",HLOOKUP($Z$2,$BT$18:$CA$21,3,FALSE)) ->  | AE20: =IF(C20="","",VLOOKUP(C20,Defaults!$AH:$AJ,2,FALSE)) ->  | AF20: =IF(C20="","",ROUND(VLOOKUP(C20,Defaults!$AH:$AJ,3,FALSE),2)) ->  | AG20: =IFERROR(IF(LEFT($C$18,6)="Custom",L20,L20*(1-VLOOKUP($C$18,Implements!$A$159:$D$166,4,FALSE))),"") ->  | AM20: =N20 -> 0 | AO20: =N20 -> 0 | AU20: =W20 ->  | AW20: =W20 ->  | AY20: =IF($C20="","",$C20) ->  | AZ20: =IF($C20="","",VLOOKUP($C20,Defaults!$AL$19:$AQ$35,4,FALSE)) ->  | BA20: =IF($C20="","",VLOOKUP($C20,Defaults!$AS$19:$AX$35,4,FALSE)) ->  | BB20: =IF($C20="","",VLOOKUP($C20,Defaults!$AZ$19:$BE$35,4,FALSE)) ->  | BC20: =IF($C20="","",VLOOKUP($C20,Defaults!$BG$19:$BL$35,4,FALSE)) ->  | BD20: =IF($C20="","",VLOOKUP($C20,Defaults!$BN$19:$BS$35,4,FALSE)) ->  | BE20: =IF($C20="","",VLOOKUP($C20,Defaults!$BU$19:$BZ$35,4,FALSE)) ->  | BF20: ="" ->  | BG20: =IF($C20="","",VLOOKUP($C20,Defaults!$CI:$CN,4,FALSE)) ->  | BI20: =IF($C20="","",$C20) ->  | BJ20: =IF($C20="","",IFERROR(VLOOKUP($C20,Defaults!$AL$19:$AQ$35,5,FALSE),"")) ->  | BK20: =IF($C20="","",IFERROR(VLOOKUP($C20,Defaults!$AS$19:$AX$35,5,FALSE),"")) ->  | BL20: =IF($C20="","",IFERROR(VLOOKUP($C20,Defaults!$AZ$19:$BE$35,5,FALSE),"")) ->  | BM20: =IF($C20="","",IFERROR(VLOOKUP($C20,Defaults!$BG$19:$BL$35,5,FALSE),"")) ->  | BN20: =IF($C20="","",IFERROR(VLOOKUP($C20,Defaults!$BN$19:$BS$35,5,FALSE),"")) ->  | BO20: =IF($C20="","",IFERROR(VLOOKUP($C20,Defaults!$BU$19:$BZ$35,5,FALSE),"")) ->  | BP20: ="" ->  | BQ20: =IF($C20="","",IFERROR(VLOOKUP($C20,Defaults!$CI:$CN,5,FALSE),"")) ->  | BS20: =IF($C20="","",$C20) ->  | BT20: =IF($C20="","",IFERROR(VLOOKUP($C20,Defaults!$AL$19:$AQ$35,6,FALSE),"")) ->  | BU20: =IF($C20="","",IFERROR(VLOOKUP($C20,Defaults!$AS$19:$AX$35,6,FALSE),"")) ->  | BV20: =IF($C20="","",IFERROR(VLOOKUP($C20,Defaults!$AZ$19:$BE$35,6,FALSE),"")) ->  | BW20: =IF($C20="","",IFERROR(VLOOKUP($C20,Defaults!$BG$19:$BL$35,6,FALSE),"")) ->  | BX20: =IF($C20="","",IFERROR(VLOOKUP($C20,Defaults!$BN$19:$BS$35,6,FALSE),"")) ->  | BY20: =IF($C20="","",IFERROR(VLOOKUP($C20,Defaults!$BU$19:$BZ$35,6,FALSE),"")) ->  | BZ20: ="" ->  | CA20: =IF($C20="","",IFERROR(VLOOKUP($C20,Defaults!$CI:$CN,6,FALSE),"")) -> 
K21: =IF(C21="","",ROUND(IF(E21=AE21,AF21,IF(AE21=$AC$2,AF21*VLOOKUP(E21,$AA$2:$AB$4,2,FALSE),IF(AE21=$AF$2,AF21*VLOOKUP(E21,$AD$2:$AE$3,2,FALSE),IF(AE21=$AI$2,AF21/VLOOKUP(E21,$AG$2:$AH$2,2,FALSE),IF(AE21=$AL$2,AF21*VLOOKUP(E21,$AJ$2:$AK$2,2,FALSE),IF(AE21=$AO$2,AF21/VLOOKUP(E21,$AM$2:$AN$2,2,FALSE),IF(AE21=$AR$2,AF21*VLOOKUP(E21,$AP$2:$AQ$3,2,FALSE)))))))),2)) ->  | M21: =AB21 ->  | N21: =IF(C21="",0,IF(L21=0,0,IF(L21="","",J21*L21))) -> 0 | Q21: =IF(L21>0,ABS(V21-L21),"") ->  | U21: =J21 -> 0 | V21: =IF(AG21=0,0,AG21) ->  | W21: =IF(C21="","",IF(V21=0,0,IF(V21="","",U21*V21))) ->  | X21: =IF(C21="","",W21-N21) ->  | Z21: =IF($Z$2=Defaults!$M$5,Cotton!B21,IF($Z$2=Defaults!$M$6,Corn!B21,IF($Z$2=Defaults!$M$7,Sorghum!B21,IF($Z$2=Defaults!$M$8,Soybean!B21,IF($Z$2=Defaults!$M$9,Rice!B21,IF($Z$2=Defaults!$M$10,Peanut!B21,IF($Z$2=Defaults!$M$11,Wheat!B21,IF($Z$2=Defaults!$M$12,Pasture!B21,"")))))))) ->  | AA21: =IF($C21="","",HLOOKUP($Z$2,$AZ$18:$BG$21,4,FALSE)) ->  | AB21: =IF($C21="","",HLOOKUP($Z$2,$BJ$18:$BQ$21,4,FALSE)) ->  | AC21: 0 | AD21: =IF($C21="","",HLOOKUP($Z$2,$BT$18:$CA$21,4,FALSE)) ->  | AE21: =IF(C21="","",VLOOKUP(C21,Defaults!$AH:$AJ,2,FALSE)) ->  | AF21: =IF(C21="","",ROUND(VLOOKUP(C21,Defaults!$AH:$AJ,3,FALSE),2)) ->  | AG21: =IFERROR(IF(LEFT($C$18,6)="Custom",L21,L21*(1-VLOOKUP($C$18,Implements!$A$159:$D$166,4,FALSE))),"") ->  | AM21: =N21 -> 0 | AO21: =N21 -> 0 | AU21: =W21 ->  | AW21: =W21 ->  | AY21: =IF($C21="","",$C21) ->  | AZ21: =IF($C21="","",VLOOKUP($C21,Defaults!$AL$19:$AQ$35,4,FALSE)) ->  | BA21: =IF($C21="","",VLOOKUP($C21,Defaults!$AS$19:$AX$35,4,FALSE)) ->  | BB21: =IF($C21="","",VLOOKUP($C21,Defaults!$AZ$19:$BE$35,4,FALSE)) ->  | BC21: =IF($C21="","",VLOOKUP($C21,Defaults!$BG$19:$BL$35,4,FALSE)) ->  | BD21: =IF($C21="","",VLOOKUP($C21,Defaults!$BN$19:$BS$35,4,FALSE)) ->  | BE21: =IF($C21="","",VLOOKUP($C21,Defaults!$BU$19:$BZ$35,4,FALSE)) ->  | BF21: ="" ->  | BG21: =IF($C21="","",VLOOKUP($C21,Defaults!$CI:$CN,4,FALSE)) ->  | BI21: =IF($C21="","",$C21) ->  | BJ21: =IF($C21="","",IFERROR(VLOOKUP($C21,Defaults!$AL$19:$AQ$35,5,FALSE),"")) ->  | BK21: =IF($C21="","",IFERROR(VLOOKUP($C21,Defaults!$AS$19:$AX$35,5,FALSE),"")) ->  | BL21: =IF($C21="","",IFERROR(VLOOKUP($C21,Defaults!$AZ$19:$BE$35,5,FALSE),"")) ->  | BM21: =IF($C21="","",IFERROR(VLOOKUP($C21,Defaults!$BG$19:$BL$35,5,FALSE),"")) ->  | BN21: =IF($C21="","",IFERROR(VLOOKUP($C21,Defaults!$BN$19:$BS$35,5,FALSE),"")) ->  | BO21: =IF($C21="","",IFERROR(VLOOKUP($C21,Defaults!$BU$19:$BZ$35,5,FALSE),"")) ->  | BP21: ="" ->  | BQ21: =IF($C21="","",IFERROR(VLOOKUP($C21,Defaults!$CI:$CN,5,FALSE),"")) ->  | BS21: =IF($C21="","",$C21) ->  | BT21: =IF($C21="","",IFERROR(VLOOKUP($C21,Defaults!$AL$19:$AQ$35,6,FALSE),"")) ->  | BU21: =IF($C21="","",IFERROR(VLOOKUP($C21,Defaults!$AS$19:$AX$35,6,FALSE),"")) ->  | BV21: =IF($C21="","",IFERROR(VLOOKUP($C21,Defaults!$AZ$19:$BE$35,6,FALSE),"")) ->  | BW21: =IF($C21="","",IFERROR(VLOOKUP($C21,Defaults!$BG$19:$BL$35,6,FALSE),"")) ->  | BX21: =IF($C21="","",IFERROR(VLOOKUP($C21,Defaults!$BN$19:$BS$35,6,FALSE),"")) ->  | BY21: =IF($C21="","",IFERROR(VLOOKUP($C21,Defaults!$BU$19:$BZ$35,6,FALSE),"")) ->  | BZ21: ="" ->  | CA21: =IF($C21="","",IFERROR(VLOOKUP($C21,Defaults!$CI:$CN,6,FALSE),"")) -> 
C22: Field Preparation | D22: =IF($Z$2=Defaults!$M$5,Cotton!D22,IF($Z$2=Defaults!$M$6,Corn!D22,IF($Z$2=Defaults!$M$7,Sorghum!D22,IF($Z$2=Defaults!$M$8,Soybean!D22,IF($Z$2=Defaults!$M$9,Rice!D22,IF($Z$2=Defaults!$M$10,Peanut!D22,IF($Z$2=Defaults!$M$11,Wheat!D22,IF($Z$2=Defaults!$M$12,Pasture!D22,FALSE)))))))) -> Spring | Z22: =IF($Z$2=Defaults!$M$5,Cotton!B22,IF($Z$2=Defaults!$M$6,Corn!B22,IF($Z$2=Defaults!$M$7,Sorghum!B22,IF($Z$2=Defaults!$M$8,Soybean!B22,IF($Z$2=Defaults!$M$9,Rice!B22,IF($Z$2=Defaults!$M$10,Peanut!B22,IF($Z$2=Defaults!$M$11,Wheat!B22,IF($Z$2=Defaults!$M$12,Pasture!B22,"")))))))) -> Field Preparation
C23: Fertilizer Spreader | F23: =IF(L23=0,0,IF(C23=Defaults!$I$37,Implements!$AK$187,0)) -> 23.75757576 | G23: =IF($L23=0,0,IFERROR(VLOOKUP($C23,Implements!$X$181:$AN$188,15,FALSE),0)) -> 8.36 | H23: =IF($L23=0,0,IFERROR(VLOOKUP($C23,Implements!$X$181:$AN$188,16,FALSE),0)) -> 17.16666667 | I23: =IF($L23=0,0,IFERROR(VLOOKUP($C23,Implements!$X$181:$AN$188,17,FALSE),0)) -> 93.00305105 | J23: =IF(OR(C23="",L23="",L23=0)=TRUE,"",IF(C23=Defaults!$I$36,VLOOKUP(C23,Defaults!$I$35:$K$37,3,FALSE),ROUND(1/F23*(1*Inputs!$AA$13+($AI$9-1)*Inputs!$AA$15),2)+ROUND(G23*Inputs!$V$13/F23,2)+ROUND(H23/F23,2)+ROUND(I23/F23,2))) -> 5.99 | K23: =IF(OR(C23="",L23="",L23=0)=TRUE,"",IF(C23=Defaults!$I$36,VLOOKUP(C23,Defaults!$I$35:$K$37,3,FALSE),ROUND(1/F23*(1*Inputs!$AA$13+($AI$9-1)*Inputs!$AA$15),2)+ROUND(G23*Inputs!$V$13/F23,2)+ROUND(H23/F23,2)+ROUND(I23/F23,2))) -> 5.99 | L23: 1 | M23: =AB23 -> 1 | N23: =IF(C23="",0,IF(L23=0,0,IF(L23="","",J23*L23))) -> 5.99 | Q23: =IF(V23=0,0,IF(C23=Defaults!$I$37,Implements!$AK$176,0)) -> 24.28261818 | R23: =IF($V23=0,0,IFERROR(VLOOKUP($C23,Implements!$X$170:$AN$177,15,FALSE),0)) -> 8.36 | S23: =IF($V23=0,0,IFERROR(VLOOKUP($C23,Implements!$X$170:$AN$177,16,FALSE),0)) -> 17.16666667 | T23: =IF($V23=0,0,IFERROR(VLOOKUP($C23,Implements!$X$170:$AN$177,17,FALSE),0)) -> 93.71247358 | U23: =IF(OR(C23="",V23="",V23=0)=TRUE,"",IF(LEFT(C23,6)="Custom",J23,ROUND(1/Q23*(1*Inputs!$AA$13+($AI$9-1)*Inputs!$AA$15),2)+ROUND(R23*Inputs!$V$13/Q23,2)+ROUND(S23/Q23,2)+ROUND(T23/Q23,2))) -> 5.9 | V23: =+L23 -> 1 | W23: =IF(C23="","",IF(V23=0,0,IF(V23="","",U23*V23))) -> 5.9 | X23: =IF(C23="","",W23-N23) -> -0.09 | Z23: =IF($Z$2=Defaults!$M$5,Cotton!B23,IF($Z$2=Defaults!$M$6,Corn!B23,IF($Z$2=Defaults!$M$7,Sorghum!B23,IF($Z$2=Defaults!$M$8,Soybean!B23,IF($Z$2=Defaults!$M$9,Rice!B23,IF($Z$2=Defaults!$M$10,Peanut!B23,IF($Z$2=Defaults!$M$11,Wheat!B23,IF($Z$2=Defaults!$M$12,Pasture!B23,"")))))))) -> Fertilizer Spreader | AB23: =IF(C23="","",HLOOKUP(Z2,Defaults!$X$2:$AE$14,13,FALSE)) -> 1 | AC23: 0 | AD23: =IF(AB23="","",AB23*2) -> 2 | AG23: =+AB23 -> 1 | AH23: =N23 -> 5.99 | AI23: =ROUND(IFERROR(1/F23*(1*Inputs!$AA$13+($AI$7-1)*Inputs!$AA$15),0),2)*L23 -> 0.74 | AJ23: =ROUND(IFERROR(1/F23*G23*Inputs!$V$13,0),2)*L23 -> 0.62 | AK23: =ROUND(IFERROR(1/F23*H23,0),2)*L23 -> 0.72 | AL23: =ROUND(IFERROR(1/F23*I23,0),2)*L23 -> 3.91 | AP23: =W23 -> 5.9 | AQ23: =ROUND(IFERROR(1/Q23*(1*Inputs!$AA$13+($AI$7-1)*Inputs!$AA$15),0),2)*V23 -> 0.73 | AR23: =ROUND(IFERROR(1/Q23*R23*Inputs!$V$13,0),2)*V23 -> 0.6 | AS23: =ROUND(IFERROR(1/Q23*S23,0),2)*V23 -> 0.71 | AT23: =ROUND(IFERROR(1/Q23*T23,0),2)*V23 -> 3.86
C24: Triple Superphosphate [0-45-0] | E24: lb | J24: 0.2 | K24: =IF(C24="","",ROUND(IF(E24=AE24,AF24,IF(AE24=$AC$2,AF24*VLOOKUP(E24,$AA$2:$AB$4,2,FALSE),IF(AE24=$AF$2,AF24*VLOOKUP(E24,$AD$2:$AE$3,2,FALSE),IF(AE24=$AI$2,AF24/VLOOKUP(E24,$AG$2:$AH$2,2,FALSE),IF(AE24=$AL$2,AF24*VLOOKUP(E24,$AJ$2:$AK$2,2,FALSE),IF(AE24=$AO$2,AF24/VLOOKUP(E24,$AM$2:$AN$2,2,FALSE),IF(AE24=$AR$2,AF24*VLOOKUP(E24,$AP$2:$AQ$3,2,FALSE)))))))),2)) -> 0.2 | L24: 90 | M24: 90 | N24: 18 | Q24: =IF(L24>0,ABS(V24-L24),"") -> 2.016 | U24: =J24 -> 0.2 | V24: =IF(AG24=0,0,AG24) -> 87.984 | W24: 17.5968 | X24: -0.4032 | Z24: =IF($Z$2=Defaults!$M$5,Cotton!B24,IF($Z$2=Defaults!$M$6,Corn!B24,IF($Z$2=Defaults!$M$7,Sorghum!B24,IF($Z$2=Defaults!$M$8,Soybean!B24,IF($Z$2=Defaults!$M$9,Rice!B24,IF($Z$2=Defaults!$M$10,Peanut!B24,IF($Z$2=Defaults!$M$11,Wheat!B24,IF($Z$2=Defaults!$M$12,Pasture!B24,"")))))))) -> Triple Superphosphate [0-45-0] | AA24: =IF(C24="","",VLOOKUP(C24,Defaults!$T$3:$AE$13,4,FALSE)) -> lb | AB24: =IF(C24="","",IFERROR(VLOOKUP(C24,Defaults!$T$3:$AE$13,$Z$9,FALSE),"")) -> 90 | AC24: 0 | AE24: =IF(C24="","",VLOOKUP(C24,Defaults!$T$3:$V$13,2,FALSE)) -> cwt | AF24: =IF(C24="","",ROUND(VLOOKUP(C24,Defaults!$T$3:$V$13,3,FALSE),2)) -> 21.88 | AG24: =IFERROR(IF(LEFT($C$23,6)="Custom",L24,L24*(1-VLOOKUP($C$23,Implements!$A$159:$D$166,4,FALSE))),"") -> 87.984 | AM24: =N24 -> 18 | AO24: =N24 -> 18 | AU24: =W24 -> 17.5968 | AW24: =W24 -> 17.5968
C25: Potash [0-0-60] | E25: lb | J25: 0.15 | K25: 0.15 | L25: 100 | M25: 100 | N25: 15 | Q25: 2.24 | U25: 0.15 | V25: 97.76 | W25: 14.664 | X25: -0.336 | Z25: =IF($Z$2=Defaults!$M$5,Cotton!B25,IF($Z$2=Defaults!$M$6,Corn!B25,IF($Z$2=Defaults!$M$7,Sorghum!B25,IF($Z$2=Defaults!$M$8,Soybean!B25,IF($Z$2=Defaults!$M$9,Rice!B25,IF($Z$2=Defaults!$M$10,Peanut!B25,IF($Z$2=Defaults!$M$11,Wheat!B25,IF($Z$2=Defaults!$M$12,Pasture!B25,"")))))))) -> Potash [0-0-60] | AA25: =IF(C25="","",VLOOKUP(C25,Defaults!$T$3:$AE$13,4,FALSE)) -> lb | AB25: =IF(C25="","",IFERROR(VLOOKUP(C25,Defaults!$T$3:$AE$13,$Z$9,FALSE),"")) -> 100 | AC25: 0 | AE25: =IF(C25="","",VLOOKUP(C25,Defaults!$T$3:$V$13,2,FALSE)) -> cwt | AF25: =IF(C25="","",ROUND(VLOOKUP(C25,Defaults!$T$3:$V$13,3,FALSE),2)) -> 16.97 | AG25: =IFERROR(IF(LEFT($C$23,6)="Custom",L25,L25*(1-VLOOKUP($C$23,Implements!$A$159:$D$166,4,FALSE))),"") -> 97.76 | AM25: 15 | AO25: 15 | AU25: 14.664 | AW25: 14.664
N26: 0 | U26: 0 | V26: 0 | Z26: =IF($Z$2=Defaults!$M$5,Cotton!B26,IF($Z$2=Defaults!$M$6,Corn!B26,IF($Z$2=Defaults!$M$7,Sorghum!B26,IF($Z$2=Defaults!$M$8,Soybean!B26,IF($Z$2=Defaults!$M$9,Rice!B26,IF($Z$2=Defaults!$M$10,Peanut!B26,IF($Z$2=Defaults!$M$11,Wheat!B26,IF($Z$2=Defaults!$M$12,Pasture!B26,"")))))))) ->  | AA26: =IF(C26="","",VLOOKUP(C26,Defaults!$T$3:$AE$13,4,FALSE)) ->  | AB26: =IF(C26="","",IFERROR(VLOOKUP(C26,Defaults!$T$3:$AE$13,$Z$9,FALSE),"")) ->  | AC26: 0 | AE26: =IF(C26="","",VLOOKUP(C26,Defaults!$T$3:$V$13,2,FALSE)) ->  | AF26: =IF(C26="","",ROUND(VLOOKUP(C26,Defaults!$T$3:$V$13,3,FALSE),2)) ->  | AG26: =IFERROR(IF(LEFT($C$23,6)="Custom",L26,L26*(1-VLOOKUP($C$23,Implements!$A$159:$D$166,4,FALSE))),"") -> 0 | AM26: 0 | AO26: 0
N27: 0 | U27: 0 | V27: 0 | Z27: =IF($Z$2=Defaults!$M$5,Cotton!B27,IF($Z$2=Defaults!$M$6,Corn!B27,IF($Z$2=Defaults!$M$7,Sorghum!B27,IF($Z$2=Defaults!$M$8,Soybean!B27,IF($Z$2=Defaults!$M$9,Rice!B27,IF($Z$2=Defaults!$M$10,Peanut!B27,IF($Z$2=Defaults!$M$11,Wheat!B27,IF($Z$2=Defaults!$M$12,Pasture!B27,"")))))))) ->  | AA27: =IF(C27="","",VLOOKUP(C27,Defaults!$T$3:$AE$13,4,FALSE)) ->  | AB27: =IF(C27="","",IFERROR(VLOOKUP(C27,Defaults!$T$3:$AE$13,$Z$9,FALSE),"")) ->  | AC27: 0 | AE27: =IF(C27="","",VLOOKUP(C27,Defaults!$T$3:$V$13,2,FALSE)) ->  | AF27: =IF(C27="","",ROUND(VLOOKUP(C27,Defaults!$T$3:$V$13,3,FALSE),2)) ->  | AG27: =IFERROR(IF(LEFT($C$23,6)="Custom",L27,L27*(1-VLOOKUP($C$23,Implements!$A$159:$D$166,4,FALSE))),"") -> 0 | AM27: 0 | AO27: 0
N28: 0 | U28: 0 | V28: 0 | Z28: =IF($Z$2=Defaults!$M$5,Cotton!B28,IF($Z$2=Defaults!$M$6,Corn!B28,IF($Z$2=Defaults!$M$7,Sorghum!B28,IF($Z$2=Defaults!$M$8,Soybean!B28,IF($Z$2=Defaults!$M$9,Rice!B28,IF($Z$2=Defaults!$M$10,Peanut!B28,IF($Z$2=Defaults!$M$11,Wheat!B28,IF($Z$2=Defaults!$M$12,Pasture!B28,"")))))))) ->  | AA28: =IF(C28="","",VLOOKUP(C28,Defaults!$T$3:$AE$13,4,FALSE)) ->  | AB28: =IF(C28="","",IFERROR(VLOOKUP(C28,Defaults!$T$3:$AE$13,$Z$9,FALSE),"")) ->  | AC28: 0 | AE28: =IF(C28="","",VLOOKUP(C28,Defaults!$T$3:$V$13,2,FALSE)) ->  | AF28: =IF(C28="","",ROUND(VLOOKUP(C28,Defaults!$T$3:$V$13,3,FALSE),2)) ->  | AG28: =IFERROR(IF(LEFT($C$23,6)="Custom",L28,L28*(1-VLOOKUP($C$23,Implements!$A$159:$D$166,4,FALSE))),"") -> 0 | AM28: 0 | AO28: 0
N29: 0 | U29: 0 | V29: 0 | Z29: =IF($Z$2=Defaults!$M$5,Cotton!B29,IF($Z$2=Defaults!$M$6,Corn!B29,IF($Z$2=Defaults!$M$7,Sorghum!B29,IF($Z$2=Defaults!$M$8,Soybean!B29,IF($Z$2=Defaults!$M$9,Rice!B29,IF($Z$2=Defaults!$M$10,Peanut!B29,IF($Z$2=Defaults!$M$11,Wheat!B29,IF($Z$2=Defaults!$M$12,Pasture!B29,"")))))))) ->  | AA29: =IF(C29="","",VLOOKUP(C29,Defaults!$T$3:$AE$13,4,FALSE)) ->  | AB29: =IF(C29="","",IFERROR(VLOOKUP(C29,Defaults!$T$3:$AE$13,$Z$9,FALSE),"")) ->  | AC29: 1 | AE29: =IF(C29="","",VLOOKUP(C29,Defaults!$T$3:$V$13,2,FALSE)) ->  | AF29: =IF(C29="","",ROUND(VLOOKUP(C29,Defaults!$T$3:$V$13,3,FALSE),2)) ->  | AG29: =IFERROR(IF(LEFT($C$23,6)="Custom",L29,L29*(1-VLOOKUP($C$23,Implements!$A$159:$D$166,4,FALSE))),"") -> 0 | AM29: 0 | AO29: 0
C30: Planting, Insecticide and Fungicide Application | Z30: =IF($Z$2=Defaults!$M$5,Cotton!B30,IF($Z$2=Defaults!$M$6,Corn!B30,IF($Z$2=Defaults!$M$7,Sorghum!B30,IF($Z$2=Defaults!$M$8,Soybean!B30,IF($Z$2=Defaults!$M$9,Rice!B30,IF($Z$2=Defaults!$M$10,Peanut!B30,IF($Z$2=Defaults!$M$11,Wheat!B30,IF($Z$2=Defaults!$M$12,Pasture!B30,"")))))))) -> Planting, Insecticide and Fungicide Application | AY30: Insecticide - Defoliant/Fertilizer/Innoculant/Litter - Fungicide/Growth Regulator | BI30: Insecticide - Defoliant/Fertilizer/Innoculant/Litter - Fungicide/Growth Regulator
C31: Row Planter 1 | F31: =IF($L31=0,0,IF($C31=Defaults!$I$9,Implements!$AK$181,IF(C31=Defaults!$I$10,Implements!$AK$182,IF($C31=Defaults!$I$7,Implements!$AK$183,IF(C31=Defaults!$I$8,Implements!$AK$184,0))))) -> 8.666666667 | G31: =IF($L31=0,0,IFERROR(VLOOKUP($C31,Implements!$X$181:$AN$188,15,FALSE),0)) -> 8.36 | H31: =IF($L31=0,0,IFERROR(VLOOKUP($C31,Implements!$X$181:$AN$188,16,FALSE),0)) -> 43.46666667 | I31: =IF($L31=0,0,IFERROR(VLOOKUP($C31,Implements!$X$181:$AN$188,17,FALSE),0)) -> 118.5407197 | J31: =IF(OR(C31="",L31="",L31=0)=TRUE,"",IF(OR(C31=Defaults!$I$5,C31=Defaults!$I$6)=TRUE,$AT$4,IF(OR(C31=AV2,C31=AV3,C31=AV4,C31=AV5,C31=AV6,C31=AV7)=TRUE,ROUND(1/F31*(1*Inputs!$AA$13+($AI$8-1)*Inputs!$AA$15),2)+ROUND(G31*Inputs!$V$13/F31,2)+ROUND(H31*1/F31,2)+ROUND(I31/F31,2)))) -> 22.43 | K31: =IF(OR(C31="",L31="",L31=0)=TRUE,"",IF(OR(C31=Defaults!$I$5,C31=Defaults!$I$6)=TRUE,$AT$4,IF(OR(C31=AV2,C31=AV3,C31=AV4,C31=AV5,C31=AV6,C31=AV7)=TRUE,ROUND(1/F31*(1*Inputs!$AA$13+($AI$8-1)*Inputs!$AA$15),2)+ROUND(G31*Inputs!$V$13/F31,2)+ROUND(H31*1/F31,2)+ROUND(I31/F31,2)))) -> 22.43 | L31: 1 | M31: =AB31 -> 1 | N31: =IF(C31="",0,IF(L31=0,0,IF(L31="","",J31*L31))) -> 22.43 | Q31: =IF($V31=0,0,IF($C31=Defaults!$I$9,Implements!$AK$170,IF(C31=Defaults!$I$10,Implements!$AK$171,IF($C31=Defaults!$I$7,Implements!$AK$172,IF(C31=Defaults!$I$8,Implements!$AK$173,0))))) -> 8.8582 | R31: =IF($V31=0,0,IFERROR(VLOOKUP($C31,Implements!$X$170:$AN$177,15,FALSE),0)) -> 8.36 | S31: =IF($V31=0,0,IFERROR(VLOOKUP($C31,Implements!$X$170:$AN$177,16,FALSE),0)) -> 43.46666667 | T31: =IF($V31=0,0,IFERROR(VLOOKUP($C31,Implements!$X$170:$AN$177,17,FALSE),0)) -> 119.3106573 | U31: =IF(OR(C31="",V31="",V31=0)=TRUE,"",IF(LEFT(C31,6)="Custom",J31,ROUND(1/Q31*(1*Inputs!$AA$13+($AI$8-1)*Inputs!$AA$15),2)+ROUND(R31*Inputs!$V$13/Q31,2)+ROUND(S31*1/Q31,2)+ROUND(T31/Q31,2))) -> 22.02 | V31: =+L31 -> 1 | W31: =IF(C31="","",IF(V31=0,0,IF(V31="","",U31*V31))) -> 22.02 | X31: =IF(C31="","",W31-N31) -> -0.41 | Z31: =IF($Z$2=Defaults!$M$5,Cotton!B31,IF($Z$2=Defaults!$M$6,Corn!B31,IF($Z$2=Defaults!$M$7,Sorghum!B31,IF($Z$2=Defaults!$M$8,Soybean!B31,IF($Z$2=Defaults!$M$9,Rice!B31,IF($Z$2=Defaults!$M$10,Peanut!B31,IF($Z$2=Defaults!$M$11,Wheat!B31,IF($Z$2=Defaults!$M$12,Pasture!B31,"")))))))) -> Row Planter 1 | AB31: =IF(C31="","",IF($Z$2=Defaults!$M$8,VLOOKUP(C31,Defaults!$I$4:$J$10,2,FALSE),IF(OR($Z$2=Defaults!$M$9,$Z$2=Defaults!$M$11,$Z$2=Defaults!$M$12),VLOOKUP(C31,Defaults!$I$12:$J$16,2,FALSE),VLOOKUP(C31,Defaults!$I$18:$J$22,2,FALSE)))) -> 1 | AC31: 0 | AD31: =IF(AB31="","",AB31*2) -> 2 | AG31: =+AB31 -> 1 | AH31: =N31 -> 22.43 | AI31: =ROUND(IFERROR(1/F31*(1*Inputs!$AA$13+($AI$7-1)*Inputs!$AA$15),0),2)*L31 -> 2.04 | AJ31: =ROUND(IFERROR(1/F31*G31*Inputs!$V$13,0),2)*L31 -> 1.69 | AK31: =ROUND(IFERROR(1/F31*H31,0),2)*L31 -> 5.02 | AL31: =ROUND(IFERROR(1/F31*I31,0),2)*L31 -> 13.68 | AP31: =W31 -> 22.02 | AQ31: =ROUND(IFERROR(1/Q31*(1*Inputs!$AA$13+($AI$7-1)*Inputs!$AA$15),0),2)*V31 -> 1.99 | AR31: =ROUND(IFERROR(1/Q31*R31*Inputs!$V$13,0),2)*V31 -> 1.65 | AS31: =ROUND(IFERROR(1/Q31*S31,0),2)*V31 -> 4.91 | AT31: =ROUND(IFERROR(1/Q31*T31,0),2)*V31 -> 13.47 | AZ31: =AZ11 -> Cotton | BA31: =BA11 -> Corn | BB31: Sorghum | BC31: Soybean | BD31: Rice | BE31: Peanut | BF31: Wheat | BG31: Est. Pasture or Hay | BJ31: =BJ11 -> Cotton | BK31: =BK11 -> Corn | BL31: Sorghum | BM31: Soybean | BN31: Rice | BO31: Peanut | BP31: Wheat | BQ31: Est. Pasture or Hay
C32: Seed | E32: =IF(C31="","","acre") -> acre | J32: 78.6 | K32: =IF(OR(C32="",L32="",L32=0)=TRUE,"",IF(VLOOKUP($Z$2,Defaults!$M$4:$R$12,6,FALSE)="","",VLOOKUP($Z$2,Defaults!$M$4:$R$12,6,FALSE))) -> 78.6 | L32: 1 | M32: 1 | N32: =IF(C32="",0,IF(L32=0,0,IF(L32="","",J32*L32))) -> 78.6 | Q32: =IF(L32>0,ABS(V32-L32),"") -> 0.0235 | U32: =J32 -> 78.6 | V32: =IF(AG32=0,0,AG32) -> 0.9765 | W32: =IF(C32="",0,IF(V32=0,0,IF(V32="","",U32*V32))) -> 76.7529 | X32: -1.8471 | Z32: =IF($Z$2=Defaults!$M$5,Cotton!B32,IF($Z$2=Defaults!$M$6,Corn!B32,IF($Z$2=Defaults!$M$7,Sorghum!B32,IF($Z$2=Defaults!$M$8,Soybean!B32,IF($Z$2=Defaults!$M$9,Rice!B32,IF($Z$2=Defaults!$M$10,Peanut!B32,IF($Z$2=Defaults!$M$11,Wheat!B32,IF($Z$2=Defaults!$M$12,Pasture!B32,"")))))))) -> Seed | AA32: =VLOOKUP(Z2,Defaults!$M$5:$R$12,6,FALSE) -> 78.6 | AB32: =IF($C$31="","",1) -> 1 | AC32: 0 | AG32: =IFERROR(IF(LEFT($C$31,6)="Custom",L32,L32*(1-VLOOKUP($C$31,Implements!$A$159:$D$166,4,FALSE))),"") -> 0.9765 | AM32: =N32 -> 78.6 | AN32: =N32 -> 78.6 | AU32: =W32 -> 76.7529 | AV32: =W32 -> 76.7529
C33: Over-the-Top Sprayer 1 | F33: =IF($L33=0,0,IF(C33=Defaults!$I$27,Implements!$AK$185,IF($C33=Defaults!$I$28,Implements!$AK$186,0))) -> 61.45454545 | G33: =IF($L33=0,0,IFERROR(VLOOKUP($C33,Implements!$X$181:$AN$188,15,FALSE),0)) -> 8.36 | H33: =IF($L33=0,0,IFERROR(VLOOKUP($C33,Implements!$X$181:$AN$188,16,FALSE),0)) -> 45.04666667 | I33: =IF($L33=0,0,IFERROR(VLOOKUP($C33,Implements!$X$181:$AN$188,17,FALSE),0)) -> 137.6458252 | J33: =IF(OR(C33="",L33="",L33=0)=TRUE,"",IF(C33=Defaults!$I$40,VLOOKUP(C33,Defaults!$I$39:$K$41,3,FALSE),ROUND(1/F33*(1*Inputs!$AA$13+($AI$7-1)*Inputs!$AA$15),2)+ROUND(G33*Inputs!$V$13/F33,2)+ROUND(H33/F33,2)+ROUND(I33/F33,2))) -> 3.5 | K33: =IF(OR(C33="",L33="",L33=0)=TRUE,"",IF(C33=Defaults!$I$40,VLOOKUP(C33,Defaults!$I$39:$K$41,3,FALSE),ROUND(1/F33*(1*Inputs!$AA$13+($AI$7-1)*Inputs!$AA$15),2)+ROUND(G33*Inputs!$V$13/F33,2)+ROUND(H33/F33,2)+ROUND(I33/F33,2))) -> 3.5 | L33: 1 | M33: 1 | N33: 3.5 | Q33: =IF($V33=0,0,IF(C33=Defaults!$I$27,Implements!$AK$174,IF($C33=Defaults!$I$28,Implements!$AK$175,0))) -> 62.81269091 | R33: =IF($V33=0,0,IFERROR(VLOOKUP($C33,Implements!$X$170:$AN$177,15,FALSE),0)) -> 8.36 | S33: =IF($V33=0,0,IFERROR(VLOOKUP($C33,Implements!$X$170:$AN$177,16,FALSE),0)) -> 45.04666667 | T33: =IF($V33=0,0,IFERROR(VLOOKUP($C33,Implements!$X$170:$AN$177,17,FALSE),0)) -> 138.7259237 | U33: =IF(OR(C33="",V33="",V33=0)=TRUE,"",IF(LEFT(C33,6)="Custom",J33,ROUND(1/Q33*(1*Inputs!$AA$13+($AI$7-1)*Inputs!$AA$15),2)+ROUND(R33*Inputs!$V$13/Q33,2)+ROUND(S33/Q33,2)+ROUND(T33/Q33,2))) -> 3.44 | V33: =+L33 -> 1 | W33: 3.44 | X33: -0.06 | Z33: =IF($Z$2=Defaults!$M$5,Cotton!B33,IF($Z$2=Defaults!$M$6,Corn!B33,IF($Z$2=Defaults!$M$7,Sorghum!B33,IF($Z$2=Defaults!$M$8,Soybean!B33,IF($Z$2=Defaults!$M$9,Rice!B33,IF($Z$2=Defaults!$M$10,Peanut!B33,IF($Z$2=Defaults!$M$11,Wheat!B33,IF($Z$2=Defaults!$M$12,Pasture!B33,"")))))))) -> Over-the-Top Sprayer 1 | AB33: =IF(C33="","",IF(OR($Z$2=Defaults!$M$5,$Z$2=Defaults!$M$6,$Z$2=Defaults!$M$7,$Z$2=Defaults!$M$8,$Z$2=Defaults!$M$9,$Z$2=Defaults!$M$10)=TRUE,HLOOKUP($Z$2,Defaults!X20:AE30,11,FALSE),"")) -> 1 | AC33: 0 | AD33: =IF(AB33="","",AB33*2) -> 2 | AG33: =+AB33 -> 1 | AH33: =N33 -> 3.5 | AI33: =ROUND(IFERROR(1/F33*(1*Inputs!$AA$13+($AI$7-1)*Inputs!$AA$15),0),2)*L33 -> 0.29 | AJ33: =ROUND(IFERROR(1/F33*G33*Inputs!$V$13,0),2)*L33 -> 0.24 | AK33: =ROUND(IFERROR(1/F33*H33,0),2)*L33 -> 0.73 | AL33: =ROUND(IFERROR(1/F33*I33,0),2)*L33 -> 2.24 | AP33: =W33 -> 3.44 | AQ33: =ROUND(IFERROR(1/Q33*(1*Inputs!$AA$13+($AI$7-1)*Inputs!$AA$15),0),2)*V33 -> 0.28 | AR33: =ROUND(IFERROR(1/Q33*R33*Inputs!$V$13,0),2)*V33 -> 0.23 | AS33: =ROUND(IFERROR(1/Q33*S33,0),2)*V33 -> 0.72 | AT33: =ROUND(IFERROR(1/Q33*T33,0),2)*V33 -> 2.21 | AY33: Insecticide | BI33: Insecticide
C34: Besiege | E34: oz | J34: 1.88 | K34: =IF(C34="","",ROUND(IF(E34=AE34,AF34,IF(AE34=$AC$2,AF34*VLOOKUP(E34,$AA$2:$AB$4,2,FALSE),IF(AE34=$AF$2,AF34*VLOOKUP(E34,$AD$2:$AE$3,2,FALSE),IF(AE34=$AI$2,AF34/VLOOKUP(E34,$AG$2:$AH$2,2,FALSE),IF(AE34=$AL$2,AF34*VLOOKUP(E34,$AJ$2:$AK$2,2,FALSE),IF(AE34=$AO$2,AF34/VLOOKUP(E34,$AM$2:$AN$2,2,FALSE),IF(AE34=$AR$2,AF34*VLOOKUP(E34,$AP$2:$AQ$3,2,FALSE)))))))),2)) -> 1.88 | L34: 10 | M34: 10 | N34: 18.8 | Q34: =IF(L34>0,ABS(V34-L34),"") -> 2.208 | U34: =J34 -> 1.88 | V34: =IF(AG34=0,0,AG34) -> 7.792 | W34: 14.64896 | X34: -4.15104 | Z34: =IF($Z$2=Defaults!$M$5,Cotton!B34,IF($Z$2=Defaults!$M$6,Corn!B34,IF($Z$2=Defaults!$M$7,Sorghum!B34,IF($Z$2=Defaults!$M$8,Soybean!B34,IF($Z$2=Defaults!$M$9,Rice!B34,IF($Z$2=Defaults!$M$10,Peanut!B34,IF($Z$2=Defaults!$M$11,Wheat!B34,IF($Z$2=Defaults!$M$12,Pasture!B34,"")))))))) -> Besiege | AA34: =IF(C34="","",HLOOKUP($Z$2,$AZ$31:$BG$42,4,FALSE)) -> oz | AB34: =IF(C34="","",HLOOKUP($Z$2,$BJ$31:$BQ$42,4,FALSE)) -> 10 | AC34: 0 | AE34: =IF(C34="","",IF(OR($Z$2=Defaults!$M$5,$Z$2=Defaults!$M$6,$Z$2=Defaults!$M$7,$Z$2=Defaults!$M$8,$Z$2=Defaults!$M$9,$Z$2=Defaults!$M$10)=TRUE,VLOOKUP(C34,Defaults!$T$21:$AE$29,2,FALSE),"")) -> oz | AF34: =IF(C34="","",IF(OR($Z$2=Defaults!$M$5,$Z$2=Defaults!$M$6,$Z$2=Defaults!$M$7,$Z$2=Defaults!$M$8,$Z$2=Defaults!$M$9,$Z$2=Defaults!$M$10)=TRUE,ROUND(VLOOKUP(C34,Defaults!$T$21:$AC$29,3,FALSE),2),"")) -> 1.88 | AG34: =IFERROR(IF(LEFT($C$33,6)="Custom",L34,L34*(1-VLOOKUP($C$33,Implements!$A$159:$D$166,4,FALSE))),"") -> 7.792 | AM34: =N34 -> 18.8 | AO34: =N34 -> 18.8 | AU34: =W34 -> 14.64896 | AW34: =W34 -> 14.64896 | AY34: =IF($C34="","",$C34) -> Besiege | AZ34: =IF($C34="","",VLOOKUP(C34,Defaults!$T$21:$AE$29,4,FALSE)) -> oz | BA34: =IF($C34="","",VLOOKUP(C34,Defaults!$T$21:$AE$29,4,FALSE)) -> oz | BB34: =IF($C34="","",VLOOKUP(C34,Defaults!$T$21:$AE$29,4,FALSE)) -> oz | BC34: =IF($C34="","",VLOOKUP(C34,Defaults!$T$21:$AE$29,4,FALSE)) -> oz | BD34: =IF($C34="","",VLOOKUP(C34,Defaults!$T$21:$AE$29,4,FALSE)) -> oz | BE34: =IF($C34="","",VLOOKUP(C34,Defaults!$T$21:$AE$29,4,FALSE)) -> oz | BI34: =IF($C34="","",$C34) -> Besiege | BJ34: =IF($C34="","",IFERROR(VLOOKUP(C34,Defaults!$T$21:$AE$29,5,FALSE),"")) ->  | BK34: =IF($C34="","",IFERROR(VLOOKUP(C34,Defaults!$T$21:$AE$29,6,FALSE),"")) ->  | BL34: =IF($C34="","",IFERROR(VLOOKUP(C34,Defaults!$T$21:$AE$29,7,FALSE),"")) ->  | BM34: =IF($C34="","",IFERROR(VLOOKUP(C34,Defaults!$T$21:$AE$29,8,FALSE),"")) -> 10 | BN34: =IF($C34="","",IFERROR(VLOOKUP(C34,Defaults!$T$21:$AE$29,9,FALSE),"")) ->  | BO34: =IF($C34="","",IFERROR(VLOOKUP(C34,Defaults!$T$21:$AE$29,10,FALSE),"")) -> 
K35: =IF(C35="","",ROUND(IF(E35=AE35,AF35,IF(AE35=$AC$2,AF35*VLOOKUP(E35,$AA$2:$AB$4,2,FALSE),IF(AE35=$AF$2,AF35*VLOOKUP(E35,$AD$2:$AE$3,2,FALSE),IF(AE35=$AI$2,AF35/VLOOKUP(E35,$AG$2:$AH$2,2,FALSE),IF(AE35=$AL$2,AF35*VLOOKUP(E35,$AJ$2:$AK$2,2,FALSE),IF(AE35=$AO$2,AF35/VLOOKUP(E35,$AM$2:$AN$2,2,FALSE),IF(AE35=$AR$2,AF35*VLOOKUP(E35,$AP$2:$AQ$3,2,FALSE)))))))),2)) ->  | N35: 0 | Q35: =IF(L35>0,ABS(V35-L35),"") ->  | U35: =J35 -> 0 | V35: =IF(AG35=0,0,AG35) -> 0 | Z35: =IF($Z$2=Defaults!$M$5,Cotton!B35,IF($Z$2=Defaults!$M$6,Corn!B35,IF($Z$2=Defaults!$M$7,Sorghum!B35,IF($Z$2=Defaults!$M$8,Soybean!B35,IF($Z$2=Defaults!$M$9,Rice!B35,IF($Z$2=Defaults!$M$10,Peanut!B35,IF($Z$2=Defaults!$M$11,Wheat!B35,IF($Z$2=Defaults!$M$12,Pasture!B35,"")))))))) ->  | AA35: =IF(C35="","",HLOOKUP($Z$2,$AZ$31:$BG$42,5,FALSE)) ->  | AB35: =IF(C35="","",HLOOKUP($Z$2,$BJ$31:$BQ$42,5,FALSE)) ->  | AC35: 0 | AE35: =IF(C35="","",IF(OR($Z$2=Defaults!$M$5,$Z$2=Defaults!$M$6,$Z$2=Defaults!$M$7,$Z$2=Defaults!$M$8,$Z$2=Defaults!$M$9,$Z$2=Defaults!$M$10)=TRUE,VLOOKUP(C35,Defaults!$T$21:$AE$29,2,FALSE),"")) ->  | AF35: =IF(C35="","",IF(OR($Z$2=Defaults!$M$5,$Z$2=Defaults!$M$6,$Z$2=Defaults!$M$7,$Z$2=Defaults!$M$8,$Z$2=Defaults!$M$9,$Z$2=Defaults!$M$10)=TRUE,ROUND(VLOOKUP(C35,Defaults!$T$21:$AC$29,3,FALSE),2),"")) ->  | AG35: =IFERROR(IF(LEFT($C$33,6)="Custom",L35,L35*(1-VLOOKUP($C$33,Implements!$A$159:$D$166,4,FALSE))),"") -> 0 | AM35: =N35 -> 0 | AO35: =N35 -> 0 | AU35: =W35 ->  | AW35: =W35 ->  | AZ35: =IF($C35="","",VLOOKUP(C35,Defaults!$T$21:$AE$29,4,FALSE)) ->  | BA35: =IF($C35="","",VLOOKUP(C35,Defaults!$T$21:$AE$29,4,FALSE)) ->  | BB35: =IF($C35="","",VLOOKUP(C35,Defaults!$T$21:$AE$29,4,FALSE)) ->  | BC35: =IF($C35="","",VLOOKUP(C35,Defaults!$T$21:$AE$29,4,FALSE)) ->  | BD35: =IF($C35="","",VLOOKUP(C35,Defaults!$T$21:$AE$29,4,FALSE)) ->  | BE35: =IF($C35="","",VLOOKUP(C35,Defaults!$T$21:$AE$29,4,FALSE)) ->  | BI35: =IF($C35="","",$C35) ->  | BJ35: =IF($C35="","",IFERROR(VLOOKUP(C35,Defaults!$T$21:$AE$29,5,FALSE),"")) ->  | BK35: =IF($C35="","",IFERROR(VLOOKUP(C35,Defaults!$T$21:$AE$29,6,FALSE),"")) ->  | BL35: =IF($C35="","",IFERROR(VLOOKUP(C35,Defaults!$T$21:$AE$29,7,FALSE),"")) ->  | BM35: =IF($C35="","",IFERROR(VLOOKUP(C35,Defaults!$T$21:$AE$29,8,FALSE),"")) ->  | BN35: =IF($C35="","",IFERROR(VLOOKUP(C35,Defaults!$T$21:$AE$29,9,FALSE),"")) ->  | BO35: =IF($C35="","",IFERROR(VLOOKUP(C35,Defaults!$T$21:$AE$29,10,FALSE),"")) -> 
K36: =IF(C36="","",ROUND(IF(E36=AE36,AF36,IF(AE36=$AC$2,AF36*VLOOKUP(E36,$AA$2:$AB$4,2,FALSE),IF(AE36=$AF$2,AF36*VLOOKUP(E36,$AD$2:$AE$3,2,FALSE),IF(AE36=$AI$2,AF36/VLOOKUP(E36,$AG$2:$AH$2,2,FALSE),IF(AE36=$AL$2,AF36*VLOOKUP(E36,$AJ$2:$AK$2,2,FALSE),IF(AE36=$AO$2,AF36/VLOOKUP(E36,$AM$2:$AN$2,2,FALSE),IF(AE36=$AR$2,AF36*VLOOKUP(E36,$AP$2:$AQ$3,2,FALSE)))))))),2)) ->  | N36: 0 | Q36: =IF(L36>0,ABS(V36-L36),"") ->  | U36: =J36 -> 0 | V36: =IF(AG36=0,0,AG36) -> 0 | Z36: =IF($Z$2=Defaults!$M$5,Cotton!B36,IF($Z$2=Defaults!$M$6,Corn!B36,IF($Z$2=Defaults!$M$7,Sorghum!B36,IF($Z$2=Defaults!$M$8,Soybean!B36,IF($Z$2=Defaults!$M$9,Rice!B36,IF($Z$2=Defaults!$M$10,Peanut!B36,IF($Z$2=Defaults!$M$11,Wheat!B36,IF($Z$2=Defaults!$M$12,Pasture!B36,"")))))))) ->  | AA36: =IF(C36="","",HLOOKUP($Z$2,$AZ$31:$BG$42,6,FALSE)) ->  | AB36: =IF(C36="","",HLOOKUP($Z$2,$BJ$31:$BQ$42,6,FALSE)) ->  | AC36: 0 | AE36: =IF(C36="","",IF(OR($Z$2=Defaults!$M$5,$Z$2=Defaults!$M$6,$Z$2=Defaults!$M$7,$Z$2=Defaults!$M$8,$Z$2=Defaults!$M$9,$Z$2=Defaults!$M$10)=TRUE,VLOOKUP(C36,Defaults!$T$21:$AE$29,2,FALSE),"")) ->  | AF36: =IF(C36="","",IF(OR($Z$2=Defaults!$M$5,$Z$2=Defaults!$M$6,$Z$2=Defaults!$M$7,$Z$2=Defaults!$M$8,$Z$2=Defaults!$M$9,$Z$2=Defaults!$M$10)=TRUE,ROUND(VLOOKUP(C36,Defaults!$T$21:$AC$29,3,FALSE),2),"")) ->  | AG36: =IFERROR(IF(LEFT($C$33,6)="Custom",L36,L36*(1-VLOOKUP($C$33,Implements!$A$159:$D$166,4,FALSE))),"") -> 0 | AM36: =N36 -> 0 | AO36: =N36 -> 0 | AU36: =W36 ->  | AW36: =W36 ->  | AZ36: =IF($C36="","",VLOOKUP(C36,Defaults!$T$21:$AE$29,4,FALSE)) ->  | BA36: =IF($C36="","",VLOOKUP(C36,Defaults!$T$21:$AE$29,4,FALSE)) ->  | BB36: =IF($C36="","",VLOOKUP(C36,Defaults!$T$21:$AE$29,4,FALSE)) ->  | BC36: =IF($C36="","",VLOOKUP(C36,Defaults!$T$21:$AE$29,4,FALSE)) ->  | BD36: =IF($C36="","",VLOOKUP(C36,Defaults!$T$21:$AE$29,4,FALSE)) ->  | BE36: =IF($C36="","",VLOOKUP(C36,Defaults!$T$21:$AE$29,4,FALSE)) ->  | BI36: =IF($C36="","",$C36) ->  | BJ36: =IF($C36="","",IFERROR(VLOOKUP(C36,Defaults!$T$21:$AE$29,5,FALSE),"")) ->  | BK36: =IF($C36="","",IFERROR(VLOOKUP(C36,Defaults!$T$21:$AE$29,6,FALSE),"")) ->  | BL36: =IF($C36="","",IFERROR(VLOOKUP(C36,Defaults!$T$21:$AE$29,7,FALSE),"")) ->  | BM36: =IF($C36="","",IFERROR(VLOOKUP(C36,Defaults!$T$21:$AE$29,8,FALSE),"")) ->  | BN36: =IF($C36="","",IFERROR(VLOOKUP(C36,Defaults!$T$21:$AE$29,9,FALSE),"")) ->  | BO36: =IF($C36="","",IFERROR(VLOOKUP(C36,Defaults!$T$21:$AE$29,10,FALSE),"")) -> 
K37: =IF(C37="","",ROUND(IF(E37=AE37,AF37,IF(AE37=$AC$2,AF37*VLOOKUP(E37,$AA$2:$AB$4,2,FALSE),IF(AE37=$AF$2,AF37*VLOOKUP(E37,$AD$2:$AE$3,2,FALSE),IF(AE37=$AI$2,AF37/VLOOKUP(E37,$AG$2:$AH$2,2,FALSE),IF(AE37=$AL$2,AF37*VLOOKUP(E37,$AJ$2:$AK$2,2,FALSE),IF(AE37=$AO$2,AF37/VLOOKUP(E37,$AM$2:$AN$2,2,FALSE),IF(AE37=$AR$2,AF37*VLOOKUP(E37,$AP$2:$AQ$3,2,FALSE)))))))),2)) ->  | N37: 0 | Q37: =IF(L37>0,ABS(V37-L37),"") ->  | U37: =J37 -> 0 | V37: =IF(AG37=0,0,AG37) -> 0 | Z37: =IF($Z$2=Defaults!$M$5,Cotton!B37,IF($Z$2=Defaults!$M$6,Corn!B37,IF($Z$2=Defaults!$M$7,Sorghum!B37,IF($Z$2=Defaults!$M$8,Soybean!B37,IF($Z$2=Defaults!$M$9,Rice!B37,IF($Z$2=Defaults!$M$10,Peanut!B37,IF($Z$2=Defaults!$M$11,Wheat!B37,IF($Z$2=Defaults!$M$12,Pasture!B37,"")))))))) ->  | AA37: =IF(C37="","",HLOOKUP($Z$2,$AZ$31:$BG$42,7,FALSE)) ->  | AB37: =IF(C37="","",HLOOKUP($Z$2,$BJ$31:$BQ$42,7,FALSE)) ->  | AC37: 0 | AE37: =IF(C37="","",IF(OR($Z$2=Defaults!$M$5,$Z$2=Defaults!$M$6,$Z$2=Defaults!$M$7,$Z$2=Defaults!$M$8,$Z$2=Defaults!$M$9,$Z$2=Defaults!$M$10)=TRUE,VLOOKUP(C37,Defaults!$T$21:$AE$29,2,FALSE),"")) ->  | AF37: =IF(C37="","",IF(OR($Z$2=Defaults!$M$5,$Z$2=Defaults!$M$6,$Z$2=Defaults!$M$7,$Z$2=Defaults!$M$8,$Z$2=Defaults!$M$9,$Z$2=Defaults!$M$10)=TRUE,ROUND(VLOOKUP(C37,Defaults!$T$21:$AC$29,3,FALSE),2),"")) ->  | AG37: =IFERROR(IF(LEFT($C$33,6)="Custom",L37,L37*(1-VLOOKUP($C$33,Implements!$A$159:$D$166,4,FALSE))),"") -> 0 | AM37: =N37 -> 0 | AO37: =N37 -> 0 | AU37: =W37 ->  | AW37: =W37 ->  | AZ37: =IF($C37="","",VLOOKUP(C37,Defaults!$T$21:$AE$29,4,FALSE)) ->  | BA37: =IF($C37="","",VLOOKUP(C37,Defaults!$T$21:$AE$29,4,FALSE)) ->  | BB37: =IF($C37="","",VLOOKUP(C37,Defaults!$T$21:$AE$29,4,FALSE)) ->  | BC37: =IF($C37="","",VLOOKUP(C37,Defaults!$T$21:$AE$29,4,FALSE)) ->  | BD37: =IF($C37="","",VLOOKUP(C37,Defaults!$T$21:$AE$29,4,FALSE)) ->  | BE37: =IF($C37="","",VLOOKUP(C37,Defaults!$T$21:$AE$29,4,FALSE)) ->  | BI37: =IF($C37="","",$C37) ->  | BJ37: =IF($C37="","",IFERROR(VLOOKUP(C37,Defaults!$T$21:$AE$29,5,FALSE),"")) ->  | BK37: =IF($C37="","",IFERROR(VLOOKUP(C37,Defaults!$T$21:$AE$29,6,FALSE),"")) ->  | BL37: =IF($C37="","",IFERROR(VLOOKUP(C37,Defaults!$T$21:$AE$29,7,FALSE),"")) ->  | BM37: =IF($C37="","",IFERROR(VLOOKUP(C37,Defaults!$T$21:$AE$29,8,FALSE),"")) ->  | BN37: =IF($C37="","",IFERROR(VLOOKUP(C37,Defaults!$T$21:$AE$29,9,FALSE),"")) ->  | BO37: =IF($C37="","",IFERROR(VLOOKUP(C37,Defaults!$T$21:$AE$29,10,FALSE),"")) -> 
K38: =IF(C38="","",ROUND(IF(E38=AE38,AF38,IF(AE38=$AC$2,AF38*VLOOKUP(E38,$AA$2:$AB$4,2,FALSE),IF(AE38=$AF$2,AF38*VLOOKUP(E38,$AD$2:$AE$3,2,FALSE),IF(AE38=$AI$2,AF38/VLOOKUP(E38,$AG$2:$AH$2,2,FALSE),IF(AE38=$AL$2,AF38*VLOOKUP(E38,$AJ$2:$AK$2,2,FALSE),IF(AE38=$AO$2,AF38/VLOOKUP(E38,$AM$2:$AN$2,2,FALSE),IF(AE38=$AR$2,AF38*VLOOKUP(E38,$AP$2:$AQ$3,2,FALSE)))))))),2)) ->  | N38: 0 | Q38: =IF(L38>0,ABS(V38-L38),"") ->  | U38: =J38 -> 0 | V38: =IF(AG38=0,0,AG38) -> 0 | Z38: =IF($Z$2=Defaults!$M$5,Cotton!B38,IF($Z$2=Defaults!$M$6,Corn!B38,IF($Z$2=Defaults!$M$7,Sorghum!B38,IF($Z$2=Defaults!$M$8,Soybean!B38,IF($Z$2=Defaults!$M$9,Rice!B38,IF($Z$2=Defaults!$M$10,Peanut!B38,IF($Z$2=Defaults!$M$11,Wheat!B38,IF($Z$2=Defaults!$M$12,Pasture!B38,"")))))))) ->  | AA38: =IF(C38="","",HLOOKUP($Z$2,$AZ$31:$BG$42,8,FALSE)) ->  | AB38: =IF(C38="","",HLOOKUP($Z$2,$BJ$31:$BQ$42,8,FALSE)) ->  | AC38: 0 | AE38: =IF(C38="","",IF(OR($Z$2=Defaults!$M$5,$Z$2=Defaults!$M$6,$Z$2=Defaults!$M$7,$Z$2=Defaults!$M$8,$Z$2=Defaults!$M$9,$Z$2=Defaults!$M$10)=TRUE,VLOOKUP(C38,Defaults!$T$21:$AE$29,2,FALSE),"")) ->  | AF38: =IF(C38="","",IF(OR($Z$2=Defaults!$M$5,$Z$2=Defaults!$M$6,$Z$2=Defaults!$M$7,$Z$2=Defaults!$M$8,$Z$2=Defaults!$M$9,$Z$2=Defaults!$M$10)=TRUE,ROUND(VLOOKUP(C38,Defaults!$T$21:$AC$29,3,FALSE),2),"")) ->  | AG38: =IFERROR(IF(LEFT($C$33,6)="Custom",L38,L38*(1-VLOOKUP($C$33,Implements!$A$159:$D$166,4,FALSE))),"") -> 0 | AM38: =N38 -> 0 | AO38: =N38 -> 0 | AU38: =W38 ->  | AW38: =W38 ->  | AZ38: =IF($C38="","",VLOOKUP(C38,Defaults!$T$21:$AE$29,4,FALSE)) ->  | BA38: =IF($C38="","",VLOOKUP(C38,Defaults!$T$21:$AE$29,4,FALSE)) ->  | BB38: =IF($C38="","",VLOOKUP(C38,Defaults!$T$21:$AE$29,4,FALSE)) ->  | BC38: =IF($C38="","",VLOOKUP(C38,Defaults!$T$21:$AE$29,4,FALSE)) ->  | BD38: =IF($C38="","",VLOOKUP(C38,Defaults!$T$21:$AE$29,4,FALSE)) ->  | BE38: =IF($C38="","",VLOOKUP(C38,Defaults!$T$21:$AE$29,4,FALSE)) ->  | BI38: =IF($C38="","",$C38) ->  | BJ38: =IF($C38="","",IFERROR(VLOOKUP(C38,Defaults!$T$21:$AE$29,5,FALSE),"")) ->  | BK38: =IF($C38="","",IFERROR(VLOOKUP(C38,Defaults!$T$21:$AE$29,6,FALSE),"")) ->  | BL38: =IF($C38="","",IFERROR(VLOOKUP(C38,Defaults!$T$21:$AE$29,7,FALSE),"")) ->  | BM38: =IF($C38="","",IFERROR(VLOOKUP(C38,Defaults!$T$21:$AE$29,8,FALSE),"")) ->  | BN38: =IF($C38="","",IFERROR(VLOOKUP(C38,Defaults!$T$21:$AE$29,9,FALSE),"")) ->  | BO38: =IF($C38="","",IFERROR(VLOOKUP(C38,Defaults!$T$21:$AE$29,10,FALSE),"")) -> 
F39: =IF($L39=0,0,IF(C39=Defaults!$I$27,Implements!$AK$185,IF($C39=Defaults!$I$28,Implements!$AK$186,IF($C39=Defaults!$I$37,Implements!$AK$187,IF($C39=Defaults!$I$51,Implements!$AK$188,0))))) -> 0 | G39: =IF($L39=0,0,IFERROR(VLOOKUP($C39,Implements!$X$181:$AN$188,15,FALSE),0)) -> 0 | H39: =IF($L39=0,0,IFERROR(VLOOKUP($C39,Implements!$X$181:$AN$188,16,FALSE),0)) -> 0 | I39: =IF($L39=0,0,IFERROR(VLOOKUP($C39,Implements!$X$181:$AN$188,17,FALSE),0)) -> 0 | J39: =IF(OR(C39="",L39="",L39=0)=TRUE,"",IF(OR(C39=Defaults!$I$25,C39=Defaults!$I$26)=TRUE,VLOOKUP(C39,Defaults!$I$24:$K$28,3,FALSE),IF(C39=Defaults!$I$54,VLOOKUP(C39,Defaults!$I$53:$K$56,3,FALSE),IF(C39=Defaults!$I$45,VLOOKUP(C39,Defaults!$I$44:$K$47,3,FALSE),IF(C39=Defaults!$I$50,VLOOKUP(C39,Defaults!$I$49:$K$51,3,FALSE),ROUND(1/F39*(1*Inputs!$AA$13+($AI$7-1)*Inputs!$AA$15),2)+ROUND(G39*Inputs!$V$13/F39,2)+ROUND(H39/F39,2)+ROUND(I39/F39,2)))))) ->  | K39: =IF(OR(C39="",L39="",L39=0)=TRUE,"",IF(OR(C39=Defaults!$I$25,C39=Defaults!$I$26)=TRUE,VLOOKUP(C39,Defaults!$I$24:$K$28,3,FALSE),IF(C39=Defaults!$I$54,VLOOKUP(C39,Defaults!$I$53:$K$56,3,FALSE),IF(C39=Defaults!$I$45,VLOOKUP(C39,Defaults!$I$44:$K$47,3,FALSE),IF(C39=Defaults!$I$50,VLOOKUP(C39,Defaults!$I$49:$K$51,3,FALSE),ROUND(1/F39*(1*Inputs!$AA$13+($AI$7-1)*Inputs!$AA$15),2)+ROUND(G39*Inputs!$V$13/F39,2)+ROUND(H39/F39,2)+ROUND(I39/F39,2)))))) ->  | N39: 0 | Q39: =IF($V39=0,0,IF(C39=Defaults!$I$27,Implements!$AK$174,IF($C39=Defaults!$I$28,Implements!$AK$175,IF($C39=Defaults!$I$37,Implements!$AK$176,IF($C39=Defaults!$I$51,Implements!$AK$177,0))))) -> 0 | R39: =IF($V39=0,0,IFERROR(VLOOKUP($C39,Implements!$X$170:$AN$177,15,FALSE),0)) -> 0 | S39: =IF($V39=0,0,IFERROR(VLOOKUP($C39,Implements!$X$170:$AN$177,16,FALSE),0)) -> 0 | T39: =IF($V39=0,0,IFERROR(VLOOKUP($C39,Implements!$X$170:$AN$177,17,FALSE),0)) -> 0 | U39: =IF(OR(C39="",V39="",V39=0)=TRUE,"",IF(LEFT(C39,6)="Custom",J39,ROUND(1/Q39*(1*Inputs!$AA$13+($AI$7-1)*Inputs!$AA$15),2)+ROUND(R39*Inputs!$V$13/Q39,2)+ROUND(S39/Q39,2)+ROUND(T39/Q39,2))) ->  | V39: =+L39 -> 0 | Z39: =IF($Z$2=Defaults!$M$5,Cotton!B39,IF($Z$2=Defaults!$M$6,Corn!B39,IF($Z$2=Defaults!$M$7,Sorghum!B39,IF($Z$2=Defaults!$M$8,Soybean!B39,IF($Z$2=Defaults!$M$9,Rice!B39,IF($Z$2=Defaults!$M$10,Peanut!B39,IF($Z$2=Defaults!$M$11,Wheat!B39,IF($Z$2=Defaults!$M$12,Pasture!B39,"")))))))) ->  | AB39: =IF(C39="","",IF($Z$2=Defaults!$M$5,VLOOKUP(C39,Defaults!$I$53:$J$56,2,FALSE),IF($Z$2=Defaults!$M$10,VLOOKUP(C39,Defaults!$I$44:$K$47,2,FALSE),IF($Z$2=Defaults!$M$12,VLOOKUP(C39,Defaults!$I$49:$K$51,2,FALSE),"")))) ->  | AC39: 0 | AD39: =IF(AB39="","",AB39*2) ->  | AG39: =+AB39 ->  | AH39: =N39 -> 0 | AI39: =ROUND(IFERROR(1/F39*(1*Inputs!$AA$13+($AI$7-1)*Inputs!$AA$15),0),2)*L39 -> 0 | AJ39: =ROUND(IFERROR(1/F39*G39*Inputs!$V$13,0),2)*L39 -> 0 | AK39: =ROUND(IFERROR(1/F39*H39,0),2)*L39 -> 0 | AL39: =ROUND(IFERROR(1/F39*I39,0),2)*L39 -> 0 | AP39: =W39 ->  | AQ39: =ROUND(IFERROR(1/Q39*(1*Inputs!$AA$13+($AI$7-1)*Inputs!$AA$15),0),2)*V39 -> 0 | AR39: =ROUND(IFERROR(1/Q39*R39*Inputs!$V$13,0),2)*V39 -> 0 | AS39: =ROUND(IFERROR(1/Q39*S39,0),2)*V39 -> 0 | AT39: =ROUND(IFERROR(1/Q39*T39,0),2)*V39 -> 0 | AY39: Other: Defoliant, Fertilizer, Innoculant or Litter
K40: =IF(C40="","",ROUND(IF(E40=AE40,AF40,IF(AE40=$AC$2,AF40*VLOOKUP(E40,$AA$2:$AB$4,2,FALSE),IF(AE40=$AF$2,AF40*VLOOKUP(E40,$AD$2:$AE$3,2,FALSE),IF(AE40=$AI$2,AF40/VLOOKUP(E40,$AG$2:$AH$2,2,FALSE),IF(AE40=$AL$2,AF40*VLOOKUP(E40,$AJ$2:$AK$2,2,FALSE),IF(AE40=$AO$2,AF40/VLOOKUP(E40,$AM$2:$AN$2,2,FALSE),IF(AE40=$AR$2,AF40*VLOOKUP(E40,$AP$2:$AQ$3,2,FALSE)))))))),2)) ->  | N40: 0 | Q40: =IF(L40>0,ABS(V40-L40),"") ->  | U40: =J40 -> 0 | V40: =IF(AG40=0,0,AG40) ->  | Z40: =IF($Z$2=Defaults!$M$5,Cotton!B40,IF($Z$2=Defaults!$M$6,Corn!B40,IF($Z$2=Defaults!$M$7,Sorghum!B40,IF($Z$2=Defaults!$M$8,Soybean!B40,IF($Z$2=Defaults!$M$9,Rice!B40,IF($Z$2=Defaults!$M$10,Peanut!B40,IF($Z$2=Defaults!$M$11,Wheat!B40,IF($Z$2=Defaults!$M$12,Pasture!B40,"")))))))) ->  | AA40: =IF(C40="","",HLOOKUP($Z$2,$AZ$31:$BG$43,10,FALSE)) ->  | AB40: =IF(C40="","",HLOOKUP($Z$2,$BJ$31:$BQ$43,10,FALSE)) ->  | AC40: 0 | AE40: =IF(C40="","",IF($Z$2=Defaults!$M$5,VLOOKUP(C40,Defaults!$T$38:$AE$41,2,FALSE),IF(OR($Z$2=Defaults!$M$7,$Z$2=Defaults!$M$11)=TRUE,VLOOKUP(C40,Defaults!$T$3:$AE$13,2,FALSE),IF($Z$2=Defaults!$M$10,VLOOKUP(C40,Defaults!$T$33:$AE$34,2,FALSE),IF($Z$2=Defaults!$M$12,VLOOKUP(C40,Defaults!$T$3:$U$13,2,FALSE),""))))) ->  | AF40: =IF(C40="","",IF($Z$2=Defaults!$M$5,ROUND(VLOOKUP(C40,Defaults!$T$38:$AE$41,3,FALSE),2),IF(OR($Z$2=Defaults!$M$7,$Z$2=Defaults!$M$11)=TRUE,ROUND(VLOOKUP(C40,Defaults!$T$3:$AE$13,3,FALSE),2),IF($Z$2=Defaults!$M$10,ROUND(VLOOKUP(C40,Defaults!$T$33:$AE$34,3,FALSE),2),IF($Z$2=Defaults!$M$12,ROUND(VLOOKUP(C40,Defaults!$T$17:$AE$18,3,FALSE),2),""))))) ->  | AG40: =IFERROR(IF(LEFT($C$39,6)="Custom",L40,L40*(1-VLOOKUP($C$39,Implements!$A$159:$D$166,4,FALSE))),"") ->  | AM40: =N40 -> 0 | AO40: =N40 -> 0 | AU40: =W40 ->  | AW40: =W40 ->  | AZ40: =IF($C40="","",VLOOKUP(C40,Defaults!$T$38:$X$41,4,FALSE)) ->  | BB40: =IF($C40="","",VLOOKUP(C40,Defaults!$T$3:$X$13,4,FALSE)) ->  | BE40: =IF($C40="","",VLOOKUP(C40,Defaults!$T$33:$X$34,4,FALSE)) ->  | BF40: =IF($C40="","",VLOOKUP(C40,Defaults!$T$3:$X$13,4,FALSE)) ->  | BG40: =IF($C40="","",VLOOKUP(C40,Defaults!$T$17:$AE$18,4,FALSE)) ->  | BI40: =IF($C40="","",$C40) ->  | BJ40: =IF($C40="","",IFERROR(VLOOKUP(C40,Defaults!$T$38:$AE$41,5,FALSE),"")) ->  | BL40: =IF($C40="","",IFERROR(VLOOKUP(C40,Defaults!$T$3:$AE$13,7,FALSE),"")) ->  | BO40: =IF($C40="","",IFERROR(VLOOKUP(C40,Defaults!$T$33:$AE$34,10,FALSE),"")) ->  | BP40: =IF($C40="","",IFERROR(VLOOKUP(C40,Defaults!$T$3:$AE$13,11,FALSE),"")) ->  | BQ40: =IF($C40="","",IFERROR(VLOOKUP(C40,Defaults!$T$17:$AE$18,12,FALSE),"")) -> 
K41: =IF(C41="","",ROUND(IF(E41=AE41,AF41,IF(AE41=$AC$2,AF41*VLOOKUP(E41,$AA$2:$AB$4,2,FALSE),IF(AE41=$AF$2,AF41*VLOOKUP(E41,$AD$2:$AE$3,2,FALSE),IF(AE41=$AI$2,AF41/VLOOKUP(E41,$AG$2:$AH$2,2,FALSE),IF(AE41=$AL$2,AF41*VLOOKUP(E41,$AJ$2:$AK$2,2,FALSE),IF(AE41=$AO$2,AF41/VLOOKUP(E41,$AM$2:$AN$2,2,FALSE),IF(AE41=$AR$2,AF41*VLOOKUP(E41,$AP$2:$AQ$3,2,FALSE)))))))),2)) ->  | N41: 0 | Q41: =IF(L41>0,ABS(V41-L41),"") ->  | U41: =J41 -> 0 | V41: =IF(AG41=0,0,AG41) ->  | Z41: =IF($Z$2=Defaults!$M$5,Cotton!B41,IF($Z$2=Defaults!$M$6,Corn!B41,IF($Z$2=Defaults!$M$7,Sorghum!B41,IF($Z$2=Defaults!$M$8,Soybean!B41,IF($Z$2=Defaults!$M$9,Rice!B41,IF($Z$2=Defaults!$M$10,Peanut!B41,IF($Z$2=Defaults!$M$11,Wheat!B41,IF($Z$2=Defaults!$M$12,Pasture!B41,"")))))))) ->  | AA41: =IF(C41="","",HLOOKUP($Z$2,$AZ$31:$BG$43,11,FALSE)) ->  | AB41: =IF(C41="","",HLOOKUP($Z$2,$BJ$31:$BQ$43,11,FALSE)) ->  | AC41: 0 | AE41: =IF(C41="","",IF($Z$2=Defaults!$M$5,VLOOKUP(C41,Defaults!$T$38:$AE$41,2,FALSE),IF(OR($Z$2=Defaults!$M$7,$Z$2=Defaults!$M$11)=TRUE,VLOOKUP(C41,Defaults!$T$3:$AE$13,2,FALSE),IF($Z$2=Defaults!$M$10,VLOOKUP(C41,Defaults!$T$33:$AE$34,2,FALSE),IF($Z$2=Defaults!$M$12,VLOOKUP(C41,Defaults!$T$3:$U$13,2,FALSE),""))))) ->  | AF41: =IF(C41="","",IF($Z$2=Defaults!$M$5,ROUND(VLOOKUP(C41,Defaults!$T$38:$AE$41,3,FALSE),2),IF(OR($Z$2=Defaults!$M$7,$Z$2=Defaults!$M$11)=TRUE,ROUND(VLOOKUP(C41,Defaults!$T$3:$AE$13,3,FALSE),2),IF($Z$2=Defaults!$M$10,ROUND(VLOOKUP(C41,Defaults!$T$33:$AE$34,3,FALSE),2),IF($Z$2=Defaults!$M$12,ROUND(VLOOKUP(C41,Defaults!$T$17:$AE$18,3,FALSE),2),""))))) ->  | AG41: =IFERROR(IF(LEFT($C$39,6)="Custom",L41,L41*(1-VLOOKUP($C$39,Implements!$A$159:$D$166,4,FALSE))),"") ->  | AM41: =N41 -> 0 | AO41: =N41 -> 0 | AU41: =W41 ->  | AW41: =W41 ->  | AZ41: =IF($C41="","",VLOOKUP(C41,Defaults!$T$38:$X$41,4,FALSE)) ->  | BB41: =IF($C41="","",VLOOKUP(C41,Defaults!$T$3:$X$13,4,FALSE)) ->  | BE41: =IF($C41="","",VLOOKUP(C41,Defaults!$T$33:$X$34,4,FALSE)) ->  | BF41: =IF($C41="","",VLOOKUP(C41,Defaults!$T$3:$X$13,4,FALSE)) ->  | BJ41: =IF($C41="","",IFERROR(VLOOKUP(C41,Defaults!$T$38:$AE$41,5,FALSE),"")) ->  | BL41: =IF($C41="","",IFERROR(VLOOKUP(C41,Defaults!$T$3:$AE$13,7,FALSE),"")) ->  | BO41: =IF($C41="","",IFERROR(VLOOKUP(C41,Defaults!$T$33:$AE$34,10,FALSE),"")) ->  | BP41: =IF($C41="","",IFERROR(VLOOKUP(C41,Defaults!$T$3:$AE$13,11,FALSE),"")) ->  | BQ41: =IF($C41="","",IFERROR(VLOOKUP(C41,Defaults!$T$17:$AE$18,12,FALSE),"")) -> 
K42: =IF(C42="","",ROUND(IF(E42=AE42,AF42,IF(AE42=$AC$2,AF42*VLOOKUP(E42,$AA$2:$AB$4,2,FALSE),IF(AE42=$AF$2,AF42*VLOOKUP(E42,$AD$2:$AE$3,2,FALSE),IF(AE42=$AI$2,AF42/VLOOKUP(E42,$AG$2:$AH$2,2,FALSE),IF(AE42=$AL$2,AF42*VLOOKUP(E42,$AJ$2:$AK$2,2,FALSE),IF(AE42=$AO$2,AF42/VLOOKUP(E42,$AM$2:$AN$2,2,FALSE),IF(AE42=$AR$2,AF42*VLOOKUP(E42,$AP$2:$AQ$3,2,FALSE)))))))),2)) ->  | N42: 0 | Q42: =IF(L42>0,ABS(V42-L42),"") ->  | U42: =J42 -> 0 | V42: =IF(AG42=0,0,AG42) ->  | Z42: =IF($Z$2=Defaults!$M$5,Cotton!B42,IF($Z$2=Defaults!$M$6,Corn!B42,IF($Z$2=Defaults!$M$7,Sorghum!B42,IF($Z$2=Defaults!$M$8,Soybean!B42,IF($Z$2=Defaults!$M$9,Rice!B42,IF($Z$2=Defaults!$M$10,Peanut!B42,IF($Z$2=Defaults!$M$11,Wheat!B42,IF($Z$2=Defaults!$M$12,Pasture!B42,"")))))))) ->  | AA42: =IF(C42="","",HLOOKUP($Z$2,$AZ$31:$BG$43,12,FALSE)) ->  | AB42: =IF(C42="","",HLOOKUP($Z$2,$BJ$31:$BQ$43,12,FALSE)) ->  | AC42: 0 | AE42: =IF(C42="","",IF($Z$2=Defaults!$M$5,VLOOKUP(C42,Defaults!$T$38:$AE$41,2,FALSE),IF(OR($Z$2=Defaults!$M$7,$Z$2=Defaults!$M$11)=TRUE,VLOOKUP(C42,Defaults!$T$3:$AE$13,2,FALSE),IF($Z$2=Defaults!$M$10,VLOOKUP(C42,Defaults!$T$33:$AE$34,2,FALSE),IF($Z$2=Defaults!$M$12,VLOOKUP(C42,Defaults!$T$3:$U$13,2,FALSE),""))))) ->  | AF42: =IF(C42="","",IF($Z$2=Defaults!$M$5,ROUND(VLOOKUP(C42,Defaults!$T$38:$AE$41,3,FALSE),2),IF(OR($Z$2=Defaults!$M$7,$Z$2=Defaults!$M$11)=TRUE,ROUND(VLOOKUP(C42,Defaults!$T$3:$AE$13,3,FALSE),2),IF($Z$2=Defaults!$M$10,ROUND(VLOOKUP(C42,Defaults!$T$33:$AE$34,3,FALSE),2),IF($Z$2=Defaults!$M$12,ROUND(VLOOKUP(C42,Defaults!$T$17:$AE$18,3,FALSE),2),""))))) ->  | AG42: =IFERROR(IF(LEFT($C$39,6)="Custom",L42,L42*(1-VLOOKUP($C$39,Implements!$A$159:$D$166,4,FALSE))),"") ->  | AM42: =N42 -> 0 | AO42: =N42 -> 0 | AU42: =W42 ->  | AW42: =W42 ->  | AZ42: =IF($C42="","",VLOOKUP(C42,Defaults!$T$38:$X$41,4,FALSE)) ->  | BB42: =IF($C42="","",VLOOKUP(C42,Defaults!$T$3:$X$13,4,FALSE)) ->  | BE42: =IF($C42="","",VLOOKUP(C42,Defaults!$T$33:$X$34,4,FALSE)) ->  | BF42: =IF($C42="","",VLOOKUP(C42,Defaults!$T$3:$X$13,4,FALSE)) ->  | BJ42: =IF($C42="","",IFERROR(VLOOKUP(C42,Defaults!$T$38:$AE$41,5,FALSE),"")) ->  | BL42: =IF($C42="","",IFERROR(VLOOKUP(C42,Defaults!$T$3:$AE$13,7,FALSE),"")) ->  | BO42: =IF($C42="","",IFERROR(VLOOKUP(C42,Defaults!$T$33:$AE$34,10,FALSE),"")) ->  | BP42: =IF($C42="","",IFERROR(VLOOKUP(C42,Defaults!$T$3:$AE$13,11,FALSE),"")) ->  | BQ42: =IF($C42="","",IFERROR(VLOOKUP(C42,Defaults!$T$17:$AE$18,12,FALSE),"")) -> 
K43: =IF(C43="","",ROUND(IF(E43=AE43,AF43,IF(AE43=$AC$2,AF43*VLOOKUP(E43,$AA$2:$AB$4,2,FALSE),IF(AE43=$AF$2,AF43*VLOOKUP(E43,$AD$2:$AE$3,2,FALSE),IF(AE43=$AI$2,AF43/VLOOKUP(E43,$AG$2:$AH$2,2,FALSE),IF(AE43=$AL$2,AF43*VLOOKUP(E43,$AJ$2:$AK$2,2,FALSE),IF(AE43=$AO$2,AF43/VLOOKUP(E43,$AM$2:$AN$2,2,FALSE),IF(AE43=$AR$2,AF43*VLOOKUP(E43,$AP$2:$AQ$3,2,FALSE)))))))),2)) ->  | N43: 0 | Q43: =IF(L43>0,ABS(V43-L43),"") ->  | U43: =J43 -> 0 | V43: =IF(AG43=0,0,AG43) ->  | Z43: =IF($Z$2=Defaults!$M$5,Cotton!B43,IF($Z$2=Defaults!$M$6,Corn!B43,IF($Z$2=Defaults!$M$7,Sorghum!B43,IF($Z$2=Defaults!$M$8,Soybean!B43,IF($Z$2=Defaults!$M$9,Rice!B43,IF($Z$2=Defaults!$M$10,Peanut!B43,IF($Z$2=Defaults!$M$11,Wheat!B43,IF($Z$2=Defaults!$M$12,Pasture!B43,"")))))))) ->  | AA43: =IF(C43="","",HLOOKUP($Z$2,$AZ$31:$BG$43,13,FALSE)) ->  | AB43: =IF(C43="","",HLOOKUP($Z$2,$BJ$31:$BQ$43,13,FALSE)) ->  | AC43: 1 | AE43: =IF(C43="","",IF($Z$2=Defaults!$M$5,VLOOKUP(C43,Defaults!$T$38:$AE$41,2,FALSE),IF(OR($Z$2=Defaults!$M$7,$Z$2=Defaults!$M$11)=TRUE,VLOOKUP(C43,Defaults!$T$3:$AE$13,2,FALSE),IF($Z$2=Defaults!$M$10,VLOOKUP(C43,Defaults!$T$33:$AE$34,2,FALSE),IF($Z$2=Defaults!$M$12,VLOOKUP(C43,Defaults!$T$3:$U$13,2,FALSE),""))))) ->  | AF43: =IF(C43="","",IF($Z$2=Defaults!$M$5,ROUND(VLOOKUP(C43,Defaults!$T$38:$AE$41,3,FALSE),2),IF(OR($Z$2=Defaults!$M$7,$Z$2=Defaults!$M$11)=TRUE,ROUND(VLOOKUP(C43,Defaults!$T$3:$AE$13,3,FALSE),2),IF($Z$2=Defaults!$M$10,ROUND(VLOOKUP(C43,Defaults!$T$33:$AE$34,3,FALSE),2),IF($Z$2=Defaults!$M$12,ROUND(VLOOKUP(C43,Defaults!$T$17:$AE$18,3,FALSE),2),""))))) ->  | AG43: =IFERROR(IF(LEFT($C$39,6)="Custom",L43,L43*(1-VLOOKUP($C$39,Implements!$A$159:$D$166,4,FALSE))),"") ->  | AM43: =N43 -> 0 | AO43: =N43 -> 0 | AU43: =W43 ->  | AW43: =W43 ->  | AZ43: =IF($C43="","",VLOOKUP(C43,Defaults!$T$38:$X$41,4,FALSE)) ->  | BB43: =IF($C43="","",VLOOKUP(C43,Defaults!$T$3:$X$13,4,FALSE)) ->  | BE43: =IF($C43="","",VLOOKUP(C43,Defaults!$T$33:$X$34,4,FALSE)) ->  | BF43: =IF($C43="","",VLOOKUP(C43,Defaults!$T$3:$X$13,4,FALSE)) ->  | BJ43: =IF($C43="","",IFERROR(VLOOKUP(C43,Defaults!$T$38:$AE$41,5,FALSE),"")) ->  | BL43: =IF($C43="","",IFERROR(VLOOKUP(C43,Defaults!$T$3:$AE$13,7,FALSE),"")) ->  | BO43: =IF($C43="","",IFERROR(VLOOKUP(C43,Defaults!$T$33:$AE$34,10,FALSE),"")) ->  | BP43: =IF($C43="","",IFERROR(VLOOKUP(C43,Defaults!$T$3:$AE$13,11,FALSE),"")) ->  | BQ43: =IF($C43="","",IFERROR(VLOOKUP(C43,Defaults!$T$17:$AE$18,12,FALSE),"")) -> 
C44: Over-the-Top Sprayer 1 | F44: =IF($L44=0,0,IF($C44=Defaults!$I$27,Implements!$AK$185,IF($C44=Defaults!$I$28,Implements!$AK$186,0))) -> 61.45454545 | G44: =IF($L44=0,0,IFERROR(VLOOKUP($C44,Implements!$X$181:$AN$188,15,FALSE),0)) -> 8.36 | H44: =IF($L44=0,0,IFERROR(VLOOKUP($C44,Implements!$X$181:$AN$188,16,FALSE),0)) -> 45.04666667 | I44: =IF($L44=0,0,IFERROR(VLOOKUP($C44,Implements!$X$181:$AN$188,17,FALSE),0)) -> 137.6458252 | J44: =IF(OR(C44="",L44="",L44=0)=TRUE,"",IF(OR(C44=Defaults!$I$25,C44=Defaults!$I$26)=TRUE,VLOOKUP(C44,Defaults!$I$24:$K$27,3,FALSE),IF(C44=Defaults!$I$59,VLOOKUP(C44,Defaults!$I$58:$K$61,3,FALSE),IF(C44=Defaults!$I$64,VLOOKUP(C44,Defaults!$I$63:$K$66,3,FALSE),ROUND(1/F44*(1*Inputs!$AA$13+($AI$7-1)*Inputs!$AA$15),2)+ROUND(G44*Inputs!$V$13/F44,2)+ROUND(H44/F44,2)+ROUND(I44/F44,2))))) -> 3.5 | K44: =IF(OR(C44="",L44="",L44=0)=TRUE,"",IF(OR(C44=Defaults!$I$25,C44=Defaults!$I$26)=TRUE,VLOOKUP(C44,Defaults!$I$24:$K$27,3,FALSE),IF(C44=Defaults!$I$59,VLOOKUP(C44,Defaults!$I$58:$K$61,3,FALSE),IF(C44=Defaults!$I$64,VLOOKUP(C44,Defaults!$I$63:$K$66,3,FALSE),ROUND(1/F44*(1*Inputs!$AA$13+($AI$7-1)*Inputs!$AA$15),2)+ROUND(G44*Inputs!$V$13/F44,2)+ROUND(H44/F44,2)+ROUND(I44/F44,2))))) -> 3.5 | L44: 1 | M44: 1 | N44: 3.5 | Q44: =IF($V44=0,0,IF($C44=Defaults!$I$27,Implements!$AK$174,IF($C44=Defaults!$I$28,Implements!$AK$175,0))) -> 62.81269091 | R44: =IF($V44=0,0,IFERROR(VLOOKUP($C44,Implements!$X$170:$AN$177,15,FALSE),0)) -> 8.36 | S44: =IF($V44=0,0,IFERROR(VLOOKUP($C44,Implements!$X$170:$AN$177,16,FALSE),0)) -> 45.04666667 | T44: =IF($V44=0,0,IFERROR(VLOOKUP($C44,Implements!$X$170:$AN$177,17,FALSE),0)) -> 138.7259237 | U44: =IF(OR(C44="",V44="",V44=0)=TRUE,"",IF(LEFT(C44,6)="Custom",J44,ROUND(1/Q44*(1*Inputs!$AA$13+($AI$7-1)*Inputs!$AA$15),2)+ROUND(R44*Inputs!$V$13/Q44,2)+ROUND(S44/Q44,2)+ROUND(T44/Q44,2))) -> 3.44 | V44: =+L44 -> 1 | W44: 3.44 | X44: -0.06 | Z44: =IF($Z$2=Defaults!$M$5,Cotton!B44,IF($Z$2=Defaults!$M$6,Corn!B44,IF($Z$2=Defaults!$M$7,Sorghum!B44,IF($Z$2=Defaults!$M$8,Soybean!B44,IF($Z$2=Defaults!$M$9,Rice!B44,IF($Z$2=Defaults!$M$10,Peanut!B44,IF($Z$2=Defaults!$M$11,Wheat!B44,IF($Z$2=Defaults!$M$12,Pasture!B44,"")))))))) -> Over-the-Top Sprayer 1 | AB44: =IF(C44="","",IF($Z$2=Defaults!$M$5,VLOOKUP(C44,Defaults!$I$58:$K$61,2,FALSE),IF($Z$2=Defaults!$M$8,VLOOKUP(C44,Defaults!$I$63:$K$66,2,FALSE),""))) -> 1 | AC44: 0 | AD44: =IF(AB44="","",AB44*2) -> 2 | AG44: =+AB44 -> 1 | AH44: =N44 -> 3.5 | AI44: =ROUND(IFERROR(1/F44*(1*Inputs!$AA$13+($AI$7-1)*Inputs!$AA$15),0),2)*L44 -> 0.29 | AJ44: =ROUND(IFERROR(1/F44*G44*Inputs!$V$13,0),2)*L44 -> 0.24 | AK44: =ROUND(IFERROR(1/F44*H44,0),2)*L44 -> 0.73 | AL44: =ROUND(IFERROR(1/F44*I44,0),2)*L44 -> 2.24 | AP44: =W44 -> 3.44 | AQ44: =ROUND(IFERROR(1/Q44*(1*Inputs!$AA$13+($AI$7-1)*Inputs!$AA$15),0),2)*V44 -> 0.28 | AR44: =ROUND(IFERROR(1/Q44*R44*Inputs!$V$13,0),2)*V44 -> 0.23 | AS44: =ROUND(IFERROR(1/Q44*S44,0),2)*V44 -> 0.72 | AT44: =ROUND(IFERROR(1/Q44*T44,0),2)*V44 -> 2.21 | AY44: Other: Growth Regulator or Fungicide
C45: Quadris Top | E45: oz | J45: 2.13 | K45: =IF(C45="","",ROUND(IF(E45=AE45,AF45,IF(AE45=$AC$2,AF45*VLOOKUP(E45,$AA$2:$AB$4,2,FALSE),IF(AE45=$AF$2,AF45*VLOOKUP(E45,$AD$2:$AE$3,2,FALSE),IF(AE45=$AI$2,AF45/VLOOKUP(E45,$AG$2:$AH$2,2,FALSE),IF(AE45=$AL$2,AF45*VLOOKUP(E45,$AJ$2:$AK$2,2,FALSE),IF(AE45=$AO$2,AF45/VLOOKUP(E45,$AM$2:$AN$2,2,FALSE),IF(AE45=$AR$2,AF45*VLOOKUP(E45,$AP$2:$AQ$3,2,FALSE)))))))),2)) -> 2.13 | L45: 7 | M45: 7 | N45: 14.91 | Q45: =IF(L45>0,ABS(V45-L45),"") -> 1.5456 | U45: =J45 -> 2.13 | V45: =IF(AG45=0,0,AG45) -> 5.4544 | W45: 11.617872 | X45: -3.292128 | Z45: =IF($Z$2=Defaults!$M$5,Cotton!B45,IF($Z$2=Defaults!$M$6,Corn!B45,IF($Z$2=Defaults!$M$7,Sorghum!B45,IF($Z$2=Defaults!$M$8,Soybean!B45,IF($Z$2=Defaults!$M$9,Rice!B45,IF($Z$2=Defaults!$M$10,Peanut!B45,IF($Z$2=Defaults!$M$11,Wheat!B45,IF($Z$2=Defaults!$M$12,Pasture!B45,"")))))))) -> Quadris Top | AA45: =IF(C45="","",HLOOKUP($Z$2,$AZ$31:$BG$46,15,FALSE)) -> oz | AB45: =IF(C45="","",HLOOKUP($Z$2,$BJ$31:$BQ$46,15,FALSE)) -> 7 | AC45: 0 | AE45: =IF(C45="","",IF($Z$2=Defaults!$M$5,VLOOKUP(C45,Defaults!$T$45:$AE$46,2,FALSE),IF($Z$2=Defaults!$M$8,VLOOKUP(C45,Defaults!$T$50:$AE$51,2,FALSE),""))) -> oz | AF45: =IF(C45="","",IF($Z$2=Defaults!$M$5,ROUND(VLOOKUP(C45,Defaults!$T$45:$AE$46,3,FALSE),2),IF($Z$2=Defaults!$M$8,ROUND(VLOOKUP(C45,Defaults!$T$50:$AE$51,3,FALSE),2),""))) -> 2.13 | AG45: =IFERROR(IF(LEFT($C$44,6)="Custom",L45,L45*(1-VLOOKUP($C$44,Implements!$A$159:$D$166,4,FALSE))),"") -> 5.4544 | AM45: =N45 -> 14.91 | AO45: =N45 -> 14.91 | AU45: =W45 -> 11.617872 | AW45: =W45 -> 11.617872 | AY45: Quadris Top | AZ45: =IF($C45="","",VLOOKUP(C45,Defaults!$T$45:$AE$46,4,FALSE)) ->  | BC45: =IF($C45="","",VLOOKUP(C45,Defaults!$T$50:$AE$51,4,FALSE)) -> oz | BI45: Quadris Top | BJ45: =IF($C45="","",IFERROR(VLOOKUP(C45,Defaults!$T$45:$AE$46,5,FALSE),"")) ->  | BM45: =IF($C45="","",IFERROR(VLOOKUP(C45,Defaults!$T$50:$AE$51,8,FALSE),"")) -> 7
K46: =IF(C46="","",ROUND(IF(E46=AE46,AF46,IF(AE46=$AC$2,AF46*VLOOKUP(E46,$AA$2:$AB$4,2,FALSE),IF(AE46=$AF$2,AF46*VLOOKUP(E46,$AD$2:$AE$3,2,FALSE),IF(AE46=$AI$2,AF46/VLOOKUP(E46,$AG$2:$AH$2,2,FALSE),IF(AE46=$AL$2,AF46*VLOOKUP(E46,$AJ$2:$AK$2,2,FALSE),IF(AE46=$AO$2,AF46/VLOOKUP(E46,$AM$2:$AN$2,2,FALSE),IF(AE46=$AR$2,AF46*VLOOKUP(E46,$AP$2:$AQ$3,2,FALSE)))))))),2)) ->  | N46: 0 | Q46: =IF(L46>0,ABS(V46-L46),"") ->  | U46: =J46 -> 0 | V46: =IF(AG46=0,0,AG46) -> 0 | Z46: =IF($Z$2=Defaults!$M$5,Cotton!B46,IF($Z$2=Defaults!$M$6,Corn!B46,IF($Z$2=Defaults!$M$7,Sorghum!B46,IF($Z$2=Defaults!$M$8,Soybean!B46,IF($Z$2=Defaults!$M$9,Rice!B46,IF($Z$2=Defaults!$M$10,Peanut!B46,IF($Z$2=Defaults!$M$11,Wheat!B46,IF($Z$2=Defaults!$M$12,Pasture!B46,"")))))))) ->  | AA46: =IF(C46="","",HLOOKUP($Z$2,$AZ$31:$BG$46,16,FALSE)) ->  | AB46: =IF(C46="","",HLOOKUP($Z$2,$BJ$31:$BQ$46,16,FALSE)) ->  | AC46: 0 | AE46: =IF(C46="","",IF($Z$2=Defaults!$M$5,VLOOKUP(C46,Defaults!$T$45:$AE$46,2,FALSE),IF($Z$2=Defaults!$M$8,VLOOKUP(C46,Defaults!$T$50:$AE$51,2,FALSE),""))) ->  | AF46: =IF(C46="","",IF($Z$2=Defaults!$M$5,ROUND(VLOOKUP(C46,Defaults!$T$45:$AE$46,3,FALSE),2),IF($Z$2=Defaults!$M$8,ROUND(VLOOKUP(C46,Defaults!$T$50:$AE$51,3,FALSE),2),""))) ->  | AG46: =IFERROR(IF(LEFT($C$44,6)="Custom",L46,L46*(1-VLOOKUP($C$44,Implements!$A$159:$D$166,4,FALSE))),"") -> 0 | AM46: =N46 -> 0 | AO46: =N46 -> 0 | AU46: =W46 ->  | AW46: =W46 ->  | AZ46: =IF($C46="","",VLOOKUP(C46,Defaults!$T$45:$AE$46,4,FALSE)) ->  | BC46: =IF($C46="","",VLOOKUP(C46,Defaults!$T$50:$AE$51,4,FALSE)) ->  | BJ46: =IF($C46="","",IFERROR(VLOOKUP(C46,Defaults!$T$45:$AE$46,5,FALSE),"")) ->  | BM46: =IF($C46="","",IFERROR(VLOOKUP(C46,Defaults!$T$50:$AE$51,8,FALSE),"")) -> 
C47: Preemergence Weed Control | D47: =IF($Z$2=Defaults!$M$5,Cotton!D47,IF($Z$2=Defaults!$M$6,Corn!D47,IF($Z$2=Defaults!$M$7,Sorghum!D47,IF($Z$2=Defaults!$M$8,Soybean!D47,IF($Z$2=Defaults!$M$9,Rice!D47,IF($Z$2=Defaults!$M$10,Peanut!D47,IF($Z$2=Defaults!$M$11,Wheat!D47,IF($Z$2=Defaults!$M$12,Pasture!D48,FALSE)))))))) -> At Planting | Z47: =IF($Z$2=Defaults!$M$5,Cotton!B47,IF($Z$2=Defaults!$M$6,Corn!B47,IF($Z$2=Defaults!$M$7,Sorghum!B47,IF($Z$2=Defaults!$M$8,Soybean!B47,IF($Z$2=Defaults!$M$9,Rice!B47,IF($Z$2=Defaults!$M$10,Peanut!B47,IF($Z$2=Defaults!$M$11,Wheat!B47,IF($Z$2=Defaults!$M$12,Pasture!B47,"")))))))) -> Preemergence Weed Control | AY47: PRE | BI47: PRE | BS47: PRE
F48: =IF(L48=0,0,IF(C48=Defaults!$I$27,Implements!$AK$185,IF(C48=Defaults!$I$28,Implements!$AK$186,0))) -> 0 | G48: =IF($L48=0,0,IFERROR(VLOOKUP($C48,Implements!$X$181:$AN$188,15,FALSE),0)) -> 0 | H48: =IF($L48=0,0,IFERROR(VLOOKUP($C48,Implements!$X$181:$AN$188,16,FALSE),0)) -> 0 | I48: =IF($L48=0,0,IFERROR(VLOOKUP($C48,Implements!$X$181:$AN$188,17,FALSE),0)) -> 0 | J48: =IF(OR(C48="",L48="",L48=0)=TRUE,"",IF(OR(C48=Defaults!$I$25,C48=Defaults!$I$26)=TRUE,VLOOKUP(C48,Defaults!$I$24:$K$27,3,FALSE),ROUND(1/F48*(1*Inputs!$AA$13+($AI$7-1)*Inputs!$AA$15),2)+ROUND(G48*Inputs!$V$13/F48,2)+ROUND(H48/F48,2)+ROUND(I48/F48,2))) ->  | K48: =IF(OR(C48="",L48="",L48=0)=TRUE,"",IF(OR(C48=Defaults!$I$25,C48=Defaults!$I$26)=TRUE,VLOOKUP(C48,Defaults!$I$24:$K$27,3,FALSE),ROUND(1/F48*(1*Inputs!$AA$13+($AI$7-1)*Inputs!$AA$15),2)+ROUND(G48*Inputs!$V$13/F48,2)+ROUND(H48/F48,2)+ROUND(I48/F48,2))) ->  | M48: =AB48 ->  | N48: =IF(C48="",0,IF(L48=0,0,IF(L48="","",J48*L48))) -> 0 | Q48: =IF(V48=0,0,IF(C48=Defaults!$I$27,Implements!$AK$174,IF(C48=Defaults!$I$28,Implements!$AK$175,0))) -> 0 | R48: =IF($V48=0,0,IFERROR(VLOOKUP($C48,Implements!$X$170:$AN$177,15,FALSE),0)) -> 0 | S48: =IF($V48=0,0,IFERROR(VLOOKUP($C48,Implements!$X$170:$AN$177,16,FALSE),0)) -> 0 | T48: =IF($V48=0,0,IFERROR(VLOOKUP($C48,Implements!$X$170:$AN$177,17,FALSE),0)) -> 0 | U48: =IF(OR(C48="",V48="",V48=0)=TRUE,"",IF(LEFT(C48,6)="Custom",J48,ROUND(1/Q48*(1*Inputs!$AA$13+($AI$7-1)*Inputs!$AA$15),2)+ROUND(R48*Inputs!$V$13/Q48,2)+ROUND(S48/Q48,2)+ROUND(T48/Q48,2))) ->  | V48: =+L48 -> 0 | W48: =IF(C48="","",IF(V48=0,0,IF(V48="","",U48*V48))) ->  | X48: =IF(C48="","",W48-N48) ->  | Z48: =IF($Z$2=Defaults!$M$5,Cotton!B48,IF($Z$2=Defaults!$M$6,Corn!B48,IF($Z$2=Defaults!$M$7,Sorghum!B48,IF($Z$2=Defaults!$M$8,Soybean!B48,IF($Z$2=Defaults!$M$9,Rice!B48,IF($Z$2=Defaults!$M$10,Peanut!B48,IF($Z$2=Defaults!$M$11,Wheat!B48,IF($Z$2=Defaults!$M$12,Pasture!B48,"")))))))) ->  | AB48: =IF(C48="","",IF($Z$2=Defaults!$M$12,VLOOKUP(C48,Defaults!$I$35:$J$37,2,FALSE),VLOOKUP(C48,Defaults!$I$24:$J$28,2,FALSE))) ->  | AC48: 0 | AD48: =IF(AB48="","",AB48*2) ->  | AG48: =+AB48 ->  | AH48: =N48 -> 0 | AI48: =ROUND(IFERROR(1/F48*(1*Inputs!$AA$13+($AI$7-1)*Inputs!$AA$15),0),2)*L48 -> 0 | AJ48: =ROUND(IFERROR(1/F48*G48*Inputs!$V$13,0),2)*L48 -> 0 | AK48: =ROUND(IFERROR(1/F48*H48,0),2)*L48 -> 0 | AL48: =ROUND(IFERROR(1/F48*I48,0),2)*L48 -> 0 | AP48: =W48 ->  | AQ48: =ROUND(IFERROR(1/Q48*(1*Inputs!$AA$13+($AI$7-1)*Inputs!$AA$15),0),2)*V48 -> 0 | AR48: =ROUND(IFERROR(1/Q48*R48*Inputs!$V$13,0),2)*V48 -> 0 | AS48: =ROUND(IFERROR(1/Q48*S48,0),2)*V48 -> 0 | AT48: =ROUND(IFERROR(1/Q48*T48,0),2)*V48 -> 0 | AZ48: =AZ11 -> Cotton | BA48: Corn | BB48: Sorghum | BC48: Soybean | BD48: Rice | BE48: Peanut | BF48: Wheat | BG48: Est. Pasture or Hay | BJ48: =BJ11 -> Cotton | BK48: Corn | BL48: Sorghum | BM48: Soybean | BN48: Rice | BO48: Peanut | BP48: Wheat | BQ48: Est. Pasture or Hay | BT48: =BT11 -> Cotton | BU48: Corn | BV48: Sorghum | BW48: Soybean | BX48: Rice | BY48: Peanut | BZ48: Wheat | CA48: Est. Pasture or Hay
K49: =IF(C49="","",ROUND(IF(E49=AE49,AF49,IF(AE49=$AC$2,AF49*VLOOKUP(E49,$AA$2:$AB$4,2,FALSE),IF(AE49=$AF$2,AF49*VLOOKUP(E49,$AD$2:$AE$3,2,FALSE),IF(AE49=$AI$2,AF49/VLOOKUP(E49,$AG$2:$AH$2,2,FALSE),IF(AE49=$AL$2,AF49*VLOOKUP(E49,$AJ$2:$AK$2,2,FALSE),IF(AE49=$AO$2,AF49/VLOOKUP(E49,$AM$2:$AN$2,2,FALSE),IF(AE49=$AR$2,AF49*VLOOKUP(E49,$AP$2:$AQ$3,2,FALSE)))))))),2)) ->  | N49: 0 | Q49: =IF(L49>0,ABS(V49-L49),"") ->  | U49: =J49 -> 0 | V49: =IF(AG49=0,0,AG49) ->  | Z49: =IF($Z$2=Defaults!$M$5,Cotton!B49,IF($Z$2=Defaults!$M$6,Corn!B49,IF($Z$2=Defaults!$M$7,Sorghum!B49,IF($Z$2=Defaults!$M$8,Soybean!B49,IF($Z$2=Defaults!$M$9,Rice!B49,IF($Z$2=Defaults!$M$10,Peanut!B49,IF($Z$2=Defaults!$M$11,Wheat!B49,IF($Z$2=Defaults!$M$12,Pasture!B49,"")))))))) ->  | AA49: =IF(C49="","",HLOOKUP($Z$2,$AZ$48:$BG$53,2,FALSE)) ->  | AB49: =IF(C49="","",HLOOKUP($Z$2,$BJ$48:$BQ$53,2,FALSE)) ->  | AC49: 0 | AD49: =IF(C49="","",HLOOKUP($Z$2,$BT$48:$CA$53,2,FALSE)) ->  | AE49: =IF(C49="","",VLOOKUP(C49,Defaults!$AH:$AJ,2,FALSE)) ->  | AF49: =IF(C49="","",ROUND(VLOOKUP(C49,Defaults!$AH:$AJ,3,FALSE),2)) ->  | AG49: =IFERROR(IF(LEFT($C$48,6)="Custom",L49,L49*(1-VLOOKUP($C$48,Implements!$A$159:$D$166,4,FALSE))),"") ->  | AM49: =N49 -> 0 | AO49: =N49 -> 0 | AU49: =W49 ->  | AW49: =W49 ->  | AY49: =IF($C49="","",$C49) ->  | AZ49: =IF($C49="","",VLOOKUP($C49,Defaults!$AL$37:$AQ$63,4,FALSE)) ->  | BA49: =IF($C49="","",VLOOKUP($C49,Defaults!$AS$37:$AX$63,4,FALSE)) ->  | BB49: =IF($C49="","",VLOOKUP($C49,Defaults!$AZ$37:$BE$63,4,FALSE)) ->  | BC49: =IF($C49="","",VLOOKUP($C49,Defaults!$BG$37:$BL$63,4,FALSE)) ->  | BD49: =IF($C49="","",VLOOKUP($C49,Defaults!$BN$37:$BS$63,4,FALSE)) ->  | BE49: =IF($C49="","",VLOOKUP($C49,Defaults!$BU$37:$BZ$63,4,FALSE)) ->  | BF49: =IF($C49="","",VLOOKUP($C49,Defaults!$CB$37:$CG$63,4,FALSE)) ->  | BG49: =IF($C49="","",VLOOKUP($C49,Defaults!$CI:$CN,4,FALSE)) ->  | BI49: =IF($C49="","",$C49) ->  | BJ49: =IF($C49="","",IFERROR(VLOOKUP($C49,Defaults!$AL$37:$AQ$63,5,FALSE),"")) ->  | BK49: =IF($C49="","",IFERROR(VLOOKUP($C49,Defaults!$AS$37:$AX$63,5,FALSE),"")) ->  | BL49: =IF($C49="","",IFERROR(VLOOKUP($C49,Defaults!$AZ$37:$BE$63,5,FALSE),"")) ->  | BM49: =IF($C49="","",IFERROR(VLOOKUP($C49,Defaults!$BG$37:$BL$63,5,FALSE),"")) ->  | BN49: =IF($C49="","",IFERROR(VLOOKUP($C49,Defaults!$BN$37:$BS$63,5,FALSE),"")) ->  | BO49: =IF($C49="","",IFERROR(VLOOKUP($C49,Defaults!$BU$37:$BZ$63,5,FALSE),"")) ->  | BP49: =IF($C49="","",IFERROR(VLOOKUP($C49,Defaults!$CB$37:$CG$63,5,FALSE),"")) ->  | BQ49: =IF($C49="","",IFERROR(VLOOKUP($C49,Defaults!$CI:$CN,5,FALSE),"")) ->  | BS49: =IF($C49="","",$C49) ->  | BT49: =IF($C49="","",IFERROR(VLOOKUP($C49,Defaults!$AL$37:$AQ$63,6,FALSE),"")) ->  | BU49: =IF($C49="","",IFERROR(VLOOKUP($C49,Defaults!$AS$37:$AX$63,6,FALSE),"")) ->  | BV49: =IF($C49="","",IFERROR(VLOOKUP($C49,Defaults!$AZ$37:$BE$63,6,FALSE),"")) ->  | BW49: =IF($C49="","",IFERROR(VLOOKUP($C49,Defaults!$BG$37:$BL$63,6,FALSE),"")) ->  | BX49: =IF($C49="","",IFERROR(VLOOKUP($C49,Defaults!$BN$37:$BS$63,6,FALSE),"")) ->  | BY49: =IF($C49="","",IFERROR(VLOOKUP($C49,Defaults!$BU$37:$BZ$63,6,FALSE),"")) ->  | BZ49: =IF($C49="","",IFERROR(VLOOKUP($C49,Defaults!$CB$37:$CG$63,6,FALSE),"")) ->  | CA49: =IF($C49="","",IFERROR(VLOOKUP($C49,Defaults!$CI:$CN,6,FALSE),"")) -> 
K50: =IF(C50="","",ROUND(IF(E50=AE50,AF50,IF(AE50=$AC$2,AF50*VLOOKUP(E50,$AA$2:$AB$4,2,FALSE),IF(AE50=$AF$2,AF50*VLOOKUP(E50,$AD$2:$AE$3,2,FALSE),IF(AE50=$AI$2,AF50/VLOOKUP(E50,$AG$2:$AH$2,2,FALSE),IF(AE50=$AL$2,AF50*VLOOKUP(E50,$AJ$2:$AK$2,2,FALSE),IF(AE50=$AO$2,AF50/VLOOKUP(E50,$AM$2:$AN$2,2,FALSE),IF(AE50=$AR$2,AF50*VLOOKUP(E50,$AP$2:$AQ$3,2,FALSE)))))))),2)) ->  | N50: 0 | Q50: =IF(L50>0,ABS(V50-L50),"") ->  | U50: =J50 -> 0 | V50: =IF(AG50=0,0,AG50) ->  | Z50: =IF($Z$2=Defaults!$M$5,Cotton!B50,IF($Z$2=Defaults!$M$6,Corn!B50,IF($Z$2=Defaults!$M$7,Sorghum!B50,IF($Z$2=Defaults!$M$8,Soybean!B50,IF($Z$2=Defaults!$M$9,Rice!B50,IF($Z$2=Defaults!$M$10,Peanut!B50,IF($Z$2=Defaults!$M$11,Wheat!B50,IF($Z$2=Defaults!$M$12,Pasture!B50,"")))))))) ->  | AA50: =IF(C50="","",HLOOKUP($Z$2,$AZ$48:$BG$53,3,FALSE)) ->  | AB50: =IF(C50="","",HLOOKUP($Z$2,$BJ$48:$BQ$53,3,FALSE)) ->  | AC50: 0 | AD50: =IF(C50="","",HLOOKUP($Z$2,$BT$48:$CA$53,3,FALSE)) ->  | AE50: =IF(C50="","",VLOOKUP(C50,Defaults!$AH:$AJ,2,FALSE)) ->  | AF50: =IF(C50="","",ROUND(VLOOKUP(C50,Defaults!$AH:$AJ,3,FALSE),2)) ->  | AG50: =IFERROR(IF(LEFT($C$48,6)="Custom",L50,L50*(1-VLOOKUP($C$48,Implements!$A$159:$D$166,4,FALSE))),"") ->  | AM50: =N50 -> 0 | AO50: =N50 -> 0 | AU50: =W50 ->  | AW50: =W50 ->  | AY50: =IF($C50="","",$C50) ->  | AZ50: =IF($C50="","",VLOOKUP($C50,Defaults!$AL$37:$AQ$63,4,FALSE)) ->  | BA50: =IF($C50="","",VLOOKUP($C50,Defaults!$AS$37:$AX$63,4,FALSE)) ->  | BB50: =IF($C50="","",VLOOKUP($C50,Defaults!$AZ$37:$BE$63,4,FALSE)) ->  | BC50: =IF($C50="","",VLOOKUP($C50,Defaults!$BG$37:$BL$63,4,FALSE)) ->  | BD50: =IF($C50="","",VLOOKUP($C50,Defaults!$BN$37:$BS$63,4,FALSE)) ->  | BE50: =IF($C50="","",VLOOKUP($C50,Defaults!$BU$37:$BZ$63,4,FALSE)) ->  | BF50: =IF($C50="","",VLOOKUP($C50,Defaults!$CB$37:$CG$63,4,FALSE)) ->  | BG50: =IF($C50="","",VLOOKUP($C50,Defaults!$CI:$CN,4,FALSE)) ->  | BI50: =IF($C50="","",$C50) ->  | BJ50: =IF($C50="","",IFERROR(VLOOKUP($C50,Defaults!$AL$37:$AQ$63,5,FALSE),"")) ->  | BK50: =IF($C50="","",IFERROR(VLOOKUP($C50,Defaults!$AS$37:$AX$63,5,FALSE),"")) ->  | BL50: =IF($C50="","",IFERROR(VLOOKUP($C50,Defaults!$AZ$37:$BE$63,5,FALSE),"")) ->  | BM50: =IF($C50="","",IFERROR(VLOOKUP($C50,Defaults!$BG$37:$BL$63,5,FALSE),"")) ->  | BN50: =IF($C50="","",IFERROR(VLOOKUP($C50,Defaults!$BN$37:$BS$63,5,FALSE),"")) ->  | BO50: =IF($C50="","",IFERROR(VLOOKUP($C50,Defaults!$BU$37:$BZ$63,5,FALSE),"")) ->  | BP50: =IF($C50="","",IFERROR(VLOOKUP($C50,Defaults!$CB$37:$CG$63,5,FALSE),"")) ->  | BQ50: =IF($C50="","",IFERROR(VLOOKUP($C50,Defaults!$CI:$CN,5,FALSE),"")) ->  | BS50: =IF($C50="","",$C50) ->  | BT50: =IF($C50="","",IFERROR(VLOOKUP($C50,Defaults!$AL$37:$AQ$63,6,FALSE),"")) ->  | BU50: =IF($C50="","",IFERROR(VLOOKUP($C50,Defaults!$AS$37:$AX$63,6,FALSE),"")) ->  | BV50: =IF($C50="","",IFERROR(VLOOKUP($C50,Defaults!$AZ$37:$BE$63,6,FALSE),"")) ->  | BW50: =IF($C50="","",IFERROR(VLOOKUP($C50,Defaults!$BG$37:$BL$63,6,FALSE),"")) ->  | BX50: =IF($C50="","",IFERROR(VLOOKUP($C50,Defaults!$BN$37:$BS$63,6,FALSE),"")) ->  | BY50: =IF($C50="","",IFERROR(VLOOKUP($C50,Defaults!$BU$37:$BZ$63,6,FALSE),"")) ->  | BZ50: =IF($C50="","",IFERROR(VLOOKUP($C50,Defaults!$CB$37:$CG$63,6,FALSE),"")) ->  | CA50: =IF($C50="","",IFERROR(VLOOKUP($C50,Defaults!$CI:$CN,6,FALSE),"")) -> 
K51: =IF(C51="","",ROUND(IF(E51=AE51,AF51,IF(AE51=$AC$2,AF51*VLOOKUP(E51,$AA$2:$AB$4,2,FALSE),IF(AE51=$AF$2,AF51*VLOOKUP(E51,$AD$2:$AE$3,2,FALSE),IF(AE51=$AI$2,AF51/VLOOKUP(E51,$AG$2:$AH$2,2,FALSE),IF(AE51=$AL$2,AF51*VLOOKUP(E51,$AJ$2:$AK$2,2,FALSE),IF(AE51=$AO$2,AF51/VLOOKUP(E51,$AM$2:$AN$2,2,FALSE),IF(AE51=$AR$2,AF51*VLOOKUP(E51,$AP$2:$AQ$3,2,FALSE)))))))),2)) ->  | N51: 0 | Q51: =IF(L51>0,ABS(V51-L51),"") ->  | U51: =J51 -> 0 | V51: =IF(AG51=0,0,AG51) ->  | Z51: =IF($Z$2=Defaults!$M$5,Cotton!B51,IF($Z$2=Defaults!$M$6,Corn!B51,IF($Z$2=Defaults!$M$7,Sorghum!B51,IF($Z$2=Defaults!$M$8,Soybean!B51,IF($Z$2=Defaults!$M$9,Rice!B51,IF($Z$2=Defaults!$M$10,Peanut!B51,IF($Z$2=Defaults!$M$11,Wheat!B51,IF($Z$2=Defaults!$M$12,Pasture!B51,"")))))))) ->  | AA51: =IF(C51="","",HLOOKUP($Z$2,$AZ$48:$BG$53,4,FALSE)) ->  | AB51: =IF(C51="","",HLOOKUP($Z$2,$BJ$48:$BQ$53,4,FALSE)) ->  | AC51: 0 | AD51: =IF(C51="","",HLOOKUP($Z$2,$BT$48:$CA$53,4,FALSE)) ->  | AE51: =IF(C51="","",VLOOKUP(C51,Defaults!$AH:$AJ,2,FALSE)) ->  | AF51: =IF(C51="","",ROUND(VLOOKUP(C51,Defaults!$AH:$AJ,3,FALSE),2)) ->  | AG51: =IFERROR(IF(LEFT($C$48,6)="Custom",L51,L51*(1-VLOOKUP($C$48,Implements!$A$159:$D$166,4,FALSE))),"") ->  | AM51: =N51 -> 0 | AO51: =N51 -> 0 | AU51: =W51 ->  | AW51: =W51 ->  | AY51: =IF($C51="","",$C51) ->  | AZ51: =IF($C51="","",VLOOKUP($C51,Defaults!$AL$37:$AQ$63,4,FALSE)) ->  | BA51: =IF($C51="","",VLOOKUP($C51,Defaults!$AS$37:$AX$63,4,FALSE)) ->  | BB51: =IF($C51="","",VLOOKUP($C51,Defaults!$AZ$37:$BE$63,4,FALSE)) ->  | BC51: =IF($C51="","",VLOOKUP($C51,Defaults!$BG$37:$BL$63,4,FALSE)) ->  | BD51: =IF($C51="","",VLOOKUP($C51,Defaults!$BN$37:$BS$63,4,FALSE)) ->  | BE51: =IF($C51="","",VLOOKUP($C51,Defaults!$BU$37:$BZ$63,4,FALSE)) ->  | BF51: =IF($C51="","",VLOOKUP($C51,Defaults!$CB$37:$CG$63,4,FALSE)) ->  | BG51: =IF($C51="","",VLOOKUP($C51,Defaults!$CI:$CN,4,FALSE)) ->  | BI51: =IF($C51="","",$C51) ->  | BJ51: =IF($C51="","",IFERROR(VLOOKUP($C51,Defaults!$AL$37:$AQ$63,5,FALSE),"")) ->  | BK51: =IF($C51="","",IFERROR(VLOOKUP($C51,Defaults!$AS$37:$AX$63,5,FALSE),"")) ->  | BL51: =IF($C51="","",IFERROR(VLOOKUP($C51,Defaults!$AZ$37:$BE$63,5,FALSE),"")) ->  | BM51: =IF($C51="","",IFERROR(VLOOKUP($C51,Defaults!$BG$37:$BL$63,5,FALSE),"")) ->  | BN51: =IF($C51="","",IFERROR(VLOOKUP($C51,Defaults!$BN$37:$BS$63,5,FALSE),"")) ->  | BO51: =IF($C51="","",IFERROR(VLOOKUP($C51,Defaults!$BU$37:$BZ$63,5,FALSE),"")) ->  | BP51: =IF($C51="","",IFERROR(VLOOKUP($C51,Defaults!$CB$37:$CG$63,5,FALSE),"")) ->  | BQ51: =IF($C51="","",IFERROR(VLOOKUP($C51,Defaults!$CI:$CN,5,FALSE),"")) ->  | BS51: =IF($C51="","",$C51) ->  | BT51: =IF($C51="","",IFERROR(VLOOKUP($C51,Defaults!$AL$37:$AQ$63,6,FALSE),"")) ->  | BU51: =IF($C51="","",IFERROR(VLOOKUP($C51,Defaults!$AS$37:$AX$63,6,FALSE),"")) ->  | BV51: =IF($C51="","",IFERROR(VLOOKUP($C51,Defaults!$AZ$37:$BE$63,6,FALSE),"")) ->  | BW51: =IF($C51="","",IFERROR(VLOOKUP($C51,Defaults!$BG$37:$BL$63,6,FALSE),"")) ->  | BX51: =IF($C51="","",IFERROR(VLOOKUP($C51,Defaults!$BN$37:$BS$63,6,FALSE),"")) ->  | BY51: =IF($C51="","",IFERROR(VLOOKUP($C51,Defaults!$BU$37:$BZ$63,6,FALSE),"")) ->  | BZ51: =IF($C51="","",IFERROR(VLOOKUP($C51,Defaults!$CB$37:$CG$63,6,FALSE),"")) ->  | CA51: =IF($C51="","",IFERROR(VLOOKUP($C51,Defaults!$CI:$CN,6,FALSE),"")) -> 
K52: =IF(C52="","",ROUND(IF(E52=AE52,AF52,IF(AE52=$AC$2,AF52*VLOOKUP(E52,$AA$2:$AB$4,2,FALSE),IF(AE52=$AF$2,AF52*VLOOKUP(E52,$AD$2:$AE$3,2,FALSE),IF(AE52=$AI$2,AF52/VLOOKUP(E52,$AG$2:$AH$2,2,FALSE),IF(AE52=$AL$2,AF52*VLOOKUP(E52,$AJ$2:$AK$2,2,FALSE),IF(AE52=$AO$2,AF52/VLOOKUP(E52,$AM$2:$AN$2,2,FALSE),IF(AE52=$AR$2,AF52*VLOOKUP(E52,$AP$2:$AQ$3,2,FALSE)))))))),2)) ->  | N52: 0 | Q52: =IF(L52>0,ABS(V52-L52),"") ->  | U52: =J52 -> 0 | V52: =IF(AG52=0,0,AG52) ->  | Z52: =IF($Z$2=Defaults!$M$5,Cotton!B52,IF($Z$2=Defaults!$M$6,Corn!B52,IF($Z$2=Defaults!$M$7,Sorghum!B52,IF($Z$2=Defaults!$M$8,Soybean!B52,IF($Z$2=Defaults!$M$9,Rice!B52,IF($Z$2=Defaults!$M$10,Peanut!B52,IF($Z$2=Defaults!$M$11,Wheat!B52,IF($Z$2=Defaults!$M$12,Pasture!B52,"")))))))) ->  | AA52: =IF(C52="","",HLOOKUP($Z$2,$AZ$48:$BG$53,5,FALSE)) ->  | AB52: =IF(C52="","",HLOOKUP($Z$2,$BJ$48:$BQ$53,5,FALSE)) ->  | AC52: 0 | AD52: =IF(C52="","",HLOOKUP($Z$2,$BT$48:$CA$53,5,FALSE)) ->  | AE52: =IF(C52="","",VLOOKUP(C52,Defaults!$AH:$AJ,2,FALSE)) ->  | AF52: =IF(C52="","",ROUND(VLOOKUP(C52,Defaults!$AH:$AJ,3,FALSE),2)) ->  | AG52: =IFERROR(IF(LEFT($C$48,6)="Custom",L52,L52*(1-VLOOKUP($C$48,Implements!$A$159:$D$166,4,FALSE))),"") ->  | AM52: =N52 -> 0 | AO52: =N52 -> 0 | AU52: =W52 ->  | AW52: =W52 ->  | AY52: =IF($C52="","",$C52) ->  | AZ52: =IF($C52="","",VLOOKUP($C52,Defaults!$AL$37:$AQ$63,4,FALSE)) ->  | BA52: =IF($C52="","",VLOOKUP($C52,Defaults!$AS$37:$AX$63,4,FALSE)) ->  | BB52: =IF($C52="","",VLOOKUP($C52,Defaults!$AZ$37:$BE$63,4,FALSE)) ->  | BC52: =IF($C52="","",VLOOKUP($C52,Defaults!$BG$37:$BL$63,4,FALSE)) ->  | BD52: =IF($C52="","",VLOOKUP($C52,Defaults!$BN$37:$BS$63,4,FALSE)) ->  | BE52: =IF($C52="","",VLOOKUP($C52,Defaults!$BU$37:$BZ$63,4,FALSE)) ->  | BF52: =IF($C52="","",VLOOKUP($C52,Defaults!$CB$37:$CG$63,4,FALSE)) ->  | BG52: =IF($C52="","",VLOOKUP($C52,Defaults!$CI:$CN,4,FALSE)) ->  | BI52: =IF($C52="","",$C52) ->  | BJ52: =IF($C52="","",IFERROR(VLOOKUP($C52,Defaults!$AL$37:$AQ$63,5,FALSE),"")) ->  | BK52: =IF($C52="","",IFERROR(VLOOKUP($C52,Defaults!$AS$37:$AX$63,5,FALSE),"")) ->  | BL52: =IF($C52="","",IFERROR(VLOOKUP($C52,Defaults!$AZ$37:$BE$63,5,FALSE),"")) ->  | BM52: =IF($C52="","",IFERROR(VLOOKUP($C52,Defaults!$BG$37:$BL$63,5,FALSE),"")) ->  | BN52: =IF($C52="","",IFERROR(VLOOKUP($C52,Defaults!$BN$37:$BS$63,5,FALSE),"")) ->  | BO52: =IF($C52="","",IFERROR(VLOOKUP($C52,Defaults!$BU$37:$BZ$63,5,FALSE),"")) ->  | BP52: =IF($C52="","",IFERROR(VLOOKUP($C52,Defaults!$CB$37:$CG$63,5,FALSE),"")) ->  | BQ52: =IF($C52="","",IFERROR(VLOOKUP($C52,Defaults!$CI:$CN,5,FALSE),"")) ->  | BS52: =IF($C52="","",$C52) ->  | BT52: =IF($C52="","",IFERROR(VLOOKUP($C52,Defaults!$AL$37:$AQ$63,6,FALSE),"")) ->  | BU52: =IF($C52="","",IFERROR(VLOOKUP($C52,Defaults!$AS$37:$AX$63,6,FALSE),"")) ->  | BV52: =IF($C52="","",IFERROR(VLOOKUP($C52,Defaults!$AZ$37:$BE$63,6,FALSE),"")) ->  | BW52: =IF($C52="","",IFERROR(VLOOKUP($C52,Defaults!$BG$37:$BL$63,6,FALSE),"")) ->  | BX52: =IF($C52="","",IFERROR(VLOOKUP($C52,Defaults!$BN$37:$BS$63,6,FALSE),"")) ->  | BY52: =IF($C52="","",IFERROR(VLOOKUP($C52,Defaults!$BU$37:$BZ$63,6,FALSE),"")) ->  | BZ52: =IF($C52="","",IFERROR(VLOOKUP($C52,Defaults!$CB$37:$CG$63,6,FALSE),"")) ->  | CA52: =IF($C52="","",IFERROR(VLOOKUP($C52,Defaults!$CI:$CN,6,FALSE),"")) -> 
K53: =IF(C53="","",ROUND(IF(E53=AE53,AF53,IF(AE53=$AC$2,AF53*VLOOKUP(E53,$AA$2:$AB$4,2,FALSE),IF(AE53=$AF$2,AF53*VLOOKUP(E53,$AD$2:$AE$3,2,FALSE),IF(AE53=$AI$2,AF53/VLOOKUP(E53,$AG$2:$AH$2,2,FALSE),IF(AE53=$AL$2,AF53*VLOOKUP(E53,$AJ$2:$AK$2,2,FALSE),IF(AE53=$AO$2,AF53/VLOOKUP(E53,$AM$2:$AN$2,2,FALSE),IF(AE53=$AR$2,AF53*VLOOKUP(E53,$AP$2:$AQ$3,2,FALSE)))))))),2)) ->  | N53: 0 | Q53: =IF(L53>0,ABS(V53-L53),"") ->  | U53: =J53 -> 0 | V53: =IF(AG53=0,0,AG53) ->  | Z53: =IF($Z$2=Defaults!$M$5,Cotton!B53,IF($Z$2=Defaults!$M$6,Corn!B53,IF($Z$2=Defaults!$M$7,Sorghum!B53,IF($Z$2=Defaults!$M$8,Soybean!B53,IF($Z$2=Defaults!$M$9,Rice!B53,IF($Z$2=Defaults!$M$10,Peanut!B53,IF($Z$2=Defaults!$M$11,Wheat!B53,IF($Z$2=Defaults!$M$12,Pasture!B53,"")))))))) ->  | AA53: =IF(C53="","",HLOOKUP($Z$2,$AZ$48:$BG$53,6,FALSE)) ->  | AB53: =IF(C53="","",HLOOKUP($Z$2,$BJ$48:$BQ$53,6,FALSE)) ->  | AC53: 0 | AD53: =IF(C53="","",HLOOKUP($Z$2,$BT$48:$CA$53,6,FALSE)) ->  | AE53: =IF(C53="","",VLOOKUP(C53,Defaults!$AH:$AJ,2,FALSE)) ->  | AF53: =IF(C53="","",ROUND(VLOOKUP(C53,Defaults!$AH:$AJ,3,FALSE),2)) ->  | AG53: =IFERROR(IF(LEFT($C$48,6)="Custom",L53,L53*(1-VLOOKUP($C$48,Implements!$A$159:$D$166,4,FALSE))),"") ->  | AM53: =N53 -> 0 | AO53: =N53 -> 0 | AU53: =W53 ->  | AW53: =W53 ->  | AY53: =IF($C53="","",$C53) ->  | AZ53: =IF($C53="","",VLOOKUP($C53,Defaults!$AL$37:$AQ$63,4,FALSE)) ->  | BA53: =IF($C53="","",VLOOKUP($C53,Defaults!$AS$37:$AX$63,4,FALSE)) ->  | BB53: =IF($C53="","",VLOOKUP($C53,Defaults!$AZ$37:$BE$63,4,FALSE)) ->  | BC53: =IF($C53="","",VLOOKUP($C53,Defaults!$BG$37:$BL$63,4,FALSE)) ->  | BD53: =IF($C53="","",VLOOKUP($C53,Defaults!$BN$37:$BS$63,4,FALSE)) ->  | BE53: =IF($C53="","",VLOOKUP($C53,Defaults!$BU$37:$BZ$63,4,FALSE)) ->  | BF53: =IF($C53="","",VLOOKUP($C53,Defaults!$CB$37:$CG$63,4,FALSE)) ->  | BG53: =IF($C53="","",VLOOKUP($C53,Defaults!$CI:$CN,4,FALSE)) ->  | BI53: =IF($C53="","",$C53) ->  | BJ53: =IF($C53="","",IFERROR(VLOOKUP($C53,Defaults!$AL$37:$AQ$63,5,FALSE),"")) ->  | BK53: =IF($C53="","",IFERROR(VLOOKUP($C53,Defaults!$AS$37:$AX$63,5,FALSE),"")) ->  | BL53: =IF($C53="","",IFERROR(VLOOKUP($C53,Defaults!$AZ$37:$BE$63,5,FALSE),"")) ->  | BM53: =IF($C53="","",IFERROR(VLOOKUP($C53,Defaults!$BG$37:$BL$63,5,FALSE),"")) ->  | BN53: =IF($C53="","",IFERROR(VLOOKUP($C53,Defaults!$BN$37:$BS$63,5,FALSE),"")) ->  | BO53: =IF($C53="","",IFERROR(VLOOKUP($C53,Defaults!$BU$37:$BZ$63,5,FALSE),"")) ->  | BP53: =IF($C53="","",IFERROR(VLOOKUP($C53,Defaults!$CB$37:$CG$63,5,FALSE),"")) ->  | BQ53: =IF($C53="","",IFERROR(VLOOKUP($C53,Defaults!$CI:$CN,5,FALSE),"")) ->  | BS53: =IF($C53="","",$C53) ->  | BT53: =IF($C53="","",IFERROR(VLOOKUP($C53,Defaults!$AL$37:$AQ$63,6,FALSE),"")) ->  | BU53: =IF($C53="","",IFERROR(VLOOKUP($C53,Defaults!$AS$37:$AX$63,6,FALSE),"")) ->  | BV53: =IF($C53="","",IFERROR(VLOOKUP($C53,Defaults!$AZ$37:$BE$63,6,FALSE),"")) ->  | BW53: =IF($C53="","",IFERROR(VLOOKUP($C53,Defaults!$BG$37:$BL$63,6,FALSE),"")) ->  | BX53: =IF($C53="","",IFERROR(VLOOKUP($C53,Defaults!$BN$37:$BS$63,6,FALSE),"")) ->  | BY53: =IF($C53="","",IFERROR(VLOOKUP($C53,Defaults!$BU$37:$BZ$63,6,FALSE),"")) ->  | BZ53: =IF($C53="","",IFERROR(VLOOKUP($C53,Defaults!$CB$37:$CG$63,6,FALSE),"")) ->  | CA53: =IF($C53="","",IFERROR(VLOOKUP($C53,Defaults!$CI:$CN,6,FALSE),"")) -> 
C54: Postemergence Weed Control | D54: =IF($Z$2=Defaults!$M$5,Cotton!D54,IF($Z$2=Defaults!$M$6,Corn!D54,IF($Z$2=Defaults!$M$7,Sorghum!D54,IF($Z$2=Defaults!$M$8,Soybean!D54,IF($Z$2=Defaults!$M$9,Rice!D54,IF($Z$2=Defaults!$M$10,Peanut!D54,IF($Z$2=Defaults!$M$11,Wheat!D54,IF($Z$2=Defaults!$M$12,Pasture!D54,FALSE)))))))) -> Post Planting | Z54: =IF($Z$2=Defaults!$M$5,Cotton!B54,IF($Z$2=Defaults!$M$6,Corn!B54,IF($Z$2=Defaults!$M$7,Sorghum!B54,IF($Z$2=Defaults!$M$8,Soybean!B54,IF($Z$2=Defaults!$M$9,Rice!B54,IF($Z$2=Defaults!$M$10,Peanut!B54,IF($Z$2=Defaults!$M$11,Wheat!B54,IF($Z$2=Defaults!$M$12,Pasture!B54,"")))))))) -> Postemergence Weed Control | AY54: POST | BI54: POST | BS54: POST
F55: =IF(L55=0,0,IF(C55=Defaults!$I$27,Implements!$AK$185,IF(C55=Defaults!$I$28,Implements!$AK$186,0))) -> 0 | G55: =IF($L55=0,0,IFERROR(VLOOKUP($C55,Implements!$X$181:$AN$188,15,FALSE),0)) -> 0 | H55: =IF($L55=0,0,IFERROR(VLOOKUP($C55,Implements!$X$181:$AN$188,16,FALSE),0)) -> 0 | I55: =IF($L55=0,0,IFERROR(VLOOKUP($C55,Implements!$X$181:$AN$188,17,FALSE),0)) -> 0 | J55: =IF(OR(C55="",L55="",L55=0)=TRUE,"",IF(OR(C55=Defaults!$I$25,C55=Defaults!$I$26)=TRUE,VLOOKUP(C55,Defaults!$I$24:$K$27,3,FALSE),ROUND(1/F55*(1*Inputs!$AA$13+($AI$7-1)*Inputs!$AA$15),2)+ROUND(G55*Inputs!$V$13/F55,2)+ROUND(H55/F55,2)+ROUND(I55/F55,2))) ->  | K55: =IF(OR(C55="",L55="",L55=0)=TRUE,"",IF(OR(C55=Defaults!$I$25,C55=Defaults!$I$26)=TRUE,VLOOKUP(C55,Defaults!$I$24:$K$27,3,FALSE),ROUND(1/F55*(1*Inputs!$AA$13+($AI$7-1)*Inputs!$AA$15),2)+ROUND(G55*Inputs!$V$13/F55,2)+ROUND(H55/F55,2)+ROUND(I55/F55,2))) ->  | M55: =AB55 ->  | N55: =IF(C55="",0,IF(L55=0,0,IF(L55="","",J55*L55))) -> 0 | Q55: =IF(V55=0,0,IF(C55=Defaults!$I$27,Implements!$AK$174,IF(C55=Defaults!$I$28,Implements!$AK$175,0))) -> 0 | R55: =IF($V55=0,0,IFERROR(VLOOKUP($C55,Implements!$X$170:$AN$177,15,FALSE),0)) -> 0 | S55: =IF($V55=0,0,IFERROR(VLOOKUP($C55,Implements!$X$170:$AN$177,16,FALSE),0)) -> 0 | T55: =IF($V55=0,0,IFERROR(VLOOKUP($C55,Implements!$X$170:$AN$177,17,FALSE),0)) -> 0 | U55: =IF(OR(C55="",V55="",V55=0)=TRUE,"",IF(LEFT(C55,6)="Custom",J55,ROUND(1/Q55*(1*Inputs!$AA$13+($AI$7-1)*Inputs!$AA$15),2)+ROUND(R55*Inputs!$V$13/Q55,2)+ROUND(S55/Q55,2)+ROUND(T55/Q55,2))) ->  | V55: =+L55 -> 0 | W55: =IF(C55="","",IF(V55=0,0,IF(V55="","",U55*V55))) ->  | X55: =IF(C55="","",W55-N55) ->  | Z55: =IF($Z$2=Defaults!$M$5,Cotton!B55,IF($Z$2=Defaults!$M$6,Corn!B55,IF($Z$2=Defaults!$M$7,Sorghum!B55,IF($Z$2=Defaults!$M$8,Soybean!B55,IF($Z$2=Defaults!$M$9,Rice!B55,IF($Z$2=Defaults!$M$10,Peanut!B55,IF($Z$2=Defaults!$M$11,Wheat!B55,IF($Z$2=Defaults!$M$12,Pasture!B55,"")))))))) ->  | AB55: =IF(C55="","",IF($Z$2=Defaults!$M$12,VLOOKUP(C55,Defaults!$I$35:$J$37,2,FALSE),VLOOKUP(C55,Defaults!$I$24:$J$28,2,FALSE))) ->  | AC55: 0 | AD55: =IF(AB55="","",AB55*2) ->  | AG55: =+AB55 ->  | AH55: =N55 -> 0 | AI55: =ROUND(IFERROR(1/F55*(1*Inputs!$AA$13+($AI$7-1)*Inputs!$AA$15),0),2)*L55 -> 0 | AJ55: =ROUND(IFERROR(1/F55*G55*Inputs!$V$13,0),2)*L55 -> 0 | AK55: =ROUND(IFERROR(1/F55*H55,0),2)*L55 -> 0 | AL55: =ROUND(IFERROR(1/F55*I55,0),2)*L55 -> 0 | AP55: =W55 ->  | AQ55: =ROUND(IFERROR(1/Q55*(1*Inputs!$AA$13+($AI$7-1)*Inputs!$AA$15),0),2)*V55 -> 0 | AR55: =ROUND(IFERROR(1/Q55*R55*Inputs!$V$13,0),2)*V55 -> 0 | AS55: =ROUND(IFERROR(1/Q55*S55,0),2)*V55 -> 0 | AT55: =ROUND(IFERROR(1/Q55*T55,0),2)*V55 -> 0 | AZ55: =AZ11 -> Cotton | BA55: Corn | BB55: Sorghum | BC55: Soybean | BD55: Rice | BE55: Peanut | BF55: Wheat | BG55: Est. Pasture or Hay | BJ55: =BJ11 -> Cotton | BK55: Corn | BL55: Sorghum | BM55: Soybean | BN55: Rice | BO55: Peanut | BP55: Wheat | BQ55: Est. Pasture or Hay | BT55: =BT11 -> Cotton | BU55: Corn | BV55: Sorghum | BW55: Soybean | BX55: Rice | BY55: Peanut | BZ55: Wheat | CA55: Est. Pasture or Hay
K56: =IF(C56="","",ROUND(IF(E56=AE56,AF56,IF(AE56=$AC$2,AF56*VLOOKUP(E56,$AA$2:$AB$4,2,FALSE),IF(AE56=$AF$2,AF56*VLOOKUP(E56,$AD$2:$AE$3,2,FALSE),IF(AE56=$AI$2,AF56/VLOOKUP(E56,$AG$2:$AH$2,2,FALSE),IF(AE56=$AL$2,AF56*VLOOKUP(E56,$AJ$2:$AK$2,2,FALSE),IF(AE56=$AO$2,AF56/VLOOKUP(E56,$AM$2:$AN$2,2,FALSE),IF(AE56=$AR$2,AF56*VLOOKUP(E56,$AP$2:$AQ$3,2,FALSE)))))))),2)) ->  | M56: =AB56 ->  | N56: =IF(C56="",0,IF(L56=0,0,IF(L56="","",J56*L56))) -> 0 | Q56: =IF(L56>0,ABS(V56-L56),"") ->  | U56: =J56 -> 0 | V56: =IF(AG56=0,0,AG56) ->  | W56: =IF(C56="","",IF(V56=0,0,IF(V56="","",U56*V56))) ->  | Z56: =IF($Z$2=Defaults!$M$5,Cotton!B56,IF($Z$2=Defaults!$M$6,Corn!B56,IF($Z$2=Defaults!$M$7,Sorghum!B56,IF($Z$2=Defaults!$M$8,Soybean!B56,IF($Z$2=Defaults!$M$9,Rice!B56,IF($Z$2=Defaults!$M$10,Peanut!B56,IF($Z$2=Defaults!$M$11,Wheat!B56,IF($Z$2=Defaults!$M$12,Pasture!B56,"")))))))) ->  | AA56: =IF(C56="","",HLOOKUP($Z$2,$AZ$55:$BG$59,2,FALSE)) ->  | AB56: =IF(C56="","",HLOOKUP($Z$2,$BJ$55:$BQ$59,2,FALSE)) ->  | AC56: 0 | AD56: =IF(C56="","",HLOOKUP($Z$2,$BT$55:$CA$59,2,FALSE)) ->  | AE56: =IF(C56="","",VLOOKUP(C56,Defaults!$AH:$AJ,2,FALSE)) ->  | AF56: =IF(C56="","",ROUND(VLOOKUP(C56,Defaults!$AH:$AJ,3,FALSE),2)) ->  | AG56: =IFERROR(IF(LEFT($C$55,6)="Custom",L56,L56*(1-VLOOKUP($C$55,Implements!$A$159:$D$166,4,FALSE))),"") ->  | AM56: =N56 -> 0 | AO56: =N56 -> 0 | AU56: =W56 ->  | AW56: =W56 ->  | AY56: =IF($C56="","",$C56) ->  | AZ56: =IF($C56="","",VLOOKUP($C56,Defaults!$AL$65:$AQ$82,4,FALSE)) ->  | BA56: =IF($C56="","",VLOOKUP($C56,Defaults!$AS$65:$AX$96,4,FALSE)) ->  | BB56: =IF($C56="","",VLOOKUP($C56,Defaults!$AZ$65:$BE$96,4,FALSE)) ->  | BC56: =IF($C56="","",VLOOKUP($C56,Defaults!$BG$65:$BL$96,4,FALSE)) ->  | BD56: =IF($C56="","",VLOOKUP($C56,Defaults!$BN$65:$BS$96,4,FALSE)) ->  | BE56: =IF($C56="","",VLOOKUP($C56,Defaults!$BU$65:$BZ$96,4,FALSE)) ->  | BF56: =IF($C56="","",VLOOKUP($C56,Defaults!$CB$65:$CG$96,4,FALSE)) ->  | BG56: =IF($C56="","",VLOOKUP($C56,Defaults!$CI:$CN,4,FALSE)) ->  | BI56: =IF($C56="","",$C56) ->  | BJ56: =IF($C56="","",IFERROR(VLOOKUP($C56,Defaults!$AL$65:$AQ$82,5,FALSE),"")) ->  | BK56: =IF($C56="","",IFERROR(VLOOKUP($C56,Defaults!$AS$65:$AX$96,5,FALSE),"")) ->  | BL56: =IF($C56="","",IFERROR(VLOOKUP($C56,Defaults!$AZ$65:$BE$96,5,FALSE),"")) ->  | BM56: =IF($C56="","",IFERROR(VLOOKUP($C56,Defaults!$BG$65:$BL$96,5,FALSE),"")) ->  | BN56: =IF($C56="","",IFERROR(VLOOKUP($C56,Defaults!$BN$65:$BS$96,5,FALSE),"")) ->  | BO56: =IF($C56="","",IFERROR(VLOOKUP($C56,Defaults!$BU$65:$BZ$96,5,FALSE),"")) ->  | BP56: ="" ->  | BQ56: =IF($C56="","",IFERROR(VLOOKUP($C56,Defaults!$CI:$CN,5,FALSE),"")) ->  | BS56: =IF($C56="","",$C56) ->  | BT56: =IF($C56="","",IFERROR(VLOOKUP($C56,Defaults!$AL$65:$AQ$82,6,FALSE),"")) ->  | BU56: =IF($C56="","",IFERROR(VLOOKUP($C56,Defaults!$AS$65:$AX$96,6,FALSE),"")) ->  | BV56: =IF($C56="","",IFERROR(VLOOKUP($C56,Defaults!$AZ$65:$BE$96,6,FALSE),"")) ->  | BW56: =IF($C56="","",IFERROR(VLOOKUP($C56,Defaults!$BG$65:$BL$96,6,FALSE),"")) ->  | BX56: =IF($C56="","",IFERROR(VLOOKUP($C56,Defaults!$BN$65:$BS$96,6,FALSE),"")) ->  | BY56: =IF($C56="","",IFERROR(VLOOKUP($C56,Defaults!$BU$65:$BZ$96,6,FALSE),"")) ->  | BZ56: ="" ->  | CA56: =IF($C56="","",IFERROR(VLOOKUP($C56,Defaults!$CI:$CN,6,FALSE),"")) -> 
K57: =IF(C57="","",ROUND(IF(E57=AE57,AF57,IF(AE57=$AC$2,AF57*VLOOKUP(E57,$AA$2:$AB$4,2,FALSE),IF(AE57=$AF$2,AF57*VLOOKUP(E57,$AD$2:$AE$3,2,FALSE),IF(AE57=$AI$2,AF57/VLOOKUP(E57,$AG$2:$AH$2,2,FALSE),IF(AE57=$AL$2,AF57*VLOOKUP(E57,$AJ$2:$AK$2,2,FALSE),IF(AE57=$AO$2,AF57/VLOOKUP(E57,$AM$2:$AN$2,2,FALSE),IF(AE57=$AR$2,AF57*VLOOKUP(E57,$AP$2:$AQ$3,2,FALSE)))))))),2)) ->  | M57: =AB57 ->  | N57: =IF(C57="",0,IF(L57=0,0,IF(L57="","",J57*L57))) -> 0 | Q57: =IF(L57>0,ABS(V57-L57),"") ->  | U57: =J57 -> 0 | V57: =IF(AG57=0,0,AG57) ->  | W57: =IF(C57="","",IF(V57=0,0,IF(V57="","",U57*V57))) ->  | Z57: =IF($Z$2=Defaults!$M$5,Cotton!B57,IF($Z$2=Defaults!$M$6,Corn!B57,IF($Z$2=Defaults!$M$7,Sorghum!B57,IF($Z$2=Defaults!$M$8,Soybean!B57,IF($Z$2=Defaults!$M$9,Rice!B57,IF($Z$2=Defaults!$M$10,Peanut!B57,IF($Z$2=Defaults!$M$11,Wheat!B57,IF($Z$2=Defaults!$M$12,Pasture!B57,"")))))))) ->  | AA57: =IF(C57="","",HLOOKUP($Z$2,$AZ$55:$BG$59,3,FALSE)) ->  | AB57: =IF(C57="","",HLOOKUP($Z$2,$BJ$55:$BQ$59,3,FALSE)) ->  | AC57: 0 | AD57: =IF(C57="","",HLOOKUP($Z$2,$BT$55:$CA$59,3,FALSE)) ->  | AE57: =IF(C57="","",VLOOKUP(C57,Defaults!$AH:$AJ,2,FALSE)) ->  | AF57: =IF(C57="","",ROUND(VLOOKUP(C57,Defaults!$AH:$AJ,3,FALSE),2)) ->  | AG57: =IFERROR(IF(LEFT($C$55,6)="Custom",L57,L57*(1-VLOOKUP($C$55,Implements!$A$159:$D$166,4,FALSE))),"") ->  | AM57: =N57 -> 0 | AO57: =N57 -> 0 | AU57: =W57 ->  | AW57: =W57 ->  | AY57: =IF($C57="","",$C57) ->  | AZ57: =IF($C57="","",VLOOKUP($C57,Defaults!$AL$65:$AQ$82,4,FALSE)) ->  | BA57: =IF($C57="","",VLOOKUP($C57,Defaults!$AS$65:$AX$96,4,FALSE)) ->  | BB57: =IF($C57="","",VLOOKUP($C57,Defaults!$AZ$65:$BE$96,4,FALSE)) ->  | BC57: =IF($C57="","",VLOOKUP($C57,Defaults!$BG$65:$BL$96,4,FALSE)) ->  | BD57: =IF($C57="","",VLOOKUP($C57,Defaults!$BN$65:$BS$96,4,FALSE)) ->  | BE57: =IF($C57="","",VLOOKUP($C57,Defaults!$BU$65:$BZ$96,4,FALSE)) ->  | BF57: =IF($C57="","",VLOOKUP($C57,Defaults!$CB$65:$CG$96,4,FALSE)) ->  | BG57: =IF($C57="","",VLOOKUP($C57,Defaults!$CI:$CN,4,FALSE)) ->  | BI57: =IF($C57="","",$C57) ->  | BJ57: =IF($C57="","",IFERROR(VLOOKUP($C57,Defaults!$AL$65:$AQ$82,5,FALSE),"")) ->  | BK57: =IF($C57="","",IFERROR(VLOOKUP($C57,Defaults!$AS$65:$AX$96,5,FALSE),"")) ->  | BL57: =IF($C57="","",IFERROR(VLOOKUP($C57,Defaults!$AZ$65:$BE$96,5,FALSE),"")) ->  | BM57: =IF($C57="","",IFERROR(VLOOKUP($C57,Defaults!$BG$65:$BL$96,5,FALSE),"")) ->  | BN57: =IF($C57="","",IFERROR(VLOOKUP($C57,Defaults!$BN$65:$BS$96,5,FALSE),"")) ->  | BO57: =IF($C57="","",IFERROR(VLOOKUP($C57,Defaults!$BU$65:$BZ$96,5,FALSE),"")) ->  | BP57: ="" ->  | BQ57: =IF($C57="","",IFERROR(VLOOKUP($C57,Defaults!$CI:$CN,5,FALSE),"")) ->  | BS57: =IF($C57="","",$C57) ->  | BT57: =IF($C57="","",IFERROR(VLOOKUP($C57,Defaults!$AL$65:$AQ$82,6,FALSE),"")) ->  | BU57: =IF($C57="","",IFERROR(VLOOKUP($C57,Defaults!$AS$65:$AX$96,6,FALSE),"")) ->  | BV57: =IF($C57="","",IFERROR(VLOOKUP($C57,Defaults!$AZ$65:$BE$96,6,FALSE),"")) ->  | BW57: =IF($C57="","",IFERROR(VLOOKUP($C57,Defaults!$BG$65:$BL$96,6,FALSE),"")) ->  | BX57: =IF($C57="","",IFERROR(VLOOKUP($C57,Defaults!$BN$65:$BS$96,6,FALSE),"")) ->  | BY57: =IF($C57="","",IFERROR(VLOOKUP($C57,Defaults!$BU$65:$BZ$96,6,FALSE),"")) ->  | BZ57: ="" ->  | CA57: =IF($C57="","",IFERROR(VLOOKUP($C57,Defaults!$CI:$CN,6,FALSE),"")) -> 
K58: =IF(C58="","",ROUND(IF(E58=AE58,AF58,IF(AE58=$AC$2,AF58*VLOOKUP(E58,$AA$2:$AB$4,2,FALSE),IF(AE58=$AF$2,AF58*VLOOKUP(E58,$AD$2:$AE$3,2,FALSE),IF(AE58=$AI$2,AF58/VLOOKUP(E58,$AG$2:$AH$2,2,FALSE),IF(AE58=$AL$2,AF58*VLOOKUP(E58,$AJ$2:$AK$2,2,FALSE),IF(AE58=$AO$2,AF58/VLOOKUP(E58,$AM$2:$AN$2,2,FALSE),IF(AE58=$AR$2,AF58*VLOOKUP(E58,$AP$2:$AQ$3,2,FALSE)))))))),2)) ->  | M58: =AB58 ->  | N58: =IF(C58="",0,IF(L58=0,0,IF(L58="","",J58*L58))) -> 0 | Q58: =IF(L58>0,ABS(V58-L58),"") ->  | U58: =J58 -> 0 | V58: =IF(AG58=0,0,AG58) ->  | W58: =IF(C58="","",IF(V58=0,0,IF(V58="","",U58*V58))) ->  | Z58: =IF($Z$2=Defaults!$M$5,Cotton!B58,IF($Z$2=Defaults!$M$6,Corn!B58,IF($Z$2=Defaults!$M$7,Sorghum!B58,IF($Z$2=Defaults!$M$8,Soybean!B58,IF($Z$2=Defaults!$M$9,Rice!B58,IF($Z$2=Defaults!$M$10,Peanut!B58,IF($Z$2=Defaults!$M$11,Wheat!B58,IF($Z$2=Defaults!$M$12,Pasture!B58,"")))))))) ->  | AA58: =IF(C58="","",HLOOKUP($Z$2,$AZ$55:$BG$59,4,FALSE)) ->  | AB58: =IF(C58="","",HLOOKUP($Z$2,$BJ$55:$BQ$59,4,FALSE)) ->  | AC58: 0 | AD58: =IF(C58="","",HLOOKUP($Z$2,$BT$55:$CA$59,4,FALSE)) ->  | AE58: =IF(C58="","",VLOOKUP(C58,Defaults!$AH:$AJ,2,FALSE)) ->  | AF58: =IF(C58="","",ROUND(VLOOKUP(C58,Defaults!$AH:$AJ,3,FALSE),2)) ->  | AG58: =IFERROR(IF(LEFT($C$55,6)="Custom",L58,L58*(1-VLOOKUP($C$55,Implements!$A$159:$D$166,4,FALSE))),"") ->  | AM58: =N58 -> 0 | AO58: =N58 -> 0 | AU58: =W58 ->  | AW58: =W58 ->  | AY58: =IF($C58="","",$C58) ->  | AZ58: =IF($C58="","",VLOOKUP($C58,Defaults!$AL$65:$AQ$82,4,FALSE)) ->  | BA58: =IF($C58="","",VLOOKUP($C58,Defaults!$AS$65:$AX$96,4,FALSE)) ->  | BB58: =IF($C58="","",VLOOKUP($C58,Defaults!$AZ$65:$BE$96,4,FALSE)) ->  | BC58: =IF($C58="","",VLOOKUP($C58,Defaults!$BG$65:$BL$96,4,FALSE)) ->  | BD58: =IF($C58="","",VLOOKUP($C58,Defaults!$BN$65:$BS$96,4,FALSE)) ->  | BE58: =IF($C58="","",VLOOKUP($C58,Defaults!$BU$65:$BZ$96,4,FALSE)) ->  | BF58: =IF($C58="","",VLOOKUP($C58,Defaults!$CB$65:$CG$96,4,FALSE)) ->  | BG58: =IF($C58="","",VLOOKUP($C58,Defaults!$CI:$CN,4,FALSE)) ->  | BI58: =IF($C58="","",$C58) ->  | BJ58: =IF($C58="","",IFERROR(VLOOKUP($C58,Defaults!$AL$65:$AQ$82,5,FALSE),"")) ->  | BK58: =IF($C58="","",IFERROR(VLOOKUP($C58,Defaults!$AS$65:$AX$96,5,FALSE),"")) ->  | BL58: =IF($C58="","",IFERROR(VLOOKUP($C58,Defaults!$AZ$65:$BE$96,5,FALSE),"")) ->  | BM58: =IF($C58="","",IFERROR(VLOOKUP($C58,Defaults!$BG$65:$BL$96,5,FALSE),"")) ->  | BN58: =IF($C58="","",IFERROR(VLOOKUP($C58,Defaults!$BN$65:$BS$96,5,FALSE),"")) ->  | BO58: =IF($C58="","",IFERROR(VLOOKUP($C58,Defaults!$BU$65:$BZ$96,5,FALSE),"")) ->  | BP58: ="" ->  | BQ58: =IF($C58="","",IFERROR(VLOOKUP($C58,Defaults!$CI:$CN,5,FALSE),"")) ->  | BS58: =IF($C58="","",$C58) ->  | BT58: =IF($C58="","",IFERROR(VLOOKUP($C58,Defaults!$AL$65:$AQ$82,6,FALSE),"")) ->  | BU58: =IF($C58="","",IFERROR(VLOOKUP($C58,Defaults!$AS$65:$AX$96,6,FALSE),"")) ->  | BV58: =IF($C58="","",IFERROR(VLOOKUP($C58,Defaults!$AZ$65:$BE$96,6,FALSE),"")) ->  | BW58: =IF($C58="","",IFERROR(VLOOKUP($C58,Defaults!$BG$65:$BL$96,6,FALSE),"")) ->  | BX58: =IF($C58="","",IFERROR(VLOOKUP($C58,Defaults!$BN$65:$BS$96,6,FALSE),"")) ->  | BY58: =IF($C58="","",IFERROR(VLOOKUP($C58,Defaults!$BU$65:$BZ$96,6,FALSE),"")) ->  | BZ58: ="" ->  | CA58: =IF($C58="","",IFERROR(VLOOKUP($C58,Defaults!$CI:$CN,6,FALSE),"")) -> 
K59: =IF(C59="","",ROUND(IF(E59=AE59,AF59,IF(AE59=$AC$2,AF59*VLOOKUP(E59,$AA$2:$AB$4,2,FALSE),IF(AE59=$AF$2,AF59*VLOOKUP(E59,$AD$2:$AE$3,2,FALSE),IF(AE59=$AI$2,AF59/VLOOKUP(E59,$AG$2:$AH$2,2,FALSE),IF(AE59=$AL$2,AF59*VLOOKUP(E59,$AJ$2:$AK$2,2,FALSE),IF(AE59=$AO$2,AF59/VLOOKUP(E59,$AM$2:$AN$2,2,FALSE),IF(AE59=$AR$2,AF59*VLOOKUP(E59,$AP$2:$AQ$3,2,FALSE)))))))),2)) ->  | M59: =AB59 ->  | N59: =IF(C59="",0,IF(L59=0,0,IF(L59="","",J59*L59))) -> 0 | Q59: =IF(L59>0,ABS(V59-L59),"") ->  | U59: =J59 -> 0 | V59: =IF(AG59=0,0,AG59) ->  | W59: =IF(C59="","",IF(V59=0,0,IF(V59="","",U59*V59))) ->  | Z59: =IF($Z$2=Defaults!$M$5,Cotton!B59,IF($Z$2=Defaults!$M$6,Corn!B59,IF($Z$2=Defaults!$M$7,Sorghum!B59,IF($Z$2=Defaults!$M$8,Soybean!B59,IF($Z$2=Defaults!$M$9,Rice!B59,IF($Z$2=Defaults!$M$10,Peanut!B59,IF($Z$2=Defaults!$M$11,Wheat!B59,IF($Z$2=Defaults!$M$12,Pasture!B59,"")))))))) ->  | AA59: =IF(C59="","",HLOOKUP($Z$2,$AZ$55:$BG$59,5,FALSE)) ->  | AB59: =IF(C59="","",HLOOKUP($Z$2,$BJ$55:$BQ$59,5,FALSE)) ->  | AC59: 0 | AD59: =IF(C59="","",HLOOKUP($Z$2,$BT$55:$CA$59,5,FALSE)) ->  | AE59: =IF(C59="","",VLOOKUP(C59,Defaults!$AH:$AJ,2,FALSE)) ->  | AF59: =IF(C59="","",ROUND(VLOOKUP(C59,Defaults!$AH:$AJ,3,FALSE),2)) ->  | AG59: =IFERROR(IF(LEFT($C$55,6)="Custom",L59,L59*(1-VLOOKUP($C$55,Implements!$A$159:$D$166,4,FALSE))),"") ->  | AU59: =W59 ->  | AW59: =W59 ->  | AY59: =IF($C59="","",$C59) ->  | AZ59: =IF($C59="","",VLOOKUP($C59,Defaults!$AL$65:$AQ$82,4,FALSE)) ->  | BA59: =IF($C59="","",VLOOKUP($C59,Defaults!$AS$65:$AX$96,4,FALSE)) ->  | BB59: =IF($C59="","",VLOOKUP($C59,Defaults!$AZ$65:$BE$96,4,FALSE)) ->  | BC59: =IF($C59="","",VLOOKUP($C59,Defaults!$BG$65:$BL$96,4,FALSE)) ->  | BD59: =IF($C59="","",VLOOKUP($C59,Defaults!$BN$65:$BS$96,4,FALSE)) ->  | BE59: =IF($C59="","",VLOOKUP($C59,Defaults!$BU$65:$BZ$96,4,FALSE)) ->  | BF59: =IF($C59="","",VLOOKUP($C59,Defaults!$CB$65:$CG$96,4,FALSE)) ->  | BG59: =IF($C59="","",VLOOKUP($C59,Defaults!$CI:$CN,4,FALSE)) ->  | BI59: =IF($C59="","",$C59) ->  | BJ59: =IF($C59="","",IFERROR(VLOOKUP($C59,Defaults!$AL$65:$AQ$82,5,FALSE),"")) ->  | BK59: =IF($C59="","",IFERROR(VLOOKUP($C59,Defaults!$AS$65:$AX$96,5,FALSE),"")) ->  | BL59: =IF($C59="","",IFERROR(VLOOKUP($C59,Defaults!$AZ$65:$BE$96,5,FALSE),"")) ->  | BM59: =IF($C59="","",IFERROR(VLOOKUP($C59,Defaults!$BG$65:$BL$96,5,FALSE),"")) ->  | BN59: =IF($C59="","",IFERROR(VLOOKUP($C59,Defaults!$BN$65:$BS$96,5,FALSE),"")) ->  | BO59: =IF($C59="","",IFERROR(VLOOKUP($C59,Defaults!$BU$65:$BZ$96,5,FALSE),"")) ->  | BP59: ="" ->  | BQ59: =IF($C59="","",IFERROR(VLOOKUP($C59,Defaults!$CI:$CN,5,FALSE),"")) ->  | BS59: =IF($C59="","",$C59) ->  | BT59: =IF($C59="","",IFERROR(VLOOKUP($C59,Defaults!$AL$65:$AQ$82,6,FALSE),"")) ->  | BU59: =IF($C59="","",IFERROR(VLOOKUP($C59,Defaults!$AS$65:$AX$96,6,FALSE),"")) ->  | BV59: =IF($C59="","",IFERROR(VLOOKUP($C59,Defaults!$AZ$65:$BE$96,6,FALSE),"")) ->  | BW59: =IF($C59="","",IFERROR(VLOOKUP($C59,Defaults!$BG$65:$BL$96,6,FALSE),"")) ->  | BX59: =IF($C59="","",IFERROR(VLOOKUP($C59,Defaults!$BN$65:$BS$96,6,FALSE),"")) ->  | BY59: =IF($C59="","",IFERROR(VLOOKUP($C59,Defaults!$BU$65:$BZ$96,6,FALSE),"")) ->  | BZ59: ="" ->  | CA59: =IF($C59="","",IFERROR(VLOOKUP($C59,Defaults!$CI:$CN,6,FALSE),"")) -> 
D60: =IF($Z$2=Defaults!$M$5,Cotton!D60,IF($Z$2=Defaults!$M$6,Corn!D60,IF($Z$2=Defaults!$M$7,Sorghum!D60,IF($Z$2=Defaults!$M$8,Soybean!D60,IF($Z$2=Defaults!$M$9,Rice!D60,IF($Z$2=Defaults!$M$10,Peanut!D60,IF($Z$2=Defaults!$M$11,Wheat!D60,IF($Z$2=Defaults!$M$12,Pasture!D60,FALSE)))))))) ->  | Z60: =IF($Z$2=Defaults!$M$5,Cotton!B60,IF($Z$2=Defaults!$M$6,Corn!B60,IF($Z$2=Defaults!$M$7,Sorghum!B60,IF($Z$2=Defaults!$M$8,Soybean!B60,IF($Z$2=Defaults!$M$9,Rice!B60,IF($Z$2=Defaults!$M$10,Peanut!B60,IF($Z$2=Defaults!$M$11,Wheat!B60,IF($Z$2=Defaults!$M$12,Pasture!B60,"")))))))) ->  | AY60: LAY | BI60: LAY | BS60: LAY
F61: =IF(L61=0,0,IF(C61=Defaults!$I$33,Implements!$AK$186,0)) -> 0 | G61: =IF($L61=0,0,IFERROR(VLOOKUP($C61,Implements!$X$181:$AN$188,15,FALSE),0)) -> 0 | H61: =IF($L61=0,0,IFERROR(VLOOKUP($C61,Implements!$X$181:$AN$188,16,FALSE),0)) -> 0 | I61: =IF($L61=0,0,IFERROR(VLOOKUP($C61,Implements!$X$181:$AN$188,17,FALSE),0)) -> 0 | J61: =IF(OR(C61="",L61="",L61=0)=TRUE,"",IF(OR(C61=Defaults!$I$25,C61=Defaults!$I$26)=TRUE,VLOOKUP(C61,Defaults!$I$24:$K$27,3,FALSE),ROUND(1/F61*(1*Inputs!$AA$13+($AI$7-1)*Inputs!$AA$15),2)+ROUND(G61*Inputs!$V$13/F61,2)+ROUND(H61/F61,2)+ROUND(I61/F61,2))) ->  | K61: =IF(OR(C61="",L61="",L61=0)=TRUE,"",IF(OR(C61=Defaults!$I$25,C61=Defaults!$I$26)=TRUE,VLOOKUP(C61,Defaults!$I$24:$K$27,3,FALSE),ROUND(1/F61*(1*Inputs!$AA$13+($AI$7-1)*Inputs!$AA$15),2)+ROUND(G61*Inputs!$V$13/F61,2)+ROUND(H61/F61,2)+ROUND(I61/F61,2))) ->  | M61: =AB61 ->  | N61: =IF(C61="",0,IF(L61=0,0,IF(L61="","",J61*L61))) -> 0 | Q61: =IF(V61=0,0,IF(C61=Defaults!$I$33,Implements!$AK$175,0)) -> 0 | R61: =IF($V61=0,0,IFERROR(VLOOKUP($C61,Implements!$X$170:$AN$177,15,FALSE),0)) -> 0 | S61: =IF($V61=0,0,IFERROR(VLOOKUP($C61,Implements!$X$170:$AN$177,16,FALSE),0)) -> 0 | T61: =IF($V61=0,0,IFERROR(VLOOKUP($C61,Implements!$X$170:$AN$177,17,FALSE),0)) -> 0 | U61: =IF(OR(C61="",V61="",V61=0)=TRUE,"",IF(LEFT(C61,6)="Custom",J61,ROUND(1/Q61*(1*Inputs!$AA$13+($AI$7-1)*Inputs!$AA$15),2)+ROUND(R61*Inputs!$V$13/Q61,2)+ROUND(S61/Q61,2)+ROUND(T61/Q61,2))) ->  | V61: =+L61 -> 0 | W61: =IF(C61="","",IF(V61=0,0,IF(V61="","",U61*V61))) ->  | Z61: =IF($Z$2=Defaults!$M$5,Cotton!B61,IF($Z$2=Defaults!$M$6,Corn!B61,IF($Z$2=Defaults!$M$7,Sorghum!B61,IF($Z$2=Defaults!$M$8,Soybean!B61,IF($Z$2=Defaults!$M$9,Rice!B61,IF($Z$2=Defaults!$M$10,Peanut!B61,IF($Z$2=Defaults!$M$11,Wheat!B61,IF($Z$2=Defaults!$M$12,Pasture!B61,"")))))))) ->  | AB61: =IF(C61="","",IF($Z$2=Defaults!$M$12,VLOOKUP(C61,Defaults!$I$35:$J$37,2,FALSE),VLOOKUP(C61,Defaults!$I$30:$J$33,2,FALSE))) ->  | AC61: 0 | AD61: =IF(AB61="","",AB61*2) ->  | AG61: =+AB61 ->  | AH61: =N61 -> 0 | AI61: =ROUND(IFERROR(1/F61*(1*Inputs!$AA$13+($AI$7-1)*Inputs!$AA$15),0),2)*L61 -> 0 | AJ61: =ROUND(IFERROR(1/F61*G61*Inputs!$V$13,0),2)*L61 -> 0 | AK61: =ROUND(IFERROR(1/F61*H61,0),2)*L61 -> 0 | AL61: =ROUND(IFERROR(1/F61*I61,0),2)*L61 -> 0 | AP61: =W61 ->  | AQ61: =ROUND(IFERROR(1/Q61*(1*Inputs!$AA$13+($AI$7-1)*Inputs!$AA$15),0),2)*V61 -> 0 | AR61: =ROUND(IFERROR(1/Q61*R61*Inputs!$V$13,0),2)*V61 -> 0 | AS61: =ROUND(IFERROR(1/Q61*S61,0),2)*V61 -> 0 | AT61: =ROUND(IFERROR(1/Q61*T61,0),2)*V61 -> 0 | AZ61: =AZ11 -> Cotton | BA61: =BA11 -> Corn | BB61: Sorghum | BC61: Soybean | BD61: Rice | BE61: Peanut | BF61: Wheat | BG61: Est. Pasture or Hay | BJ61: =BJ11 -> Cotton | BK61: =BK11 -> Corn | BL61: Sorghum | BM61: Soybean | BN61: Rice | BO61: Peanut | BP61: Wheat | BQ61: Est. Pasture or Hay | BT61: =BT11 -> Cotton | BU61: =BU11 -> Corn | BV61: Sorghum | BW61: Soybean | BX61: Rice | BY61: Peanut | BZ61: Wheat | CA61: Est. Pasture or Hay
K62: =IF(C62="","",ROUND(IF(E62=AE62,AF62,IF(AE62=$AC$2,AF62*VLOOKUP(E62,$AA$2:$AB$4,2,FALSE),IF(AE62=$AF$2,AF62*VLOOKUP(E62,$AD$2:$AE$3,2,FALSE),IF(AE62=$AI$2,AF62/VLOOKUP(E62,$AG$2:$AH$2,2,FALSE),IF(AE62=$AL$2,AF62*VLOOKUP(E62,$AJ$2:$AK$2,2,FALSE),IF(AE62=$AO$2,AF62/VLOOKUP(E62,$AM$2:$AN$2,2,FALSE),IF(AE62=$AR$2,AF62*VLOOKUP(E62,$AP$2:$AQ$3,2,FALSE)))))))),2)) ->  | M62: =AB62 ->  | N62: =IF(C62="",0,IF(L62=0,0,IF(L62="","",J62*L62))) -> 0 | Q62: =IF(L62>0,ABS(V62-L62),"") ->  | U62: =J62 -> 0 | V62: =IF(AG62=0,0,AG62) ->  | W62: =IF(C62="","",IF(V62=0,0,IF(V62="","",U62*V62))) ->  | Z62: =IF($Z$2=Defaults!$M$5,Cotton!B62,IF($Z$2=Defaults!$M$6,Corn!B62,IF($Z$2=Defaults!$M$7,Sorghum!B62,IF($Z$2=Defaults!$M$8,Soybean!B62,IF($Z$2=Defaults!$M$9,Rice!B62,IF($Z$2=Defaults!$M$10,Peanut!B62,IF($Z$2=Defaults!$M$11,Wheat!B62,IF($Z$2=Defaults!$M$12,Pasture!B62,"")))))))) ->  | AA62: =IF(C62="","",HLOOKUP($Z$2,$AZ$61:$BG$65,2,FALSE)) ->  | AB62: =IF(C62="","",HLOOKUP($Z$2,$BJ$61:$BQ$65,2,FALSE)) ->  | AC62: 0 | AD62: =IF(C62="","",HLOOKUP($Z$2,$BT$61:$CA$65,2,FALSE)) ->  | AE62: =IF(C62="","",VLOOKUP(C62,Defaults!$AH:$AJ,2,FALSE)) ->  | AF62: =IF(C62="","",ROUND(VLOOKUP(C62,Defaults!$AH:$AJ,3,FALSE),2)) ->  | AG62: =IFERROR(IF(LEFT($C$61,6)="Custom",L62,L62*(1-VLOOKUP($C$61,Implements!$A$159:$D$166,4,FALSE))),"") ->  | AM62: =N62 -> 0 | AO62: =N62 -> 0 | AU62: =W62 ->  | AW62: =W62 ->  | AY62: =IF($C62="","",$C62) ->  | AZ62: =IF($C62="","",VLOOKUP($C62,Defaults!$AL$85:$AQ$101,4,FALSE)) ->  | BA62: ="" ->  | BB62: ="" ->  | BC62: ="" ->  | BD62: ="" ->  | BE62: ="" ->  | BF62: ="" ->  | BG62: ="" ->  | BI62: =IF($C62="","",$C62) ->  | BJ62: =IF($C62="","",IFERROR(VLOOKUP($C62,Defaults!$AL$85:$AQ$101,5,FALSE),"")) ->  | BK62: ="" ->  | BL62: ="" ->  | BM62: ="" ->  | BN62: ="" ->  | BO62: ="" ->  | BP62: ="" ->  | BQ62: ="" ->  | BS62: =IF($C62="","",$C62) ->  | BT62: =IF($C62="","",IFERROR(VLOOKUP($C62,Defaults!$AL$85:$AQ$101,6,FALSE),"")) ->  | BU62: ="" ->  | BV62: ="" ->  | BW62: ="" ->  | BX62: ="" ->  | BY62: ="" ->  | BZ62: ="" ->  | CA62: ="" -> 
K63: =IF(C63="","",ROUND(IF(E63=AE63,AF63,IF(AE63=$AC$2,AF63*VLOOKUP(E63,$AA$2:$AB$4,2,FALSE),IF(AE63=$AF$2,AF63*VLOOKUP(E63,$AD$2:$AE$3,2,FALSE),IF(AE63=$AI$2,AF63/VLOOKUP(E63,$AG$2:$AH$2,2,FALSE),IF(AE63=$AL$2,AF63*VLOOKUP(E63,$AJ$2:$AK$2,2,FALSE),IF(AE63=$AO$2,AF63/VLOOKUP(E63,$AM$2:$AN$2,2,FALSE),IF(AE63=$AR$2,AF63*VLOOKUP(E63,$AP$2:$AQ$3,2,FALSE)))))))),2)) ->  | M63: =AB63 ->  | N63: =IF(C63="",0,IF(L63=0,0,IF(L63="","",J63*L63))) -> 0 | Q63: =IF(L63>0,ABS(V63-L63),"") ->  | U63: =J63 -> 0 | V63: =IF(AG63=0,0,AG63) ->  | W63: =IF(C63="","",IF(V63=0,0,IF(V63="","",U63*V63))) ->  | Z63: =IF($Z$2=Defaults!$M$5,Cotton!B63,IF($Z$2=Defaults!$M$6,Corn!B63,IF($Z$2=Defaults!$M$7,Sorghum!B63,IF($Z$2=Defaults!$M$8,Soybean!B63,IF($Z$2=Defaults!$M$9,Rice!B63,IF($Z$2=Defaults!$M$10,Peanut!B63,IF($Z$2=Defaults!$M$11,Wheat!B63,IF($Z$2=Defaults!$M$12,Pasture!B63,"")))))))) ->  | AA63: =IF(C63="","",HLOOKUP($Z$2,$AZ$61:$BG$65,3,FALSE)) ->  | AB63: =IF(C63="","",HLOOKUP($Z$2,$BJ$61:$BQ$65,3,FALSE)) ->  | AC63: 0 | AD63: =IF(C63="","",HLOOKUP($Z$2,$BT$61:$CA$65,3,FALSE)) ->  | AE63: =IF(C63="","",VLOOKUP(C63,Defaults!$AH:$AJ,2,FALSE)) ->  | AF63: =IF(C63="","",ROUND(VLOOKUP(C63,Defaults!$AH:$AJ,3,FALSE),2)) ->  | AG63: =IFERROR(IF(LEFT($C$61,6)="Custom",L63,L63*(1-VLOOKUP($C$61,Implements!$A$159:$D$166,4,FALSE))),"") ->  | AM63: =N63 -> 0 | AO63: =N63 -> 0 | AU63: =W63 ->  | AW63: =W63 ->  | AY63: =IF($C63="","",$C63) ->  | AZ63: =IF($C63="","",VLOOKUP($C63,Defaults!$AL$85:$AQ$101,4,FALSE)) ->  | BA63: ="" ->  | BB63: ="" ->  | BC63: ="" ->  | BD63: ="" ->  | BE63: ="" ->  | BF63: ="" ->  | BG63: ="" ->  | BI63: =IF($C63="","",$C63) ->  | BJ63: =IF($C63="","",IFERROR(VLOOKUP($C63,Defaults!$AL$85:$AQ$101,5,FALSE),"")) ->  | BK63: ="" ->  | BL63: ="" ->  | BM63: ="" ->  | BN63: ="" ->  | BO63: ="" ->  | BP63: ="" ->  | BQ63: ="" ->  | BS63: =IF($C63="","",$C63) ->  | BT63: =IF($C63="","",IFERROR(VLOOKUP($C63,Defaults!$AL$85:$AQ$101,6,FALSE),"")) ->  | BU63: ="" ->  | BV63: ="" ->  | BW63: ="" ->  | BX63: ="" ->  | BY63: ="" ->  | BZ63: ="" ->  | CA63: ="" -> 
K64: =IF(C64="","",ROUND(IF(E64=AE64,AF64,IF(AE64=$AC$2,AF64*VLOOKUP(E64,$AA$2:$AB$4,2,FALSE),IF(AE64=$AF$2,AF64*VLOOKUP(E64,$AD$2:$AE$3,2,FALSE),IF(AE64=$AI$2,AF64/VLOOKUP(E64,$AG$2:$AH$2,2,FALSE),IF(AE64=$AL$2,AF64*VLOOKUP(E64,$AJ$2:$AK$2,2,FALSE),IF(AE64=$AO$2,AF64/VLOOKUP(E64,$AM$2:$AN$2,2,FALSE),IF(AE64=$AR$2,AF64*VLOOKUP(E64,$AP$2:$AQ$3,2,FALSE)))))))),2)) ->  | M64: =AB64 ->  | N64: =IF(C64="",0,IF(L64=0,0,IF(L64="","",J64*L64))) -> 0 | Q64: =IF(L64>0,ABS(V64-L64),"") ->  | U64: =J64 -> 0 | V64: =IF(AG64=0,0,AG64) ->  | W64: =IF(C64="","",IF(V64=0,0,IF(V64="","",U64*V64))) ->  | Z64: =IF($Z$2=Defaults!$M$5,Cotton!B64,IF($Z$2=Defaults!$M$6,Corn!B64,IF($Z$2=Defaults!$M$7,Sorghum!B64,IF($Z$2=Defaults!$M$8,Soybean!B64,IF($Z$2=Defaults!$M$9,Rice!B64,IF($Z$2=Defaults!$M$10,Peanut!B64,IF($Z$2=Defaults!$M$11,Wheat!B64,IF($Z$2=Defaults!$M$12,Pasture!B64,"")))))))) ->  | AA64: =IF(C64="","",HLOOKUP($Z$2,$AZ$61:$BG$65,4,FALSE)) ->  | AB64: =IF(C64="","",HLOOKUP($Z$2,$BJ$61:$BQ$65,4,FALSE)) ->  | AC64: 0 | AD64: =IF(C64="","",HLOOKUP($Z$2,$BT$61:$CA$65,4,FALSE)) ->  | AE64: =IF(C64="","",VLOOKUP(C64,Defaults!$AH:$AJ,2,FALSE)) ->  | AF64: =IF(C64="","",ROUND(VLOOKUP(C64,Defaults!$AH:$AJ,3,FALSE),2)) ->  | AG64: =IFERROR(IF(LEFT($C$61,6)="Custom",L64,L64*(1-VLOOKUP($C$61,Implements!$A$159:$D$166,4,FALSE))),"") ->  | AM64: =N64 -> 0 | AO64: =N64 -> 0 | AU64: =W64 ->  | AW64: =W64 ->  | AY64: =IF($C64="","",$C64) ->  | AZ64: =IF($C64="","",VLOOKUP($C64,Defaults!$AL$85:$AQ$101,4,FALSE)) ->  | BA64: ="" ->  | BB64: ="" ->  | BC64: ="" ->  | BD64: ="" ->  | BE64: ="" ->  | BF64: ="" ->  | BG64: ="" ->  | BI64: =IF($C64="","",$C64) ->  | BJ64: =IF($C64="","",IFERROR(VLOOKUP($C64,Defaults!$AL$85:$AQ$101,5,FALSE),"")) ->  | BK64: ="" ->  | BL64: ="" ->  | BM64: ="" ->  | BN64: ="" ->  | BO64: ="" ->  | BP64: ="" ->  | BQ64: ="" ->  | BS64: =IF($C64="","",$C64) ->  | BT64: =IF($C64="","",IFERROR(VLOOKUP($C64,Defaults!$AL$85:$AQ$101,6,FALSE),"")) ->  | BU64: ="" ->  | BV64: ="" ->  | BW64: ="" ->  | BX64: ="" ->  | BY64: ="" ->  | BZ64: ="" ->  | CA64: ="" -> 
